Workbook

Sheet RP and draft decision changes
B1: AER Draft Decision change log
B2: changes in the spreadsheet are also highlighted in orange
B4: Tabs | C4: Cells | D4: Description of changes
B5: AER Draft Decision - Labour | D5: New tab created for draft decision ANS labour rates
B6: AER Draft Decision - Services | D6: New tab created for draft decision ANS service price list
B7: Calc|Tax | D7: New tab created to calculate tax rate using Diminishing value method
B8: Calc|Tax | C8: Cell C3 | D8: Updated our draft decision WACC rate
B9: Input|Escalations | C9: Row 21 | D9: Updated RBA forecast rates
B10: Input|Escalations | C10: Row 42 | D10: Updated WPI BIS Oxford values for Victoria
B11: Input|Escalations | C11: Row 43 | D11: Included our draft decision labour escalator
B12: Input|Escalations | C12: Row 44 | D12: Included superannuation guarantee
B13: Input|Fee Based | C13: AY10:AY32 | D13: Tax rates updated
B14: Input|Fee Based | C14: Row 28 | D14: Replaced input values with approved ANS prices. See section 16.1.4.2 - Fee-based services. Subsection - Wasted Truck visit
B17: AusNet Revised Proposal change log
B18: changes in the spreadsheet are also highlighted in purple
B20: Input|Escalations | C20: H42:M43 | D20: Updated - WPI - Oxford Economics forecast , WPI - Real labour price growth - Deloitte WPI
B21: Input|Fee Based | C21: AR37 | D21: Updated - with revised contractor unit rate for Wasted Truck Fees following negotiations with supplier after draft decision
B22: RP and draft decision-Fees, Output|Fee Based, Input|Fee Based Mapping | C22: Various | D22: Added new fee "Type 9 meter data services - Per light Per Year"
B23: Input|Indirect Cost Rates | C23: D27 | D23: Updated overhead to reflect recent actual 2024-25 data

Sheet RP and draft decision-Labour
B1: AER Draft Decision - Ancillary Network Services - AusNet 2026-31
B3: Reading guide:
B5: Table 1 | C5: sets out the draft decision X factors referred to in section 16.1.1.2 of Draft Decision Attachment 16 – Alternative control services. For ancillary network services, the X factor is the annual change in wage prices.
B6: Table 2 | C6: sets out the Labour rates for Business and After hours referred to in Tables 16.1 and 16.2 of Draft Decision Attachment 16 - Alternative control services.
B9: Table 1 | C9: X factors for each year of the 2025–30 regulatory control period for ancillary network services, draft decision (per cent)
D11: 2026-27 | E11: 2027-28 | F11: 2028-29 | G11: 2029-30 | H11: 2030-31
B12: Ancillary Network Services X-factor | C12: Per cent | E12: ='Output|Quoted'!D7 -> -0.009550582168 | F12: ='Output|Quoted'!E7 -> -0.0111993349 | G12: ='Output|Quoted'!F7 -> -0.01227436192 | H12: ='Output|Quoted'!G7 -> -0.01202541615
B14: Note:
B15: We do not apply an X factor for 2025–26 because we set 2025–26 ancillary network services prices in this Draft determination. To be clear, the labour escalators in this table are operating as de-facto X factors. Therefore, positive labour escalators are represented as negative in this table and vice versa. X factors in this table are rounded to 4 decimal places but distributors should use the raw X factors in the draft decision model.
B19: Table 2 | C19: Fee-based and quoted service hourly labour rates (business hours and after hours) for 2025–26, draft decision ($2025–26)
B21: Labour Categories | C21: Business Hours | D21: Initial proposal | E21: Draft decision | F21: Revised Proposal
A22: 1 | B22: ='Calc|Labour Rates'!B10 -> Construction Overhead Install | C22: ='Calc|Labour Rates'!C10 -> Business hours | D22: 154.2572055 | E22: 154.0971735 | F22: =VLOOKUP(B22,'Calc|Labour Rates'!B10:E39,4,FALSE) -> 155.1411884
A23: 2 | B23: ='Calc|Labour Rates'!B11 -> Construction Underground Install | C23: ='Calc|Labour Rates'!C11 -> Business hours | D23: 150.6585869 | E23: 150.5022882 | F23: =VLOOKUP(B23,'Calc|Labour Rates'!B11:E40,4,FALSE) -> 151.5219476
A24: 3 | B24: ='Calc|Labour Rates'!B12 -> Construction Substation Install | C24: ='Calc|Labour Rates'!C12 -> Business hours | D24: 150.6585869 | E24: 150.5022882 | F24: =VLOOKUP(B24,'Calc|Labour Rates'!B12:E41,4,FALSE) -> 151.5219476
A25: 4 | B25: ='Calc|Labour Rates'!B13 -> Electrical Tester Including Vehicle & Equipment | C25: ='Calc|Labour Rates'!C13 -> Business hours | D25: 222.1368212 | E25: 221.6948899 | F25: =VLOOKUP(B25,'Calc|Labour Rates'!B13:E42,4,FALSE) -> 223.199772
A26: 5 | B26: ='Calc|Labour Rates'!B14 -> Planner Including Vehicle | C26: ='Calc|Labour Rates'!C14 -> Business hours | D26: 207.0763336 | E26: 206.701314 | F26: =VLOOKUP(B26,'Calc|Labour Rates'!B14:E43,4,FALSE) -> 208.1039132
A27: 6 | B27: ='Calc|Labour Rates'!B15 -> Supervisor Including Vehicle | C27: ='Calc|Labour Rates'!C15 -> Business hours | D27: 207.0763336 | E27: 206.701314 | F27: =VLOOKUP(B27,'Calc|Labour Rates'!B15:E44,4,FALSE) -> 208.1039132
A28: 7 | B28: ='Calc|Labour Rates'!B16 -> Administrative Officer | C28: ='Calc|Labour Rates'!C16 -> Business hours | D28: 88.15334444 | E28: 88.05892423 | F28: =VLOOKUP(B28,'Calc|Labour Rates'!B16:E45,4,FALSE) -> 88.65552718
A29: 8 | B29: ='Calc|Labour Rates'!B17 -> Design | C29: ='Calc|Labour Rates'!C17 -> Business hours | D29: 176.8049684 | E29: 176.6215445 | F29: =VLOOKUP(B29,'Calc|Labour Rates'!B17:E46,4,FALSE) -> 189.3818316
A30: 9 | B30: ='Calc|Labour Rates'!B18 -> Drafting | C30: ='Calc|Labour Rates'!C18 -> Business hours | D30: 135.8666529 | E30: 135.7256999 | F30: =VLOOKUP(B30,'Calc|Labour Rates'!B18:E47,4,FALSE) -> 145.5314057
A31: 10 | B31: ='Calc|Labour Rates'!B19 -> Survey | C31: ='Calc|Labour Rates'!C19 -> Business hours | D31: 160.0364796 | E31: 159.870452 | F31: =VLOOKUP(B31,'Calc|Labour Rates'!B19:E48,4,FALSE) -> 171.4205315
A32: 11 | B32: ='Calc|Labour Rates'!B20 -> Tech Officer | C32: ='Calc|Labour Rates'!C20 -> Business hours | D32: 160.0364796 | E32: 159.870452 | F32: =VLOOKUP(B32,'Calc|Labour Rates'!B20:E49,4,FALSE) -> 171.4205315
A33: 12 | B33: ='Calc|Labour Rates'!B21 -> Line Inspector | C33: ='Calc|Labour Rates'!C21 -> Business hours | D33: 154.2572055 | E33: 154.0971735 | F33: =VLOOKUP(B33,'Calc|Labour Rates'!B21:E50,4,FALSE) -> 165.2301539
A34: 13 | B34: ='Calc|Labour Rates'!B22 -> Contract Supervision | C34: ='Calc|Labour Rates'!C22 -> Business hours | D34: 160.0364796 | E34: 159.870452 | F34: =VLOOKUP(B34,'Calc|Labour Rates'!B22:E51,4,FALSE) -> 171.4205315
A35: 14 | B35: ='Calc|Labour Rates'!B23 -> Protection Engineer | C35: ='Calc|Labour Rates'!C23 -> Business hours | D35: 176.8049684 | E35: 176.6215445 | F35: =VLOOKUP(B35,'Calc|Labour Rates'!B23:E52,4,FALSE) -> 189.3818316
A36: 15 | B36: ='Calc|Labour Rates'!B24 -> Maintenance Planner Including Vehicle | C36: ='Calc|Labour Rates'!C24 -> Business hours | D36: 160.0364796 | E36: 205.8883688 | F36: =VLOOKUP(B36,'Calc|Labour Rates'!B24:E53,4,FALSE) -> 217.7524107
A37: 16 | B37: ='Calc|Labour Rates'!B25 -> Senior Engineer | C37: ='Calc|Labour Rates'!C25 -> Business hours | D37: 254.8573956 | E37: 254.5929973 | F37: =VLOOKUP(B37,'Calc|Labour Rates'!B25:E54,4,FALSE) -> 272.9864485
A38: 17 | B38: ='Calc|Labour Rates'!B26 -> Construction Overhead Install | C38: ='Calc|Labour Rates'!C26 -> After hours | D38: 269.9501096 | E38: 269.6700536 | F38: =VLOOKUP(B38,'Calc|Labour Rates'!B26:E55,4,FALSE) -> 271.4970797
A39: 18 | B39: ='Calc|Labour Rates'!B27 -> Construction Underground Install | C39: ='Calc|Labour Rates'!C27 -> After hours | D39: 263.652527 | E39: 263.3790043 | F39: =VLOOKUP(B39,'Calc|Labour Rates'!B27:E56,4,FALSE) -> 265.1634082
A40: 19 | B40: ='Calc|Labour Rates'!B28 -> Construction Substation Install | C40: ='Calc|Labour Rates'!C28 -> After hours | D40: 263.652527 | E40: 263.3790043 | F40: =VLOOKUP(B40,'Calc|Labour Rates'!B28:E57,4,FALSE) -> 265.1634082
A41: 20 | B41: ='Calc|Labour Rates'!B29 -> Electrical Tester Including Vehicle & Equipment | C41: ='Calc|Labour Rates'!C29 -> After hours | D41: 388.7394371 | E41: 281.6514284 | F41: =VLOOKUP(B41,'Calc|Labour Rates'!B29:E58,4,FALSE) -> 283.5596288
A42: 21 | B42: ='Calc|Labour Rates'!B30 -> Administrative Officer | C42: ='Calc|Labour Rates'!C30 -> After hours | D42: 154.2683528 | E42: 154.1031174 | F42: =VLOOKUP(B42,'Calc|Labour Rates'!B30:E59,4,FALSE) -> 155.1471726
A43: 22 | B43: ='Calc|Labour Rates'!B31 -> Design | C43: ='Calc|Labour Rates'!C31 -> After hours | D43: 309.4086946 | E43: 309.0877028 | F43: =VLOOKUP(B43,'Calc|Labour Rates'!B31:E60,4,FALSE) -> 331.4182054
A44: 23 | B44: ='Calc|Labour Rates'!B32 -> Drafting | C44: ='Calc|Labour Rates'!C32 -> After hours | D44: 237.7666425 | E44: 237.5199748 | F44: =VLOOKUP(B44,'Calc|Labour Rates'!B32:E61,4,FALSE) -> 254.67996
A45: 24 | B45: ='Calc|Labour Rates'!B33 -> Survey | C45: ='Calc|Labour Rates'!C33 -> After hours | D45: 280.0638394 | E45: 279.773291 | F45: =VLOOKUP(B45,'Calc|Labour Rates'!B33:E62,4,FALSE) -> 299.9859301
A46: 25 | B46: ='Calc|Labour Rates'!B34 -> Tech Officer | C46: ='Calc|Labour Rates'!C34 -> After hours | D46: 280.0638394 | E46: 279.773291 | F46: =VLOOKUP(B46,'Calc|Labour Rates'!B34:E63,4,FALSE) -> 299.9859301
A47: 26 | B47: ='Calc|Labour Rates'!B35 -> Line Inspector | C47: ='Calc|Labour Rates'!C35 -> After hours | D47: 269.9501096 | E47: 269.6700536 | F47: =VLOOKUP(B47,'Calc|Labour Rates'!B35:E64,4,FALSE) -> 289.1527692
A48: 27 | B48: ='Calc|Labour Rates'!B36 -> Contract Supervision | C48: ='Calc|Labour Rates'!C36 -> After hours | D48: 280.0638394 | E48: 279.773291 | F48: =VLOOKUP(B48,'Calc|Labour Rates'!B36:E65,4,FALSE) -> 299.9859301
A49: 28 | B49: ='Calc|Labour Rates'!B37 -> Protection Engineer | C49: ='Calc|Labour Rates'!C37 -> After hours | D49: 309.4086946 | E49: 309.0877028 | F49: =VLOOKUP(B49,'Calc|Labour Rates'!B37:E66,4,FALSE) -> 331.4182054
A50: 29 | B50: ='Calc|Labour Rates'!B38 -> Maintenance Planner Including Vehicle | C50: ='Calc|Labour Rates'!C38 -> After hours | D50: 280.0638394 | E50: 279.773291 | F50: =VLOOKUP(B50,'Calc|Labour Rates'!B38:E67,4,FALSE) -> 299.9859301
A51: 30 | B51: ='Calc|Labour Rates'!B39 -> Senior Engineer | C51: ='Calc|Labour Rates'!C39 -> After hours | D51: 446.0004423 | E51: 445.5377453 | F51: =VLOOKUP(B51,'Calc|Labour Rates'!B39:E68,4,FALSE) -> 477.7262848
A53: End

Sheet RP and draft decision-Fees
B1: AER Draft Decision - Ancillary Network Services - AusNet - 2026-31
B3: Reading guide:
B4: Table 3 | C4: refers to our draft decision prices for AusNet's fee-based services
B5: Table 4 | C5: refers to the (non-exhaustive) list of AusNet's quoted services
B10: Table 3 | C10: List of Fee-based ancillary network services prices for 2025–26, draft decision ($2025–26)
G12: Price ($2026-27) for 2026-31
B13: Service code | C13: Service | D13: Hours | E13: Service category | F13: Groups of ACS fee based services | G13: Initial Proposal | H13: Draft Decision | I13: Revised Proposal
A14: 1 | B14: ='Output|Fee Based'!B12 -> 010107NH | C14: ='Output|Fee Based'!C12 -> Single-phase overhead - business hours | D14: ='Output|Fee Based'!D12 -> Business hours | E14: ='Output|Fee Based'!E12 -> Basic connection services | F14: ='Output|Fee Based'!F12 -> Connection service category - ACS fee based | G14: 739.2314044 | H14: 764.7136028 | I14: =VLOOKUP(C14,'Output|Fee Based'!C12:H53,6,FALSE) -> 832.5197056 | L14: =(SUM(G14:G55)-SUM(I14:I55))/(SUM(G14:G55)) -> -0.1159777397 | M14: =(SUM(H14:H55)-SUM(I14:I55))/(SUM(H14:H55)) -> -0.09110184977
A15: 2 | B15: ='Output|Fee Based'!B13 -> 010109NH | C15: ='Output|Fee Based'!C13 -> Single-phase underground - business hours | D15: ='Output|Fee Based'!D13 -> Business hours | E15: ='Output|Fee Based'!E13 -> Basic connection services | F15: ='Output|Fee Based'!F13 -> Connection service category - ACS fee based | G15: 377.9709056 | H15: 391.0000188 | I15: =VLOOKUP(C15,'Output|Fee Based'!C13:H54,6,FALSE) -> 425.4072253
A16: 3 | B16: ='Output|Fee Based'!B14 -> 010127NH | C16: ='Output|Fee Based'!C14 -> Single-phase underground with a directly connected meter on group metering panel - business hours | D16: ='Output|Fee Based'!D14 -> Business hours | E16: ='Output|Fee Based'!E14 -> Basic connection services | F16: ='Output|Fee Based'!F14 -> Connection service category - ACS fee based | G16: 638.4380293 | H16: 660.4457585 | I16: =VLOOKUP(C16,'Output|Fee Based'!C14:H55,6,FALSE) -> 718.5636421
A17: 4 | B17: ='Output|Fee Based'!B15 -> 010111NH | C17: ='Output|Fee Based'!C15 -> Multi-phase overhead with a directly connected meter - business hours | D17: ='Output|Fee Based'!D15 -> Business hours | E17: ='Output|Fee Based'!E15 -> Basic connection services | F17: ='Output|Fee Based'!F15 -> Connection service category - ACS fee based | G17: 796.251842 | H17: 823.6996038 | I17: =VLOOKUP(C17,'Output|Fee Based'!C15:H56,6,FALSE) -> 896.1834938
A18: 5 | B18: ='Output|Fee Based'!B16 -> 010112NH | C18: ='Output|Fee Based'!C16 -> Multi-phase overhead with a CT connected meter - business hours | D18: ='Output|Fee Based'!D16 -> Business hours | E18: ='Output|Fee Based'!E16 -> Basic connection services | F18: ='Output|Fee Based'!F16 -> Connection service category - ACS fee based | G18: 1447.419651 | H18: 1497.313953 | I18: =VLOOKUP(C18,'Output|Fee Based'!C16:H57,6,FALSE) -> 1629.074536
A19: 6 | B19: ='Output|Fee Based'!B17 -> 010113NH | C19: ='Output|Fee Based'!C17 -> Multi-phase underground with a directly connected meter - business hours | D19: ='Output|Fee Based'!D17 -> Business hours | E19: ='Output|Fee Based'!E17 -> Basic connection services | F19: ='Output|Fee Based'!F17 -> Connection service category - ACS fee based | G19: 571.0776013 | H19: 590.7633353 | I19: =VLOOKUP(C19,'Output|Fee Based'!C17:H58,6,FALSE) -> 642.7493074
A20: 7 | B20: ='Output|Fee Based'!B18 -> 010129NH | C20: ='Output|Fee Based'!C18 -> Multi-phase underground with a directly connected meter on group metering panel - business hours | D20: ='Output|Fee Based'!D18 -> Business hours | E20: ='Output|Fee Based'!E18 -> Basic connection services | F20: ='Output|Fee Based'!F18 -> Connection service category - ACS fee based | G20: 831.544725 | H20: 860.2090749 | I20: =VLOOKUP(C20,'Output|Fee Based'!C18:H59,6,FALSE) -> 935.9057242
A21: 8 | B21: ='Output|Fee Based'!B19 -> 010114NH | C21: ='Output|Fee Based'!C19 -> Multi-phase underground with a CT connected meter - business hours | D21: ='Output|Fee Based'!D19 -> Business hours | E21: ='Output|Fee Based'!E19 -> Basic connection services | F21: ='Output|Fee Based'!F19 -> Connection service category - ACS fee based | G21: 1222.24541 | H21: 1264.377684 | I21: =VLOOKUP(C21,'Output|Fee Based'!C19:H60,6,FALSE) -> 1375.640349
A22: 9 | B22: ='Output|Fee Based'!B20 -> 010125NH | C22: ='Output|Fee Based'!C20 -> 95mm2 overhead service from LVABC - business hours | D22: ='Output|Fee Based'!D20 -> Business hours | E22: ='Output|Fee Based'!E20 -> Basic connection services | F22: ='Output|Fee Based'!F20 -> Connection service category - ACS fee based | G22: 824.054665 | H22: 852.4608236 | I22: =VLOOKUP(C22,'Output|Fee Based'!C20:H61,6,FALSE) -> 927.4756425
A23: 10 | B23: ='Output|Fee Based'!B21 ->  | C23: ='Output|Fee Based'!C21 -> Establish temporary supply connection - business hours | D23: ='Output|Fee Based'!D21 -> Business hours | E23: ='Output|Fee Based'!E21 -> Connection management services | F23: ='Output|Fee Based'!F21 -> Connection service category - ACS fee based | G23: 739.2314044 | H23: 764.7136028 | I23: =VLOOKUP(C23,'Output|Fee Based'!C21:H62,6,FALSE) -> 832.0068448
A24: 11 | B24: ='Output|Fee Based'!B22 ->  | C24: ='Output|Fee Based'!C22 -> Appointment - inspection of group or CT metering prior to connection - business hours | D24: ='Output|Fee Based'!D22 -> Business hours | E24: ='Output|Fee Based'!E22 -> Connection management services | F24: ='Output|Fee Based'!F22 -> Connection service category - ACS fee based | G24: 651.1678091 | H24: 673.6143492 | I24: =VLOOKUP(C24,'Output|Fee Based'!C22:H63,6,FALSE) -> 732.891042
A25: 12 | B25: ='Output|Fee Based'!B23 -> 010115NH | C25: ='Output|Fee Based'!C23 -> Service truck - Disconnect/Reconnect at pole or pit - business hours | D25: ='Output|Fee Based'!D23 -> Business hours | E25: ='Output|Fee Based'!E23 -> Connection management services | F25: ='Output|Fee Based'!F23 -> Connection service category - ACS fee based | G25: 653.3052131 | H25: 675.8254321 | I25: =VLOOKUP(C25,'Output|Fee Based'!C23:H64,6,FALSE) -> 735.2966957
A26: 13 | B26: ='Output|Fee Based'!B24 -> 010107AH | C26: ='Output|Fee Based'!C24 -> Single-phase overhead - after hours | D26: ='Output|Fee Based'!D24 -> After hours | E26: ='Output|Fee Based'!E24 -> Basic connection services | F26: ='Output|Fee Based'!F24 -> Connection service category - ACS fee based | G26: 1293.654958 | H26: 1338.248805 | I26: =VLOOKUP(C26,'Output|Fee Based'!C24:H65,6,FALSE) -> 1456.011978
A27: 14 | B27: ='Output|Fee Based'!B25 -> 010109AH | C27: ='Output|Fee Based'!C25 -> Single-phase underground - after hours | D27: ='Output|Fee Based'!D25 -> After hours | E27: ='Output|Fee Based'!E25 -> Basic connection services | F27: ='Output|Fee Based'!F25 -> Connection service category - ACS fee based | G27: 661.4490849 | H27: 684.2500329 | I27: =VLOOKUP(C27,'Output|Fee Based'!C25:H66,6,FALSE) -> 744.4626443
A28: 15 | B28: ='Output|Fee Based'!B26 -> 010127AH | C28: ='Output|Fee Based'!C26 -> Single-phase underground with a directly connected meter on group metering panel - after hours | D28: ='Output|Fee Based'!D26 -> After hours | E28: ='Output|Fee Based'!E26 -> Basic connection services | F28: ='Output|Fee Based'!F26 -> Connection service category - ACS fee based | G28: 1117.266551 | H28: 1155.780077 | I28: =VLOOKUP(C28,'Output|Fee Based'!C26:H67,6,FALSE) -> 1257.486374
A29: 16 | B29: ='Output|Fee Based'!B27 -> 010111AH | C29: ='Output|Fee Based'!C27 -> Multi-phase overhead with a directly connected meter - after hours | D29: ='Output|Fee Based'!D27 -> After hours | E29: ='Output|Fee Based'!E27 -> Basic connection services | F29: ='Output|Fee Based'!F27 -> Connection service category - ACS fee based | G29: 1393.440724 | H29: 1441.474307 | I29: =VLOOKUP(C29,'Output|Fee Based'!C27:H68,6,FALSE) -> 1568.321114
A30: 17 | B30: ='Output|Fee Based'!B28 -> 010129AH | C30: ='Output|Fee Based'!C28 -> Multi-phase underground with a directly connected meter on group metering panel - after hours | D30: ='Output|Fee Based'!D28 -> After hours | E30: ='Output|Fee Based'!E28 -> Basic connection services | F30: ='Output|Fee Based'!F28 -> Connection service category - ACS fee based | G30: 2138.929468 | H30: 2212.660948 | I30: =VLOOKUP(C30,'Output|Fee Based'!C28:H69,6,FALSE) -> 2407.370612
A31: 18 | B31: ='Output|Fee Based'!B29 -> 010112AH | C31: ='Output|Fee Based'!C29 -> Multi-phase overhead with a CT connected meter - after hours | D31: ='Output|Fee Based'!D29 -> After hours | E31: ='Output|Fee Based'!E29 -> Basic connection services | F31: ='Output|Fee Based'!F29 -> Connection service category - ACS fee based | G31: 2532.98439 | H31: 2620.299418 | I31: =VLOOKUP(C31,'Output|Fee Based'!C29:H70,6,FALSE) -> 2850.880438
A32: 19 | B32: ='Output|Fee Based'!B30 -> 010113AH | C32: ='Output|Fee Based'!C30 -> Multi-phase underground with a directly connected meter - after hours | D32: ='Output|Fee Based'!D30 -> After hours | E32: ='Output|Fee Based'!E30 -> Basic connection services | F32: ='Output|Fee Based'!F30 -> Connection service category - ACS fee based | G32: 999.3858023 | H32: 1033.835837 | I32: =VLOOKUP(C32,'Output|Fee Based'!C30:H71,6,FALSE) -> 1124.811288
A33: 20 | B33: ='Output|Fee Based'!B31 -> 010114AH | C33: ='Output|Fee Based'!C31 -> Multi-phase underground with a CT connected meter - after hours | D33: ='Output|Fee Based'!D31 -> After hours | E33: ='Output|Fee Based'!E31 -> Basic connection services | F33: ='Output|Fee Based'!F31 -> Connection service category - ACS fee based | G33: 2138.929468 | H33: 2212.660948 | I33: =VLOOKUP(C33,'Output|Fee Based'!C31:H72,6,FALSE) -> 2407.370612
A34: 21 | B34: ='Output|Fee Based'!B32 -> 010125AH | C34: ='Output|Fee Based'!C32 -> 95mm2 overhead service from LVABC - after hours | D34: ='Output|Fee Based'!D32 -> After hours | E34: ='Output|Fee Based'!E32 -> Basic connection services | F34: ='Output|Fee Based'!F32 -> Connection service category - ACS fee based | G34: 1442.095664 | H34: 1491.806441 | I34: =VLOOKUP(C34,'Output|Fee Based'!C32:H73,6,FALSE) -> 1623.082374
A35: 22 | B35: ='Output|Fee Based'!B33 ->  | C35: ='Output|Fee Based'!C33 -> Establish temporary supply connection - after hours | D35: ='Output|Fee Based'!D33 -> After hours | E35: ='Output|Fee Based'!E33 -> Connection management services | F35: ='Output|Fee Based'!F33 -> Connection service category - ACS fee based | G35: 1293.654958 | H35: 1338.248805 | I35: =VLOOKUP(C35,'Output|Fee Based'!C33:H74,6,FALSE) -> 1456.011978
A36: 23 | B36: ='Output|Fee Based'!B34 -> 010115AH | C36: ='Output|Fee Based'!C34 -> Service truck - Disconnect / Reconnect at pole or pit – After Hours | D36: ='Output|Fee Based'!D34 -> After hours | E36: ='Output|Fee Based'!E34 -> Connection management services | F36: ='Output|Fee Based'!F34 -> Connection service category - ACS fee based | G36: 1143.284123 | H36: 1182.694506 | I36: =VLOOKUP(C36,'Output|Fee Based'!C34:H75,6,FALSE) -> 1286.769217
A37: 24 | B37: ='Output|Fee Based'!B35 -> 060100 | C37: ='Output|Fee Based'!C35 -> Meter equipment test | D37: ='Output|Fee Based'!D35 -> Business hours | E37: ='Output|Fee Based'!E35 -> Ancillary metering services Type 5 to 7 (including smart meter) where the distributor DNSP remains responsible | F37: ='Output|Fee Based'!F35 -> Metering ancillary services - ACS fee based | G37: 394.1416303 | H37: 391.5235617 | I37: =VLOOKUP(C37,'Output|Fee Based'!C35:H76,6,FALSE) -> 423.3510571
A38: 25 | B38: ='Output|Fee Based'!B36 -> 060100 | C38: ='Output|Fee Based'!C36 -> Meter equipment test - Each additional meter at same site | D38: ='Output|Fee Based'!D36 -> Business hours | E38: ='Output|Fee Based'!E36 -> Ancillary metering services Type 5 to 7 (including smart meter) where the distributor DNSP remains responsible | F38: ='Output|Fee Based'!F36 -> Metering ancillary services - ACS fee based | G38: 90.88762863 | H38: 90.28391153 | I38: =VLOOKUP(C38,'Output|Fee Based'!C36:H77,6,FALSE) -> 97.62321639
A39: 26 | B39: ='Output|Fee Based'!B37 ->  | C39: ='Output|Fee Based'!C37 -> Meter equipment test - 3-phase meter | D39: ='Output|Fee Based'!D37 -> Business hours | E39: ='Output|Fee Based'!E37 -> Ancillary metering services Type 5 to 7 (including smart meter) where the distributor DNSP remains responsible | F39: ='Output|Fee Based'!F37 -> Metering ancillary services - ACS fee based | G39: =G37 -> 394.1416303 | H39: =H37 -> 391.5235617 | I39: =VLOOKUP(C39,'Output|Fee Based'!C37:H78,6,FALSE) -> 423.3510571
A40: 27 | B40: ='Output|Fee Based'!B38 ->  | C40: ='Output|Fee Based'!C38 -> Meter equipment test - Each additional 3-phase meter at same site | D40: ='Output|Fee Based'!D38 -> Business hours | E40: ='Output|Fee Based'!E38 -> Ancillary metering services Type 5 to 7 (including smart meter) where the distributor DNSP remains responsible | F40: ='Output|Fee Based'!F38 -> Metering ancillary services - ACS fee based | G40: =G38 -> 90.88762863 | H40: =H38 -> 90.28391153 | I40: =VLOOKUP(C40,'Output|Fee Based'!C38:H79,6,FALSE) -> 97.62321639
A41: 28 | B41: ='Output|Fee Based'!B39 -> 030001NH | C41: ='Output|Fee Based'!C39 -> Wasted Truck Visit – customer not ready for their requested works | D41: ='Output|Fee Based'!D39 -> Business hours | E41: ='Output|Fee Based'!E39 -> Connection management services | F41: ='Output|Fee Based'!F39 -> Network ancillary services - ACS fee based | G41: 494.356851 | H41: 271.6622898 | I41: =VLOOKUP(C41,'Output|Fee Based'!C39:H80,6,FALSE) -> 398.6850111
A42: 29 | B42: ='Output|Fee Based'!B40 -> 100101NH | C42: ='Output|Fee Based'!C40 -> Manual assessment of PV & small generator installation enquiry, 4.6kW to 15kW | D42: ='Output|Fee Based'!D40 -> Business hours | E42: ='Output|Fee Based'!E40 -> Connection management services | F42: ='Output|Fee Based'!F40 -> Network ancillary services - ACS fee based | G42: 411.9968796 | H42: 409.2602084 | I42: =VLOOKUP(C42,'Output|Fee Based'!C40:H81,6,FALSE) -> 442.5295405
A43: 30 | B43: ='Output|Fee Based'!B41 -> 100102NH | C43: ='Output|Fee Based'!C41 -> Manual assessment of PV & small generator installation enquiry, 15kW to 30kW | D43: ='Output|Fee Based'!D41 -> Business hours | E43: ='Output|Fee Based'!E41 -> Connection management services | F43: ='Output|Fee Based'!F41 -> Network ancillary services - ACS fee based | G43: 411.9968796 | H43: 409.2602084 | I43: =VLOOKUP(C43,'Output|Fee Based'!C41:H82,6,FALSE) -> 442.5295405
A44: 31 | B44: ='Output|Fee Based'!B42 ->  | C44: ='Output|Fee Based'!C42 -> Remote special meter read | D44: ='Output|Fee Based'!D42 -> Business hours | E44: ='Output|Fee Based'!E42 -> Ancillary metering services Type 5 to 7 (including smart meter) where the distributor DNSP remains responsible | F44: ='Output|Fee Based'!F42 -> Metering ancillary services - ACS fee based | G44: 0 | H44: 0 | I44: =VLOOKUP(C44,'Output|Fee Based'!C42:H83,6,FALSE) -> 0
A45: 32 | B45: ='Output|Fee Based'!B43 ->  | C45: ='Output|Fee Based'!C43 -> Remote re-energisation | D45: ='Output|Fee Based'!D43 -> Business hours | E45: ='Output|Fee Based'!E43 -> Ancillary metering services Type 5 to 7 (including smart meter) where the distributor DNSP remains responsible | F45: ='Output|Fee Based'!F43 -> Metering ancillary services - ACS fee based | G45: 0 | H45: 0 | I45: =VLOOKUP(C45,'Output|Fee Based'!C43:H84,6,FALSE) -> 0
A46: 33 | B46: ='Output|Fee Based'!B44 ->  | C46: ='Output|Fee Based'!C44 -> Remote de-energisation | D46: ='Output|Fee Based'!D44 -> Business hours | E46: ='Output|Fee Based'!E44 -> Ancillary metering services Type 5 to 7 (including smart meter) where the distributor DNSP remains responsible | F46: ='Output|Fee Based'!F44 -> Metering ancillary services - ACS fee based | G46: 0 | H46: 0 | I46: =VLOOKUP(C46,'Output|Fee Based'!C44:H85,6,FALSE) -> 0
A47: 34 | B47: ='Output|Fee Based'!B45 ->  | C47: ='Output|Fee Based'!C45 -> Remote meter re-configuration | D47: ='Output|Fee Based'!D45 -> Business hours | E47: ='Output|Fee Based'!E45 -> Ancillary metering services Type 5 to 7 (including smart meter) where the distributor DNSP remains responsible | F47: ='Output|Fee Based'!F45 -> Metering ancillary services - ACS fee based | G47: 19.1125535 | H47: 18.9855992 | I47: =VLOOKUP(C47,'Output|Fee Based'!C45:H86,6,FALSE) -> 20.52896499
A48: 35 | B48: ='Output|Fee Based'!B46 ->  | C48: ='Output|Fee Based'!C46 -> Field officer visit - business hours | D48: ='Output|Fee Based'!D46 -> Business hours | E48: ='Output|Fee Based'!E46 -> Ancillary metering services Type 5 to 7 (including smart meter) where the distributor DNSP remains responsible | F48: ='Output|Fee Based'!F46 -> Metering ancillary services - ACS fee based | G48: 44.01265236 | H48: 43.72030024 | I48: =VLOOKUP(C48,'Output|Fee Based'!C46:H87,6,FALSE) -> 47.27438431
A49: 36 | B49: ='Output|Fee Based'!B47 ->  | C49: ='Output|Fee Based'!C47 -> Manual meter reading | D49: ='Output|Fee Based'!D47 -> Business hours | E49: ='Output|Fee Based'!E47 -> Ancillary metering services Type 5 to 7 (including smart meter) where the distributor DNSP remains responsible | F49: ='Output|Fee Based'!F47 -> Metering ancillary services - ACS fee based | G49: 44.01265236 | H49: 43.72030024 | I49: =VLOOKUP(C49,'Output|Fee Based'!C47:H88,6,FALSE) -> 47.27438431
A50: 37 | B50: ='Output|Fee Based'!B48 ->  | C50: ='Output|Fee Based'!C48 -> Priority re-energisation | D50: ='Output|Fee Based'!D48 -> Business hours | E50: ='Output|Fee Based'!E48 -> Ancillary metering services Type 5 to 7 (including smart meter) where the distributor DNSP remains responsible | F50: ='Output|Fee Based'!F48 -> Metering ancillary services - ACS fee based | G50: 44.59280014 | H50: 44.29659441 | I50: =VLOOKUP(C50,'Output|Fee Based'!C48:H89,6,FALSE) -> 47.89752624
A51: 38 | B51: ='Output|Fee Based'!B49 ->  | C51: ='Output|Fee Based'!C49 -> Non-standard AMI data subscription (per month) | D51: ='Output|Fee Based'!D49 -> Business hours | E51: ='Output|Fee Based'!E49 -> Connection management services | F51: ='Output|Fee Based'!F49 -> Connection service category - ACS fee based | G51: 0 | H51: 0 | I51: =VLOOKUP(C51,'Output|Fee Based'!C49:H90,6,FALSE) -> 0
A52: 39 | B52: ='Output|Fee Based'!B50 ->  | C52: ='Output|Fee Based'!C50 -> Type 7 metering services - Per NMI | D52: ='Output|Fee Based'!D50 -> Business hours | E52: ='Output|Fee Based'!E50 -> Type 7 and 9 metering services | F52: ='Output|Fee Based'!F50 -> Metering ancillary services - ACS fee based | G52: 37.94124261 | H52: 37.68921957 | I52: =VLOOKUP(C52,'Output|Fee Based'!C50:H91,6,FALSE) -> 40.7530287
A53: 40 | B53: ='Output|Fee Based'!B51 ->  | C53: ='Output|Fee Based'!C51 -> Type 7 metering services - Per light | D53: ='Output|Fee Based'!D51 -> Business hours | E53: ='Output|Fee Based'!E51 -> Type 7 and 9 metering services | F53: ='Output|Fee Based'!F51 -> Metering ancillary services - ACS fee based | G53: 2.233192071 | H53: 2.218358191 | I53: =VLOOKUP(C53,'Output|Fee Based'!C51:H92,6,FALSE) -> 2.398691616
A54: 41 | B54: ='Output|Fee Based'!B52 ->  | C54: ='Output|Fee Based'!C52 -> Field officer visit - after hours | D54: ='Output|Fee Based'!D52 -> After hours | E54: ='Output|Fee Based'!E52 -> Ancillary metering services Type 5 to 7 (including smart meter) where the distributor DNSP remains responsible | F54: ='Output|Fee Based'!F52 -> Metering ancillary services - ACS fee based | G54: 77.03774598 | H54: 76.52602613 | I54: =VLOOKUP(C54,'Output|Fee Based'!C52:H93,6,FALSE) -> 82.74693332
A55: 42 | B55: ='Output|Fee Based'!B53 ->  | C55: ='Output|Fee Based'!C53 -> Security and watchmen lights | D55: ='Output|Fee Based'!D53 -> After hours | E55: ='Output|Fee Based'!E53 -> Public lighting | F55: ='Output|Fee Based'!F53 -> Security lighting services - ACS fee based | G55: 138.2475138 | H55: 136.7414915 | I55: =VLOOKUP(C55,'Output|Fee Based'!C53:H94,6,FALSE) -> 148.8661714
A56: 43 | B56: ='Output|Fee Based'!B54 ->  | C56: ='Output|Fee Based'!C54 -> Type 9 meter data services - Per light Per Year | D56: ='Output|Fee Based'!D54 -> Business hours | E56: ='Output|Fee Based'!E54 -> Type 7 and 9 metering services | F56: ='Output|Fee Based'!F54 -> Metering ancillary services - ACS fee based | G56: - | H56: - | I56: =VLOOKUP(C56,'Output|Fee Based'!C54:H95,6,FALSE) -> 6.053434939
B60: Table 4 | C60: Non-exhaustive list of ancillary network services provided on a quotation basis
C62: Service Description
A63: 1 | C63: ='Output|Quoted'!B46 -> Access permits, oversight and facilitation
A64: 2 | C64: ='Output|Quoted'!B47 -> Notices of arrangement and completion notices
A65: 3 | C65: ='Output|Quoted'!B48 -> Network related property services
A66: 4 | C66: ='Output|Quoted'!B49 -> Network safety services
A67: 5 | C67: ='Output|Quoted'!B50 -> Customer requested network outage or rescheduling of a planned interruption
A68: 6 | C68: ='Output|Quoted'!B51 -> Fault response (not DNSP fault)
A69: 7 | C69: ='Output|Quoted'!B52 -> Inspection and auditing services
A70: 8 | C70: ='Output|Quoted'!B53 -> Provision of non-basic electricity network data
A71: 9 | C71: ='Output|Quoted'!B54 -> Third party funded network alterations or other improvements
A72: 10 | C72: ='Output|Quoted'!B55 -> Community network upgrades
A73: 11 | C73: ='Output|Quoted'!B56 -> Planned supply interruption – retailer requested
A74: 12 | C74: ='Output|Quoted'!B57 -> Embedded networks
A75: 13 | C75: ='Output|Quoted'!B58 -> Basic connection services
A76: 14 | C76: ='Output|Quoted'!B59 -> Enhanced connection services
A77: 15 | C77: ='Output|Quoted'!B60 -> Connection application and management services
A78: 16 | C78: ='Output|Quoted'!B61 -> Public lighting

Sheet Coversheet
B3: AusNet
B6: 2025-03-28 | C6: Initial update to the Electricity distribution regulatory proposal 2027-31
C7: Provided as part of Information Request #013
B9: 2025-05-20 | C9: Further update to the Electricity distribution regulatory proposal 2027-31
C10: Provided as part of Information Request #024

Sheet Index
B1: AER ANS Forecast Model
B2: =IFERROR(MID(CELL("filename",A1),FIND("]",CELL("filename",A1))+1,255),"") -> Index | C2: Overall Check: | D2: ='Model Validation'!C4 -> 1
B5: Worksheet summary
B7: Worksheet name | C7: Check: | F7: Input required? | H7: Description
B8: ='Output|Fee Based'!C2 -> Output|Fee Based | C8: ='Model Validation'!C8 -> 0 | F8: N | H8: Contains caclulated price and X factors for fee based services.
B9: ='Output|Quoted'!B2 -> Output|Quoted | C9: ='Model Validation'!C9 -> 0 | F9: N | H9: Contains caclulated labour rates and X factors for quoted services.
B10: ='Input|Setup'!B2 -> Input|Setup | C10: ='Model Validation'!C10 -> 0 | F10: Y | H10: Sets up model with relevant years and output categories.
B11: ='Input|Escalations'!B2 -> Input|Escalations | C11: ='Model Validation'!C11 -> 0 | F11: Y | H11: Sets up the inflation and labour escalations.
B12: ='Input|Indirect Cost Rates'!B2 -> Input|Indirect Cost Rates | C12: ='Model Validation'!C12 -> NA | F12: Y | H12: Input for indirect cost rates.
B13: ='Input|Labour Rates'!B2 -> Input|Labour Rates | C13: ='Model Validation'!C13 -> 0 | F13: Y | H13: Input for labour cost components.
B14: ='Input|Fee Based'!B2 -> Input|Fee Based | C14: ='Model Validation'!C14 -> 0 | F14: Y | H14: Input for fee based costs and service information.
B15: ='Input|Fee Based Mapping'!B2 -> Input|Fee Based Mapping | C15: ='Model Validation'!C15 -> 1 | F15: Y | H15: Aligns historical and proposed fee based services information.
B16: ='Calc|Labour Rates'!B2 -> Calc|Labour Rates | C16: ='Model Validation'!C16 -> NA | F16: N | H16: Calculation tables for labour rates.
B17: ='Calc|Fee Based'!B2 -> Calc|Fee Based | C17: ='Model Validation'!C17 -> 0 | F17: N | H17: Calculation tables for fee based services prices.
B18: ='Model Validation'!B2 -> Model Validation | C18: ='Model Validation'!C18 -> NA | F18: N | H18: Checks and traces possible input errors.
B21: Table summary
B23: Name | C23: Tab | F23: Input required? | H23: Description
B24: ='Output|Fee Based'!B5 -> 1.1 X-factors for each year of 2026-27 to 2030-31 regulatory period, (per cent) | C24: =B8 -> Output|Fee Based | F24: N | H24: Contains X-factors to apply to fee-based services for years 2-5 of the forthcoming regulatory control period.
B25: ='Output|Fee Based'!B10 -> 1.2 Fee based services for 2026-27 | C25: =$C$24 -> Output|Fee Based | F25: N | H25: Contains the calculated price for each fee based servce, in nominal terms, for year 1 of the forthcoming regulatory control period.
B26: ='Output|Quoted'!B5 -> 2.1 X-factors for each year of 2026-27 to 2030-31 regulatory period, (per cent) | C26: =B9 -> Output|Quoted | F26: N | H26: Contains X-factors to apply to the labour rates used to provide quoted services for years 2-5 of the forthcoming regulatory control period.
B27: ='Output|Quoted'!B10 -> 2.2 Labour rates for 2026-27, ($2026-27) | C27: =$C$26 -> Output|Quoted | F27: N | H27: Contains the calculated labour rate for each labour type used to provide quoted servces, in nominal terms, for year 1 of the forthcoming regulatory control period.
B28: ='Output|Quoted'!B44 -> 2.3 List of quoted services for 2026-27 to 2030-31 regulatory period | C28: =$C$26 -> Output|Quoted | F28: N | H28: Lists the quoted services the distributor proposes to provide in the forthcoming regulatory control period.
B29: ='Input|Setup'!A5 & " " & 'Input|Setup'!B5 -> 3.1 Years setup | C29: ='Input|Setup'!B2 -> Input|Setup | F29: Y | H29: Please choose the first year of the forthcoming regulatory period and the base year for inputs.
B30: ='Input|Setup'!A10 & " " & 'Input|Setup'!B10 -> 3.2 Current regulatory period | C30: =$C$29 -> Input|Setup | F30: N | H30: Contains the regulatory years of the current regulatory control period.
B31: ='Input|Setup'!D10 & " " & 'Input|Setup'!E10 -> 3.3 Forecast regulatory period | C31: =$C$29 -> Input|Setup | F31: N | H31: Contains the regulatory years of the forthcoming regulatory control period.
B32: ='Input|Setup'!A18 & " " & 'Input|Setup'!B18 -> 3.4 Used for quoted service? | C32: =$C$29 -> Input|Setup | F32: N | H32: Contains reference to drop down lists for use in 'Input|Labour rates' to denote whether the labour category is to be used in the provision of quoted services.
B33: ='Input|Setup'!D18 & " " & 'Input|Setup'!E18 -> 3.5 Conversions | C33: =$C$29 -> Input|Setup | F33: Optional | H33: Lists figures used for conversions in formulas.
B34: ='Input|Setup'!A24 & " " & 'Input|Setup'!B24 -> 3.6 Hours | C34: Input|Setup | F34: Y | H34: Please enter time periods that would result in different rates applied for the same service or labour type (e.g. business hours, after hours).
B35: ='Input|Setup'!A30 & " " & 'Input|Setup'!B30 -> 3.7 Labour type | C35: Input|Setup | F35: Y | H35: Please enter the specific labour types used to provide fee based and quoted services.
B36: ='Input|Setup'!D30 & " " & 'Input|Setup'!E30 -> 3.8 Service category | C36: Input|Setup | F36: Y | H36: Please enter the major service categories for fee based services (e.g. basic connection services, network safety services, auxiliary metering services).
B37: ='Input|Setup'!G30 & " " & 'Input|Setup'!H30 -> 3.9 Groups of ACS fee based services | C37: Input|Setup | F37: Optional | H37: Please enter distributor-specific categories for fee-based services, if required.
B38: ='Input|Setup'!G40 & " " & 'Input|Setup'!H40 -> 3.10 Not used | C38: Input|Setup | F38: Optional | H38: Please enter distributor-specific categories for fee-based services, if required.
B39: ='Input|Escalations'!A5 & " " & 'Input|Escalations'!B5 -> 4.1 Escalation setup | C39: ='Input|Escalations'!B2 -> Input|Escalations | F39: N | H39: Contains the first year of the forthcoming regulatory control period and the nominated base year. These are used in calculations in the 'Input|Escalation' sheet.
B40: ='Input|Escalations'!A13 & " " & 'Input|Escalations'!B13 -> 4.2 Inflation | C40: =$C$39 -> Input|Escalations | F40: Y | H40: Please enter ABS index, all groups CPI inflation series A2325846C, up to latest available December. Please enter forecast CPI, including source, for other years.
B41: ='Input|Escalations'!A24 & " " & 'Input|Escalations'!B24 -> 4.3 Real price escalation | C41: =$C$39 -> Input|Escalations | F41: Optional | H41: Calculates X factor (real wage price escalation). Other real escalators are set to equal X factor by default, but can be amended by distributors.
B42: ='Input|Escalations'!A34 & " " & 'Input|Escalations'!B34 -> 4.3.1 Real wage price escalation | C42: =$C$39 -> Input|Escalations | F42: Y | H42: Please enter sources and forecasts for real wage price escalation, including weightings for each source, in the green input cells. Grey cells will calculate the forecast real wage price escalation.
B43: ='Input|Escalations'!A54& " " & 'Input|Escalations'!B54 -> 4.3.2 Real price escalation (non-wage) | C43: =$C$39 -> Input|Escalations | F43: N | H43: Contains the calculated forecast real escalation for non-wage inputs.
B44: ='Input|Indirect Cost Rates'!A5 & " " & 'Input|Indirect Cost Rates'!B5 -> 5.1 On costs | C44: ='Input|Indirect Cost Rates'!B2 -> Input|Indirect Cost Rates | F44: Y | H44: Please enter relevant on-cost rates. Distributors may enter a total on-cost rate only. Alternatively, disaggregated on-cost rates may be provided with the total on-cost rate calculated in row 19, as required.
B45: ='Input|Indirect Cost Rates'!A22 & " " & 'Input|Indirect Cost Rates'!B22 -> 5.2 Overhead | C45: =$C$44 -> Input|Indirect Cost Rates | F45: Y | H45: Please enter rates for network overhead and corporate overhead. Where relevant, distributors may enter other overhead rates (e.g. a total overhead rate).
B46: ='Input|Indirect Cost Rates'!A32 & " " & 'Input|Indirect Cost Rates'!B32 -> 5.3 Margins | C46: =$C$44 -> Input|Indirect Cost Rates | F46: Y | H46: Please enter margin rates as required.
B47: ='Input|Indirect Cost Rates'!A41 & " " & 'Input|Indirect Cost Rates'!B41 -> 5.4 Tax recovery rate | C47: =$C$44 -> Input|Indirect Cost Rates | F47: Y | H47: Please enter tax recovery rates as required.
B48: ='Input|Labour Rates'!B7 -> 6.1 Labour rates | C48: ='Input|Labour Rates'!B2 -> Input|Labour Rates | F48: Y | H48: Please enter required information regarding labour rates (in base year dollar terms) used to provide ANS. For on-cost and overhead rates, please use formulas to reference tables 5.1 and 5.2, respectively.
B49: ='Input|Labour Rates'!K7 -> 6.2 Notes and sources for "Other costs" | C49: =$C$48 -> Input|Labour Rates | F49: Y | H49: Please describe "Other costs" used to derive total labour rates, where appropriate, and provide sources.
B50: ='Input|Labour Rates'!B42 -> 6.3 List of quoted services for 2026-27 to 2030-31 regulatory period | C50: =$C$48 -> Input|Labour Rates | F50: Y | H50: Please list the quoted services the distributor proposes to provide in the forthcoming regulatory control period.
B51: ='Input|Fee Based'!B6 -> 7.1 Fee based services | C51: ='Input|Fee Based'!B2 -> Input|Fee Based | F51: Y | H51: Please list the name and service code of the fee-based services, including hours provided and general service category.
B52: ='Input|Fee Based'!I6 -> 7.2 Service cost build up - DIRECT COSTS, $'s ($2024-25) | C52: =$C$51 -> Input|Fee Based | F52: Y | H52: Please input the direct costs in base year dollar terms incurred for providinng each fee based service, and other requested information such as the total time in minutes each labour type is required to provide the service.
B53: ='Input|Fee Based'!AV6 -> 7.3 Service cost build - INDIRECT COSTS (per cent) | C53: =$C$51 -> Input|Fee Based | F53: Y | H53: Please use formulas to reference in the 'Input|Indirect Cost Rates' sheet as appropriate.
B54: ='Input|Fee Based'!BD6 -> 7.4 Notes and sources for "Other costs" | C54: =$C$51 -> Input|Fee Based | F54: Y | H54: Please describe "Other costs" used to derive the year 1 price for fee based services, where appropriate, and provide sources.
B55: ='Input|Fee Based Mapping'!B9 -> 8.1 Current regulatory period - Fee based services | C55: ='Input|Fee Based Mapping'!B2 -> Input|Fee Based Mapping | F55: Y | H55: Please enter approved fee based services and prices (in nominal dollar terms) for the current regulatory control perod (including the final decision prices in column K). Please align with the fee based services for the forthcoming regulatoru control period in table 8.2.
B56: ='Input|Fee Based Mapping'!S9 -> 8.2 Forecast regulatory period - Fee based services | C56: =$C$55 -> Input|Fee Based Mapping | F56: N | H56: Includes the year 1 price for fee based services (from 'Calc|Fee Based' sheet), then calculates prices for years 2 to 5 of the forthcoming regulatory control period using forecast inflation and X factors.
B57: ='Calc|Labour Rates'!B7 -> 9.1 Year 1 labour rates | C57: ='Calc|Labour Rates'!B2 -> Calc|Labour Rates | F57: N | H57: Calculates labour rate for each labour type used to provide quoted servces, in nominal terms, for year 1 of the forthcoming regulatory control period.
B58: ='Calc|Labour Rates'!G7 -> 9.2 Year 1 labour rates build up, $'s ($2026-27) | C58: =$C$57 -> Calc|Labour Rates | F58: N | H58: Calculates labour rate for each labour type used to provide quoted servces for year 1 of the forthcoming regulatory control period.
B59: ='Calc|Fee Based'!B6 -> 10.1 Fee based services | C59: ='Calc|Fee Based'!$B$2 -> Calc|Fee Based | F59: N | H59: Calculates price for each fee based servce, in nominal terms, for year 1 of the forthcoming regulatory control period.
B60: ='Calc|Fee Based'!J6 -> 10.2 Year 1 service cost build up - DIRECT COSTS, $'s ($2026-27) | C60: =$C$59 -> Calc|Fee Based | F60: N | H60: Calculates the direct costs for each fee based service, in base year dollar terms, for year 1 of the forthcoming regulatory control period.
B61: ='Calc|Fee Based'!AX6 -> 10.3 Year 1 Service cost build up - INDIRECT COSTS, $'s ($2026-27) | C61: =$C$59 -> Calc|Fee Based | F61: N | H61: Calculates the indirect costs for each fee based service, in base year dollar terms, for year 1 of the forthcoming regulatory control period.

Sheet Output|Fee Based
C1: =Index!B1 -> AER ANS Forecast Model | D1: Key: | E1: Input | H1: Sheet Validation | I1: ='Model Validation'!C8 -> 0
C2: =MID(CELL("filename",A1),FIND("]",CELL("filename",A1))+1,255) -> Output|Fee Based | E2: Formula
D4: =IF(D7='Input|Escalations'!J27,0,1) -> 0 | E4: =IF(E7='Input|Escalations'!K27,0,1) -> 0 | F4: =IF(F7='Input|Escalations'!L27,0,1) -> 0 | G4: =IF(G7='Input|Escalations'!M27,0,1) -> 0
B5: =IFERROR("1.1 X-factors for each year of "&'Input|Setup'!$E$11&" to "&'Input|Setup'!$E$15&" regulatory period, (per cent)","") -> 1.1 X-factors for each year of 2026-27 to 2030-31 regulatory period, (per cent)
C6: ='Input|Setup'!$E$11 -> 2026-27 | D6: ='Input|Setup'!$E$12 -> 2027-28 | E6: ='Input|Setup'!$E$13 -> 2028-29 | F6: ='Input|Setup'!$E$14 -> 2029-30 | G6: ='Input|Setup'!$E$15 -> 2030-31
D7: ='Input|Escalations'!J27 -> -0.009550582168 | E7: ='Input|Escalations'!K27 -> -0.0111993349 | F7: ='Input|Escalations'!L27 -> -0.01227436192 | G7: ='Input|Escalations'!M27 -> -0.01202541615
B10: =IFERROR("1.2 Fee based services for "&'Input|Setup'!$E$11,"") -> 1.2 Fee based services for 2026-27
B11: ='Calc|Fee Based'!B9 -> Service code | C11: ='Calc|Fee Based'!C9 -> Service | D11: ='Input|Setup'!B24 -> Hours | E11: ='Input|Setup'!E30 -> Service category | F11: ='Input|Setup'!H30 -> Groups of ACS fee based services | G11: ='Input|Setup'!H40 -> Not used | H11: ="Price ($" & 'Input|Setup'!$E$8 & ")" -> Price ($2026-27)
A12: 1 | B12: ='Calc|Fee Based'!B10 -> 010107NH | C12: ='Calc|Fee Based'!C10 -> Single-phase overhead - business hours | D12: ='Calc|Fee Based'!D10 -> Business hours | E12: ='Calc|Fee Based'!E10 -> Basic connection services | F12: ='Calc|Fee Based'!F10 -> Connection service category - ACS fee based | G12: ='Calc|Fee Based'!G10 ->  | H12: ='Calc|Fee Based'!H10 -> 832.5197056 | I12: =IF(AND(B12='Calc|Fee Based'!B10,C12='Calc|Fee Based'!C10,D12='Calc|Fee Based'!D10,E12='Calc|Fee Based'!E10, F12='Calc|Fee Based'!F10,G12='Calc|Fee Based'!G10, H12='Calc|Fee Based'!H10),0,1) -> 0
A13: 2 | B13: ='Calc|Fee Based'!B11 -> 010109NH | C13: ='Calc|Fee Based'!C11 -> Single-phase underground - business hours | D13: ='Calc|Fee Based'!D11 -> Business hours | E13: ='Calc|Fee Based'!E11 -> Basic connection services | F13: ='Calc|Fee Based'!F11 -> Connection service category - ACS fee based | G13: ='Calc|Fee Based'!G11 ->  | H13: ='Calc|Fee Based'!H11 -> 425.4072253 | I13: =IF(AND(B13='Calc|Fee Based'!B11,C13='Calc|Fee Based'!C11,D13='Calc|Fee Based'!D11,E13='Calc|Fee Based'!E11, F13='Calc|Fee Based'!F11,G13='Calc|Fee Based'!G11, H13='Calc|Fee Based'!H11),0,1) -> 0
A14: 3 | B14: ='Calc|Fee Based'!B12 -> 010127NH | C14: ='Calc|Fee Based'!C12 -> Single-phase underground with a directly connected meter on group metering panel - business hours | D14: ='Calc|Fee Based'!D12 -> Business hours | E14: ='Calc|Fee Based'!E12 -> Basic connection services | F14: ='Calc|Fee Based'!F12 -> Connection service category - ACS fee based | G14: ='Calc|Fee Based'!G12 ->  | H14: ='Calc|Fee Based'!H12 -> 718.5636421 | I14: =IF(AND(B14='Calc|Fee Based'!B12,C14='Calc|Fee Based'!C12,D14='Calc|Fee Based'!D12,E14='Calc|Fee Based'!E12, F14='Calc|Fee Based'!F12,G14='Calc|Fee Based'!G12, H14='Calc|Fee Based'!H12),0,1) -> 0
A15: 4 | B15: ='Calc|Fee Based'!B13 -> 010111NH | C15: ='Calc|Fee Based'!C13 -> Multi-phase overhead with a directly connected meter - business hours | D15: ='Calc|Fee Based'!D13 -> Business hours | E15: ='Calc|Fee Based'!E13 -> Basic connection services | F15: ='Calc|Fee Based'!F13 -> Connection service category - ACS fee based | G15: ='Calc|Fee Based'!G13 ->  | H15: ='Calc|Fee Based'!H13 -> 896.1834938 | I15: =IF(AND(B15='Calc|Fee Based'!B13,C15='Calc|Fee Based'!C13,D15='Calc|Fee Based'!D13,E15='Calc|Fee Based'!E13, F15='Calc|Fee Based'!F13,G15='Calc|Fee Based'!G13, H15='Calc|Fee Based'!H13),0,1) -> 0
A16: 5 | B16: ='Calc|Fee Based'!B14 -> 010112NH | C16: ='Calc|Fee Based'!C14 -> Multi-phase overhead with a CT connected meter - business hours | D16: ='Calc|Fee Based'!D14 -> Business hours | E16: ='Calc|Fee Based'!E14 -> Basic connection services | F16: ='Calc|Fee Based'!F14 -> Connection service category - ACS fee based | G16: ='Calc|Fee Based'!G14 ->  | H16: ='Calc|Fee Based'!H14 -> 1629.074536 | I16: =IF(AND(B16='Calc|Fee Based'!B14,C16='Calc|Fee Based'!C14,D16='Calc|Fee Based'!D14,E16='Calc|Fee Based'!E14, F16='Calc|Fee Based'!F14,G16='Calc|Fee Based'!G14, H16='Calc|Fee Based'!H14),0,1) -> 0
A17: 6 | B17: ='Calc|Fee Based'!B15 -> 010113NH | C17: ='Calc|Fee Based'!C15 -> Multi-phase underground with a directly connected meter - business hours | D17: ='Calc|Fee Based'!D15 -> Business hours | E17: ='Calc|Fee Based'!E15 -> Basic connection services | F17: ='Calc|Fee Based'!F15 -> Connection service category - ACS fee based | G17: ='Calc|Fee Based'!G15 ->  | H17: ='Calc|Fee Based'!H15 -> 642.7493074 | I17: =IF(AND(B17='Calc|Fee Based'!B15,C17='Calc|Fee Based'!C15,D17='Calc|Fee Based'!D15,E17='Calc|Fee Based'!E15, F17='Calc|Fee Based'!F15,G17='Calc|Fee Based'!G15, H17='Calc|Fee Based'!H15),0,1) -> 0
A18: 7 | B18: ='Calc|Fee Based'!B16 -> 010129NH | C18: ='Calc|Fee Based'!C16 -> Multi-phase underground with a directly connected meter on group metering panel - business hours | D18: ='Calc|Fee Based'!D16 -> Business hours | E18: ='Calc|Fee Based'!E16 -> Basic connection services | F18: ='Calc|Fee Based'!F16 -> Connection service category - ACS fee based | G18: ='Calc|Fee Based'!G16 ->  | H18: ='Calc|Fee Based'!H16 -> 935.9057242 | I18: =IF(AND(B18='Calc|Fee Based'!B16,C18='Calc|Fee Based'!C16,D18='Calc|Fee Based'!D16,E18='Calc|Fee Based'!E16, F18='Calc|Fee Based'!F16,G18='Calc|Fee Based'!G16, H18='Calc|Fee Based'!H16),0,1) -> 0
A19: 8 | B19: ='Calc|Fee Based'!B17 -> 010114NH | C19: ='Calc|Fee Based'!C17 -> Multi-phase underground with a CT connected meter - business hours | D19: ='Calc|Fee Based'!D17 -> Business hours | E19: ='Calc|Fee Based'!E17 -> Basic connection services | F19: ='Calc|Fee Based'!F17 -> Connection service category - ACS fee based | G19: ='Calc|Fee Based'!G17 ->  | H19: ='Calc|Fee Based'!H17 -> 1375.640349 | I19: =IF(AND(B19='Calc|Fee Based'!B17,C19='Calc|Fee Based'!C17,D19='Calc|Fee Based'!D17,E19='Calc|Fee Based'!E17, F19='Calc|Fee Based'!F17,G19='Calc|Fee Based'!G17, H19='Calc|Fee Based'!H17),0,1) -> 0
A20: 9 | B20: ='Calc|Fee Based'!B18 -> 010125NH | C20: ='Calc|Fee Based'!C18 -> 95mm2 overhead service from LVABC - business hours | D20: ='Calc|Fee Based'!D18 -> Business hours | E20: ='Calc|Fee Based'!E18 -> Basic connection services | F20: ='Calc|Fee Based'!F18 -> Connection service category - ACS fee based | G20: ='Calc|Fee Based'!G18 ->  | H20: ='Calc|Fee Based'!H18 -> 927.4756425 | I20: =IF(AND(B20='Calc|Fee Based'!B18,C20='Calc|Fee Based'!C18,D20='Calc|Fee Based'!D18,E20='Calc|Fee Based'!E18, F20='Calc|Fee Based'!F18,G20='Calc|Fee Based'!G18, H20='Calc|Fee Based'!H18),0,1) -> 0
A21: 10 | B21: ='Calc|Fee Based'!B19 ->  | C21: ='Calc|Fee Based'!C19 -> Establish temporary supply connection - business hours | D21: ='Calc|Fee Based'!D19 -> Business hours | E21: ='Calc|Fee Based'!E19 -> Connection management services | F21: ='Calc|Fee Based'!F19 -> Connection service category - ACS fee based | G21: ='Calc|Fee Based'!G19 ->  | H21: ='Calc|Fee Based'!H19 -> 832.0068448 | I21: =IF(AND(B21='Calc|Fee Based'!B19,C21='Calc|Fee Based'!C19,D21='Calc|Fee Based'!D19,E21='Calc|Fee Based'!E19, F21='Calc|Fee Based'!F19,G21='Calc|Fee Based'!G19, H21='Calc|Fee Based'!H19),0,1) -> 0
A22: 11 | B22: ='Calc|Fee Based'!B20 ->  | C22: ='Calc|Fee Based'!C20 -> Appointment - inspection of group or CT metering prior to connection - business hours | D22: ='Calc|Fee Based'!D20 -> Business hours | E22: ='Calc|Fee Based'!E20 -> Connection management services | F22: ='Calc|Fee Based'!F20 -> Connection service category - ACS fee based | G22: ='Calc|Fee Based'!G20 ->  | H22: ='Calc|Fee Based'!H20 -> 732.891042 | I22: =IF(AND(B22='Calc|Fee Based'!B20,C22='Calc|Fee Based'!C20,D22='Calc|Fee Based'!D20,E22='Calc|Fee Based'!E20, F22='Calc|Fee Based'!F20,G22='Calc|Fee Based'!G20, H22='Calc|Fee Based'!H20),0,1) -> 0
A23: 12 | B23: ='Calc|Fee Based'!B21 -> 010115NH | C23: ='Calc|Fee Based'!C21 -> Service truck - Disconnect/Reconnect at pole or pit - business hours | D23: ='Calc|Fee Based'!D21 -> Business hours | E23: ='Calc|Fee Based'!E21 -> Connection management services | F23: ='Calc|Fee Based'!F21 -> Connection service category - ACS fee based | G23: ='Calc|Fee Based'!G21 ->  | H23: ='Calc|Fee Based'!H21 -> 735.2966957 | I23: =IF(AND(B23='Calc|Fee Based'!B21,C23='Calc|Fee Based'!C21,D23='Calc|Fee Based'!D21,E23='Calc|Fee Based'!E21, F23='Calc|Fee Based'!F21,G23='Calc|Fee Based'!G21, H23='Calc|Fee Based'!H21),0,1) -> 0
A24: 13 | B24: ='Calc|Fee Based'!B22 -> 010107AH | C24: ='Calc|Fee Based'!C22 -> Single-phase overhead - after hours | D24: ='Calc|Fee Based'!D22 -> After hours | E24: ='Calc|Fee Based'!E22 -> Basic connection services | F24: ='Calc|Fee Based'!F22 -> Connection service category - ACS fee based | G24: ='Calc|Fee Based'!G22 ->  | H24: ='Calc|Fee Based'!H22 -> 1456.011978 | I24: =IF(AND(B24='Calc|Fee Based'!B22,C24='Calc|Fee Based'!C22,D24='Calc|Fee Based'!D22,E24='Calc|Fee Based'!E22, F24='Calc|Fee Based'!F22,G24='Calc|Fee Based'!G22, H24='Calc|Fee Based'!H22),0,1) -> 0
A25: 14 | B25: ='Calc|Fee Based'!B23 -> 010109AH | C25: ='Calc|Fee Based'!C23 -> Single-phase underground - after hours | D25: ='Calc|Fee Based'!D23 -> After hours | E25: ='Calc|Fee Based'!E23 -> Basic connection services | F25: ='Calc|Fee Based'!F23 -> Connection service category - ACS fee based | G25: ='Calc|Fee Based'!G23 ->  | H25: ='Calc|Fee Based'!H23 -> 744.4626443 | I25: =IF(AND(B25='Calc|Fee Based'!B23,C25='Calc|Fee Based'!C23,D25='Calc|Fee Based'!D23,E25='Calc|Fee Based'!E23, F25='Calc|Fee Based'!F23,G25='Calc|Fee Based'!G23, H25='Calc|Fee Based'!H23),0,1) -> 0
A26: 15 | B26: ='Calc|Fee Based'!B24 -> 010127AH | C26: ='Calc|Fee Based'!C24 -> Single-phase underground with a directly connected meter on group metering panel - after hours | D26: ='Calc|Fee Based'!D24 -> After hours | E26: ='Calc|Fee Based'!E24 -> Basic connection services | F26: ='Calc|Fee Based'!F24 -> Connection service category - ACS fee based | G26: ='Calc|Fee Based'!G24 ->  | H26: ='Calc|Fee Based'!H24 -> 1257.486374 | I26: =IF(AND(B26='Calc|Fee Based'!B24,C26='Calc|Fee Based'!C24,D26='Calc|Fee Based'!D24,E26='Calc|Fee Based'!E24, F26='Calc|Fee Based'!F24,G26='Calc|Fee Based'!G24, H26='Calc|Fee Based'!H24),0,1) -> 0
A27: 16 | B27: ='Calc|Fee Based'!B25 -> 010111AH | C27: ='Calc|Fee Based'!C25 -> Multi-phase overhead with a directly connected meter - after hours | D27: ='Calc|Fee Based'!D25 -> After hours | E27: ='Calc|Fee Based'!E25 -> Basic connection services | F27: ='Calc|Fee Based'!F25 -> Connection service category - ACS fee based | G27: ='Calc|Fee Based'!G25 ->  | H27: ='Calc|Fee Based'!H25 -> 1568.321114 | I27: =IF(AND(B27='Calc|Fee Based'!B25,C27='Calc|Fee Based'!C25,D27='Calc|Fee Based'!D25,E27='Calc|Fee Based'!E25, F27='Calc|Fee Based'!F25,G27='Calc|Fee Based'!G25, H27='Calc|Fee Based'!H25),0,1) -> 0
A28: 17 | B28: ='Calc|Fee Based'!B26 -> 010129AH | C28: ='Calc|Fee Based'!C26 -> Multi-phase underground with a directly connected meter on group metering panel - after hours | D28: ='Calc|Fee Based'!D26 -> After hours | E28: ='Calc|Fee Based'!E26 -> Basic connection services | F28: ='Calc|Fee Based'!F26 -> Connection service category - ACS fee based | G28: ='Calc|Fee Based'!G26 ->  | H28: ='Calc|Fee Based'!H26 -> 2407.370612 | I28: =IF(AND(B28='Calc|Fee Based'!B26,C28='Calc|Fee Based'!C26,D28='Calc|Fee Based'!D26,E28='Calc|Fee Based'!E26, F28='Calc|Fee Based'!F26,G28='Calc|Fee Based'!G26, H28='Calc|Fee Based'!H26),0,1) -> 0
A29: 18 | B29: ='Calc|Fee Based'!B27 -> 010112AH | C29: ='Calc|Fee Based'!C27 -> Multi-phase overhead with a CT connected meter - after hours | D29: ='Calc|Fee Based'!D27 -> After hours | E29: ='Calc|Fee Based'!E27 -> Basic connection services | F29: ='Calc|Fee Based'!F27 -> Connection service category - ACS fee based | G29: ='Calc|Fee Based'!G27 ->  | H29: ='Calc|Fee Based'!H27 -> 2850.880438 | I29: =IF(AND(B29='Calc|Fee Based'!B27,C29='Calc|Fee Based'!C27,D29='Calc|Fee Based'!D27,E29='Calc|Fee Based'!E27, F29='Calc|Fee Based'!F27,G29='Calc|Fee Based'!G27, H29='Calc|Fee Based'!H27),0,1) -> 0
A30: 19 | B30: ='Calc|Fee Based'!B28 -> 010113AH | C30: ='Calc|Fee Based'!C28 -> Multi-phase underground with a directly connected meter - after hours | D30: ='Calc|Fee Based'!D28 -> After hours | E30: ='Calc|Fee Based'!E28 -> Basic connection services | F30: ='Calc|Fee Based'!F28 -> Connection service category - ACS fee based | G30: ='Calc|Fee Based'!G28 ->  | H30: ='Calc|Fee Based'!H28 -> 1124.811288 | I30: =IF(AND(B30='Calc|Fee Based'!B28,C30='Calc|Fee Based'!C28,D30='Calc|Fee Based'!D28,E30='Calc|Fee Based'!E28, F30='Calc|Fee Based'!F28,G30='Calc|Fee Based'!G28, H30='Calc|Fee Based'!H28),0,1) -> 0
A31: 20 | B31: ='Calc|Fee Based'!B29 -> 010114AH | C31: ='Calc|Fee Based'!C29 -> Multi-phase underground with a CT connected meter - after hours | D31: ='Calc|Fee Based'!D29 -> After hours | E31: ='Calc|Fee Based'!E29 -> Basic connection services | F31: ='Calc|Fee Based'!F29 -> Connection service category - ACS fee based | G31: ='Calc|Fee Based'!G29 ->  | H31: ='Calc|Fee Based'!H29 -> 2407.370612 | I31: =IF(AND(B31='Calc|Fee Based'!B29,C31='Calc|Fee Based'!C29,D31='Calc|Fee Based'!D29,E31='Calc|Fee Based'!E29, F31='Calc|Fee Based'!F29,G31='Calc|Fee Based'!G29, H31='Calc|Fee Based'!H29),0,1) -> 0
A32: 21 | B32: ='Calc|Fee Based'!B30 -> 010125AH | C32: ='Calc|Fee Based'!C30 -> 95mm2 overhead service from LVABC - after hours | D32: ='Calc|Fee Based'!D30 -> After hours | E32: ='Calc|Fee Based'!E30 -> Basic connection services | F32: ='Calc|Fee Based'!F30 -> Connection service category - ACS fee based | G32: ='Calc|Fee Based'!G30 ->  | H32: ='Calc|Fee Based'!H30 -> 1623.082374 | I32: =IF(AND(B32='Calc|Fee Based'!B30,C32='Calc|Fee Based'!C30,D32='Calc|Fee Based'!D30,E32='Calc|Fee Based'!E30, F32='Calc|Fee Based'!F30,G32='Calc|Fee Based'!G30, H32='Calc|Fee Based'!H30),0,1) -> 0
A33: 22 | B33: ='Calc|Fee Based'!B31 ->  | C33: ='Calc|Fee Based'!C31 -> Establish temporary supply connection - after hours | D33: ='Calc|Fee Based'!D31 -> After hours | E33: ='Calc|Fee Based'!E31 -> Connection management services | F33: ='Calc|Fee Based'!F31 -> Connection service category - ACS fee based | G33: ='Calc|Fee Based'!G31 ->  | H33: ='Calc|Fee Based'!H31 -> 1456.011978 | I33: =IF(AND(B33='Calc|Fee Based'!B31,C33='Calc|Fee Based'!C31,D33='Calc|Fee Based'!D31,E33='Calc|Fee Based'!E31, F33='Calc|Fee Based'!F31,G33='Calc|Fee Based'!G31, H33='Calc|Fee Based'!H31),0,1) -> 0
A34: 23 | B34: ='Calc|Fee Based'!B32 -> 010115AH | C34: ='Calc|Fee Based'!C32 -> Service truck - Disconnect / Reconnect at pole or pit – After Hours | D34: ='Calc|Fee Based'!D32 -> After hours | E34: ='Calc|Fee Based'!E32 -> Connection management services | F34: ='Calc|Fee Based'!F32 -> Connection service category - ACS fee based | G34: ='Calc|Fee Based'!G32 ->  | H34: ='Calc|Fee Based'!H32 -> 1286.769217 | I34: =IF(AND(B34='Calc|Fee Based'!B32,C34='Calc|Fee Based'!C32,D34='Calc|Fee Based'!D32,E34='Calc|Fee Based'!E32, F34='Calc|Fee Based'!F32,G34='Calc|Fee Based'!G32, H34='Calc|Fee Based'!H32),0,1) -> 0
A35: 24 | B35: ='Calc|Fee Based'!B33 -> 060100 | C35: ='Calc|Fee Based'!C33 -> Meter equipment test | D35: ='Calc|Fee Based'!D33 -> Business hours | E35: ='Calc|Fee Based'!E33 -> Ancillary metering services Type 5 to 7 (including smart meter) where the distributor DNSP remains responsible | F35: ='Calc|Fee Based'!F33 -> Metering ancillary services - ACS fee based | G35: ='Calc|Fee Based'!G33 ->  | H35: ='Calc|Fee Based'!H33 -> 423.3510571 | I35: =IF(AND(B35='Calc|Fee Based'!B33,C35='Calc|Fee Based'!C33,D35='Calc|Fee Based'!D33,E35='Calc|Fee Based'!E33, F35='Calc|Fee Based'!F33,G35='Calc|Fee Based'!G33, H35='Calc|Fee Based'!H33),0,1) -> 0
A36: 25 | B36: ='Calc|Fee Based'!B34 -> 060100 | C36: ='Calc|Fee Based'!C34 -> Meter equipment test - Each additional meter at same site | D36: ='Calc|Fee Based'!D34 -> Business hours | E36: ='Calc|Fee Based'!E34 -> Ancillary metering services Type 5 to 7 (including smart meter) where the distributor DNSP remains responsible | F36: ='Calc|Fee Based'!F34 -> Metering ancillary services - ACS fee based | G36: ='Calc|Fee Based'!G34 ->  | H36: ='Calc|Fee Based'!H34 -> 97.62321639 | I36: =IF(AND(B36='Calc|Fee Based'!B34,C36='Calc|Fee Based'!C34,D36='Calc|Fee Based'!D34,E36='Calc|Fee Based'!E34, F36='Calc|Fee Based'!F34,G36='Calc|Fee Based'!G34, H36='Calc|Fee Based'!H34),0,1) -> 0
A37: 26 | B37: ='Calc|Fee Based'!B35 ->  | C37: ='Calc|Fee Based'!C35 -> Meter equipment test - 3-phase meter | D37: ='Calc|Fee Based'!D35 -> Business hours | E37: ='Calc|Fee Based'!E35 -> Ancillary metering services Type 5 to 7 (including smart meter) where the distributor DNSP remains responsible | F37: ='Calc|Fee Based'!F35 -> Metering ancillary services - ACS fee based | G37: ='Calc|Fee Based'!G35 ->  | H37: ='Calc|Fee Based'!H35 -> 423.3510571 | I37: =IF(AND(B37='Calc|Fee Based'!B35,C37='Calc|Fee Based'!C35,D37='Calc|Fee Based'!D35,E37='Calc|Fee Based'!E35, F37='Calc|Fee Based'!F35,G37='Calc|Fee Based'!G35, H37='Calc|Fee Based'!H35),0,1) -> 0
A38: 27 | B38: ='Calc|Fee Based'!B36 ->  | C38: ='Calc|Fee Based'!C36 -> Meter equipment test - Each additional 3-phase meter at same site | D38: ='Calc|Fee Based'!D36 -> Business hours | E38: ='Calc|Fee Based'!E36 -> Ancillary metering services Type 5 to 7 (including smart meter) where the distributor DNSP remains responsible | F38: ='Calc|Fee Based'!F36 -> Metering ancillary services - ACS fee based | G38: ='Calc|Fee Based'!G36 ->  | H38: ='Calc|Fee Based'!H36 -> 97.62321639 | I38: =IF(AND(B38='Calc|Fee Based'!B36,C38='Calc|Fee Based'!C36,D38='Calc|Fee Based'!D36,E38='Calc|Fee Based'!E36, F38='Calc|Fee Based'!F36,G38='Calc|Fee Based'!G36, H38='Calc|Fee Based'!H36),0,1) -> 0
A39: 28 | B39: ='Calc|Fee Based'!B37 -> 030001NH | C39: ='Calc|Fee Based'!C37 -> Wasted Truck Visit – customer not ready for their requested works | D39: ='Calc|Fee Based'!D37 -> Business hours | E39: ='Calc|Fee Based'!E37 -> Connection management services | F39: ='Calc|Fee Based'!F37 -> Network ancillary services - ACS fee based | G39: ='Calc|Fee Based'!G37 ->  | H39: ='Calc|Fee Based'!H37 -> 398.6850111 | I39: =IF(AND(B39='Calc|Fee Based'!B37,C39='Calc|Fee Based'!C37,D39='Calc|Fee Based'!D37,E39='Calc|Fee Based'!E37, F39='Calc|Fee Based'!F37,G39='Calc|Fee Based'!G37, H39='Calc|Fee Based'!H37),0,1) -> 0
A40: 29 | B40: ='Calc|Fee Based'!B38 -> 100101NH | C40: ='Calc|Fee Based'!C38 -> Manual assessment of PV & small generator installation enquiry, 4.6kW to 15kW | D40: ='Calc|Fee Based'!D38 -> Business hours | E40: ='Calc|Fee Based'!E38 -> Connection management services | F40: ='Calc|Fee Based'!F38 -> Network ancillary services - ACS fee based | G40: ='Calc|Fee Based'!G38 ->  | H40: ='Calc|Fee Based'!H38 -> 442.5295405 | I40: =IF(AND(B40='Calc|Fee Based'!B38,C40='Calc|Fee Based'!C38,D40='Calc|Fee Based'!D38,E40='Calc|Fee Based'!E38, F40='Calc|Fee Based'!F38,G40='Calc|Fee Based'!G38, H40='Calc|Fee Based'!H38),0,1) -> 0
A41: 30 | B41: ='Calc|Fee Based'!B39 -> 100102NH | C41: ='Calc|Fee Based'!C39 -> Manual assessment of PV & small generator installation enquiry, 15kW to 30kW | D41: ='Calc|Fee Based'!D39 -> Business hours | E41: ='Calc|Fee Based'!E39 -> Connection management services | F41: ='Calc|Fee Based'!F39 -> Network ancillary services - ACS fee based | G41: ='Calc|Fee Based'!G39 ->  | H41: ='Calc|Fee Based'!H39 -> 442.5295405 | I41: =IF(AND(B41='Calc|Fee Based'!B39,C41='Calc|Fee Based'!C39,D41='Calc|Fee Based'!D39,E41='Calc|Fee Based'!E39, F41='Calc|Fee Based'!F39,G41='Calc|Fee Based'!G39, H41='Calc|Fee Based'!H39),0,1) -> 0
A42: 31 | B42: ='Calc|Fee Based'!B40 ->  | C42: ='Calc|Fee Based'!C40 -> Remote special meter read | D42: ='Calc|Fee Based'!D40 -> Business hours | E42: ='Calc|Fee Based'!E40 -> Ancillary metering services Type 5 to 7 (including smart meter) where the distributor DNSP remains responsible | F42: ='Calc|Fee Based'!F40 -> Metering ancillary services - ACS fee based | G42: ='Calc|Fee Based'!G40 ->  | H42: ='Calc|Fee Based'!H40 -> 0 | I42: =IF(AND(B42='Calc|Fee Based'!B40,C42='Calc|Fee Based'!C40,D42='Calc|Fee Based'!D40,E42='Calc|Fee Based'!E40, F42='Calc|Fee Based'!F40,G42='Calc|Fee Based'!G40, H42='Calc|Fee Based'!H40),0,1) -> 0
A43: 32 | B43: ='Calc|Fee Based'!B41 ->  | C43: ='Calc|Fee Based'!C41 -> Remote re-energisation | D43: ='Calc|Fee Based'!D41 -> Business hours | E43: ='Calc|Fee Based'!E41 -> Ancillary metering services Type 5 to 7 (including smart meter) where the distributor DNSP remains responsible | F43: ='Calc|Fee Based'!F41 -> Metering ancillary services - ACS fee based | G43: ='Calc|Fee Based'!G41 ->  | H43: ='Calc|Fee Based'!H41 -> 0 | I43: =IF(AND(B43='Calc|Fee Based'!B41,C43='Calc|Fee Based'!C41,D43='Calc|Fee Based'!D41,E43='Calc|Fee Based'!E41, F43='Calc|Fee Based'!F41,G43='Calc|Fee Based'!G41, H43='Calc|Fee Based'!H41),0,1) -> 0
A44: 33 | B44: ='Calc|Fee Based'!B42 ->  | C44: ='Calc|Fee Based'!C42 -> Remote de-energisation | D44: ='Calc|Fee Based'!D42 -> Business hours | E44: ='Calc|Fee Based'!E42 -> Ancillary metering services Type 5 to 7 (including smart meter) where the distributor DNSP remains responsible | F44: ='Calc|Fee Based'!F42 -> Metering ancillary services - ACS fee based | G44: ='Calc|Fee Based'!G42 ->  | H44: ='Calc|Fee Based'!H42 -> 0 | I44: =IF(AND(B44='Calc|Fee Based'!B42,C44='Calc|Fee Based'!C42,D44='Calc|Fee Based'!D42,E44='Calc|Fee Based'!E42, F44='Calc|Fee Based'!F42,G44='Calc|Fee Based'!G42, H44='Calc|Fee Based'!H42),0,1) -> 0
A45: 34 | B45: ='Calc|Fee Based'!B43 ->  | C45: ='Calc|Fee Based'!C43 -> Remote meter re-configuration | D45: ='Calc|Fee Based'!D43 -> Business hours | E45: ='Calc|Fee Based'!E43 -> Ancillary metering services Type 5 to 7 (including smart meter) where the distributor DNSP remains responsible | F45: ='Calc|Fee Based'!F43 -> Metering ancillary services - ACS fee based | G45: ='Calc|Fee Based'!G43 ->  | H45: ='Calc|Fee Based'!H43 -> 20.52896499 | I45: =IF(AND(B45='Calc|Fee Based'!B43,C45='Calc|Fee Based'!C43,D45='Calc|Fee Based'!D43,E45='Calc|Fee Based'!E43, F45='Calc|Fee Based'!F43,G45='Calc|Fee Based'!G43, H45='Calc|Fee Based'!H43),0,1) -> 0
A46: 35 | B46: ='Calc|Fee Based'!B44 ->  | C46: ='Calc|Fee Based'!C44 -> Field officer visit - business hours | D46: ='Calc|Fee Based'!D44 -> Business hours | E46: ='Calc|Fee Based'!E44 -> Ancillary metering services Type 5 to 7 (including smart meter) where the distributor DNSP remains responsible | F46: ='Calc|Fee Based'!F44 -> Metering ancillary services - ACS fee based | G46: ='Calc|Fee Based'!G44 ->  | H46: ='Calc|Fee Based'!H44 -> 47.27438431 | I46: =IF(AND(B46='Calc|Fee Based'!B44,C46='Calc|Fee Based'!C44,D46='Calc|Fee Based'!D44,E46='Calc|Fee Based'!E44, F46='Calc|Fee Based'!F44,G46='Calc|Fee Based'!G44, H46='Calc|Fee Based'!H44),0,1) -> 0
A47: 36 | B47: ='Calc|Fee Based'!B45 ->  | C47: ='Calc|Fee Based'!C45 -> Manual meter reading | D47: ='Calc|Fee Based'!D45 -> Business hours | E47: ='Calc|Fee Based'!E45 -> Ancillary metering services Type 5 to 7 (including smart meter) where the distributor DNSP remains responsible | F47: ='Calc|Fee Based'!F45 -> Metering ancillary services - ACS fee based | G47: ='Calc|Fee Based'!G45 ->  | H47: ='Calc|Fee Based'!H45 -> 47.27438431 | I47: =IF(AND(B47='Calc|Fee Based'!B45,C47='Calc|Fee Based'!C45,D47='Calc|Fee Based'!D45,E47='Calc|Fee Based'!E45, F47='Calc|Fee Based'!F45,G47='Calc|Fee Based'!G45, H47='Calc|Fee Based'!H45),0,1) -> 0
A48: 37 | B48: ='Calc|Fee Based'!B46 ->  | C48: ='Calc|Fee Based'!C46 -> Priority re-energisation | D48: ='Calc|Fee Based'!D46 -> Business hours | E48: ='Calc|Fee Based'!E46 -> Ancillary metering services Type 5 to 7 (including smart meter) where the distributor DNSP remains responsible | F48: ='Calc|Fee Based'!F46 -> Metering ancillary services - ACS fee based | G48: ='Calc|Fee Based'!G46 ->  | H48: ='Calc|Fee Based'!H46 -> 47.89752624 | I48: =IF(AND(B48='Calc|Fee Based'!B46,C48='Calc|Fee Based'!C46,D48='Calc|Fee Based'!D46,E48='Calc|Fee Based'!E46, F48='Calc|Fee Based'!F46,G48='Calc|Fee Based'!G46, H48='Calc|Fee Based'!H46),0,1) -> 0
A49: 38 | B49: ='Calc|Fee Based'!B47 ->  | C49: ='Calc|Fee Based'!C47 -> Non-standard AMI data subscription (per month) | D49: ='Calc|Fee Based'!D47 -> Business hours | E49: ='Calc|Fee Based'!E47 -> Connection management services | F49: ='Calc|Fee Based'!F47 -> Connection service category - ACS fee based | G49: ='Calc|Fee Based'!G47 ->  | H49: ='Calc|Fee Based'!H47 -> 0 | I49: =IF(AND(B49='Calc|Fee Based'!B47,C49='Calc|Fee Based'!C47,D49='Calc|Fee Based'!D47,E49='Calc|Fee Based'!E47, F49='Calc|Fee Based'!F47,G49='Calc|Fee Based'!G47, H49='Calc|Fee Based'!H47),0,1) -> 0
A50: 39 | B50: ='Calc|Fee Based'!B48 ->  | C50: ='Calc|Fee Based'!C48 -> Type 7 metering services - Per NMI | D50: ='Calc|Fee Based'!D48 -> Business hours | E50: ='Calc|Fee Based'!E48 -> Type 7 and 9 metering services | F50: ='Calc|Fee Based'!F48 -> Metering ancillary services - ACS fee based | G50: ='Calc|Fee Based'!G48 ->  | H50: ='Calc|Fee Based'!H48 -> 40.7530287 | I50: =IF(AND(B50='Calc|Fee Based'!B48,C50='Calc|Fee Based'!C48,D50='Calc|Fee Based'!D48,E50='Calc|Fee Based'!E48, F50='Calc|Fee Based'!F48,G50='Calc|Fee Based'!G48, H50='Calc|Fee Based'!H48),0,1) -> 0
A51: 40 | B51: ='Calc|Fee Based'!B49 ->  | C51: ='Calc|Fee Based'!C49 -> Type 7 metering services - Per light | D51: ='Calc|Fee Based'!D49 -> Business hours | E51: ='Calc|Fee Based'!E49 -> Type 7 and 9 metering services | F51: ='Calc|Fee Based'!F49 -> Metering ancillary services - ACS fee based | G51: ='Calc|Fee Based'!G49 ->  | H51: ='Calc|Fee Based'!H49 -> 2.398691616 | I51: =IF(AND(B51='Calc|Fee Based'!B49,C51='Calc|Fee Based'!C49,D51='Calc|Fee Based'!D49,E51='Calc|Fee Based'!E49, F51='Calc|Fee Based'!F49,G51='Calc|Fee Based'!G49, H51='Calc|Fee Based'!H49),0,1) -> 0
A52: 41 | B52: ='Calc|Fee Based'!B50 ->  | C52: ='Calc|Fee Based'!C50 -> Field officer visit - after hours | D52: ='Calc|Fee Based'!D50 -> After hours | E52: ='Calc|Fee Based'!E50 -> Ancillary metering services Type 5 to 7 (including smart meter) where the distributor DNSP remains responsible | F52: ='Calc|Fee Based'!F50 -> Metering ancillary services - ACS fee based | G52: ='Calc|Fee Based'!G50 ->  | H52: ='Calc|Fee Based'!H50 -> 82.74693332 | I52: =IF(AND(B52='Calc|Fee Based'!B50,C52='Calc|Fee Based'!C50,D52='Calc|Fee Based'!D50,E52='Calc|Fee Based'!E50, F52='Calc|Fee Based'!F50,G52='Calc|Fee Based'!G50, H52='Calc|Fee Based'!H50),0,1) -> 0
A53: 42 | B53: ='Calc|Fee Based'!B51 ->  | C53: ='Calc|Fee Based'!C51 -> Security and watchmen lights | D53: ='Calc|Fee Based'!D51 -> After hours | E53: ='Calc|Fee Based'!E51 -> Public lighting | F53: ='Calc|Fee Based'!F51 -> Security lighting services - ACS fee based | G53: ='Calc|Fee Based'!G51 ->  | H53: ='Calc|Fee Based'!H51 -> 148.8661714 | I53: =IF(AND(B53='Calc|Fee Based'!B51,C53='Calc|Fee Based'!C51,D53='Calc|Fee Based'!D51,E53='Calc|Fee Based'!E51, F53='Calc|Fee Based'!F51,G53='Calc|Fee Based'!G51, H53='Calc|Fee Based'!H51),0,1) -> 0
A54: 43 | B54: ='Calc|Fee Based'!B52 ->  | C54: ='Calc|Fee Based'!C52 -> Type 9 meter data services - Per light Per Year | D54: ='Calc|Fee Based'!D52 -> Business hours | E54: ='Calc|Fee Based'!E52 -> Type 7 and 9 metering services | F54: ='Calc|Fee Based'!F52 -> Metering ancillary services - ACS fee based | G54: ='Calc|Fee Based'!G52 ->  | H54: ='Calc|Fee Based'!H52 -> 6.053434939 | I54: =IF(AND(B54='Calc|Fee Based'!B52,C54='Calc|Fee Based'!C52,D54='Calc|Fee Based'!D52,E54='Calc|Fee Based'!E52, F54='Calc|Fee Based'!F52,G54='Calc|Fee Based'!G52, H54='Calc|Fee Based'!H52),0,1) -> 0
A55: 44 | B55: ='Calc|Fee Based'!B53 ->  | C55: ='Calc|Fee Based'!C53 ->  | D55: ='Calc|Fee Based'!D53 ->  | E55: ='Calc|Fee Based'!E53 ->  | F55: ='Calc|Fee Based'!F53 ->  | G55: ='Calc|Fee Based'!G53 ->  | H55: ='Calc|Fee Based'!H53 -> 0 | I55: =IF(AND(B55='Calc|Fee Based'!B53,C55='Calc|Fee Based'!C53,D55='Calc|Fee Based'!D53,E55='Calc|Fee Based'!E53, F55='Calc|Fee Based'!F53,G55='Calc|Fee Based'!G53, H55='Calc|Fee Based'!H53),0,1) -> 0
A56: 45 | B56: ='Calc|Fee Based'!B54 ->  | C56: ='Calc|Fee Based'!C54 ->  | D56: ='Calc|Fee Based'!D54 ->  | E56: ='Calc|Fee Based'!E54 ->  | F56: ='Calc|Fee Based'!F54 ->  | G56: ='Calc|Fee Based'!G54 ->  | H56: ='Calc|Fee Based'!H54 -> 0 | I56: =IF(AND(B56='Calc|Fee Based'!B54,C56='Calc|Fee Based'!C54,D56='Calc|Fee Based'!D54,E56='Calc|Fee Based'!E54, F56='Calc|Fee Based'!F54,G56='Calc|Fee Based'!G54, H56='Calc|Fee Based'!H54),0,1) -> 0
A57: 46 | B57: ='Calc|Fee Based'!B55 ->  | C57: ='Calc|Fee Based'!C55 ->  | D57: ='Calc|Fee Based'!D55 ->  | E57: ='Calc|Fee Based'!E55 ->  | F57: ='Calc|Fee Based'!F55 ->  | G57: ='Calc|Fee Based'!G55 ->  | H57: ='Calc|Fee Based'!H55 -> 0 | I57: =IF(AND(B57='Calc|Fee Based'!B55,C57='Calc|Fee Based'!C55,D57='Calc|Fee Based'!D55,E57='Calc|Fee Based'!E55, F57='Calc|Fee Based'!F55,G57='Calc|Fee Based'!G55, H57='Calc|Fee Based'!H55),0,1) -> 0
A58: 47 | B58: ='Calc|Fee Based'!B56 ->  | C58: ='Calc|Fee Based'!C56 ->  | D58: ='Calc|Fee Based'!D56 ->  | E58: ='Calc|Fee Based'!E56 ->  | F58: ='Calc|Fee Based'!F56 ->  | G58: ='Calc|Fee Based'!G56 ->  | H58: ='Calc|Fee Based'!H56 -> 0 | I58: =IF(AND(B58='Calc|Fee Based'!B56,C58='Calc|Fee Based'!C56,D58='Calc|Fee Based'!D56,E58='Calc|Fee Based'!E56, F58='Calc|Fee Based'!F56,G58='Calc|Fee Based'!G56, H58='Calc|Fee Based'!H56),0,1) -> 0
A59: 48 | B59: ='Calc|Fee Based'!B57 ->  | C59: ='Calc|Fee Based'!C57 ->  | D59: ='Calc|Fee Based'!D57 ->  | E59: ='Calc|Fee Based'!E57 ->  | F59: ='Calc|Fee Based'!F57 ->  | G59: ='Calc|Fee Based'!G57 ->  | H59: ='Calc|Fee Based'!H57 -> 0 | I59: =IF(AND(B59='Calc|Fee Based'!B57,C59='Calc|Fee Based'!C57,D59='Calc|Fee Based'!D57,E59='Calc|Fee Based'!E57, F59='Calc|Fee Based'!F57,G59='Calc|Fee Based'!G57, H59='Calc|Fee Based'!H57),0,1) -> 0
A60: 49 | B60: ='Calc|Fee Based'!B58 ->  | C60: ='Calc|Fee Based'!C58 ->  | D60: ='Calc|Fee Based'!D58 ->  | E60: ='Calc|Fee Based'!E58 ->  | F60: ='Calc|Fee Based'!F58 ->  | G60: ='Calc|Fee Based'!G58 ->  | H60: ='Calc|Fee Based'!H58 -> 0 | I60: =IF(AND(B60='Calc|Fee Based'!B58,C60='Calc|Fee Based'!C58,D60='Calc|Fee Based'!D58,E60='Calc|Fee Based'!E58, F60='Calc|Fee Based'!F58,G60='Calc|Fee Based'!G58, H60='Calc|Fee Based'!H58),0,1) -> 0
A61: 50 | B61: ='Calc|Fee Based'!B59 ->  | C61: ='Calc|Fee Based'!C59 ->  | D61: ='Calc|Fee Based'!D59 ->  | E61: ='Calc|Fee Based'!E59 ->  | F61: ='Calc|Fee Based'!F59 ->  | G61: ='Calc|Fee Based'!G59 ->  | H61: ='Calc|Fee Based'!H59 -> 0 | I61: =IF(AND(B61='Calc|Fee Based'!B59,C61='Calc|Fee Based'!C59,D61='Calc|Fee Based'!D59,E61='Calc|Fee Based'!E59, F61='Calc|Fee Based'!F59,G61='Calc|Fee Based'!G59, H61='Calc|Fee Based'!H59),0,1) -> 0
A62: 51 | B62: ='Calc|Fee Based'!B60 ->  | C62: ='Calc|Fee Based'!C60 ->  | D62: ='Calc|Fee Based'!D60 ->  | E62: ='Calc|Fee Based'!E60 ->  | F62: ='Calc|Fee Based'!F60 ->  | G62: ='Calc|Fee Based'!G60 ->  | H62: ='Calc|Fee Based'!H60 -> 0 | I62: =IF(AND(B62='Calc|Fee Based'!B60,C62='Calc|Fee Based'!C60,D62='Calc|Fee Based'!D60,E62='Calc|Fee Based'!E60, F62='Calc|Fee Based'!F60,G62='Calc|Fee Based'!G60, H62='Calc|Fee Based'!H60),0,1) -> 0
A63: 52 | B63: ='Calc|Fee Based'!B61 ->  | C63: ='Calc|Fee Based'!C61 ->  | D63: ='Calc|Fee Based'!D61 ->  | E63: ='Calc|Fee Based'!E61 ->  | F63: ='Calc|Fee Based'!F61 ->  | G63: ='Calc|Fee Based'!G61 ->  | H63: ='Calc|Fee Based'!H61 -> 0 | I63: =IF(AND(B63='Calc|Fee Based'!B61,C63='Calc|Fee Based'!C61,D63='Calc|Fee Based'!D61,E63='Calc|Fee Based'!E61, F63='Calc|Fee Based'!F61,G63='Calc|Fee Based'!G61, H63='Calc|Fee Based'!H61),0,1) -> 0
A64: 53 | B64: ='Calc|Fee Based'!B62 ->  | C64: ='Calc|Fee Based'!C62 ->  | D64: ='Calc|Fee Based'!D62 ->  | E64: ='Calc|Fee Based'!E62 ->  | F64: ='Calc|Fee Based'!F62 ->  | G64: ='Calc|Fee Based'!G62 ->  | H64: ='Calc|Fee Based'!H62 -> 0 | I64: =IF(AND(B64='Calc|Fee Based'!B62,C64='Calc|Fee Based'!C62,D64='Calc|Fee Based'!D62,E64='Calc|Fee Based'!E62, F64='Calc|Fee Based'!F62,G64='Calc|Fee Based'!G62, H64='Calc|Fee Based'!H62),0,1) -> 0
A65: 54 | B65: ='Calc|Fee Based'!B63 ->  | C65: ='Calc|Fee Based'!C63 ->  | D65: ='Calc|Fee Based'!D63 ->  | E65: ='Calc|Fee Based'!E63 ->  | F65: ='Calc|Fee Based'!F63 ->  | G65: ='Calc|Fee Based'!G63 ->  | H65: ='Calc|Fee Based'!H63 -> 0 | I65: =IF(AND(B65='Calc|Fee Based'!B63,C65='Calc|Fee Based'!C63,D65='Calc|Fee Based'!D63,E65='Calc|Fee Based'!E63, F65='Calc|Fee Based'!F63,G65='Calc|Fee Based'!G63, H65='Calc|Fee Based'!H63),0,1) -> 0
A66: 55 | B66: ='Calc|Fee Based'!B64 ->  | C66: ='Calc|Fee Based'!C64 ->  | D66: ='Calc|Fee Based'!D64 ->  | E66: ='Calc|Fee Based'!E64 ->  | F66: ='Calc|Fee Based'!F64 ->  | G66: ='Calc|Fee Based'!G64 ->  | H66: ='Calc|Fee Based'!H64 -> 0 | I66: =IF(AND(B66='Calc|Fee Based'!B64,C66='Calc|Fee Based'!C64,D66='Calc|Fee Based'!D64,E66='Calc|Fee Based'!E64, F66='Calc|Fee Based'!F64,G66='Calc|Fee Based'!G64, H66='Calc|Fee Based'!H64),0,1) -> 0
A67: 56 | B67: ='Calc|Fee Based'!B65 ->  | C67: ='Calc|Fee Based'!C65 ->  | D67: ='Calc|Fee Based'!D65 ->  | E67: ='Calc|Fee Based'!E65 ->  | F67: ='Calc|Fee Based'!F65 ->  | G67: ='Calc|Fee Based'!G65 ->  | H67: ='Calc|Fee Based'!H65 -> 0 | I67: =IF(AND(B67='Calc|Fee Based'!B65,C67='Calc|Fee Based'!C65,D67='Calc|Fee Based'!D65,E67='Calc|Fee Based'!E65, F67='Calc|Fee Based'!F65,G67='Calc|Fee Based'!G65, H67='Calc|Fee Based'!H65),0,1) -> 0
A68: 57 | B68: ='Calc|Fee Based'!B66 ->  | C68: ='Calc|Fee Based'!C66 ->  | D68: ='Calc|Fee Based'!D66 ->  | E68: ='Calc|Fee Based'!E66 ->  | F68: ='Calc|Fee Based'!F66 ->  | G68: ='Calc|Fee Based'!G66 ->  | H68: ='Calc|Fee Based'!H66 -> 0 | I68: =IF(AND(B68='Calc|Fee Based'!B66,C68='Calc|Fee Based'!C66,D68='Calc|Fee Based'!D66,E68='Calc|Fee Based'!E66, F68='Calc|Fee Based'!F66,G68='Calc|Fee Based'!G66, H68='Calc|Fee Based'!H66),0,1) -> 0
A69: 58 | B69: ='Calc|Fee Based'!B67 ->  | C69: ='Calc|Fee Based'!C67 ->  | D69: ='Calc|Fee Based'!D67 ->  | E69: ='Calc|Fee Based'!E67 ->  | F69: ='Calc|Fee Based'!F67 ->  | G69: ='Calc|Fee Based'!G67 ->  | H69: ='Calc|Fee Based'!H67 -> 0 | I69: =IF(AND(B69='Calc|Fee Based'!B67,C69='Calc|Fee Based'!C67,D69='Calc|Fee Based'!D67,E69='Calc|Fee Based'!E67, F69='Calc|Fee Based'!F67,G69='Calc|Fee Based'!G67, H69='Calc|Fee Based'!H67),0,1) -> 0
A70: 59 | B70: ='Calc|Fee Based'!B68 ->  | C70: ='Calc|Fee Based'!C68 ->  | D70: ='Calc|Fee Based'!D68 ->  | E70: ='Calc|Fee Based'!E68 ->  | F70: ='Calc|Fee Based'!F68 ->  | G70: ='Calc|Fee Based'!G68 ->  | H70: ='Calc|Fee Based'!H68 -> 0 | I70: =IF(AND(B70='Calc|Fee Based'!B68,C70='Calc|Fee Based'!C68,D70='Calc|Fee Based'!D68,E70='Calc|Fee Based'!E68, F70='Calc|Fee Based'!F68,G70='Calc|Fee Based'!G68, H70='Calc|Fee Based'!H68),0,1) -> 0
A71: 60 | B71: ='Calc|Fee Based'!B69 ->  | C71: ='Calc|Fee Based'!C69 ->  | D71: ='Calc|Fee Based'!D69 ->  | E71: ='Calc|Fee Based'!E69 ->  | F71: ='Calc|Fee Based'!F69 ->  | G71: ='Calc|Fee Based'!G69 ->  | H71: ='Calc|Fee Based'!H69 -> 0 | I71: =IF(AND(B71='Calc|Fee Based'!B69,C71='Calc|Fee Based'!C69,D71='Calc|Fee Based'!D69,E71='Calc|Fee Based'!E69, F71='Calc|Fee Based'!F69,G71='Calc|Fee Based'!G69, H71='Calc|Fee Based'!H69),0,1) -> 0
A72: 61 | B72: ='Calc|Fee Based'!B70 ->  | C72: ='Calc|Fee Based'!C70 ->  | D72: ='Calc|Fee Based'!D70 ->  | E72: ='Calc|Fee Based'!E70 ->  | F72: ='Calc|Fee Based'!F70 ->  | G72: ='Calc|Fee Based'!G70 ->  | H72: ='Calc|Fee Based'!H70 -> 0 | I72: =IF(AND(B72='Calc|Fee Based'!B70,C72='Calc|Fee Based'!C70,D72='Calc|Fee Based'!D70,E72='Calc|Fee Based'!E70, F72='Calc|Fee Based'!F70,G72='Calc|Fee Based'!G70, H72='Calc|Fee Based'!H70),0,1) -> 0
A73: 62 | B73: ='Calc|Fee Based'!B71 ->  | C73: ='Calc|Fee Based'!C71 ->  | D73: ='Calc|Fee Based'!D71 ->  | E73: ='Calc|Fee Based'!E71 ->  | F73: ='Calc|Fee Based'!F71 ->  | G73: ='Calc|Fee Based'!G71 ->  | H73: ='Calc|Fee Based'!H71 -> 0 | I73: =IF(AND(B73='Calc|Fee Based'!B71,C73='Calc|Fee Based'!C71,D73='Calc|Fee Based'!D71,E73='Calc|Fee Based'!E71, F73='Calc|Fee Based'!F71,G73='Calc|Fee Based'!G71, H73='Calc|Fee Based'!H71),0,1) -> 0
A74: 63 | B74: ='Calc|Fee Based'!B72 ->  | C74: ='Calc|Fee Based'!C72 ->  | D74: ='Calc|Fee Based'!D72 ->  | E74: ='Calc|Fee Based'!E72 ->  | F74: ='Calc|Fee Based'!F72 ->  | G74: ='Calc|Fee Based'!G72 ->  | H74: ='Calc|Fee Based'!H72 -> 0 | I74: =IF(AND(B74='Calc|Fee Based'!B72,C74='Calc|Fee Based'!C72,D74='Calc|Fee Based'!D72,E74='Calc|Fee Based'!E72, F74='Calc|Fee Based'!F72,G74='Calc|Fee Based'!G72, H74='Calc|Fee Based'!H72),0,1) -> 0
A75: 64 | B75: ='Calc|Fee Based'!B73 ->  | C75: ='Calc|Fee Based'!C73 ->  | D75: ='Calc|Fee Based'!D73 ->  | E75: ='Calc|Fee Based'!E73 ->  | F75: ='Calc|Fee Based'!F73 ->  | G75: ='Calc|Fee Based'!G73 ->  | H75: ='Calc|Fee Based'!H73 -> 0 | I75: =IF(AND(B75='Calc|Fee Based'!B73,C75='Calc|Fee Based'!C73,D75='Calc|Fee Based'!D73,E75='Calc|Fee Based'!E73, F75='Calc|Fee Based'!F73,G75='Calc|Fee Based'!G73, H75='Calc|Fee Based'!H73),0,1) -> 0
A76: 65 | B76: ='Calc|Fee Based'!B74 ->  | C76: ='Calc|Fee Based'!C74 ->  | D76: ='Calc|Fee Based'!D74 ->  | E76: ='Calc|Fee Based'!E74 ->  | F76: ='Calc|Fee Based'!F74 ->  | G76: ='Calc|Fee Based'!G74 ->  | H76: ='Calc|Fee Based'!H74 -> 0 | I76: =IF(AND(B76='Calc|Fee Based'!B74,C76='Calc|Fee Based'!C74,D76='Calc|Fee Based'!D74,E76='Calc|Fee Based'!E74, F76='Calc|Fee Based'!F74,G76='Calc|Fee Based'!G74, H76='Calc|Fee Based'!H74),0,1) -> 0
A77: 66 | B77: ='Calc|Fee Based'!B75 ->  | C77: ='Calc|Fee Based'!C75 ->  | D77: ='Calc|Fee Based'!D75 ->  | E77: ='Calc|Fee Based'!E75 ->  | F77: ='Calc|Fee Based'!F75 ->  | G77: ='Calc|Fee Based'!G75 ->  | H77: ='Calc|Fee Based'!H75 -> 0 | I77: =IF(AND(B77='Calc|Fee Based'!B75,C77='Calc|Fee Based'!C75,D77='Calc|Fee Based'!D75,E77='Calc|Fee Based'!E75, F77='Calc|Fee Based'!F75,G77='Calc|Fee Based'!G75, H77='Calc|Fee Based'!H75),0,1) -> 0
A78: 67 | B78: ='Calc|Fee Based'!B76 ->  | C78: ='Calc|Fee Based'!C76 ->  | D78: ='Calc|Fee Based'!D76 ->  | E78: ='Calc|Fee Based'!E76 ->  | F78: ='Calc|Fee Based'!F76 ->  | G78: ='Calc|Fee Based'!G76 ->  | H78: ='Calc|Fee Based'!H76 -> 0 | I78: =IF(AND(B78='Calc|Fee Based'!B76,C78='Calc|Fee Based'!C76,D78='Calc|Fee Based'!D76,E78='Calc|Fee Based'!E76, F78='Calc|Fee Based'!F76,G78='Calc|Fee Based'!G76, H78='Calc|Fee Based'!H76),0,1) -> 0
A79: 68 | B79: ='Calc|Fee Based'!B77 ->  | C79: ='Calc|Fee Based'!C77 ->  | D79: ='Calc|Fee Based'!D77 ->  | E79: ='Calc|Fee Based'!E77 ->  | F79: ='Calc|Fee Based'!F77 ->  | G79: ='Calc|Fee Based'!G77 ->  | H79: ='Calc|Fee Based'!H77 -> 0 | I79: =IF(AND(B79='Calc|Fee Based'!B77,C79='Calc|Fee Based'!C77,D79='Calc|Fee Based'!D77,E79='Calc|Fee Based'!E77, F79='Calc|Fee Based'!F77,G79='Calc|Fee Based'!G77, H79='Calc|Fee Based'!H77),0,1) -> 0
A80: 69 | B80: ='Calc|Fee Based'!B78 ->  | C80: ='Calc|Fee Based'!C78 ->  | D80: ='Calc|Fee Based'!D78 ->  | E80: ='Calc|Fee Based'!E78 ->  | F80: ='Calc|Fee Based'!F78 ->  | G80: ='Calc|Fee Based'!G78 ->  | H80: ='Calc|Fee Based'!H78 -> 0 | I80: =IF(AND(B80='Calc|Fee Based'!B78,C80='Calc|Fee Based'!C78,D80='Calc|Fee Based'!D78,E80='Calc|Fee Based'!E78, F80='Calc|Fee Based'!F78,G80='Calc|Fee Based'!G78, H80='Calc|Fee Based'!H78),0,1) -> 0
A81: 70 | B81: ='Calc|Fee Based'!B79 ->  | C81: ='Calc|Fee Based'!C79 ->  | D81: ='Calc|Fee Based'!D79 ->  | E81: ='Calc|Fee Based'!E79 ->  | F81: ='Calc|Fee Based'!F79 ->  | G81: ='Calc|Fee Based'!G79 ->  | H81: ='Calc|Fee Based'!H79 -> 0 | I81: =IF(AND(B81='Calc|Fee Based'!B79,C81='Calc|Fee Based'!C79,D81='Calc|Fee Based'!D79,E81='Calc|Fee Based'!E79, F81='Calc|Fee Based'!F79,G81='Calc|Fee Based'!G79, H81='Calc|Fee Based'!H79),0,1) -> 0
A82: 71 | B82: ='Calc|Fee Based'!B80 ->  | C82: ='Calc|Fee Based'!C80 ->  | D82: ='Calc|Fee Based'!D80 ->  | E82: ='Calc|Fee Based'!E80 ->  | F82: ='Calc|Fee Based'!F80 ->  | G82: ='Calc|Fee Based'!G80 ->  | H82: ='Calc|Fee Based'!H80 -> 0 | I82: =IF(AND(B82='Calc|Fee Based'!B80,C82='Calc|Fee Based'!C80,D82='Calc|Fee Based'!D80,E82='Calc|Fee Based'!E80, F82='Calc|Fee Based'!F80,G82='Calc|Fee Based'!G80, H82='Calc|Fee Based'!H80),0,1) -> 0
A83: 72 | B83: ='Calc|Fee Based'!B81 ->  | C83: ='Calc|Fee Based'!C81 ->  | D83: ='Calc|Fee Based'!D81 ->  | E83: ='Calc|Fee Based'!E81 ->  | F83: ='Calc|Fee Based'!F81 ->  | G83: ='Calc|Fee Based'!G81 ->  | H83: ='Calc|Fee Based'!H81 -> 0 | I83: =IF(AND(B83='Calc|Fee Based'!B81,C83='Calc|Fee Based'!C81,D83='Calc|Fee Based'!D81,E83='Calc|Fee Based'!E81, F83='Calc|Fee Based'!F81,G83='Calc|Fee Based'!G81, H83='Calc|Fee Based'!H81),0,1) -> 0
A84: 73 | B84: ='Calc|Fee Based'!B82 ->  | C84: ='Calc|Fee Based'!C82 ->  | D84: ='Calc|Fee Based'!D82 ->  | E84: ='Calc|Fee Based'!E82 ->  | F84: ='Calc|Fee Based'!F82 ->  | G84: ='Calc|Fee Based'!G82 ->  | H84: ='Calc|Fee Based'!H82 -> 0 | I84: =IF(AND(B84='Calc|Fee Based'!B82,C84='Calc|Fee Based'!C82,D84='Calc|Fee Based'!D82,E84='Calc|Fee Based'!E82, F84='Calc|Fee Based'!F82,G84='Calc|Fee Based'!G82, H84='Calc|Fee Based'!H82),0,1) -> 0
A85: 74 | B85: ='Calc|Fee Based'!B83 ->  | C85: ='Calc|Fee Based'!C83 ->  | D85: ='Calc|Fee Based'!D83 ->  | E85: ='Calc|Fee Based'!E83 ->  | F85: ='Calc|Fee Based'!F83 ->  | G85: ='Calc|Fee Based'!G83 ->  | H85: ='Calc|Fee Based'!H83 -> 0 | I85: =IF(AND(B85='Calc|Fee Based'!B83,C85='Calc|Fee Based'!C83,D85='Calc|Fee Based'!D83,E85='Calc|Fee Based'!E83, F85='Calc|Fee Based'!F83,G85='Calc|Fee Based'!G83, H85='Calc|Fee Based'!H83),0,1) -> 0
A86: 75 | B86: ='Calc|Fee Based'!B84 ->  | C86: ='Calc|Fee Based'!C84 ->  | D86: ='Calc|Fee Based'!D84 ->  | E86: ='Calc|Fee Based'!E84 ->  | F86: ='Calc|Fee Based'!F84 ->  | G86: ='Calc|Fee Based'!G84 ->  | H86: ='Calc|Fee Based'!H84 -> 0 | I86: =IF(AND(B86='Calc|Fee Based'!B84,C86='Calc|Fee Based'!C84,D86='Calc|Fee Based'!D84,E86='Calc|Fee Based'!E84, F86='Calc|Fee Based'!F84,G86='Calc|Fee Based'!G84, H86='Calc|Fee Based'!H84),0,1) -> 0
A87: 76 | B87: ='Calc|Fee Based'!B85 ->  | C87: ='Calc|Fee Based'!C85 ->  | D87: ='Calc|Fee Based'!D85 ->  | E87: ='Calc|Fee Based'!E85 ->  | F87: ='Calc|Fee Based'!F85 ->  | G87: ='Calc|Fee Based'!G85 ->  | H87: ='Calc|Fee Based'!H85 -> 0 | I87: =IF(AND(B87='Calc|Fee Based'!B85,C87='Calc|Fee Based'!C85,D87='Calc|Fee Based'!D85,E87='Calc|Fee Based'!E85, F87='Calc|Fee Based'!F85,G87='Calc|Fee Based'!G85, H87='Calc|Fee Based'!H85),0,1) -> 0
A88: 77 | B88: ='Calc|Fee Based'!B86 ->  | C88: ='Calc|Fee Based'!C86 ->  | D88: ='Calc|Fee Based'!D86 ->  | E88: ='Calc|Fee Based'!E86 ->  | F88: ='Calc|Fee Based'!F86 ->  | G88: ='Calc|Fee Based'!G86 ->  | H88: ='Calc|Fee Based'!H86 -> 0 | I88: =IF(AND(B88='Calc|Fee Based'!B86,C88='Calc|Fee Based'!C86,D88='Calc|Fee Based'!D86,E88='Calc|Fee Based'!E86, F88='Calc|Fee Based'!F86,G88='Calc|Fee Based'!G86, H88='Calc|Fee Based'!H86),0,1) -> 0
A89: 78 | B89: ='Calc|Fee Based'!B87 ->  | C89: ='Calc|Fee Based'!C87 ->  | D89: ='Calc|Fee Based'!D87 ->  | E89: ='Calc|Fee Based'!E87 ->  | F89: ='Calc|Fee Based'!F87 ->  | G89: ='Calc|Fee Based'!G87 ->  | H89: ='Calc|Fee Based'!H87 -> 0 | I89: =IF(AND(B89='Calc|Fee Based'!B87,C89='Calc|Fee Based'!C87,D89='Calc|Fee Based'!D87,E89='Calc|Fee Based'!E87, F89='Calc|Fee Based'!F87,G89='Calc|Fee Based'!G87, H89='Calc|Fee Based'!H87),0,1) -> 0
A90: 79 | B90: ='Calc|Fee Based'!B88 ->  | C90: ='Calc|Fee Based'!C88 ->  | D90: ='Calc|Fee Based'!D88 ->  | E90: ='Calc|Fee Based'!E88 ->  | F90: ='Calc|Fee Based'!F88 ->  | G90: ='Calc|Fee Based'!G88 ->  | H90: ='Calc|Fee Based'!H88 -> 0 | I90: =IF(AND(B90='Calc|Fee Based'!B88,C90='Calc|Fee Based'!C88,D90='Calc|Fee Based'!D88,E90='Calc|Fee Based'!E88, F90='Calc|Fee Based'!F88,G90='Calc|Fee Based'!G88, H90='Calc|Fee Based'!H88),0,1) -> 0
A91: 80 | B91: ='Calc|Fee Based'!B89 ->  | C91: ='Calc|Fee Based'!C89 ->  | D91: ='Calc|Fee Based'!D89 ->  | E91: ='Calc|Fee Based'!E89 ->  | F91: ='Calc|Fee Based'!F89 ->  | G91: ='Calc|Fee Based'!G89 ->  | H91: ='Calc|Fee Based'!H89 -> 0 | I91: =IF(AND(B91='Calc|Fee Based'!B89,C91='Calc|Fee Based'!C89,D91='Calc|Fee Based'!D89,E91='Calc|Fee Based'!E89, F91='Calc|Fee Based'!F89,G91='Calc|Fee Based'!G89, H91='Calc|Fee Based'!H89),0,1) -> 0
A92: 81 | B92: ='Calc|Fee Based'!B90 ->  | C92: ='Calc|Fee Based'!C90 ->  | D92: ='Calc|Fee Based'!D90 ->  | E92: ='Calc|Fee Based'!E90 ->  | F92: ='Calc|Fee Based'!F90 ->  | G92: ='Calc|Fee Based'!G90 ->  | H92: ='Calc|Fee Based'!H90 -> 0 | I92: =IF(AND(B92='Calc|Fee Based'!B90,C92='Calc|Fee Based'!C90,D92='Calc|Fee Based'!D90,E92='Calc|Fee Based'!E90, F92='Calc|Fee Based'!F90,G92='Calc|Fee Based'!G90, H92='Calc|Fee Based'!H90),0,1) -> 0
A93: 82 | B93: ='Calc|Fee Based'!B91 ->  | C93: ='Calc|Fee Based'!C91 ->  | D93: ='Calc|Fee Based'!D91 ->  | E93: ='Calc|Fee Based'!E91 ->  | F93: ='Calc|Fee Based'!F91 ->  | G93: ='Calc|Fee Based'!G91 ->  | H93: ='Calc|Fee Based'!H91 -> 0 | I93: =IF(AND(B93='Calc|Fee Based'!B91,C93='Calc|Fee Based'!C91,D93='Calc|Fee Based'!D91,E93='Calc|Fee Based'!E91, F93='Calc|Fee Based'!F91,G93='Calc|Fee Based'!G91, H93='Calc|Fee Based'!H91),0,1) -> 0
A94: 83 | B94: ='Calc|Fee Based'!B92 ->  | C94: ='Calc|Fee Based'!C92 ->  | D94: ='Calc|Fee Based'!D92 ->  | E94: ='Calc|Fee Based'!E92 ->  | F94: ='Calc|Fee Based'!F92 ->  | G94: ='Calc|Fee Based'!G92 ->  | H94: ='Calc|Fee Based'!H92 -> 0 | I94: =IF(AND(B94='Calc|Fee Based'!B92,C94='Calc|Fee Based'!C92,D94='Calc|Fee Based'!D92,E94='Calc|Fee Based'!E92, F94='Calc|Fee Based'!F92,G94='Calc|Fee Based'!G92, H94='Calc|Fee Based'!H92),0,1) -> 0
A95: 84 | B95: ='Calc|Fee Based'!B93 ->  | C95: ='Calc|Fee Based'!C93 ->  | D95: ='Calc|Fee Based'!D93 ->  | E95: ='Calc|Fee Based'!E93 ->  | F95: ='Calc|Fee Based'!F93 ->  | G95: ='Calc|Fee Based'!G93 ->  | H95: ='Calc|Fee Based'!H93 -> 0 | I95: =IF(AND(B95='Calc|Fee Based'!B93,C95='Calc|Fee Based'!C93,D95='Calc|Fee Based'!D93,E95='Calc|Fee Based'!E93, F95='Calc|Fee Based'!F93,G95='Calc|Fee Based'!G93, H95='Calc|Fee Based'!H93),0,1) -> 0
A96: 85 | B96: ='Calc|Fee Based'!B94 ->  | C96: ='Calc|Fee Based'!C94 ->  | D96: ='Calc|Fee Based'!D94 ->  | E96: ='Calc|Fee Based'!E94 ->  | F96: ='Calc|Fee Based'!F94 ->  | G96: ='Calc|Fee Based'!G94 ->  | H96: ='Calc|Fee Based'!H94 -> 0 | I96: =IF(AND(B96='Calc|Fee Based'!B94,C96='Calc|Fee Based'!C94,D96='Calc|Fee Based'!D94,E96='Calc|Fee Based'!E94, F96='Calc|Fee Based'!F94,G96='Calc|Fee Based'!G94, H96='Calc|Fee Based'!H94),0,1) -> 0
A97: 86 | B97: ='Calc|Fee Based'!B95 ->  | C97: ='Calc|Fee Based'!C95 ->  | D97: ='Calc|Fee Based'!D95 ->  | E97: ='Calc|Fee Based'!E95 ->  | F97: ='Calc|Fee Based'!F95 ->  | G97: ='Calc|Fee Based'!G95 ->  | H97: ='Calc|Fee Based'!H95 -> 0 | I97: =IF(AND(B97='Calc|Fee Based'!B95,C97='Calc|Fee Based'!C95,D97='Calc|Fee Based'!D95,E97='Calc|Fee Based'!E95, F97='Calc|Fee Based'!F95,G97='Calc|Fee Based'!G95, H97='Calc|Fee Based'!H95),0,1) -> 0
A98: 87 | B98: ='Calc|Fee Based'!B96 ->  | C98: ='Calc|Fee Based'!C96 ->  | D98: ='Calc|Fee Based'!D96 ->  | E98: ='Calc|Fee Based'!E96 ->  | F98: ='Calc|Fee Based'!F96 ->  | G98: ='Calc|Fee Based'!G96 ->  | H98: ='Calc|Fee Based'!H96 -> 0 | I98: =IF(AND(B98='Calc|Fee Based'!B96,C98='Calc|Fee Based'!C96,D98='Calc|Fee Based'!D96,E98='Calc|Fee Based'!E96, F98='Calc|Fee Based'!F96,G98='Calc|Fee Based'!G96, H98='Calc|Fee Based'!H96),0,1) -> 0
A99: 88 | B99: ='Calc|Fee Based'!B97 ->  | C99: ='Calc|Fee Based'!C97 ->  | D99: ='Calc|Fee Based'!D97 ->  | E99: ='Calc|Fee Based'!E97 ->  | F99: ='Calc|Fee Based'!F97 ->  | G99: ='Calc|Fee Based'!G97 ->  | H99: ='Calc|Fee Based'!H97 -> 0 | I99: =IF(AND(B99='Calc|Fee Based'!B97,C99='Calc|Fee Based'!C97,D99='Calc|Fee Based'!D97,E99='Calc|Fee Based'!E97, F99='Calc|Fee Based'!F97,G99='Calc|Fee Based'!G97, H99='Calc|Fee Based'!H97),0,1) -> 0
A100: 89 | B100: ='Calc|Fee Based'!B98 ->  | C100: ='Calc|Fee Based'!C98 ->  | D100: ='Calc|Fee Based'!D98 ->  | E100: ='Calc|Fee Based'!E98 ->  | F100: ='Calc|Fee Based'!F98 ->  | G100: ='Calc|Fee Based'!G98 ->  | H100: ='Calc|Fee Based'!H98 -> 0 | I100: =IF(AND(B100='Calc|Fee Based'!B98,C100='Calc|Fee Based'!C98,D100='Calc|Fee Based'!D98,E100='Calc|Fee Based'!E98, F100='Calc|Fee Based'!F98,G100='Calc|Fee Based'!G98, H100='Calc|Fee Based'!H98),0,1) -> 0
A101: 90 | B101: ='Calc|Fee Based'!B99 ->  | C101: ='Calc|Fee Based'!C99 ->  | D101: ='Calc|Fee Based'!D99 ->  | E101: ='Calc|Fee Based'!E99 ->  | F101: ='Calc|Fee Based'!F99 ->  | G101: ='Calc|Fee Based'!G99 ->  | H101: ='Calc|Fee Based'!H99 -> 0 | I101: =IF(AND(B101='Calc|Fee Based'!B99,C101='Calc|Fee Based'!C99,D101='Calc|Fee Based'!D99,E101='Calc|Fee Based'!E99, F101='Calc|Fee Based'!F99,G101='Calc|Fee Based'!G99, H101='Calc|Fee Based'!H99),0,1) -> 0
A102: 91 | B102: ='Calc|Fee Based'!B100 ->  | C102: ='Calc|Fee Based'!C100 ->  | D102: ='Calc|Fee Based'!D100 ->  | E102: ='Calc|Fee Based'!E100 ->  | F102: ='Calc|Fee Based'!F100 ->  | G102: ='Calc|Fee Based'!G100 ->  | H102: ='Calc|Fee Based'!H100 -> 0 | I102: =IF(AND(B102='Calc|Fee Based'!B100,C102='Calc|Fee Based'!C100,D102='Calc|Fee Based'!D100,E102='Calc|Fee Based'!E100, F102='Calc|Fee Based'!F100,G102='Calc|Fee Based'!G100, H102='Calc|Fee Based'!H100),0,1) -> 0
A103: 92 | B103: ='Calc|Fee Based'!B101 ->  | C103: ='Calc|Fee Based'!C101 ->  | D103: ='Calc|Fee Based'!D101 ->  | E103: ='Calc|Fee Based'!E101 ->  | F103: ='Calc|Fee Based'!F101 ->  | G103: ='Calc|Fee Based'!G101 ->  | H103: ='Calc|Fee Based'!H101 -> 0 | I103: =IF(AND(B103='Calc|Fee Based'!B101,C103='Calc|Fee Based'!C101,D103='Calc|Fee Based'!D101,E103='Calc|Fee Based'!E101, F103='Calc|Fee Based'!F101,G103='Calc|Fee Based'!G101, H103='Calc|Fee Based'!H101),0,1) -> 0
A104: 93 | B104: ='Calc|Fee Based'!B102 ->  | C104: ='Calc|Fee Based'!C102 ->  | D104: ='Calc|Fee Based'!D102 ->  | E104: ='Calc|Fee Based'!E102 ->  | F104: ='Calc|Fee Based'!F102 ->  | G104: ='Calc|Fee Based'!G102 ->  | H104: ='Calc|Fee Based'!H102 -> 0 | I104: =IF(AND(B104='Calc|Fee Based'!B102,C104='Calc|Fee Based'!C102,D104='Calc|Fee Based'!D102,E104='Calc|Fee Based'!E102, F104='Calc|Fee Based'!F102,G104='Calc|Fee Based'!G102, H104='Calc|Fee Based'!H102),0,1) -> 0
A105: 94 | B105: ='Calc|Fee Based'!B103 ->  | C105: ='Calc|Fee Based'!C103 ->  | D105: ='Calc|Fee Based'!D103 ->  | E105: ='Calc|Fee Based'!E103 ->  | F105: ='Calc|Fee Based'!F103 ->  | G105: ='Calc|Fee Based'!G103 ->  | H105: ='Calc|Fee Based'!H103 -> 0 | I105: =IF(AND(B105='Calc|Fee Based'!B103,C105='Calc|Fee Based'!C103,D105='Calc|Fee Based'!D103,E105='Calc|Fee Based'!E103, F105='Calc|Fee Based'!F103,G105='Calc|Fee Based'!G103, H105='Calc|Fee Based'!H103),0,1) -> 0
A106: 95 | B106: ='Calc|Fee Based'!B104 ->  | C106: ='Calc|Fee Based'!C104 ->  | D106: ='Calc|Fee Based'!D104 ->  | E106: ='Calc|Fee Based'!E104 ->  | F106: ='Calc|Fee Based'!F104 ->  | G106: ='Calc|Fee Based'!G104 ->  | H106: ='Calc|Fee Based'!H104 -> 0 | I106: =IF(AND(B106='Calc|Fee Based'!B104,C106='Calc|Fee Based'!C104,D106='Calc|Fee Based'!D104,E106='Calc|Fee Based'!E104, F106='Calc|Fee Based'!F104,G106='Calc|Fee Based'!G104, H106='Calc|Fee Based'!H104),0,1) -> 0
A107: 96 | B107: ='Calc|Fee Based'!B105 ->  | C107: ='Calc|Fee Based'!C105 ->  | D107: ='Calc|Fee Based'!D105 ->  | E107: ='Calc|Fee Based'!E105 ->  | F107: ='Calc|Fee Based'!F105 ->  | G107: ='Calc|Fee Based'!G105 ->  | H107: ='Calc|Fee Based'!H105 -> 0 | I107: =IF(AND(B107='Calc|Fee Based'!B105,C107='Calc|Fee Based'!C105,D107='Calc|Fee Based'!D105,E107='Calc|Fee Based'!E105, F107='Calc|Fee Based'!F105,G107='Calc|Fee Based'!G105, H107='Calc|Fee Based'!H105),0,1) -> 0
A108: 97 | B108: ='Calc|Fee Based'!B106 ->  | C108: ='Calc|Fee Based'!C106 ->  | D108: ='Calc|Fee Based'!D106 ->  | E108: ='Calc|Fee Based'!E106 ->  | F108: ='Calc|Fee Based'!F106 ->  | G108: ='Calc|Fee Based'!G106 ->  | H108: ='Calc|Fee Based'!H106 -> 0 | I108: =IF(AND(B108='Calc|Fee Based'!B106,C108='Calc|Fee Based'!C106,D108='Calc|Fee Based'!D106,E108='Calc|Fee Based'!E106, F108='Calc|Fee Based'!F106,G108='Calc|Fee Based'!G106, H108='Calc|Fee Based'!H106),0,1) -> 0
A109: 98 | B109: ='Calc|Fee Based'!B107 ->  | C109: ='Calc|Fee Based'!C107 ->  | D109: ='Calc|Fee Based'!D107 ->  | E109: ='Calc|Fee Based'!E107 ->  | F109: ='Calc|Fee Based'!F107 ->  | G109: ='Calc|Fee Based'!G107 ->  | H109: ='Calc|Fee Based'!H107 -> 0 | I109: =IF(AND(B109='Calc|Fee Based'!B107,C109='Calc|Fee Based'!C107,D109='Calc|Fee Based'!D107,E109='Calc|Fee Based'!E107, F109='Calc|Fee Based'!F107,G109='Calc|Fee Based'!G107, H109='Calc|Fee Based'!H107),0,1) -> 0
A110: 99 | B110: ='Calc|Fee Based'!B108 ->  | C110: ='Calc|Fee Based'!C108 ->  | D110: ='Calc|Fee Based'!D108 ->  | E110: ='Calc|Fee Based'!E108 ->  | F110: ='Calc|Fee Based'!F108 ->  | G110: ='Calc|Fee Based'!G108 ->  | H110: ='Calc|Fee Based'!H108 -> 0 | I110: =IF(AND(B110='Calc|Fee Based'!B108,C110='Calc|Fee Based'!C108,D110='Calc|Fee Based'!D108,E110='Calc|Fee Based'!E108, F110='Calc|Fee Based'!F108,G110='Calc|Fee Based'!G108, H110='Calc|Fee Based'!H108),0,1) -> 0
A111: 100 | B111: ='Calc|Fee Based'!B109 ->  | C111: ='Calc|Fee Based'!C109 ->  | D111: ='Calc|Fee Based'!D109 ->  | E111: ='Calc|Fee Based'!E109 ->  | F111: ='Calc|Fee Based'!F109 ->  | G111: ='Calc|Fee Based'!G109 ->  | H111: ='Calc|Fee Based'!H109 -> 0 | I111: =IF(AND(B111='Calc|Fee Based'!B109,C111='Calc|Fee Based'!C109,D111='Calc|Fee Based'!D109,E111='Calc|Fee Based'!E109, F111='Calc|Fee Based'!F109,G111='Calc|Fee Based'!G109, H111='Calc|Fee Based'!H109),0,1) -> 0
A112: 101 | B112: ='Calc|Fee Based'!B110 ->  | C112: ='Calc|Fee Based'!C110 ->  | D112: ='Calc|Fee Based'!D110 ->  | E112: ='Calc|Fee Based'!E110 ->  | F112: ='Calc|Fee Based'!F110 ->  | G112: ='Calc|Fee Based'!G110 ->  | H112: ='Calc|Fee Based'!H110 -> 0 | I112: =IF(AND(B112='Calc|Fee Based'!B110,C112='Calc|Fee Based'!C110,D112='Calc|Fee Based'!D110,E112='Calc|Fee Based'!E110, F112='Calc|Fee Based'!F110,G112='Calc|Fee Based'!G110, H112='Calc|Fee Based'!H110),0,1) -> 0
A113: 102 | B113: ='Calc|Fee Based'!B111 ->  | C113: ='Calc|Fee Based'!C111 ->  | D113: ='Calc|Fee Based'!D111 ->  | E113: ='Calc|Fee Based'!E111 ->  | F113: ='Calc|Fee Based'!F111 ->  | G113: ='Calc|Fee Based'!G111 ->  | H113: ='Calc|Fee Based'!H111 -> 0 | I113: =IF(AND(B113='Calc|Fee Based'!B111,C113='Calc|Fee Based'!C111,D113='Calc|Fee Based'!D111,E113='Calc|Fee Based'!E111, F113='Calc|Fee Based'!F111,G113='Calc|Fee Based'!G111, H113='Calc|Fee Based'!H111),0,1) -> 0
A114: 103 | B114: ='Calc|Fee Based'!B112 ->  | C114: ='Calc|Fee Based'!C112 ->  | D114: ='Calc|Fee Based'!D112 ->  | E114: ='Calc|Fee Based'!E112 ->  | F114: ='Calc|Fee Based'!F112 ->  | G114: ='Calc|Fee Based'!G112 ->  | H114: ='Calc|Fee Based'!H112 -> 0 | I114: =IF(AND(B114='Calc|Fee Based'!B112,C114='Calc|Fee Based'!C112,D114='Calc|Fee Based'!D112,E114='Calc|Fee Based'!E112, F114='Calc|Fee Based'!F112,G114='Calc|Fee Based'!G112, H114='Calc|Fee Based'!H112),0,1) -> 0
A115: 104 | B115: ='Calc|Fee Based'!B113 ->  | C115: ='Calc|Fee Based'!C113 ->  | D115: ='Calc|Fee Based'!D113 ->  | E115: ='Calc|Fee Based'!E113 ->  | F115: ='Calc|Fee Based'!F113 ->  | G115: ='Calc|Fee Based'!G113 ->  | H115: ='Calc|Fee Based'!H113 -> 0 | I115: =IF(AND(B115='Calc|Fee Based'!B113,C115='Calc|Fee Based'!C113,D115='Calc|Fee Based'!D113,E115='Calc|Fee Based'!E113, F115='Calc|Fee Based'!F113,G115='Calc|Fee Based'!G113, H115='Calc|Fee Based'!H113),0,1) -> 0
A116: 105 | B116: ='Calc|Fee Based'!B114 ->  | C116: ='Calc|Fee Based'!C114 ->  | D116: ='Calc|Fee Based'!D114 ->  | E116: ='Calc|Fee Based'!E114 ->  | F116: ='Calc|Fee Based'!F114 ->  | G116: ='Calc|Fee Based'!G114 ->  | H116: ='Calc|Fee Based'!H114 -> 0 | I116: =IF(AND(B116='Calc|Fee Based'!B114,C116='Calc|Fee Based'!C114,D116='Calc|Fee Based'!D114,E116='Calc|Fee Based'!E114, F116='Calc|Fee Based'!F114,G116='Calc|Fee Based'!G114, H116='Calc|Fee Based'!H114),0,1) -> 0
A117: 106 | B117: ='Calc|Fee Based'!B115 ->  | C117: ='Calc|Fee Based'!C115 ->  | D117: ='Calc|Fee Based'!D115 ->  | E117: ='Calc|Fee Based'!E115 ->  | F117: ='Calc|Fee Based'!F115 ->  | G117: ='Calc|Fee Based'!G115 ->  | H117: ='Calc|Fee Based'!H115 -> 0 | I117: =IF(AND(B117='Calc|Fee Based'!B115,C117='Calc|Fee Based'!C115,D117='Calc|Fee Based'!D115,E117='Calc|Fee Based'!E115, F117='Calc|Fee Based'!F115,G117='Calc|Fee Based'!G115, H117='Calc|Fee Based'!H115),0,1) -> 0
A118: 107 | B118: ='Calc|Fee Based'!B116 ->  | C118: ='Calc|Fee Based'!C116 ->  | D118: ='Calc|Fee Based'!D116 ->  | E118: ='Calc|Fee Based'!E116 ->  | F118: ='Calc|Fee Based'!F116 ->  | G118: ='Calc|Fee Based'!G116 ->  | H118: ='Calc|Fee Based'!H116 -> 0 | I118: =IF(AND(B118='Calc|Fee Based'!B116,C118='Calc|Fee Based'!C116,D118='Calc|Fee Based'!D116,E118='Calc|Fee Based'!E116, F118='Calc|Fee Based'!F116,G118='Calc|Fee Based'!G116, H118='Calc|Fee Based'!H116),0,1) -> 0
A119: 108 | B119: ='Calc|Fee Based'!B117 ->  | C119: ='Calc|Fee Based'!C117 ->  | D119: ='Calc|Fee Based'!D117 ->  | E119: ='Calc|Fee Based'!E117 ->  | F119: ='Calc|Fee Based'!F117 ->  | G119: ='Calc|Fee Based'!G117 ->  | H119: ='Calc|Fee Based'!H117 -> 0 | I119: =IF(AND(B119='Calc|Fee Based'!B117,C119='Calc|Fee Based'!C117,D119='Calc|Fee Based'!D117,E119='Calc|Fee Based'!E117, F119='Calc|Fee Based'!F117,G119='Calc|Fee Based'!G117, H119='Calc|Fee Based'!H117),0,1) -> 0
A120: 109 | B120: ='Calc|Fee Based'!B118 ->  | C120: ='Calc|Fee Based'!C118 ->  | D120: ='Calc|Fee Based'!D118 ->  | E120: ='Calc|Fee Based'!E118 ->  | F120: ='Calc|Fee Based'!F118 ->  | G120: ='Calc|Fee Based'!G118 ->  | H120: ='Calc|Fee Based'!H118 -> 0 | I120: =IF(AND(B120='Calc|Fee Based'!B118,C120='Calc|Fee Based'!C118,D120='Calc|Fee Based'!D118,E120='Calc|Fee Based'!E118, F120='Calc|Fee Based'!F118,G120='Calc|Fee Based'!G118, H120='Calc|Fee Based'!H118),0,1) -> 0
A121: 110 | B121: ='Calc|Fee Based'!B119 ->  | C121: ='Calc|Fee Based'!C119 ->  | D121: ='Calc|Fee Based'!D119 ->  | E121: ='Calc|Fee Based'!E119 ->  | F121: ='Calc|Fee Based'!F119 ->  | G121: ='Calc|Fee Based'!G119 ->  | H121: ='Calc|Fee Based'!H119 -> 0 | I121: =IF(AND(B121='Calc|Fee Based'!B119,C121='Calc|Fee Based'!C119,D121='Calc|Fee Based'!D119,E121='Calc|Fee Based'!E119, F121='Calc|Fee Based'!F119,G121='Calc|Fee Based'!G119, H121='Calc|Fee Based'!H119),0,1) -> 0
A122: 111 | B122: ='Calc|Fee Based'!B120 ->  | C122: ='Calc|Fee Based'!C120 ->  | D122: ='Calc|Fee Based'!D120 ->  | E122: ='Calc|Fee Based'!E120 ->  | F122: ='Calc|Fee Based'!F120 ->  | G122: ='Calc|Fee Based'!G120 ->  | H122: ='Calc|Fee Based'!H120 -> 0 | I122: =IF(AND(B122='Calc|Fee Based'!B120,C122='Calc|Fee Based'!C120,D122='Calc|Fee Based'!D120,E122='Calc|Fee Based'!E120, F122='Calc|Fee Based'!F120,G122='Calc|Fee Based'!G120, H122='Calc|Fee Based'!H120),0,1) -> 0
A123: 112 | B123: ='Calc|Fee Based'!B121 ->  | C123: ='Calc|Fee Based'!C121 ->  | D123: ='Calc|Fee Based'!D121 ->  | E123: ='Calc|Fee Based'!E121 ->  | F123: ='Calc|Fee Based'!F121 ->  | G123: ='Calc|Fee Based'!G121 ->  | H123: ='Calc|Fee Based'!H121 -> 0 | I123: =IF(AND(B123='Calc|Fee Based'!B121,C123='Calc|Fee Based'!C121,D123='Calc|Fee Based'!D121,E123='Calc|Fee Based'!E121, F123='Calc|Fee Based'!F121,G123='Calc|Fee Based'!G121, H123='Calc|Fee Based'!H121),0,1) -> 0
A124: 113 | B124: ='Calc|Fee Based'!B122 ->  | C124: ='Calc|Fee Based'!C122 ->  | D124: ='Calc|Fee Based'!D122 ->  | E124: ='Calc|Fee Based'!E122 ->  | F124: ='Calc|Fee Based'!F122 ->  | G124: ='Calc|Fee Based'!G122 ->  | H124: ='Calc|Fee Based'!H122 -> 0 | I124: =IF(AND(B124='Calc|Fee Based'!B122,C124='Calc|Fee Based'!C122,D124='Calc|Fee Based'!D122,E124='Calc|Fee Based'!E122, F124='Calc|Fee Based'!F122,G124='Calc|Fee Based'!G122, H124='Calc|Fee Based'!H122),0,1) -> 0
A125: 114 | B125: ='Calc|Fee Based'!B123 ->  | C125: ='Calc|Fee Based'!C123 ->  | D125: ='Calc|Fee Based'!D123 ->  | E125: ='Calc|Fee Based'!E123 ->  | F125: ='Calc|Fee Based'!F123 ->  | G125: ='Calc|Fee Based'!G123 ->  | H125: ='Calc|Fee Based'!H123 -> 0 | I125: =IF(AND(B125='Calc|Fee Based'!B123,C125='Calc|Fee Based'!C123,D125='Calc|Fee Based'!D123,E125='Calc|Fee Based'!E123, F125='Calc|Fee Based'!F123,G125='Calc|Fee Based'!G123, H125='Calc|Fee Based'!H123),0,1) -> 0
A126: 115 | B126: ='Calc|Fee Based'!B124 ->  | C126: ='Calc|Fee Based'!C124 ->  | D126: ='Calc|Fee Based'!D124 ->  | E126: ='Calc|Fee Based'!E124 ->  | F126: ='Calc|Fee Based'!F124 ->  | G126: ='Calc|Fee Based'!G124 ->  | H126: ='Calc|Fee Based'!H124 -> 0 | I126: =IF(AND(B126='Calc|Fee Based'!B124,C126='Calc|Fee Based'!C124,D126='Calc|Fee Based'!D124,E126='Calc|Fee Based'!E124, F126='Calc|Fee Based'!F124,G126='Calc|Fee Based'!G124, H126='Calc|Fee Based'!H124),0,1) -> 0
A127: 116 | B127: ='Calc|Fee Based'!B125 ->  | C127: ='Calc|Fee Based'!C125 ->  | D127: ='Calc|Fee Based'!D125 ->  | E127: ='Calc|Fee Based'!E125 ->  | F127: ='Calc|Fee Based'!F125 ->  | G127: ='Calc|Fee Based'!G125 ->  | H127: ='Calc|Fee Based'!H125 -> 0 | I127: =IF(AND(B127='Calc|Fee Based'!B125,C127='Calc|Fee Based'!C125,D127='Calc|Fee Based'!D125,E127='Calc|Fee Based'!E125, F127='Calc|Fee Based'!F125,G127='Calc|Fee Based'!G125, H127='Calc|Fee Based'!H125),0,1) -> 0
A128: 117 | B128: ='Calc|Fee Based'!B126 ->  | C128: ='Calc|Fee Based'!C126 ->  | D128: ='Calc|Fee Based'!D126 ->  | E128: ='Calc|Fee Based'!E126 ->  | F128: ='Calc|Fee Based'!F126 ->  | G128: ='Calc|Fee Based'!G126 ->  | H128: ='Calc|Fee Based'!H126 -> 0 | I128: =IF(AND(B128='Calc|Fee Based'!B126,C128='Calc|Fee Based'!C126,D128='Calc|Fee Based'!D126,E128='Calc|Fee Based'!E126, F128='Calc|Fee Based'!F126,G128='Calc|Fee Based'!G126, H128='Calc|Fee Based'!H126),0,1) -> 0
A129: 118 | B129: ='Calc|Fee Based'!B127 ->  | C129: ='Calc|Fee Based'!C127 ->  | D129: ='Calc|Fee Based'!D127 ->  | E129: ='Calc|Fee Based'!E127 ->  | F129: ='Calc|Fee Based'!F127 ->  | G129: ='Calc|Fee Based'!G127 ->  | H129: ='Calc|Fee Based'!H127 -> 0 | I129: =IF(AND(B129='Calc|Fee Based'!B127,C129='Calc|Fee Based'!C127,D129='Calc|Fee Based'!D127,E129='Calc|Fee Based'!E127, F129='Calc|Fee Based'!F127,G129='Calc|Fee Based'!G127, H129='Calc|Fee Based'!H127),0,1) -> 0
A130: 119 | B130: ='Calc|Fee Based'!B128 ->  | C130: ='Calc|Fee Based'!C128 ->  | D130: ='Calc|Fee Based'!D128 ->  | E130: ='Calc|Fee Based'!E128 ->  | F130: ='Calc|Fee Based'!F128 ->  | G130: ='Calc|Fee Based'!G128 ->  | H130: ='Calc|Fee Based'!H128 -> 0 | I130: =IF(AND(B130='Calc|Fee Based'!B128,C130='Calc|Fee Based'!C128,D130='Calc|Fee Based'!D128,E130='Calc|Fee Based'!E128, F130='Calc|Fee Based'!F128,G130='Calc|Fee Based'!G128, H130='Calc|Fee Based'!H128),0,1) -> 0
A131: 120 | B131: ='Calc|Fee Based'!B129 ->  | C131: ='Calc|Fee Based'!C129 ->  | D131: ='Calc|Fee Based'!D129 ->  | E131: ='Calc|Fee Based'!E129 ->  | F131: ='Calc|Fee Based'!F129 ->  | G131: ='Calc|Fee Based'!G129 ->  | H131: ='Calc|Fee Based'!H129 -> 0 | I131: =IF(AND(B131='Calc|Fee Based'!B129,C131='Calc|Fee Based'!C129,D131='Calc|Fee Based'!D129,E131='Calc|Fee Based'!E129, F131='Calc|Fee Based'!F129,G131='Calc|Fee Based'!G129, H131='Calc|Fee Based'!H129),0,1) -> 0
A132: 121 | B132: ='Calc|Fee Based'!B130 ->  | C132: ='Calc|Fee Based'!C130 ->  | D132: ='Calc|Fee Based'!D130 ->  | E132: ='Calc|Fee Based'!E130 ->  | F132: ='Calc|Fee Based'!F130 ->  | G132: ='Calc|Fee Based'!G130 ->  | H132: ='Calc|Fee Based'!H130 -> 0 | I132: =IF(AND(B132='Calc|Fee Based'!B130,C132='Calc|Fee Based'!C130,D132='Calc|Fee Based'!D130,E132='Calc|Fee Based'!E130, F132='Calc|Fee Based'!F130,G132='Calc|Fee Based'!G130, H132='Calc|Fee Based'!H130),0,1) -> 0
A133: 122 | B133: ='Calc|Fee Based'!B131 ->  | C133: ='Calc|Fee Based'!C131 ->  | D133: ='Calc|Fee Based'!D131 ->  | E133: ='Calc|Fee Based'!E131 ->  | F133: ='Calc|Fee Based'!F131 ->  | G133: ='Calc|Fee Based'!G131 ->  | H133: ='Calc|Fee Based'!H131 -> 0 | I133: =IF(AND(B133='Calc|Fee Based'!B131,C133='Calc|Fee Based'!C131,D133='Calc|Fee Based'!D131,E133='Calc|Fee Based'!E131, F133='Calc|Fee Based'!F131,G133='Calc|Fee Based'!G131, H133='Calc|Fee Based'!H131),0,1) -> 0
A134: 123 | B134: ='Calc|Fee Based'!B132 ->  | C134: ='Calc|Fee Based'!C132 ->  | D134: ='Calc|Fee Based'!D132 ->  | E134: ='Calc|Fee Based'!E132 ->  | F134: ='Calc|Fee Based'!F132 ->  | G134: ='Calc|Fee Based'!G132 ->  | H134: ='Calc|Fee Based'!H132 -> 0 | I134: =IF(AND(B134='Calc|Fee Based'!B132,C134='Calc|Fee Based'!C132,D134='Calc|Fee Based'!D132,E134='Calc|Fee Based'!E132, F134='Calc|Fee Based'!F132,G134='Calc|Fee Based'!G132, H134='Calc|Fee Based'!H132),0,1) -> 0
A135: 124 | B135: ='Calc|Fee Based'!B133 ->  | C135: ='Calc|Fee Based'!C133 ->  | D135: ='Calc|Fee Based'!D133 ->  | E135: ='Calc|Fee Based'!E133 ->  | F135: ='Calc|Fee Based'!F133 ->  | G135: ='Calc|Fee Based'!G133 ->  | H135: ='Calc|Fee Based'!H133 -> 0 | I135: =IF(AND(B135='Calc|Fee Based'!B133,C135='Calc|Fee Based'!C133,D135='Calc|Fee Based'!D133,E135='Calc|Fee Based'!E133, F135='Calc|Fee Based'!F133,G135='Calc|Fee Based'!G133, H135='Calc|Fee Based'!H133),0,1) -> 0
A136: 125 | B136: ='Calc|Fee Based'!B134 ->  | C136: ='Calc|Fee Based'!C134 ->  | D136: ='Calc|Fee Based'!D134 ->  | E136: ='Calc|Fee Based'!E134 ->  | F136: ='Calc|Fee Based'!F134 ->  | G136: ='Calc|Fee Based'!G134 ->  | H136: ='Calc|Fee Based'!H134 -> 0 | I136: =IF(AND(B136='Calc|Fee Based'!B134,C136='Calc|Fee Based'!C134,D136='Calc|Fee Based'!D134,E136='Calc|Fee Based'!E134, F136='Calc|Fee Based'!F134,G136='Calc|Fee Based'!G134, H136='Calc|Fee Based'!H134),0,1) -> 0
A137: 126 | B137: ='Calc|Fee Based'!B135 ->  | C137: ='Calc|Fee Based'!C135 ->  | D137: ='Calc|Fee Based'!D135 ->  | E137: ='Calc|Fee Based'!E135 ->  | F137: ='Calc|Fee Based'!F135 ->  | G137: ='Calc|Fee Based'!G135 ->  | H137: ='Calc|Fee Based'!H135 -> 0 | I137: =IF(AND(B137='Calc|Fee Based'!B135,C137='Calc|Fee Based'!C135,D137='Calc|Fee Based'!D135,E137='Calc|Fee Based'!E135, F137='Calc|Fee Based'!F135,G137='Calc|Fee Based'!G135, H137='Calc|Fee Based'!H135),0,1) -> 0
A138: 127 | B138: ='Calc|Fee Based'!B136 ->  | C138: ='Calc|Fee Based'!C136 ->  | D138: ='Calc|Fee Based'!D136 ->  | E138: ='Calc|Fee Based'!E136 ->  | F138: ='Calc|Fee Based'!F136 ->  | G138: ='Calc|Fee Based'!G136 ->  | H138: ='Calc|Fee Based'!H136 -> 0 | I138: =IF(AND(B138='Calc|Fee Based'!B136,C138='Calc|Fee Based'!C136,D138='Calc|Fee Based'!D136,E138='Calc|Fee Based'!E136, F138='Calc|Fee Based'!F136,G138='Calc|Fee Based'!G136, H138='Calc|Fee Based'!H136),0,1) -> 0
A139: 128 | B139: ='Calc|Fee Based'!B137 ->  | C139: ='Calc|Fee Based'!C137 ->  | D139: ='Calc|Fee Based'!D137 ->  | E139: ='Calc|Fee Based'!E137 ->  | F139: ='Calc|Fee Based'!F137 ->  | G139: ='Calc|Fee Based'!G137 ->  | H139: ='Calc|Fee Based'!H137 -> 0 | I139: =IF(AND(B139='Calc|Fee Based'!B137,C139='Calc|Fee Based'!C137,D139='Calc|Fee Based'!D137,E139='Calc|Fee Based'!E137, F139='Calc|Fee Based'!F137,G139='Calc|Fee Based'!G137, H139='Calc|Fee Based'!H137),0,1) -> 0
A140: 129 | B140: ='Calc|Fee Based'!B138 ->  | C140: ='Calc|Fee Based'!C138 ->  | D140: ='Calc|Fee Based'!D138 ->  | E140: ='Calc|Fee Based'!E138 ->  | F140: ='Calc|Fee Based'!F138 ->  | G140: ='Calc|Fee Based'!G138 ->  | H140: ='Calc|Fee Based'!H138 -> 0 | I140: =IF(AND(B140='Calc|Fee Based'!B138,C140='Calc|Fee Based'!C138,D140='Calc|Fee Based'!D138,E140='Calc|Fee Based'!E138, F140='Calc|Fee Based'!F138,G140='Calc|Fee Based'!G138, H140='Calc|Fee Based'!H138),0,1) -> 0
A141: 130 | B141: ='Calc|Fee Based'!B139 ->  | C141: ='Calc|Fee Based'!C139 ->  | D141: ='Calc|Fee Based'!D139 ->  | E141: ='Calc|Fee Based'!E139 ->  | F141: ='Calc|Fee Based'!F139 ->  | G141: ='Calc|Fee Based'!G139 ->  | H141: ='Calc|Fee Based'!H139 -> 0 | I141: =IF(AND(B141='Calc|Fee Based'!B139,C141='Calc|Fee Based'!C139,D141='Calc|Fee Based'!D139,E141='Calc|Fee Based'!E139, F141='Calc|Fee Based'!F139,G141='Calc|Fee Based'!G139, H141='Calc|Fee Based'!H139),0,1) -> 0
A142: 131 | B142: ='Calc|Fee Based'!B140 ->  | C142: ='Calc|Fee Based'!C140 ->  | D142: ='Calc|Fee Based'!D140 ->  | E142: ='Calc|Fee Based'!E140 ->  | F142: ='Calc|Fee Based'!F140 ->  | G142: ='Calc|Fee Based'!G140 ->  | H142: ='Calc|Fee Based'!H140 -> 0 | I142: =IF(AND(B142='Calc|Fee Based'!B140,C142='Calc|Fee Based'!C140,D142='Calc|Fee Based'!D140,E142='Calc|Fee Based'!E140, F142='Calc|Fee Based'!F140,G142='Calc|Fee Based'!G140, H142='Calc|Fee Based'!H140),0,1) -> 0
A143: 132 | B143: ='Calc|Fee Based'!B141 ->  | C143: ='Calc|Fee Based'!C141 ->  | D143: ='Calc|Fee Based'!D141 ->  | E143: ='Calc|Fee Based'!E141 ->  | F143: ='Calc|Fee Based'!F141 ->  | G143: ='Calc|Fee Based'!G141 ->  | H143: ='Calc|Fee Based'!H141 -> 0 | I143: =IF(AND(B143='Calc|Fee Based'!B141,C143='Calc|Fee Based'!C141,D143='Calc|Fee Based'!D141,E143='Calc|Fee Based'!E141, F143='Calc|Fee Based'!F141,G143='Calc|Fee Based'!G141, H143='Calc|Fee Based'!H141),0,1) -> 0
A144: 133 | B144: ='Calc|Fee Based'!B142 ->  | C144: ='Calc|Fee Based'!C142 ->  | D144: ='Calc|Fee Based'!D142 ->  | E144: ='Calc|Fee Based'!E142 ->  | F144: ='Calc|Fee Based'!F142 ->  | G144: ='Calc|Fee Based'!G142 ->  | H144: ='Calc|Fee Based'!H142 -> 0 | I144: =IF(AND(B144='Calc|Fee Based'!B142,C144='Calc|Fee Based'!C142,D144='Calc|Fee Based'!D142,E144='Calc|Fee Based'!E142, F144='Calc|Fee Based'!F142,G144='Calc|Fee Based'!G142, H144='Calc|Fee Based'!H142),0,1) -> 0
A145: 134 | B145: ='Calc|Fee Based'!B143 ->  | C145: ='Calc|Fee Based'!C143 ->  | D145: ='Calc|Fee Based'!D143 ->  | E145: ='Calc|Fee Based'!E143 ->  | F145: ='Calc|Fee Based'!F143 ->  | G145: ='Calc|Fee Based'!G143 ->  | H145: ='Calc|Fee Based'!H143 -> 0 | I145: =IF(AND(B145='Calc|Fee Based'!B143,C145='Calc|Fee Based'!C143,D145='Calc|Fee Based'!D143,E145='Calc|Fee Based'!E143, F145='Calc|Fee Based'!F143,G145='Calc|Fee Based'!G143, H145='Calc|Fee Based'!H143),0,1) -> 0
A146: 135 | B146: ='Calc|Fee Based'!B144 ->  | C146: ='Calc|Fee Based'!C144 ->  | D146: ='Calc|Fee Based'!D144 ->  | E146: ='Calc|Fee Based'!E144 ->  | F146: ='Calc|Fee Based'!F144 ->  | G146: ='Calc|Fee Based'!G144 ->  | H146: ='Calc|Fee Based'!H144 -> 0 | I146: =IF(AND(B146='Calc|Fee Based'!B144,C146='Calc|Fee Based'!C144,D146='Calc|Fee Based'!D144,E146='Calc|Fee Based'!E144, F146='Calc|Fee Based'!F144,G146='Calc|Fee Based'!G144, H146='Calc|Fee Based'!H144),0,1) -> 0
A147: 136 | B147: ='Calc|Fee Based'!B145 ->  | C147: ='Calc|Fee Based'!C145 ->  | D147: ='Calc|Fee Based'!D145 ->  | E147: ='Calc|Fee Based'!E145 ->  | F147: ='Calc|Fee Based'!F145 ->  | G147: ='Calc|Fee Based'!G145 ->  | H147: ='Calc|Fee Based'!H145 -> 0 | I147: =IF(AND(B147='Calc|Fee Based'!B145,C147='Calc|Fee Based'!C145,D147='Calc|Fee Based'!D145,E147='Calc|Fee Based'!E145, F147='Calc|Fee Based'!F145,G147='Calc|Fee Based'!G145, H147='Calc|Fee Based'!H145),0,1) -> 0
A148: 137 | B148: ='Calc|Fee Based'!B146 ->  | C148: ='Calc|Fee Based'!C146 ->  | D148: ='Calc|Fee Based'!D146 ->  | E148: ='Calc|Fee Based'!E146 ->  | F148: ='Calc|Fee Based'!F146 ->  | G148: ='Calc|Fee Based'!G146 ->  | H148: ='Calc|Fee Based'!H146 -> 0 | I148: =IF(AND(B148='Calc|Fee Based'!B146,C148='Calc|Fee Based'!C146,D148='Calc|Fee Based'!D146,E148='Calc|Fee Based'!E146, F148='Calc|Fee Based'!F146,G148='Calc|Fee Based'!G146, H148='Calc|Fee Based'!H146),0,1) -> 0
A149: 138 | B149: ='Calc|Fee Based'!B147 ->  | C149: ='Calc|Fee Based'!C147 ->  | D149: ='Calc|Fee Based'!D147 ->  | E149: ='Calc|Fee Based'!E147 ->  | F149: ='Calc|Fee Based'!F147 ->  | G149: ='Calc|Fee Based'!G147 ->  | H149: ='Calc|Fee Based'!H147 -> 0 | I149: =IF(AND(B149='Calc|Fee Based'!B147,C149='Calc|Fee Based'!C147,D149='Calc|Fee Based'!D147,E149='Calc|Fee Based'!E147, F149='Calc|Fee Based'!F147,G149='Calc|Fee Based'!G147, H149='Calc|Fee Based'!H147),0,1) -> 0
A150: 139 | B150: ='Calc|Fee Based'!B148 ->  | C150: ='Calc|Fee Based'!C148 ->  | D150: ='Calc|Fee Based'!D148 ->  | E150: ='Calc|Fee Based'!E148 ->  | F150: ='Calc|Fee Based'!F148 ->  | G150: ='Calc|Fee Based'!G148 ->  | H150: ='Calc|Fee Based'!H148 -> 0 | I150: =IF(AND(B150='Calc|Fee Based'!B148,C150='Calc|Fee Based'!C148,D150='Calc|Fee Based'!D148,E150='Calc|Fee Based'!E148, F150='Calc|Fee Based'!F148,G150='Calc|Fee Based'!G148, H150='Calc|Fee Based'!H148),0,1) -> 0
A151: 140 | B151: ='Calc|Fee Based'!B149 ->  | C151: ='Calc|Fee Based'!C149 ->  | D151: ='Calc|Fee Based'!D149 ->  | E151: ='Calc|Fee Based'!E149 ->  | F151: ='Calc|Fee Based'!F149 ->  | G151: ='Calc|Fee Based'!G149 ->  | H151: ='Calc|Fee Based'!H149 -> 0 | I151: =IF(AND(B151='Calc|Fee Based'!B149,C151='Calc|Fee Based'!C149,D151='Calc|Fee Based'!D149,E151='Calc|Fee Based'!E149, F151='Calc|Fee Based'!F149,G151='Calc|Fee Based'!G149, H151='Calc|Fee Based'!H149),0,1) -> 0
A152: 141 | B152: ='Calc|Fee Based'!B150 ->  | C152: ='Calc|Fee Based'!C150 ->  | D152: ='Calc|Fee Based'!D150 ->  | E152: ='Calc|Fee Based'!E150 ->  | F152: ='Calc|Fee Based'!F150 ->  | G152: ='Calc|Fee Based'!G150 ->  | H152: ='Calc|Fee Based'!H150 -> 0 | I152: =IF(AND(B152='Calc|Fee Based'!B150,C152='Calc|Fee Based'!C150,D152='Calc|Fee Based'!D150,E152='Calc|Fee Based'!E150, F152='Calc|Fee Based'!F150,G152='Calc|Fee Based'!G150, H152='Calc|Fee Based'!H150),0,1) -> 0
A153: 142 | B153: ='Calc|Fee Based'!B151 ->  | C153: ='Calc|Fee Based'!C151 ->  | D153: ='Calc|Fee Based'!D151 ->  | E153: ='Calc|Fee Based'!E151 ->  | F153: ='Calc|Fee Based'!F151 ->  | G153: ='Calc|Fee Based'!G151 ->  | H153: ='Calc|Fee Based'!H151 -> 0 | I153: =IF(AND(B153='Calc|Fee Based'!B151,C153='Calc|Fee Based'!C151,D153='Calc|Fee Based'!D151,E153='Calc|Fee Based'!E151, F153='Calc|Fee Based'!F151,G153='Calc|Fee Based'!G151, H153='Calc|Fee Based'!H151),0,1) -> 0
A154: 143 | B154: ='Calc|Fee Based'!B152 ->  | C154: ='Calc|Fee Based'!C152 ->  | D154: ='Calc|Fee Based'!D152 ->  | E154: ='Calc|Fee Based'!E152 ->  | F154: ='Calc|Fee Based'!F152 ->  | G154: ='Calc|Fee Based'!G152 ->  | H154: ='Calc|Fee Based'!H152 -> 0 | I154: =IF(AND(B154='Calc|Fee Based'!B152,C154='Calc|Fee Based'!C152,D154='Calc|Fee Based'!D152,E154='Calc|Fee Based'!E152, F154='Calc|Fee Based'!F152,G154='Calc|Fee Based'!G152, H154='Calc|Fee Based'!H152),0,1) -> 0
A155: 144 | B155: ='Calc|Fee Based'!B153 ->  | C155: ='Calc|Fee Based'!C153 ->  | D155: ='Calc|Fee Based'!D153 ->  | E155: ='Calc|Fee Based'!E153 ->  | F155: ='Calc|Fee Based'!F153 ->  | G155: ='Calc|Fee Based'!G153 ->  | H155: ='Calc|Fee Based'!H153 -> 0 | I155: =IF(AND(B155='Calc|Fee Based'!B153,C155='Calc|Fee Based'!C153,D155='Calc|Fee Based'!D153,E155='Calc|Fee Based'!E153, F155='Calc|Fee Based'!F153,G155='Calc|Fee Based'!G153, H155='Calc|Fee Based'!H153),0,1) -> 0
A156: 145 | B156: ='Calc|Fee Based'!B154 ->  | C156: ='Calc|Fee Based'!C154 ->  | D156: ='Calc|Fee Based'!D154 ->  | E156: ='Calc|Fee Based'!E154 ->  | F156: ='Calc|Fee Based'!F154 ->  | G156: ='Calc|Fee Based'!G154 ->  | H156: ='Calc|Fee Based'!H154 -> 0 | I156: =IF(AND(B156='Calc|Fee Based'!B154,C156='Calc|Fee Based'!C154,D156='Calc|Fee Based'!D154,E156='Calc|Fee Based'!E154, F156='Calc|Fee Based'!F154,G156='Calc|Fee Based'!G154, H156='Calc|Fee Based'!H154),0,1) -> 0
A157: 146 | B157: ='Calc|Fee Based'!B155 ->  | C157: ='Calc|Fee Based'!C155 ->  | D157: ='Calc|Fee Based'!D155 ->  | E157: ='Calc|Fee Based'!E155 ->  | F157: ='Calc|Fee Based'!F155 ->  | G157: ='Calc|Fee Based'!G155 ->  | H157: ='Calc|Fee Based'!H155 -> 0 | I157: =IF(AND(B157='Calc|Fee Based'!B155,C157='Calc|Fee Based'!C155,D157='Calc|Fee Based'!D155,E157='Calc|Fee Based'!E155, F157='Calc|Fee Based'!F155,G157='Calc|Fee Based'!G155, H157='Calc|Fee Based'!H155),0,1) -> 0
A158: 147 | B158: ='Calc|Fee Based'!B156 ->  | C158: ='Calc|Fee Based'!C156 ->  | D158: ='Calc|Fee Based'!D156 ->  | E158: ='Calc|Fee Based'!E156 ->  | F158: ='Calc|Fee Based'!F156 ->  | G158: ='Calc|Fee Based'!G156 ->  | H158: ='Calc|Fee Based'!H156 -> 0 | I158: =IF(AND(B158='Calc|Fee Based'!B156,C158='Calc|Fee Based'!C156,D158='Calc|Fee Based'!D156,E158='Calc|Fee Based'!E156, F158='Calc|Fee Based'!F156,G158='Calc|Fee Based'!G156, H158='Calc|Fee Based'!H156),0,1) -> 0
A159: 148 | B159: ='Calc|Fee Based'!B157 ->  | C159: ='Calc|Fee Based'!C157 ->  | D159: ='Calc|Fee Based'!D157 ->  | E159: ='Calc|Fee Based'!E157 ->  | F159: ='Calc|Fee Based'!F157 ->  | G159: ='Calc|Fee Based'!G157 ->  | H159: ='Calc|Fee Based'!H157 -> 0 | I159: =IF(AND(B159='Calc|Fee Based'!B157,C159='Calc|Fee Based'!C157,D159='Calc|Fee Based'!D157,E159='Calc|Fee Based'!E157, F159='Calc|Fee Based'!F157,G159='Calc|Fee Based'!G157, H159='Calc|Fee Based'!H157),0,1) -> 0
A160: 149 | B160: ='Calc|Fee Based'!B158 ->  | C160: ='Calc|Fee Based'!C158 ->  | D160: ='Calc|Fee Based'!D158 ->  | E160: ='Calc|Fee Based'!E158 ->  | F160: ='Calc|Fee Based'!F158 ->  | G160: ='Calc|Fee Based'!G158 ->  | H160: ='Calc|Fee Based'!H158 -> 0 | I160: =IF(AND(B160='Calc|Fee Based'!B158,C160='Calc|Fee Based'!C158,D160='Calc|Fee Based'!D158,E160='Calc|Fee Based'!E158, F160='Calc|Fee Based'!F158,G160='Calc|Fee Based'!G158, H160='Calc|Fee Based'!H158),0,1) -> 0
A161: 150 | B161: ='Calc|Fee Based'!B159 ->  | C161: ='Calc|Fee Based'!C159 ->  | D161: ='Calc|Fee Based'!D159 ->  | E161: ='Calc|Fee Based'!E159 ->  | F161: ='Calc|Fee Based'!F159 ->  | G161: ='Calc|Fee Based'!G159 ->  | H161: ='Calc|Fee Based'!H159 -> 0 | I161: =IF(AND(B161='Calc|Fee Based'!B159,C161='Calc|Fee Based'!C159,D161='Calc|Fee Based'!D159,E161='Calc|Fee Based'!E159, F161='Calc|Fee Based'!F159,G161='Calc|Fee Based'!G159, H161='Calc|Fee Based'!H159),0,1) -> 0
A162: 151 | B162: ='Calc|Fee Based'!B160 ->  | C162: ='Calc|Fee Based'!C160 ->  | D162: ='Calc|Fee Based'!D160 ->  | E162: ='Calc|Fee Based'!E160 ->  | F162: ='Calc|Fee Based'!F160 ->  | G162: ='Calc|Fee Based'!G160 ->  | H162: ='Calc|Fee Based'!H160 -> 0 | I162: =IF(AND(B162='Calc|Fee Based'!B160,C162='Calc|Fee Based'!C160,D162='Calc|Fee Based'!D160,E162='Calc|Fee Based'!E160, F162='Calc|Fee Based'!F160,G162='Calc|Fee Based'!G160, H162='Calc|Fee Based'!H160),0,1) -> 0
A163: 152 | B163: ='Calc|Fee Based'!B161 ->  | C163: ='Calc|Fee Based'!C161 ->  | D163: ='Calc|Fee Based'!D161 ->  | E163: ='Calc|Fee Based'!E161 ->  | F163: ='Calc|Fee Based'!F161 ->  | G163: ='Calc|Fee Based'!G161 ->  | H163: ='Calc|Fee Based'!H161 -> 0 | I163: =IF(AND(B163='Calc|Fee Based'!B161,C163='Calc|Fee Based'!C161,D163='Calc|Fee Based'!D161,E163='Calc|Fee Based'!E161, F163='Calc|Fee Based'!F161,G163='Calc|Fee Based'!G161, H163='Calc|Fee Based'!H161),0,1) -> 0
A164: 153 | B164: ='Calc|Fee Based'!B162 ->  | C164: ='Calc|Fee Based'!C162 ->  | D164: ='Calc|Fee Based'!D162 ->  | E164: ='Calc|Fee Based'!E162 ->  | F164: ='Calc|Fee Based'!F162 ->  | G164: ='Calc|Fee Based'!G162 ->  | H164: ='Calc|Fee Based'!H162 -> 0 | I164: =IF(AND(B164='Calc|Fee Based'!B162,C164='Calc|Fee Based'!C162,D164='Calc|Fee Based'!D162,E164='Calc|Fee Based'!E162, F164='Calc|Fee Based'!F162,G164='Calc|Fee Based'!G162, H164='Calc|Fee Based'!H162),0,1) -> 0
A165: 154 | B165: ='Calc|Fee Based'!B163 ->  | C165: ='Calc|Fee Based'!C163 ->  | D165: ='Calc|Fee Based'!D163 ->  | E165: ='Calc|Fee Based'!E163 ->  | F165: ='Calc|Fee Based'!F163 ->  | G165: ='Calc|Fee Based'!G163 ->  | H165: ='Calc|Fee Based'!H163 -> 0 | I165: =IF(AND(B165='Calc|Fee Based'!B163,C165='Calc|Fee Based'!C163,D165='Calc|Fee Based'!D163,E165='Calc|Fee Based'!E163, F165='Calc|Fee Based'!F163,G165='Calc|Fee Based'!G163, H165='Calc|Fee Based'!H163),0,1) -> 0
A166: 155 | B166: ='Calc|Fee Based'!B164 ->  | C166: ='Calc|Fee Based'!C164 ->  | D166: ='Calc|Fee Based'!D164 ->  | E166: ='Calc|Fee Based'!E164 ->  | F166: ='Calc|Fee Based'!F164 ->  | G166: ='Calc|Fee Based'!G164 ->  | H166: ='Calc|Fee Based'!H164 -> 0 | I166: =IF(AND(B166='Calc|Fee Based'!B164,C166='Calc|Fee Based'!C164,D166='Calc|Fee Based'!D164,E166='Calc|Fee Based'!E164, F166='Calc|Fee Based'!F164,G166='Calc|Fee Based'!G164, H166='Calc|Fee Based'!H164),0,1) -> 0
A167: 156 | B167: ='Calc|Fee Based'!B165 ->  | C167: ='Calc|Fee Based'!C165 ->  | D167: ='Calc|Fee Based'!D165 ->  | E167: ='Calc|Fee Based'!E165 ->  | F167: ='Calc|Fee Based'!F165 ->  | G167: ='Calc|Fee Based'!G165 ->  | H167: ='Calc|Fee Based'!H165 -> 0 | I167: =IF(AND(B167='Calc|Fee Based'!B165,C167='Calc|Fee Based'!C165,D167='Calc|Fee Based'!D165,E167='Calc|Fee Based'!E165, F167='Calc|Fee Based'!F165,G167='Calc|Fee Based'!G165, H167='Calc|Fee Based'!H165),0,1) -> 0
A168: 157 | B168: ='Calc|Fee Based'!B166 ->  | C168: ='Calc|Fee Based'!C166 ->  | D168: ='Calc|Fee Based'!D166 ->  | E168: ='Calc|Fee Based'!E166 ->  | F168: ='Calc|Fee Based'!F166 ->  | G168: ='Calc|Fee Based'!G166 ->  | H168: ='Calc|Fee Based'!H166 -> 0 | I168: =IF(AND(B168='Calc|Fee Based'!B166,C168='Calc|Fee Based'!C166,D168='Calc|Fee Based'!D166,E168='Calc|Fee Based'!E166, F168='Calc|Fee Based'!F166,G168='Calc|Fee Based'!G166, H168='Calc|Fee Based'!H166),0,1) -> 0
A169: 158 | B169: ='Calc|Fee Based'!B167 ->  | C169: ='Calc|Fee Based'!C167 ->  | D169: ='Calc|Fee Based'!D167 ->  | E169: ='Calc|Fee Based'!E167 ->  | F169: ='Calc|Fee Based'!F167 ->  | G169: ='Calc|Fee Based'!G167 ->  | H169: ='Calc|Fee Based'!H167 -> 0 | I169: =IF(AND(B169='Calc|Fee Based'!B167,C169='Calc|Fee Based'!C167,D169='Calc|Fee Based'!D167,E169='Calc|Fee Based'!E167, F169='Calc|Fee Based'!F167,G169='Calc|Fee Based'!G167, H169='Calc|Fee Based'!H167),0,1) -> 0
A170: 159 | B170: ='Calc|Fee Based'!B168 ->  | C170: ='Calc|Fee Based'!C168 ->  | D170: ='Calc|Fee Based'!D168 ->  | E170: ='Calc|Fee Based'!E168 ->  | F170: ='Calc|Fee Based'!F168 ->  | G170: ='Calc|Fee Based'!G168 ->  | H170: ='Calc|Fee Based'!H168 -> 0 | I170: =IF(AND(B170='Calc|Fee Based'!B168,C170='Calc|Fee Based'!C168,D170='Calc|Fee Based'!D168,E170='Calc|Fee Based'!E168, F170='Calc|Fee Based'!F168,G170='Calc|Fee Based'!G168, H170='Calc|Fee Based'!H168),0,1) -> 0
A171: 160 | B171: ='Calc|Fee Based'!B169 ->  | C171: ='Calc|Fee Based'!C169 ->  | D171: ='Calc|Fee Based'!D169 ->  | E171: ='Calc|Fee Based'!E169 ->  | F171: ='Calc|Fee Based'!F169 ->  | G171: ='Calc|Fee Based'!G169 ->  | H171: ='Calc|Fee Based'!H169 -> 0 | I171: =IF(AND(B171='Calc|Fee Based'!B169,C171='Calc|Fee Based'!C169,D171='Calc|Fee Based'!D169,E171='Calc|Fee Based'!E169, F171='Calc|Fee Based'!F169,G171='Calc|Fee Based'!G169, H171='Calc|Fee Based'!H169),0,1) -> 0
A172: 161 | B172: ='Calc|Fee Based'!B170 ->  | C172: ='Calc|Fee Based'!C170 ->  | D172: ='Calc|Fee Based'!D170 ->  | E172: ='Calc|Fee Based'!E170 ->  | F172: ='Calc|Fee Based'!F170 ->  | G172: ='Calc|Fee Based'!G170 ->  | H172: ='Calc|Fee Based'!H170 -> 0 | I172: =IF(AND(B172='Calc|Fee Based'!B170,C172='Calc|Fee Based'!C170,D172='Calc|Fee Based'!D170,E172='Calc|Fee Based'!E170, F172='Calc|Fee Based'!F170,G172='Calc|Fee Based'!G170, H172='Calc|Fee Based'!H170),0,1) -> 0
A173: 162 | B173: ='Calc|Fee Based'!B171 ->  | C173: ='Calc|Fee Based'!C171 ->  | D173: ='Calc|Fee Based'!D171 ->  | E173: ='Calc|Fee Based'!E171 ->  | F173: ='Calc|Fee Based'!F171 ->  | G173: ='Calc|Fee Based'!G171 ->  | H173: ='Calc|Fee Based'!H171 -> 0 | I173: =IF(AND(B173='Calc|Fee Based'!B171,C173='Calc|Fee Based'!C171,D173='Calc|Fee Based'!D171,E173='Calc|Fee Based'!E171, F173='Calc|Fee Based'!F171,G173='Calc|Fee Based'!G171, H173='Calc|Fee Based'!H171),0,1) -> 0
A174: 163 | B174: ='Calc|Fee Based'!B172 ->  | C174: ='Calc|Fee Based'!C172 ->  | D174: ='Calc|Fee Based'!D172 ->  | E174: ='Calc|Fee Based'!E172 ->  | F174: ='Calc|Fee Based'!F172 ->  | G174: ='Calc|Fee Based'!G172 ->  | H174: ='Calc|Fee Based'!H172 -> 0 | I174: =IF(AND(B174='Calc|Fee Based'!B172,C174='Calc|Fee Based'!C172,D174='Calc|Fee Based'!D172,E174='Calc|Fee Based'!E172, F174='Calc|Fee Based'!F172,G174='Calc|Fee Based'!G172, H174='Calc|Fee Based'!H172),0,1) -> 0
A175: 164 | B175: ='Calc|Fee Based'!B173 ->  | C175: ='Calc|Fee Based'!C173 ->  | D175: ='Calc|Fee Based'!D173 ->  | E175: ='Calc|Fee Based'!E173 ->  | F175: ='Calc|Fee Based'!F173 ->  | G175: ='Calc|Fee Based'!G173 ->  | H175: ='Calc|Fee Based'!H173 -> 0 | I175: =IF(AND(B175='Calc|Fee Based'!B173,C175='Calc|Fee Based'!C173,D175='Calc|Fee Based'!D173,E175='Calc|Fee Based'!E173, F175='Calc|Fee Based'!F173,G175='Calc|Fee Based'!G173, H175='Calc|Fee Based'!H173),0,1) -> 0
A176: 165 | B176: ='Calc|Fee Based'!B174 ->  | C176: ='Calc|Fee Based'!C174 ->  | D176: ='Calc|Fee Based'!D174 ->  | E176: ='Calc|Fee Based'!E174 ->  | F176: ='Calc|Fee Based'!F174 ->  | G176: ='Calc|Fee Based'!G174 ->  | H176: ='Calc|Fee Based'!H174 -> 0 | I176: =IF(AND(B176='Calc|Fee Based'!B174,C176='Calc|Fee Based'!C174,D176='Calc|Fee Based'!D174,E176='Calc|Fee Based'!E174, F176='Calc|Fee Based'!F174,G176='Calc|Fee Based'!G174, H176='Calc|Fee Based'!H174),0,1) -> 0
A177: 166 | B177: ='Calc|Fee Based'!B175 ->  | C177: ='Calc|Fee Based'!C175 ->  | D177: ='Calc|Fee Based'!D175 ->  | E177: ='Calc|Fee Based'!E175 ->  | F177: ='Calc|Fee Based'!F175 ->  | G177: ='Calc|Fee Based'!G175 ->  | H177: ='Calc|Fee Based'!H175 -> 0 | I177: =IF(AND(B177='Calc|Fee Based'!B175,C177='Calc|Fee Based'!C175,D177='Calc|Fee Based'!D175,E177='Calc|Fee Based'!E175, F177='Calc|Fee Based'!F175,G177='Calc|Fee Based'!G175, H177='Calc|Fee Based'!H175),0,1) -> 0
A178: 167 | B178: ='Calc|Fee Based'!B176 ->  | C178: ='Calc|Fee Based'!C176 ->  | D178: ='Calc|Fee Based'!D176 ->  | E178: ='Calc|Fee Based'!E176 ->  | F178: ='Calc|Fee Based'!F176 ->  | G178: ='Calc|Fee Based'!G176 ->  | H178: ='Calc|Fee Based'!H176 -> 0 | I178: =IF(AND(B178='Calc|Fee Based'!B176,C178='Calc|Fee Based'!C176,D178='Calc|Fee Based'!D176,E178='Calc|Fee Based'!E176, F178='Calc|Fee Based'!F176,G178='Calc|Fee Based'!G176, H178='Calc|Fee Based'!H176),0,1) -> 0
A179: 168 | B179: ='Calc|Fee Based'!B177 ->  | C179: ='Calc|Fee Based'!C177 ->  | D179: ='Calc|Fee Based'!D177 ->  | E179: ='Calc|Fee Based'!E177 ->  | F179: ='Calc|Fee Based'!F177 ->  | G179: ='Calc|Fee Based'!G177 ->  | H179: ='Calc|Fee Based'!H177 -> 0 | I179: =IF(AND(B179='Calc|Fee Based'!B177,C179='Calc|Fee Based'!C177,D179='Calc|Fee Based'!D177,E179='Calc|Fee Based'!E177, F179='Calc|Fee Based'!F177,G179='Calc|Fee Based'!G177, H179='Calc|Fee Based'!H177),0,1) -> 0
A180: 169 | B180: ='Calc|Fee Based'!B178 ->  | C180: ='Calc|Fee Based'!C178 ->  | D180: ='Calc|Fee Based'!D178 ->  | E180: ='Calc|Fee Based'!E178 ->  | F180: ='Calc|Fee Based'!F178 ->  | G180: ='Calc|Fee Based'!G178 ->  | H180: ='Calc|Fee Based'!H178 -> 0 | I180: =IF(AND(B180='Calc|Fee Based'!B178,C180='Calc|Fee Based'!C178,D180='Calc|Fee Based'!D178,E180='Calc|Fee Based'!E178, F180='Calc|Fee Based'!F178,G180='Calc|Fee Based'!G178, H180='Calc|Fee Based'!H178),0,1) -> 0
A181: 170 | B181: ='Calc|Fee Based'!B179 ->  | C181: ='Calc|Fee Based'!C179 ->  | D181: ='Calc|Fee Based'!D179 ->  | E181: ='Calc|Fee Based'!E179 ->  | F181: ='Calc|Fee Based'!F179 ->  | G181: ='Calc|Fee Based'!G179 ->  | H181: ='Calc|Fee Based'!H179 -> 0 | I181: =IF(AND(B181='Calc|Fee Based'!B179,C181='Calc|Fee Based'!C179,D181='Calc|Fee Based'!D179,E181='Calc|Fee Based'!E179, F181='Calc|Fee Based'!F179,G181='Calc|Fee Based'!G179, H181='Calc|Fee Based'!H179),0,1) -> 0
A182: 171 | B182: ='Calc|Fee Based'!B180 ->  | C182: ='Calc|Fee Based'!C180 ->  | D182: ='Calc|Fee Based'!D180 ->  | E182: ='Calc|Fee Based'!E180 ->  | F182: ='Calc|Fee Based'!F180 ->  | G182: ='Calc|Fee Based'!G180 ->  | H182: ='Calc|Fee Based'!H180 -> 0 | I182: =IF(AND(B182='Calc|Fee Based'!B180,C182='Calc|Fee Based'!C180,D182='Calc|Fee Based'!D180,E182='Calc|Fee Based'!E180, F182='Calc|Fee Based'!F180,G182='Calc|Fee Based'!G180, H182='Calc|Fee Based'!H180),0,1) -> 0
A183: 172 | B183: ='Calc|Fee Based'!B181 ->  | C183: ='Calc|Fee Based'!C181 ->  | D183: ='Calc|Fee Based'!D181 ->  | E183: ='Calc|Fee Based'!E181 ->  | F183: ='Calc|Fee Based'!F181 ->  | G183: ='Calc|Fee Based'!G181 ->  | H183: ='Calc|Fee Based'!H181 -> 0 | I183: =IF(AND(B183='Calc|Fee Based'!B181,C183='Calc|Fee Based'!C181,D183='Calc|Fee Based'!D181,E183='Calc|Fee Based'!E181, F183='Calc|Fee Based'!F181,G183='Calc|Fee Based'!G181, H183='Calc|Fee Based'!H181),0,1) -> 0
A184: 173 | B184: ='Calc|Fee Based'!B182 ->  | C184: ='Calc|Fee Based'!C182 ->  | D184: ='Calc|Fee Based'!D182 ->  | E184: ='Calc|Fee Based'!E182 ->  | F184: ='Calc|Fee Based'!F182 ->  | G184: ='Calc|Fee Based'!G182 ->  | H184: ='Calc|Fee Based'!H182 -> 0 | I184: =IF(AND(B184='Calc|Fee Based'!B182,C184='Calc|Fee Based'!C182,D184='Calc|Fee Based'!D182,E184='Calc|Fee Based'!E182, F184='Calc|Fee Based'!F182,G184='Calc|Fee Based'!G182, H184='Calc|Fee Based'!H182),0,1) -> 0
A185: 174 | B185: ='Calc|Fee Based'!B183 ->  | C185: ='Calc|Fee Based'!C183 ->  | D185: ='Calc|Fee Based'!D183 ->  | E185: ='Calc|Fee Based'!E183 ->  | F185: ='Calc|Fee Based'!F183 ->  | G185: ='Calc|Fee Based'!G183 ->  | H185: ='Calc|Fee Based'!H183 -> 0 | I185: =IF(AND(B185='Calc|Fee Based'!B183,C185='Calc|Fee Based'!C183,D185='Calc|Fee Based'!D183,E185='Calc|Fee Based'!E183, F185='Calc|Fee Based'!F183,G185='Calc|Fee Based'!G183, H185='Calc|Fee Based'!H183),0,1) -> 0
A186: 175 | B186: ='Calc|Fee Based'!B184 ->  | C186: ='Calc|Fee Based'!C184 ->  | D186: ='Calc|Fee Based'!D184 ->  | E186: ='Calc|Fee Based'!E184 ->  | F186: ='Calc|Fee Based'!F184 ->  | G186: ='Calc|Fee Based'!G184 ->  | H186: ='Calc|Fee Based'!H184 -> 0 | I186: =IF(AND(B186='Calc|Fee Based'!B184,C186='Calc|Fee Based'!C184,D186='Calc|Fee Based'!D184,E186='Calc|Fee Based'!E184, F186='Calc|Fee Based'!F184,G186='Calc|Fee Based'!G184, H186='Calc|Fee Based'!H184),0,1) -> 0
A187: 176 | B187: ='Calc|Fee Based'!B185 ->  | C187: ='Calc|Fee Based'!C185 ->  | D187: ='Calc|Fee Based'!D185 ->  | E187: ='Calc|Fee Based'!E185 ->  | F187: ='Calc|Fee Based'!F185 ->  | G187: ='Calc|Fee Based'!G185 ->  | H187: ='Calc|Fee Based'!H185 -> 0 | I187: =IF(AND(B187='Calc|Fee Based'!B185,C187='Calc|Fee Based'!C185,D187='Calc|Fee Based'!D185,E187='Calc|Fee Based'!E185, F187='Calc|Fee Based'!F185,G187='Calc|Fee Based'!G185, H187='Calc|Fee Based'!H185),0,1) -> 0
A188: 177 | B188: ='Calc|Fee Based'!B186 ->  | C188: ='Calc|Fee Based'!C186 ->  | D188: ='Calc|Fee Based'!D186 ->  | E188: ='Calc|Fee Based'!E186 ->  | F188: ='Calc|Fee Based'!F186 ->  | G188: ='Calc|Fee Based'!G186 ->  | H188: ='Calc|Fee Based'!H186 -> 0 | I188: =IF(AND(B188='Calc|Fee Based'!B186,C188='Calc|Fee Based'!C186,D188='Calc|Fee Based'!D186,E188='Calc|Fee Based'!E186, F188='Calc|Fee Based'!F186,G188='Calc|Fee Based'!G186, H188='Calc|Fee Based'!H186),0,1) -> 0
A189: 178 | B189: ='Calc|Fee Based'!B187 ->  | C189: ='Calc|Fee Based'!C187 ->  | D189: ='Calc|Fee Based'!D187 ->  | E189: ='Calc|Fee Based'!E187 ->  | F189: ='Calc|Fee Based'!F187 ->  | G189: ='Calc|Fee Based'!G187 ->  | H189: ='Calc|Fee Based'!H187 -> 0 | I189: =IF(AND(B189='Calc|Fee Based'!B187,C189='Calc|Fee Based'!C187,D189='Calc|Fee Based'!D187,E189='Calc|Fee Based'!E187, F189='Calc|Fee Based'!F187,G189='Calc|Fee Based'!G187, H189='Calc|Fee Based'!H187),0,1) -> 0
A190: 179 | B190: ='Calc|Fee Based'!B188 ->  | C190: ='Calc|Fee Based'!C188 ->  | D190: ='Calc|Fee Based'!D188 ->  | E190: ='Calc|Fee Based'!E188 ->  | F190: ='Calc|Fee Based'!F188 ->  | G190: ='Calc|Fee Based'!G188 ->  | H190: ='Calc|Fee Based'!H188 -> 0 | I190: =IF(AND(B190='Calc|Fee Based'!B188,C190='Calc|Fee Based'!C188,D190='Calc|Fee Based'!D188,E190='Calc|Fee Based'!E188, F190='Calc|Fee Based'!F188,G190='Calc|Fee Based'!G188, H190='Calc|Fee Based'!H188),0,1) -> 0
A191: 180 | B191: ='Calc|Fee Based'!B189 ->  | C191: ='Calc|Fee Based'!C189 ->  | D191: ='Calc|Fee Based'!D189 ->  | E191: ='Calc|Fee Based'!E189 ->  | F191: ='Calc|Fee Based'!F189 ->  | G191: ='Calc|Fee Based'!G189 ->  | H191: ='Calc|Fee Based'!H189 -> 0 | I191: =IF(AND(B191='Calc|Fee Based'!B189,C191='Calc|Fee Based'!C189,D191='Calc|Fee Based'!D189,E191='Calc|Fee Based'!E189, F191='Calc|Fee Based'!F189,G191='Calc|Fee Based'!G189, H191='Calc|Fee Based'!H189),0,1) -> 0
A192: 181 | B192: ='Calc|Fee Based'!B190 ->  | C192: ='Calc|Fee Based'!C190 ->  | D192: ='Calc|Fee Based'!D190 ->  | E192: ='Calc|Fee Based'!E190 ->  | F192: ='Calc|Fee Based'!F190 ->  | G192: ='Calc|Fee Based'!G190 ->  | H192: ='Calc|Fee Based'!H190 -> 0 | I192: =IF(AND(B192='Calc|Fee Based'!B190,C192='Calc|Fee Based'!C190,D192='Calc|Fee Based'!D190,E192='Calc|Fee Based'!E190, F192='Calc|Fee Based'!F190,G192='Calc|Fee Based'!G190, H192='Calc|Fee Based'!H190),0,1) -> 0
A193: 182 | B193: ='Calc|Fee Based'!B191 ->  | C193: ='Calc|Fee Based'!C191 ->  | D193: ='Calc|Fee Based'!D191 ->  | E193: ='Calc|Fee Based'!E191 ->  | F193: ='Calc|Fee Based'!F191 ->  | G193: ='Calc|Fee Based'!G191 ->  | H193: ='Calc|Fee Based'!H191 -> 0 | I193: =IF(AND(B193='Calc|Fee Based'!B191,C193='Calc|Fee Based'!C191,D193='Calc|Fee Based'!D191,E193='Calc|Fee Based'!E191, F193='Calc|Fee Based'!F191,G193='Calc|Fee Based'!G191, H193='Calc|Fee Based'!H191),0,1) -> 0
A194: 183 | B194: ='Calc|Fee Based'!B192 ->  | C194: ='Calc|Fee Based'!C192 ->  | D194: ='Calc|Fee Based'!D192 ->  | E194: ='Calc|Fee Based'!E192 ->  | F194: ='Calc|Fee Based'!F192 ->  | G194: ='Calc|Fee Based'!G192 ->  | H194: ='Calc|Fee Based'!H192 -> 0 | I194: =IF(AND(B194='Calc|Fee Based'!B192,C194='Calc|Fee Based'!C192,D194='Calc|Fee Based'!D192,E194='Calc|Fee Based'!E192, F194='Calc|Fee Based'!F192,G194='Calc|Fee Based'!G192, H194='Calc|Fee Based'!H192),0,1) -> 0
A195: 184 | B195: ='Calc|Fee Based'!B193 ->  | C195: ='Calc|Fee Based'!C193 ->  | D195: ='Calc|Fee Based'!D193 ->  | E195: ='Calc|Fee Based'!E193 ->  | F195: ='Calc|Fee Based'!F193 ->  | G195: ='Calc|Fee Based'!G193 ->  | H195: ='Calc|Fee Based'!H193 -> 0 | I195: =IF(AND(B195='Calc|Fee Based'!B193,C195='Calc|Fee Based'!C193,D195='Calc|Fee Based'!D193,E195='Calc|Fee Based'!E193, F195='Calc|Fee Based'!F193,G195='Calc|Fee Based'!G193, H195='Calc|Fee Based'!H193),0,1) -> 0
A196: 185 | B196: ='Calc|Fee Based'!B194 ->  | C196: ='Calc|Fee Based'!C194 ->  | D196: ='Calc|Fee Based'!D194 ->  | E196: ='Calc|Fee Based'!E194 ->  | F196: ='Calc|Fee Based'!F194 ->  | G196: ='Calc|Fee Based'!G194 ->  | H196: ='Calc|Fee Based'!H194 -> 0 | I196: =IF(AND(B196='Calc|Fee Based'!B194,C196='Calc|Fee Based'!C194,D196='Calc|Fee Based'!D194,E196='Calc|Fee Based'!E194, F196='Calc|Fee Based'!F194,G196='Calc|Fee Based'!G194, H196='Calc|Fee Based'!H194),0,1) -> 0
A197: 186 | B197: ='Calc|Fee Based'!B195 ->  | C197: ='Calc|Fee Based'!C195 ->  | D197: ='Calc|Fee Based'!D195 ->  | E197: ='Calc|Fee Based'!E195 ->  | F197: ='Calc|Fee Based'!F195 ->  | G197: ='Calc|Fee Based'!G195 ->  | H197: ='Calc|Fee Based'!H195 -> 0 | I197: =IF(AND(B197='Calc|Fee Based'!B195,C197='Calc|Fee Based'!C195,D197='Calc|Fee Based'!D195,E197='Calc|Fee Based'!E195, F197='Calc|Fee Based'!F195,G197='Calc|Fee Based'!G195, H197='Calc|Fee Based'!H195),0,1) -> 0
A198: 187 | B198: ='Calc|Fee Based'!B196 ->  | C198: ='Calc|Fee Based'!C196 ->  | D198: ='Calc|Fee Based'!D196 ->  | E198: ='Calc|Fee Based'!E196 ->  | F198: ='Calc|Fee Based'!F196 ->  | G198: ='Calc|Fee Based'!G196 ->  | H198: ='Calc|Fee Based'!H196 -> 0 | I198: =IF(AND(B198='Calc|Fee Based'!B196,C198='Calc|Fee Based'!C196,D198='Calc|Fee Based'!D196,E198='Calc|Fee Based'!E196, F198='Calc|Fee Based'!F196,G198='Calc|Fee Based'!G196, H198='Calc|Fee Based'!H196),0,1) -> 0
A199: 188 | B199: ='Calc|Fee Based'!B197 ->  | C199: ='Calc|Fee Based'!C197 ->  | D199: ='Calc|Fee Based'!D197 ->  | E199: ='Calc|Fee Based'!E197 ->  | F199: ='Calc|Fee Based'!F197 ->  | G199: ='Calc|Fee Based'!G197 ->  | H199: ='Calc|Fee Based'!H197 -> 0 | I199: =IF(AND(B199='Calc|Fee Based'!B197,C199='Calc|Fee Based'!C197,D199='Calc|Fee Based'!D197,E199='Calc|Fee Based'!E197, F199='Calc|Fee Based'!F197,G199='Calc|Fee Based'!G197, H199='Calc|Fee Based'!H197),0,1) -> 0
A200: 189 | B200: ='Calc|Fee Based'!B198 ->  | C200: ='Calc|Fee Based'!C198 ->  | D200: ='Calc|Fee Based'!D198 ->  | E200: ='Calc|Fee Based'!E198 ->  | F200: ='Calc|Fee Based'!F198 ->  | G200: ='Calc|Fee Based'!G198 ->  | H200: ='Calc|Fee Based'!H198 -> 0 | I200: =IF(AND(B200='Calc|Fee Based'!B198,C200='Calc|Fee Based'!C198,D200='Calc|Fee Based'!D198,E200='Calc|Fee Based'!E198, F200='Calc|Fee Based'!F198,G200='Calc|Fee Based'!G198, H200='Calc|Fee Based'!H198),0,1) -> 0
A201: 190 | B201: ='Calc|Fee Based'!B199 ->  | C201: ='Calc|Fee Based'!C199 ->  | D201: ='Calc|Fee Based'!D199 ->  | E201: ='Calc|Fee Based'!E199 ->  | F201: ='Calc|Fee Based'!F199 ->  | G201: ='Calc|Fee Based'!G199 ->  | H201: ='Calc|Fee Based'!H199 -> 0 | I201: =IF(AND(B201='Calc|Fee Based'!B199,C201='Calc|Fee Based'!C199,D201='Calc|Fee Based'!D199,E201='Calc|Fee Based'!E199, F201='Calc|Fee Based'!F199,G201='Calc|Fee Based'!G199, H201='Calc|Fee Based'!H199),0,1) -> 0
A202: 191 | B202: ='Calc|Fee Based'!B200 ->  | C202: ='Calc|Fee Based'!C200 ->  | D202: ='Calc|Fee Based'!D200 ->  | E202: ='Calc|Fee Based'!E200 ->  | F202: ='Calc|Fee Based'!F200 ->  | G202: ='Calc|Fee Based'!G200 ->  | H202: ='Calc|Fee Based'!H200 -> 0 | I202: =IF(AND(B202='Calc|Fee Based'!B200,C202='Calc|Fee Based'!C200,D202='Calc|Fee Based'!D200,E202='Calc|Fee Based'!E200, F202='Calc|Fee Based'!F200,G202='Calc|Fee Based'!G200, H202='Calc|Fee Based'!H200),0,1) -> 0
A203: 192 | B203: ='Calc|Fee Based'!B201 ->  | C203: ='Calc|Fee Based'!C201 ->  | D203: ='Calc|Fee Based'!D201 ->  | E203: ='Calc|Fee Based'!E201 ->  | F203: ='Calc|Fee Based'!F201 ->  | G203: ='Calc|Fee Based'!G201 ->  | H203: ='Calc|Fee Based'!H201 -> 0 | I203: =IF(AND(B203='Calc|Fee Based'!B201,C203='Calc|Fee Based'!C201,D203='Calc|Fee Based'!D201,E203='Calc|Fee Based'!E201, F203='Calc|Fee Based'!F201,G203='Calc|Fee Based'!G201, H203='Calc|Fee Based'!H201),0,1) -> 0
... 308 more rows

Sheet Output|Quoted
B1: =Index!B1 -> AER ANS Forecast Model | C1: Key: | D1: Input | F1: Sheet Validation | G1: ='Model Validation'!C9 -> 0
B2: =MID(CELL("filename",A1),FIND("]",CELL("filename",A1))+1,255) -> Output|Quoted | D2: Formula
D4: =IF(D7='Input|Escalations'!J27,0,1) -> 0 | E4: =IF(E7='Input|Escalations'!K27,0,1) -> 0 | F4: =IF(F7='Input|Escalations'!L27,0,1) -> 0 | G4: =IF(G7='Input|Escalations'!M27,0,1) -> 0
B5: =IFERROR("2.1 X-factors for each year of "&'Input|Setup'!$E$11&" to "&'Input|Setup'!$E$15&" regulatory period, (per cent)","") -> 2.1 X-factors for each year of 2026-27 to 2030-31 regulatory period, (per cent)
C6: ='Output|Fee Based'!C6 -> 2026-27 | D6: ='Output|Fee Based'!D6 -> 2027-28 | E6: ='Output|Fee Based'!E6 -> 2028-29 | F6: ='Output|Fee Based'!F6 -> 2029-30 | G6: ='Output|Fee Based'!G6 -> 2030-31
D7: ='Output|Fee Based'!D7 -> -0.009550582168 | E7: ='Output|Fee Based'!E7 -> -0.0111993349 | F7: ='Output|Fee Based'!F7 -> -0.01227436192 | G7: ='Output|Fee Based'!G7 -> -0.01202541615
I9: For AER only
B10: =IFERROR("2.2 Labour rates for "&'Input|Setup'!$E$11&", ($"&'Input|Setup'!$E$8&")","") -> 2.2 Labour rates for 2026-27, ($2026-27) | I10: AER maximum rates | J10: AER decision
B11: Quoted service - Labour rates | C11: Hours | D11: Hourly rate ($) | I11: Hourly rate ($) | J11: Hourly rate ($)
A12: 1 | B12: ='Calc|Labour Rates'!B10 -> Construction Overhead Install | C12: ='Calc|Labour Rates'!C10 -> Business hours | D12: =IF('Calc|Labour Rates'!$D10="No","NA",IFERROR(LOOKUP(2, 1/('Calc|Labour Rates'!$B$10:$B$39='Output|Quoted'!$B12)/('Calc|Labour Rates'!$C$10:$C$39='Output|Quoted'!$C12),'Calc|Labour Rates'!$E$10:$E$39),0)) -> 155.1411884 | G12: =IF(OR($D12="NA",AND(B12='Calc|Labour Rates'!B10,'Output|Quoted'!C12='Calc|Labour Rates'!C10,'Output|Quoted'!D12='Calc|Labour Rates'!E10)),0,1) -> 0 | I12: 72 | J12: =MIN($I12,$D12) -> 72
A13: =IFERROR(A12+1,"") -> 2 | B13: ='Calc|Labour Rates'!B11 -> Construction Underground Install | C13: ='Calc|Labour Rates'!C11 -> Business hours | D13: =IF('Calc|Labour Rates'!$D11="No","NA",IFERROR(LOOKUP(2, 1/('Calc|Labour Rates'!$B$10:$B$39='Output|Quoted'!$B13)/('Calc|Labour Rates'!$C$10:$C$39='Output|Quoted'!$C13),'Calc|Labour Rates'!$E$10:$E$39),0)) -> 151.5219476 | G13: =IF(OR($D13="NA",AND(B13='Calc|Labour Rates'!B11,'Output|Quoted'!C13='Calc|Labour Rates'!C11,'Output|Quoted'!D13='Calc|Labour Rates'!E11)),0,1) -> 0 | I13: 150 | J13: 150
A14: =IFERROR(A13+1,"") -> 3 | B14: ='Calc|Labour Rates'!B12 -> Construction Substation Install | C14: ='Calc|Labour Rates'!C12 -> Business hours | D14: =IF('Calc|Labour Rates'!$D12="No","NA",IFERROR(LOOKUP(2, 1/('Calc|Labour Rates'!$B$10:$B$39='Output|Quoted'!$B14)/('Calc|Labour Rates'!$C$10:$C$39='Output|Quoted'!$C14),'Calc|Labour Rates'!$E$10:$E$39),0)) -> 151.5219476 | G14: =IF(OR($D14="NA",AND(B14='Calc|Labour Rates'!B12,'Output|Quoted'!C14='Calc|Labour Rates'!C12,'Output|Quoted'!D14='Calc|Labour Rates'!E12)),0,1) -> 0 | I14: 150 | J14: 150
A15: 4 | B15: ='Calc|Labour Rates'!B13 -> Electrical Tester Including Vehicle & Equipment | C15: ='Calc|Labour Rates'!C13 -> Business hours | D15: =IF('Calc|Labour Rates'!$D13="No","NA",IFERROR(LOOKUP(2, 1/('Calc|Labour Rates'!$B$10:$B$39='Output|Quoted'!$B15)/('Calc|Labour Rates'!$C$10:$C$39='Output|Quoted'!$C15),'Calc|Labour Rates'!$E$10:$E$39),0)) -> 223.199772 | G15: =IF(OR($D15="NA",AND(B15='Calc|Labour Rates'!B13,'Output|Quoted'!C15='Calc|Labour Rates'!C13,'Output|Quoted'!D15='Calc|Labour Rates'!E13)),0,1) -> 0 | I15: 205 | J15: 205
A16: 5 | B16: ='Calc|Labour Rates'!B14 -> Planner Including Vehicle | C16: ='Calc|Labour Rates'!C14 -> Business hours | D16: =IF('Calc|Labour Rates'!$D14="No","NA",IFERROR(LOOKUP(2, 1/('Calc|Labour Rates'!$B$10:$B$39='Output|Quoted'!$B16)/('Calc|Labour Rates'!$C$10:$C$39='Output|Quoted'!$C16),'Calc|Labour Rates'!$E$10:$E$39),0)) -> 208.1039132 | G16: =IF(OR($D16="NA",AND(B16='Calc|Labour Rates'!B14,'Output|Quoted'!C16='Calc|Labour Rates'!C14,'Output|Quoted'!D16='Calc|Labour Rates'!E14)),0,1) -> 0 | I16: 300 | J16: 208.1039132
A17: 6 | B17: ='Calc|Labour Rates'!B15 -> Supervisor Including Vehicle | C17: ='Calc|Labour Rates'!C15 -> Business hours | D17: =IF('Calc|Labour Rates'!$D15="No","NA",IFERROR(LOOKUP(2, 1/('Calc|Labour Rates'!$B$10:$B$39='Output|Quoted'!$B17)/('Calc|Labour Rates'!$C$10:$C$39='Output|Quoted'!$C17),'Calc|Labour Rates'!$E$10:$E$39),0)) -> 208.1039132 | G17: =IF(OR($D17="NA",AND(B17='Calc|Labour Rates'!B15,'Output|Quoted'!C17='Calc|Labour Rates'!C15,'Output|Quoted'!D17='Calc|Labour Rates'!E15)),0,1) -> 0 | I17: =I12*1.69 -> 121.68 | J17: 121.68
A18: 7 | B18: ='Calc|Labour Rates'!B16 -> Administrative Officer | C18: ='Calc|Labour Rates'!C16 -> Business hours | D18: =IF('Calc|Labour Rates'!$D16="No","NA",IFERROR(LOOKUP(2, 1/('Calc|Labour Rates'!$B$10:$B$39='Output|Quoted'!$B18)/('Calc|Labour Rates'!$C$10:$C$39='Output|Quoted'!$C18),'Calc|Labour Rates'!$E$10:$E$39),0)) -> 88.65552718 | G18: =IF(OR($D18="NA",AND(B18='Calc|Labour Rates'!B16,'Output|Quoted'!C18='Calc|Labour Rates'!C16,'Output|Quoted'!D18='Calc|Labour Rates'!E16)),0,1) -> 0 | I18: =I13*1.69 -> 253.5 | J18: 88.65552718
A19: 8 | B19: ='Calc|Labour Rates'!B17 -> Design | C19: ='Calc|Labour Rates'!C17 -> Business hours | D19: =IF('Calc|Labour Rates'!$D17="No","NA",IFERROR(LOOKUP(2, 1/('Calc|Labour Rates'!$B$10:$B$39='Output|Quoted'!$B19)/('Calc|Labour Rates'!$C$10:$C$39='Output|Quoted'!$C19),'Calc|Labour Rates'!$E$10:$E$39),0)) -> 189.3818316 | G19: =IF(OR($D19="NA",AND(B19='Calc|Labour Rates'!B17,'Output|Quoted'!C19='Calc|Labour Rates'!C17,'Output|Quoted'!D19='Calc|Labour Rates'!E17)),0,1) -> 0 | I19: =I14*1.69 -> 253.5 | J19: 189.3818316
A20: 9 | B20: ='Calc|Labour Rates'!B18 -> Drafting | C20: ='Calc|Labour Rates'!C18 -> Business hours | D20: =IF('Calc|Labour Rates'!$D18="No","NA",IFERROR(LOOKUP(2, 1/('Calc|Labour Rates'!$B$10:$B$39='Output|Quoted'!$B20)/('Calc|Labour Rates'!$C$10:$C$39='Output|Quoted'!$C20),'Calc|Labour Rates'!$E$10:$E$39),0)) -> 145.5314057 | G20: =IF(OR($D20="NA",AND(B20='Calc|Labour Rates'!B18,'Output|Quoted'!C20='Calc|Labour Rates'!C18,'Output|Quoted'!D20='Calc|Labour Rates'!E18)),0,1) -> 0 | I20: =I15*1.69 -> 346.45 | J20: 145.5314057
A21: 10 | B21: ='Calc|Labour Rates'!B19 -> Survey | C21: ='Calc|Labour Rates'!C19 -> Business hours | D21: =IF('Calc|Labour Rates'!$D19="No","NA",IFERROR(LOOKUP(2, 1/('Calc|Labour Rates'!$B$10:$B$39='Output|Quoted'!$B21)/('Calc|Labour Rates'!$C$10:$C$39='Output|Quoted'!$C21),'Calc|Labour Rates'!$E$10:$E$39),0)) -> 171.4205315 | G21: =IF(OR($D21="NA",AND(B21='Calc|Labour Rates'!B19,'Output|Quoted'!C21='Calc|Labour Rates'!C19,'Output|Quoted'!D21='Calc|Labour Rates'!E19)),0,1) -> 0 | I21: =I16*1.69 -> 507 | J21: 171.4205315
A22: 11 | B22: ='Calc|Labour Rates'!B20 -> Tech Officer | C22: ='Calc|Labour Rates'!C20 -> Business hours | D22: =IF('Calc|Labour Rates'!$D20="No","NA",IFERROR(LOOKUP(2, 1/('Calc|Labour Rates'!$B$10:$B$39='Output|Quoted'!$B22)/('Calc|Labour Rates'!$C$10:$C$39='Output|Quoted'!$C22),'Calc|Labour Rates'!$E$10:$E$39),0)) -> 171.4205315 | G22: =IF(OR($D22="NA",AND(B22='Calc|Labour Rates'!B20,'Output|Quoted'!C22='Calc|Labour Rates'!C20,'Output|Quoted'!D22='Calc|Labour Rates'!E20)),0,1) -> 0 | J22: 171.4205315
A23: 12 | B23: ='Calc|Labour Rates'!B21 -> Line Inspector | C23: ='Calc|Labour Rates'!C21 -> Business hours | D23: =IF('Calc|Labour Rates'!$D21="No","NA",IFERROR(LOOKUP(2, 1/('Calc|Labour Rates'!$B$10:$B$39='Output|Quoted'!$B23)/('Calc|Labour Rates'!$C$10:$C$39='Output|Quoted'!$C23),'Calc|Labour Rates'!$E$10:$E$39),0)) -> 165.2301539 | G23: =IF(OR($D23="NA",AND(B23='Calc|Labour Rates'!B21,'Output|Quoted'!C23='Calc|Labour Rates'!C21,'Output|Quoted'!D23='Calc|Labour Rates'!E21)),0,1) -> 0 | J23: 165.2301539
A24: 13 | B24: ='Calc|Labour Rates'!B22 -> Contract Supervision | C24: ='Calc|Labour Rates'!C22 -> Business hours | D24: =IF('Calc|Labour Rates'!$D22="No","NA",IFERROR(LOOKUP(2, 1/('Calc|Labour Rates'!$B$10:$B$39='Output|Quoted'!$B24)/('Calc|Labour Rates'!$C$10:$C$39='Output|Quoted'!$C24),'Calc|Labour Rates'!$E$10:$E$39),0)) -> 171.4205315 | G24: =IF(OR($D24="NA",AND(B24='Calc|Labour Rates'!B22,'Output|Quoted'!C24='Calc|Labour Rates'!C22,'Output|Quoted'!D24='Calc|Labour Rates'!E22)),0,1) -> 0 | J24: 171.4205315
A25: 14 | B25: ='Calc|Labour Rates'!B23 -> Protection Engineer | C25: ='Calc|Labour Rates'!C23 -> Business hours | D25: =IF('Calc|Labour Rates'!$D23="No","NA",IFERROR(LOOKUP(2, 1/('Calc|Labour Rates'!$B$10:$B$39='Output|Quoted'!$B25)/('Calc|Labour Rates'!$C$10:$C$39='Output|Quoted'!$C25),'Calc|Labour Rates'!$E$10:$E$39),0)) -> 189.3818316 | G25: =IF(OR($D25="NA",AND(B25='Calc|Labour Rates'!B23,'Output|Quoted'!C25='Calc|Labour Rates'!C23,'Output|Quoted'!D25='Calc|Labour Rates'!E23)),0,1) -> 0 | J25: 189.3818316
A26: 15 | B26: ='Calc|Labour Rates'!B24 -> Maintenance Planner Including Vehicle | C26: ='Calc|Labour Rates'!C24 -> Business hours | D26: =IF('Calc|Labour Rates'!$D24="No","NA",IFERROR(LOOKUP(2, 1/('Calc|Labour Rates'!$B$10:$B$39='Output|Quoted'!$B26)/('Calc|Labour Rates'!$C$10:$C$39='Output|Quoted'!$C26),'Calc|Labour Rates'!$E$10:$E$39),0)) -> 217.7524107 | G26: =IF(OR($D26="NA",AND(B26='Calc|Labour Rates'!B24,'Output|Quoted'!C26='Calc|Labour Rates'!C24,'Output|Quoted'!D26='Calc|Labour Rates'!E24)),0,1) -> 0 | J26: 217.7524107
A27: 16 | B27: ='Calc|Labour Rates'!B25 -> Senior Engineer | C27: ='Calc|Labour Rates'!C25 -> Business hours | D27: =IF('Calc|Labour Rates'!$D25="No","NA",IFERROR(LOOKUP(2, 1/('Calc|Labour Rates'!$B$10:$B$39='Output|Quoted'!$B27)/('Calc|Labour Rates'!$C$10:$C$39='Output|Quoted'!$C27),'Calc|Labour Rates'!$E$10:$E$39),0)) -> 272.9864485 | G27: =IF(OR($D27="NA",AND(B27='Calc|Labour Rates'!B25,'Output|Quoted'!C27='Calc|Labour Rates'!C25,'Output|Quoted'!D27='Calc|Labour Rates'!E25)),0,1) -> 0 | J27: 272.9864485
A28: 17 | B28: ='Calc|Labour Rates'!B26 -> Construction Overhead Install | C28: ='Calc|Labour Rates'!C26 -> After hours | D28: =IF('Calc|Labour Rates'!$D26="No","NA",IFERROR(LOOKUP(2, 1/('Calc|Labour Rates'!$B$10:$B$39='Output|Quoted'!$B28)/('Calc|Labour Rates'!$C$10:$C$39='Output|Quoted'!$C28),'Calc|Labour Rates'!$E$10:$E$39),0)) -> 271.4970797 | G28: =IF(OR($D28="NA",AND(B28='Calc|Labour Rates'!B26,'Output|Quoted'!C28='Calc|Labour Rates'!C26,'Output|Quoted'!D28='Calc|Labour Rates'!E26)),0,1) -> 0 | J28: 271.4970797
A29: 18 | B29: ='Calc|Labour Rates'!B27 -> Construction Underground Install | C29: ='Calc|Labour Rates'!C27 -> After hours | D29: =IF('Calc|Labour Rates'!$D27="No","NA",IFERROR(LOOKUP(2, 1/('Calc|Labour Rates'!$B$10:$B$39='Output|Quoted'!$B29)/('Calc|Labour Rates'!$C$10:$C$39='Output|Quoted'!$C29),'Calc|Labour Rates'!$E$10:$E$39),0)) -> 265.1634082 | G29: =IF(OR($D29="NA",AND(B29='Calc|Labour Rates'!B27,'Output|Quoted'!C29='Calc|Labour Rates'!C27,'Output|Quoted'!D29='Calc|Labour Rates'!E27)),0,1) -> 0 | J29: 265.1634082
A30: 19 | B30: ='Calc|Labour Rates'!B28 -> Construction Substation Install | C30: ='Calc|Labour Rates'!C28 -> After hours | D30: =IF('Calc|Labour Rates'!$D28="No","NA",IFERROR(LOOKUP(2, 1/('Calc|Labour Rates'!$B$10:$B$39='Output|Quoted'!$B30)/('Calc|Labour Rates'!$C$10:$C$39='Output|Quoted'!$C30),'Calc|Labour Rates'!$E$10:$E$39),0)) -> 265.1634082 | G30: =IF(OR($D30="NA",AND(B30='Calc|Labour Rates'!B28,'Output|Quoted'!C30='Calc|Labour Rates'!C28,'Output|Quoted'!D30='Calc|Labour Rates'!E28)),0,1) -> 0 | J30: 265.1634082
A31: 20 | B31: ='Calc|Labour Rates'!B29 -> Electrical Tester Including Vehicle & Equipment | C31: ='Calc|Labour Rates'!C29 -> After hours | D31: =IF('Calc|Labour Rates'!$D29="No","NA",IFERROR(LOOKUP(2, 1/('Calc|Labour Rates'!$B$10:$B$39='Output|Quoted'!$B31)/('Calc|Labour Rates'!$C$10:$C$39='Output|Quoted'!$C31),'Calc|Labour Rates'!$E$10:$E$39),0)) -> 283.5596288 | G31: =IF(OR($D31="NA",AND(B31='Calc|Labour Rates'!B29,'Output|Quoted'!C31='Calc|Labour Rates'!C29,'Output|Quoted'!D31='Calc|Labour Rates'!E29)),0,1) -> 0 | J31: 283.5596288
A32: 21 | B32: ='Calc|Labour Rates'!B30 -> Administrative Officer | C32: ='Calc|Labour Rates'!C30 -> After hours | D32: =IF('Calc|Labour Rates'!$D30="No","NA",IFERROR(LOOKUP(2, 1/('Calc|Labour Rates'!$B$10:$B$39='Output|Quoted'!$B32)/('Calc|Labour Rates'!$C$10:$C$39='Output|Quoted'!$C32),'Calc|Labour Rates'!$E$10:$E$39),0)) -> 155.1471726 | G32: =IF(OR($D32="NA",AND(B32='Calc|Labour Rates'!B30,'Output|Quoted'!C32='Calc|Labour Rates'!C30,'Output|Quoted'!D32='Calc|Labour Rates'!E30)),0,1) -> 0 | J32: 155.1471726
A33: 22 | B33: ='Calc|Labour Rates'!B31 -> Design | C33: ='Calc|Labour Rates'!C31 -> After hours | D33: =IF('Calc|Labour Rates'!$D31="No","NA",IFERROR(LOOKUP(2, 1/('Calc|Labour Rates'!$B$10:$B$39='Output|Quoted'!$B33)/('Calc|Labour Rates'!$C$10:$C$39='Output|Quoted'!$C33),'Calc|Labour Rates'!$E$10:$E$39),0)) -> 331.4182054 | G33: =IF(OR($D33="NA",AND(B33='Calc|Labour Rates'!B31,'Output|Quoted'!C33='Calc|Labour Rates'!C31,'Output|Quoted'!D33='Calc|Labour Rates'!E31)),0,1) -> 0 | J33: 331.4182054
A34: 23 | B34: ='Calc|Labour Rates'!B32 -> Drafting | C34: ='Calc|Labour Rates'!C32 -> After hours | D34: =IF('Calc|Labour Rates'!$D32="No","NA",IFERROR(LOOKUP(2, 1/('Calc|Labour Rates'!$B$10:$B$39='Output|Quoted'!$B34)/('Calc|Labour Rates'!$C$10:$C$39='Output|Quoted'!$C34),'Calc|Labour Rates'!$E$10:$E$39),0)) -> 254.67996 | G34: =IF(OR($D34="NA",AND(B34='Calc|Labour Rates'!B32,'Output|Quoted'!C34='Calc|Labour Rates'!C32,'Output|Quoted'!D34='Calc|Labour Rates'!E32)),0,1) -> 0 | J34: 254.67996
A35: 24 | B35: ='Calc|Labour Rates'!B33 -> Survey | C35: ='Calc|Labour Rates'!C33 -> After hours | D35: =IF('Calc|Labour Rates'!$D33="No","NA",IFERROR(LOOKUP(2, 1/('Calc|Labour Rates'!$B$10:$B$39='Output|Quoted'!$B35)/('Calc|Labour Rates'!$C$10:$C$39='Output|Quoted'!$C35),'Calc|Labour Rates'!$E$10:$E$39),0)) -> 299.9859301 | G35: =IF(OR($D35="NA",AND(B35='Calc|Labour Rates'!B33,'Output|Quoted'!C35='Calc|Labour Rates'!C33,'Output|Quoted'!D35='Calc|Labour Rates'!E33)),0,1) -> 0 | J35: 299.9859301
A36: 25 | B36: ='Calc|Labour Rates'!B34 -> Tech Officer | C36: ='Calc|Labour Rates'!C34 -> After hours | D36: =IF('Calc|Labour Rates'!$D34="No","NA",IFERROR(LOOKUP(2, 1/('Calc|Labour Rates'!$B$10:$B$39='Output|Quoted'!$B36)/('Calc|Labour Rates'!$C$10:$C$39='Output|Quoted'!$C36),'Calc|Labour Rates'!$E$10:$E$39),0)) -> 299.9859301 | G36: =IF(OR($D36="NA",AND(B36='Calc|Labour Rates'!B34,'Output|Quoted'!C36='Calc|Labour Rates'!C34,'Output|Quoted'!D36='Calc|Labour Rates'!E34)),0,1) -> 0 | J36: 299.9859301
A37: 26 | B37: ='Calc|Labour Rates'!B35 -> Line Inspector | C37: ='Calc|Labour Rates'!C35 -> After hours | D37: =IF('Calc|Labour Rates'!$D35="No","NA",IFERROR(LOOKUP(2, 1/('Calc|Labour Rates'!$B$10:$B$39='Output|Quoted'!$B37)/('Calc|Labour Rates'!$C$10:$C$39='Output|Quoted'!$C37),'Calc|Labour Rates'!$E$10:$E$39),0)) -> 289.1527692 | G37: =IF(OR($D37="NA",AND(B37='Calc|Labour Rates'!B35,'Output|Quoted'!C37='Calc|Labour Rates'!C35,'Output|Quoted'!D37='Calc|Labour Rates'!E35)),0,1) -> 0 | J37: 289.1527692
A38: 27 | B38: ='Calc|Labour Rates'!B36 -> Contract Supervision | C38: ='Calc|Labour Rates'!C36 -> After hours | D38: =IF('Calc|Labour Rates'!$D36="No","NA",IFERROR(LOOKUP(2, 1/('Calc|Labour Rates'!$B$10:$B$39='Output|Quoted'!$B38)/('Calc|Labour Rates'!$C$10:$C$39='Output|Quoted'!$C38),'Calc|Labour Rates'!$E$10:$E$39),0)) -> 299.9859301 | G38: =IF(OR($D38="NA",AND(B38='Calc|Labour Rates'!B36,'Output|Quoted'!C38='Calc|Labour Rates'!C36,'Output|Quoted'!D38='Calc|Labour Rates'!E36)),0,1) -> 0 | J38: 299.9859301
A39: 28 | B39: ='Calc|Labour Rates'!B37 -> Protection Engineer | C39: ='Calc|Labour Rates'!C37 -> After hours | D39: =IF('Calc|Labour Rates'!$D37="No","NA",IFERROR(LOOKUP(2, 1/('Calc|Labour Rates'!$B$10:$B$39='Output|Quoted'!$B39)/('Calc|Labour Rates'!$C$10:$C$39='Output|Quoted'!$C39),'Calc|Labour Rates'!$E$10:$E$39),0)) -> 331.4182054 | G39: =IF(OR($D39="NA",AND(B39='Calc|Labour Rates'!B37,'Output|Quoted'!C39='Calc|Labour Rates'!C37,'Output|Quoted'!D39='Calc|Labour Rates'!E37)),0,1) -> 0 | J39: 331.4182054
A40: 29 | B40: ='Calc|Labour Rates'!B38 -> Maintenance Planner Including Vehicle | C40: ='Calc|Labour Rates'!C38 -> After hours | D40: =IF('Calc|Labour Rates'!$D38="No","NA",IFERROR(LOOKUP(2, 1/('Calc|Labour Rates'!$B$10:$B$39='Output|Quoted'!$B40)/('Calc|Labour Rates'!$C$10:$C$39='Output|Quoted'!$C40),'Calc|Labour Rates'!$E$10:$E$39),0)) -> 299.9859301 | G40: =IF(OR($D40="NA",AND(B40='Calc|Labour Rates'!B38,'Output|Quoted'!C40='Calc|Labour Rates'!C38,'Output|Quoted'!D40='Calc|Labour Rates'!E38)),0,1) -> 0 | J40: 299.9859301
A41: 30 | B41: ='Calc|Labour Rates'!B39 -> Senior Engineer | C41: ='Calc|Labour Rates'!C39 -> After hours | D41: =IF('Calc|Labour Rates'!$D39="No","NA",IFERROR(LOOKUP(2, 1/('Calc|Labour Rates'!$B$10:$B$39='Output|Quoted'!$B41)/('Calc|Labour Rates'!$C$10:$C$39='Output|Quoted'!$C41),'Calc|Labour Rates'!$E$10:$E$39),0)) -> 477.7262848 | G41: =IF(OR($D41="NA",AND(B41='Calc|Labour Rates'!B39,'Output|Quoted'!C41='Calc|Labour Rates'!C39,'Output|Quoted'!D41='Calc|Labour Rates'!E39)),0,1) -> 0 | J41: 477.7262848
B44: =IFERROR("2.3 List of quoted services for "&'Input|Setup'!$E$11&" to "&'Input|Setup'!$E$15&" regulatory period","") -> 2.3 List of quoted services for 2026-27 to 2030-31 regulatory period
A46: 1 | B46: ='Input|Labour Rates'!B44 -> Access permits, oversight and facilitation | G46: =IF(B46='Input|Labour Rates'!B44,0,1) -> 0
A47: =IFERROR(A46+1,"") -> 2 | B47: ='Input|Labour Rates'!B45 -> Notices of arrangement and completion notices | G47: =IF(B47='Input|Labour Rates'!B45,0,1) -> 0
A48: =IFERROR(A47+1,"") -> 3 | B48: ='Input|Labour Rates'!B46 -> Network related property services | G48: =IF(B48='Input|Labour Rates'!B46,0,1) -> 0
A49: 4 | B49: ='Input|Labour Rates'!B47 -> Network safety services | G49: =IF(B49='Input|Labour Rates'!B47,0,1) -> 0
A50: 5 | B50: ='Input|Labour Rates'!B48 -> Customer requested network outage or rescheduling of a planned interruption | G50: =IF(B50='Input|Labour Rates'!B48,0,1) -> 0
A51: 6 | B51: ='Input|Labour Rates'!B49 -> Fault response (not DNSP fault) | G51: =IF(B51='Input|Labour Rates'!B49,0,1) -> 0
A52: 7 | B52: ='Input|Labour Rates'!B50 -> Inspection and auditing services | G52: =IF(B52='Input|Labour Rates'!B50,0,1) -> 0
A53: 8 | B53: ='Input|Labour Rates'!B51 -> Provision of non-basic electricity network data | G53: =IF(B53='Input|Labour Rates'!B51,0,1) -> 0
A54: 9 | B54: ='Input|Labour Rates'!B52 -> Third party funded network alterations or other improvements | G54: =IF(B54='Input|Labour Rates'!B52,0,1) -> 0
A55: 10 | B55: ='Input|Labour Rates'!B53 -> Community network upgrades | G55: =IF(B55='Input|Labour Rates'!B53,0,1) -> 0
A56: 11 | B56: ='Input|Labour Rates'!B54 -> Planned supply interruption – retailer requested | G56: =IF(B56='Input|Labour Rates'!B54,0,1) -> 0
A57: 12 | B57: ='Input|Labour Rates'!B55 -> Embedded networks | G57: =IF(B57='Input|Labour Rates'!B55,0,1) -> 0
A58: 13 | B58: ='Input|Labour Rates'!B56 -> Basic connection services | G58: =IF(B58='Input|Labour Rates'!B56,0,1) -> 0
A59: 14 | B59: ='Input|Labour Rates'!B57 -> Enhanced connection services | G59: =IF(B59='Input|Labour Rates'!B57,0,1) -> 0
A60: 15 | B60: ='Input|Labour Rates'!B58 -> Connection application and management services | G60: =IF(B60='Input|Labour Rates'!B58,0,1) -> 0
A61: 16 | B61: ='Input|Labour Rates'!B59 -> Public lighting | G61: =IF(B61='Input|Labour Rates'!B59,0,1) -> 0
A62: 17 | B62: ='Input|Labour Rates'!B60 -> 0 | G62: =IF(B62='Input|Labour Rates'!B60,0,1) -> 0
A63: 18 | B63: ='Input|Labour Rates'!B61 -> 0 | G63: =IF(B63='Input|Labour Rates'!B61,0,1) -> 0
A64: 19 | B64: ='Input|Labour Rates'!B62 -> 0 | G64: =IF(B64='Input|Labour Rates'!B62,0,1) -> 0
A65: 20 | B65: ='Input|Labour Rates'!B63 -> 0 | G65: =IF(B65='Input|Labour Rates'!B63,0,1) -> 0
A66: 21 | B66: ='Input|Labour Rates'!B64 -> 0 | G66: =IF(B66='Input|Labour Rates'!B64,0,1) -> 0
A67: 22 | B67: ='Input|Labour Rates'!B65 -> 0 | G67: =IF(B67='Input|Labour Rates'!B65,0,1) -> 0
A68: 23 | B68: ='Input|Labour Rates'!B66 -> 0 | G68: =IF(B68='Input|Labour Rates'!B66,0,1) -> 0
A69: 24 | B69: ='Input|Labour Rates'!B67 -> 0 | G69: =IF(B69='Input|Labour Rates'!B67,0,1) -> 0
A70: 25 | B70: ='Input|Labour Rates'!B68 -> 0 | G70: =IF(B70='Input|Labour Rates'!B68,0,1) -> 0
A71: 26 | B71: ='Input|Labour Rates'!B69 -> 0 | G71: =IF(B71='Input|Labour Rates'!B69,0,1) -> 0
A72: 27 | B72: ='Input|Labour Rates'!B70 -> 0 | G72: =IF(B72='Input|Labour Rates'!B70,0,1) -> 0
A73: 28 | B73: ='Input|Labour Rates'!B71 -> 0 | G73: =IF(B73='Input|Labour Rates'!B71,0,1) -> 0
A74: 29 | B74: ='Input|Labour Rates'!B72 -> 0 | G74: =IF(B74='Input|Labour Rates'!B72,0,1) -> 0
A75: 30 | B75: ='Input|Labour Rates'!B73 -> 0 | G75: =IF(B75='Input|Labour Rates'!B73,0,1) -> 0
A76: 31 | B76: ='Input|Labour Rates'!B74 -> 0 | G76: =IF(B76='Input|Labour Rates'!B74,0,1) -> 0 | H76: `
A77: 32 | B77: ='Input|Labour Rates'!B75 -> 0 | G77: =IF(B77='Input|Labour Rates'!B75,0,1) -> 0
A78: 33 | B78: ='Input|Labour Rates'!B76 -> 0 | G78: =IF(B78='Input|Labour Rates'!B76,0,1) -> 0
A79: 34 | B79: ='Input|Labour Rates'!B77 -> 0 | G79: =IF(B79='Input|Labour Rates'!B77,0,1) -> 0
A80: 35 | B80: ='Input|Labour Rates'!B78 -> 0 | G80: =IF(B80='Input|Labour Rates'!B78,0,1) -> 0
A81: 36 | B81: ='Input|Labour Rates'!B79 -> 0 | G81: =IF(B81='Input|Labour Rates'!B79,0,1) -> 0
A82: 37 | B82: ='Input|Labour Rates'!B80 -> 0 | G82: =IF(B82='Input|Labour Rates'!B80,0,1) -> 0
A83: 38 | B83: ='Input|Labour Rates'!B81 -> 0 | G83: =IF(B83='Input|Labour Rates'!B81,0,1) -> 0
A84: 39 | B84: ='Input|Labour Rates'!B82 -> 0 | G84: =IF(B84='Input|Labour Rates'!B82,0,1) -> 0
A85: 40 | B85: ='Input|Labour Rates'!B83 -> 0 | G85: =IF(B85='Input|Labour Rates'!B83,0,1) -> 0
A86: 41 | B86: ='Input|Labour Rates'!B84 -> 0 | G86: =IF(B86='Input|Labour Rates'!B84,0,1) -> 0
A87: 42 | B87: ='Input|Labour Rates'!B85 -> 0 | G87: =IF(B87='Input|Labour Rates'!B85,0,1) -> 0
A88: 43 | B88: ='Input|Labour Rates'!B86 -> 0 | G88: =IF(B88='Input|Labour Rates'!B86,0,1) -> 0
A89: 44 | B89: ='Input|Labour Rates'!B87 -> 0 | G89: =IF(B89='Input|Labour Rates'!B87,0,1) -> 0
A90: 45 | B90: ='Input|Labour Rates'!B88 -> 0 | G90: =IF(B90='Input|Labour Rates'!B88,0,1) -> 0
A91: 46 | B91: ='Input|Labour Rates'!B89 -> 0 | G91: =IF(B91='Input|Labour Rates'!B89,0,1) -> 0
A92: 47 | B92: ='Input|Labour Rates'!B90 -> 0 | G92: =IF(B92='Input|Labour Rates'!B90,0,1) -> 0
A93: 48 | B93: ='Input|Labour Rates'!B91 -> 0 | G93: =IF(B93='Input|Labour Rates'!B91,0,1) -> 0
A94: 49 | B94: ='Input|Labour Rates'!B92 -> 0 | G94: =IF(B94='Input|Labour Rates'!B92,0,1) -> 0
A95: 50 | B95: ='Input|Labour Rates'!B93 -> 0 | G95: =IF(B95='Input|Labour Rates'!B93,0,1) -> 0
A96: 51 | B96: ='Input|Labour Rates'!B94 -> 0 | G96: =IF(B96='Input|Labour Rates'!B94,0,1) -> 0
A97: 52 | B97: ='Input|Labour Rates'!B95 -> 0 | G97: =IF(B97='Input|Labour Rates'!B95,0,1) -> 0
A98: 53 | B98: ='Input|Labour Rates'!B96 -> 0 | G98: =IF(B98='Input|Labour Rates'!B96,0,1) -> 0
A99: 54 | B99: ='Input|Labour Rates'!B97 -> 0 | G99: =IF(B99='Input|Labour Rates'!B97,0,1) -> 0
A100: 55 | B100: ='Input|Labour Rates'!B98 -> 0 | G100: =IF(B100='Input|Labour Rates'!B98,0,1) -> 0
A101: 56 | B101: ='Input|Labour Rates'!B99 -> 0 | G101: =IF(B101='Input|Labour Rates'!B99,0,1) -> 0
A102: 57 | B102: ='Input|Labour Rates'!B100 -> 0 | G102: =IF(B102='Input|Labour Rates'!B100,0,1) -> 0
A103: 58 | B103: ='Input|Labour Rates'!B101 -> 0 | G103: =IF(B103='Input|Labour Rates'!B101,0,1) -> 0
A104: 59 | B104: ='Input|Labour Rates'!B102 -> 0 | G104: =IF(B104='Input|Labour Rates'!B102,0,1) -> 0
A105: 60 | B105: ='Input|Labour Rates'!B103 -> 0 | G105: =IF(B105='Input|Labour Rates'!B103,0,1) -> 0
A106: 61 | B106: ='Input|Labour Rates'!B104 -> 0 | G106: =IF(B106='Input|Labour Rates'!B104,0,1) -> 0
A107: 62 | B107: ='Input|Labour Rates'!B105 -> 0 | G107: =IF(B107='Input|Labour Rates'!B105,0,1) -> 0
A108: 63 | B108: ='Input|Labour Rates'!B106 -> 0 | G108: =IF(B108='Input|Labour Rates'!B106,0,1) -> 0
A109: 64 | B109: ='Input|Labour Rates'!B107 -> 0 | G109: =IF(B109='Input|Labour Rates'!B107,0,1) -> 0
A110: 65 | B110: ='Input|Labour Rates'!B108 -> 0 | G110: =IF(B110='Input|Labour Rates'!B108,0,1) -> 0
A111: 66 | B111: ='Input|Labour Rates'!B109 -> 0 | G111: =IF(B111='Input|Labour Rates'!B109,0,1) -> 0
A112: 67 | B112: ='Input|Labour Rates'!B110 -> 0 | G112: =IF(B112='Input|Labour Rates'!B110,0,1) -> 0
A113: 68 | B113: ='Input|Labour Rates'!B111 -> 0 | G113: =IF(B113='Input|Labour Rates'!B111,0,1) -> 0
A114: 69 | B114: ='Input|Labour Rates'!B112 -> 0 | G114: =IF(B114='Input|Labour Rates'!B112,0,1) -> 0
A115: 70 | B115: ='Input|Labour Rates'!B113 -> 0 | G115: =IF(B115='Input|Labour Rates'!B113,0,1) -> 0
A116: 71 | B116: ='Input|Labour Rates'!B114 -> 0 | G116: =IF(B116='Input|Labour Rates'!B114,0,1) -> 0
A117: 72 | B117: ='Input|Labour Rates'!B115 -> 0 | G117: =IF(B117='Input|Labour Rates'!B115,0,1) -> 0
A118: 73 | B118: ='Input|Labour Rates'!B116 -> 0 | G118: =IF(B118='Input|Labour Rates'!B116,0,1) -> 0
A119: 74 | B119: ='Input|Labour Rates'!B117 -> 0 | G119: =IF(B119='Input|Labour Rates'!B117,0,1) -> 0
A120: 75 | B120: ='Input|Labour Rates'!B118 -> 0 | G120: =IF(B120='Input|Labour Rates'!B118,0,1) -> 0
A121: 76 | B121: ='Input|Labour Rates'!B119 -> 0 | G121: =IF(B121='Input|Labour Rates'!B119,0,1) -> 0
A122: 77 | B122: ='Input|Labour Rates'!B120 -> 0 | G122: =IF(B122='Input|Labour Rates'!B120,0,1) -> 0
A123: 78 | B123: ='Input|Labour Rates'!B121 -> 0 | G123: =IF(B123='Input|Labour Rates'!B121,0,1) -> 0
A124: 79 | B124: ='Input|Labour Rates'!B122 -> 0 | G124: =IF(B124='Input|Labour Rates'!B122,0,1) -> 0
A125: 80 | B125: ='Input|Labour Rates'!B123 -> 0 | G125: =IF(B125='Input|Labour Rates'!B123,0,1) -> 0
A126: 81 | B126: ='Input|Labour Rates'!B124 -> 0 | G126: =IF(B126='Input|Labour Rates'!B124,0,1) -> 0
A127: 82 | B127: ='Input|Labour Rates'!B125 -> 0 | G127: =IF(B127='Input|Labour Rates'!B125,0,1) -> 0
A128: 83 | B128: ='Input|Labour Rates'!B126 -> 0 | G128: =IF(B128='Input|Labour Rates'!B126,0,1) -> 0
A129: 84 | B129: ='Input|Labour Rates'!B127 -> 0 | G129: =IF(B129='Input|Labour Rates'!B127,0,1) -> 0
A130: 85 | B130: ='Input|Labour Rates'!B128 -> 0 | G130: =IF(B130='Input|Labour Rates'!B128,0,1) -> 0
A131: 86 | B131: ='Input|Labour Rates'!B129 -> 0 | G131: =IF(B131='Input|Labour Rates'!B129,0,1) -> 0
A132: 87 | B132: ='Input|Labour Rates'!B130 -> 0 | G132: =IF(B132='Input|Labour Rates'!B130,0,1) -> 0
A133: 88 | B133: ='Input|Labour Rates'!B131 -> 0 | G133: =IF(B133='Input|Labour Rates'!B131,0,1) -> 0
A134: 89 | B134: ='Input|Labour Rates'!B132 -> 0 | G134: =IF(B134='Input|Labour Rates'!B132,0,1) -> 0
A135: 90 | B135: ='Input|Labour Rates'!B133 -> 0 | G135: =IF(B135='Input|Labour Rates'!B133,0,1) -> 0
A136: 91 | B136: ='Input|Labour Rates'!B134 -> 0 | G136: =IF(B136='Input|Labour Rates'!B134,0,1) -> 0
A137: 92 | B137: ='Input|Labour Rates'!B135 -> 0 | G137: =IF(B137='Input|Labour Rates'!B135,0,1) -> 0
A138: 93 | B138: ='Input|Labour Rates'!B136 -> 0 | G138: =IF(B138='Input|Labour Rates'!B136,0,1) -> 0
A139: 94 | B139: ='Input|Labour Rates'!B137 -> 0 | G139: =IF(B139='Input|Labour Rates'!B137,0,1) -> 0
A140: 95 | B140: ='Input|Labour Rates'!B138 -> 0 | G140: =IF(B140='Input|Labour Rates'!B138,0,1) -> 0
A141: 96 | B141: ='Input|Labour Rates'!B139 -> 0 | G141: =IF(B141='Input|Labour Rates'!B139,0,1) -> 0
A142: 97 | B142: ='Input|Labour Rates'!B140 -> 0 | G142: =IF(B142='Input|Labour Rates'!B140,0,1) -> 0
A143: 98 | B143: ='Input|Labour Rates'!B141 -> 0 | G143: =IF(B143='Input|Labour Rates'!B141,0,1) -> 0
A144: 99 | B144: ='Input|Labour Rates'!B142 -> 0 | G144: =IF(B144='Input|Labour Rates'!B142,0,1) -> 0
A145: 100 | B145: ='Input|Labour Rates'!B143 -> 0 | G145: =IF(B145='Input|Labour Rates'!B143,0,1) -> 0
A146: 101 | B146: ='Input|Labour Rates'!B144 -> 0 | G146: =IF(B146='Input|Labour Rates'!B144,0,1) -> 0
A147: 102 | B147: ='Input|Labour Rates'!B145 -> 0 | G147: =IF(B147='Input|Labour Rates'!B145,0,1) -> 0
A148: 103 | B148: ='Input|Labour Rates'!B146 -> 0 | G148: =IF(B148='Input|Labour Rates'!B146,0,1) -> 0
A149: 104 | B149: ='Input|Labour Rates'!B147 -> 0 | G149: =IF(B149='Input|Labour Rates'!B147,0,1) -> 0
A150: 105 | B150: ='Input|Labour Rates'!B148 -> 0 | G150: =IF(B150='Input|Labour Rates'!B148,0,1) -> 0
A151: 106 | B151: ='Input|Labour Rates'!B149 -> 0 | G151: =IF(B151='Input|Labour Rates'!B149,0,1) -> 0
A152: 107 | B152: ='Input|Labour Rates'!B150 -> 0 | G152: =IF(B152='Input|Labour Rates'!B150,0,1) -> 0
A153: 108 | B153: ='Input|Labour Rates'!B151 -> 0 | G153: =IF(B153='Input|Labour Rates'!B151,0,1) -> 0
A154: 109 | B154: ='Input|Labour Rates'!B152 -> 0 | G154: =IF(B154='Input|Labour Rates'!B152,0,1) -> 0
A155: 110 | B155: ='Input|Labour Rates'!B153 -> 0 | G155: =IF(B155='Input|Labour Rates'!B153,0,1) -> 0
A156: 111 | B156: ='Input|Labour Rates'!B154 -> 0 | G156: =IF(B156='Input|Labour Rates'!B154,0,1) -> 0
A157: 112 | B157: ='Input|Labour Rates'!B155 -> 0 | G157: =IF(B157='Input|Labour Rates'!B155,0,1) -> 0
A158: 113 | B158: ='Input|Labour Rates'!B156 -> 0 | G158: =IF(B158='Input|Labour Rates'!B156,0,1) -> 0
A159: 114 | B159: ='Input|Labour Rates'!B157 -> 0 | G159: =IF(B159='Input|Labour Rates'!B157,0,1) -> 0
A160: 115 | B160: ='Input|Labour Rates'!B158 -> 0 | G160: =IF(B160='Input|Labour Rates'!B158,0,1) -> 0
A161: 116 | B161: ='Input|Labour Rates'!B159 -> 0 | G161: =IF(B161='Input|Labour Rates'!B159,0,1) -> 0
A162: 117 | B162: ='Input|Labour Rates'!B160 -> 0 | G162: =IF(B162='Input|Labour Rates'!B160,0,1) -> 0
A163: 118 | B163: ='Input|Labour Rates'!B161 -> 0 | G163: =IF(B163='Input|Labour Rates'!B161,0,1) -> 0
A164: 119 | B164: ='Input|Labour Rates'!B162 -> 0 | G164: =IF(B164='Input|Labour Rates'!B162,0,1) -> 0
A165: 120 | B165: ='Input|Labour Rates'!B163 -> 0 | G165: =IF(B165='Input|Labour Rates'!B163,0,1) -> 0
A166: 121 | B166: ='Input|Labour Rates'!B164 -> 0 | G166: =IF(B166='Input|Labour Rates'!B164,0,1) -> 0
A167: 122 | B167: ='Input|Labour Rates'!B165 -> 0 | G167: =IF(B167='Input|Labour Rates'!B165,0,1) -> 0
A168: 123 | B168: ='Input|Labour Rates'!B166 -> 0 | G168: =IF(B168='Input|Labour Rates'!B166,0,1) -> 0
A169: 124 | B169: ='Input|Labour Rates'!B167 -> 0 | G169: =IF(B169='Input|Labour Rates'!B167,0,1) -> 0
A170: 125 | B170: ='Input|Labour Rates'!B168 -> 0 | G170: =IF(B170='Input|Labour Rates'!B168,0,1) -> 0
A171: 126 | B171: ='Input|Labour Rates'!B169 -> 0 | G171: =IF(B171='Input|Labour Rates'!B169,0,1) -> 0
A172: 127 | B172: ='Input|Labour Rates'!B170 -> 0 | G172: =IF(B172='Input|Labour Rates'!B170,0,1) -> 0
A173: 128 | B173: ='Input|Labour Rates'!B171 -> 0 | G173: =IF(B173='Input|Labour Rates'!B171,0,1) -> 0
A174: 129 | B174: ='Input|Labour Rates'!B172 -> 0 | G174: =IF(B174='Input|Labour Rates'!B172,0,1) -> 0
A175: 130 | B175: ='Input|Labour Rates'!B173 -> 0 | G175: =IF(B175='Input|Labour Rates'!B173,0,1) -> 0
A176: 131 | B176: ='Input|Labour Rates'!B174 -> 0 | G176: =IF(B176='Input|Labour Rates'!B174,0,1) -> 0
A177: 132 | B177: ='Input|Labour Rates'!B175 -> 0 | G177: =IF(B177='Input|Labour Rates'!B175,0,1) -> 0
A178: 133 | B178: ='Input|Labour Rates'!B176 -> 0 | G178: =IF(B178='Input|Labour Rates'!B176,0,1) -> 0
A179: 134 | B179: ='Input|Labour Rates'!B177 -> 0 | G179: =IF(B179='Input|Labour Rates'!B177,0,1) -> 0
A180: 135 | B180: ='Input|Labour Rates'!B178 -> 0 | G180: =IF(B180='Input|Labour Rates'!B178,0,1) -> 0
A181: 136 | B181: ='Input|Labour Rates'!B179 -> 0 | G181: =IF(B181='Input|Labour Rates'!B179,0,1) -> 0
A182: 137 | B182: ='Input|Labour Rates'!B180 -> 0 | G182: =IF(B182='Input|Labour Rates'!B180,0,1) -> 0
A183: 138 | B183: ='Input|Labour Rates'!B181 -> 0 | G183: =IF(B183='Input|Labour Rates'!B181,0,1) -> 0
A184: 139 | B184: ='Input|Labour Rates'!B182 -> 0 | G184: =IF(B184='Input|Labour Rates'!B182,0,1) -> 0
A185: 140 | B185: ='Input|Labour Rates'!B183 -> 0 | G185: =IF(B185='Input|Labour Rates'!B183,0,1) -> 0
A186: 141 | B186: ='Input|Labour Rates'!B184 -> 0 | G186: =IF(B186='Input|Labour Rates'!B184,0,1) -> 0
A187: 142 | B187: ='Input|Labour Rates'!B185 -> 0 | G187: =IF(B187='Input|Labour Rates'!B185,0,1) -> 0
A188: 143 | B188: ='Input|Labour Rates'!B186 -> 0 | G188: =IF(B188='Input|Labour Rates'!B186,0,1) -> 0
A189: 144 | B189: ='Input|Labour Rates'!B187 -> 0 | G189: =IF(B189='Input|Labour Rates'!B187,0,1) -> 0
A190: 145 | B190: ='Input|Labour Rates'!B188 -> 0 | G190: =IF(B190='Input|Labour Rates'!B188,0,1) -> 0
A191: 146 | B191: ='Input|Labour Rates'!B189 -> 0 | G191: =IF(B191='Input|Labour Rates'!B189,0,1) -> 0
A192: 147 | B192: ='Input|Labour Rates'!B190 -> 0 | G192: =IF(B192='Input|Labour Rates'!B190,0,1) -> 0
A193: 148 | B193: ='Input|Labour Rates'!B191 -> 0 | G193: =IF(B193='Input|Labour Rates'!B191,0,1) -> 0
A194: 149 | B194: ='Input|Labour Rates'!B192 -> 0 | G194: =IF(B194='Input|Labour Rates'!B192,0,1) -> 0
A195: 150 | B195: ='Input|Labour Rates'!B193 -> 0 | G195: =IF(B195='Input|Labour Rates'!B193,0,1) -> 0
A196: 151 | B196: ='Input|Labour Rates'!B194 -> 0 | G196: =IF(B196='Input|Labour Rates'!B194,0,1) -> 0
A197: 152 | B197: ='Input|Labour Rates'!B195 -> 0 | G197: =IF(B197='Input|Labour Rates'!B195,0,1) -> 0
A198: 153 | B198: ='Input|Labour Rates'!B196 -> 0 | G198: =IF(B198='Input|Labour Rates'!B196,0,1) -> 0
A199: 154 | B199: ='Input|Labour Rates'!B197 -> 0 | G199: =IF(B199='Input|Labour Rates'!B197,0,1) -> 0
A200: 155 | B200: ='Input|Labour Rates'!B198 -> 0 | G200: =IF(B200='Input|Labour Rates'!B198,0,1) -> 0
A201: 156 | B201: ='Input|Labour Rates'!B199 -> 0 | G201: =IF(B201='Input|Labour Rates'!B199,0,1) -> 0
A202: 157 | B202: ='Input|Labour Rates'!B200 -> 0 | G202: =IF(B202='Input|Labour Rates'!B200,0,1) -> 0
A203: 158 | B203: ='Input|Labour Rates'!B201 -> 0 | G203: =IF(B203='Input|Labour Rates'!B201,0,1) -> 0
A204: 159 | B204: ='Input|Labour Rates'!B202 -> 0 | G204: =IF(B204='Input|Labour Rates'!B202,0,1) -> 0
A205: 160 | B205: ='Input|Labour Rates'!B203 -> 0 | G205: =IF(B205='Input|Labour Rates'!B203,0,1) -> 0
... 90 more rows

Sheet Input|Setup
B1: =IFERROR(Index!B1,"") -> AER ANS Forecast Model | D1: Key: | E1: Input | H1: Sheet Validation | I1: ='Model Validation'!C10 -> 0
B2: =IFERROR(MID(CELL("filename",A1),FIND("]",CELL("filename",A1))+1,255),"") -> Input|Setup | E2: Formula
Q4: For AER only
A5: 3.1 | B5: Years setup | E5: Year? | F5: =IF(COUNTA(E6:E7)=0,1,0) -> 0 | Q5: Years
B6: First year of forecast regulatory control period | E6: 2026-27 | Q6: 2016-17
B7: Base year for inputs | E7: 2024-25 | Q7: =LEFT(Q6,4)+1&"-"&RIGHT(Q6,2)+1 -> 2017-18
B8: Base year for outputs | E8: =E6 -> 2026-27 | Q8: 2018-19
Q9: 2019-20
A10: 3.2 | B10: Current regulatory period | D10: 3.3 | E10: Forecast regulatory period | Q10: 2020-21
A11: 1 | B11: =LEFT(B12,4)-1&"-"&RIGHT(B12,2)-1 -> 2021-22 | D11: 1 | E11: =E6 -> 2026-27 | Q11: 2021-22
A12: =A11+1 -> 2 | B12: =LEFT(B13,4)-1&"-"&RIGHT(B13,2)-1 -> 2022-23 | D12: =D11+1 -> 2 | E12: =LEFT(E11,4)+1&"-"&RIGHT(E11,2)+1 -> 2027-28 | Q12: 2022-23
A13: =A12+1 -> 3 | B13: =LEFT(B14,4)-1&"-"&RIGHT(B14,2)-1 -> 2023-24 | D13: =D12+1 -> 3 | E13: =LEFT(E12,4)+1&"-"&RIGHT(E12,2)+1 -> 2028-29 | Q13: 2023-24
A14: =A13+1 -> 4 | B14: =LEFT(B15,4)-1&"-"&RIGHT(B15,2)-1 -> 2024-25 | D14: =D13+1 -> 4 | E14: =LEFT(E13,4)+1&"-"&RIGHT(E13,2)+1 -> 2029-30 | Q14: 2024-25
A15: =A14+1 -> 5 | B15: =LEFT(E11,4)-1&"-"&RIGHT(E11,2)-1 -> 2025-26 | D15: =D14+1 -> 5 | E15: =LEFT(E14,4)+1&"-"&RIGHT(E14,2)+1 -> 2030-31 | Q15: 2025-26
Q16: 2026-27
Q17: 2027-28
A18: 3.4 | B18: Used for quoted service? | D18: 3.5 | E18: Conversions | Q18: 2028-29
A19: 1 | B19: Yes | E19: 60 | F19: mins | Q19: 2029-30
A20: =A19+1 -> 2 | B20: No | Q20: 2030-31
Q21: 2031-32
Q22: 2032-33
Q23: 2033-34
A24: 3.6 | B24: Hours | C24: =IF(COUNTA(B25:B27)=0,1,0) -> 0 | Q24: 2034-35
B25: Business hours
B26: After hours
A30: 3.7 | B30: Labour type | C30: =IF(COUNTA(B31:B49)=0,1,0) -> 0 | D30: 3.8 | E30: Service category | F30: =IF(COUNTA(E31:E49)=0,1,0) -> 0 | G30: ="3.9" -> 3.9 | H30: Groups of ACS fee based services
A31: 1 | B31: Construction Overhead Install | E31: Connection application related services | H31: Connection service category - ACS fee based
A32: =A31+1 -> 2 | B32: Construction Underground Install | E32: Access permits, oversight and facilitation | H32: Network ancillary services - ACS fee based
A33: =A32+1 -> 3 | B33: Construction Substation Install | E33: Notices of arrangement and completion notices | H33: Metering ancillary services - ACS fee based
A34: =A33+1 -> 4 | B34: Electrical Tester Including Vehicle & Equipment | E34: Network related property services | H34: Security lighting services - ACS fee based
A35: 5 | B35: Planner Including Vehicle | E35: Network safety services
A36: 6 | B36: Supervisor Including Vehicle | E36: Customer requested network outage or rescheduling of a planned interruption
A37: 7 | B37: Administrative Officer | E37: Fault response (not DNSP fault)
A38: 8 | B38: Design | E38: Network data and advice
A39: 9 | B39: Drafting | E39: Ancillary metering services Type 5 to 7 (including smart meter) where the distributor DNSP remains responsible
A40: 10 | B40: Survey | E40: Type 7 and 9 metering services | G40: ="3.10" -> 3.10 | H40: Not used
A41: 11 | B41: Tech Officer | E41: Emergency maintenance of failed metering equipment not owned by the distributor DNSP (contestable meters)
A42: 12 | B42: Line Inspector | E42: Planned supply interruption – retailer requested
A43: 13 | B43: Contract Supervision | E43: Embedded networks
A44: 14 | B44: Protection Engineer | E44: Basic connection services
A45: 15 | B45: Maintenance Planner Including Vehicle | E45: Enhanced connection services
A46: 16 | B46: Senior Engineer | E46: Connection management services
A47: 17 | E47: Public lighting
A48: 18
A49: 19

Sheet Input|Escalations
B1: =IFERROR(Index!B1,"") -> AER ANS Forecast Model | C1: Key: | D1: Input | F1: Sheet Validation | G1: ='Model Validation'!C11 -> 0
B2: =IFERROR(MID(CELL("filename",A1),FIND("]",CELL("filename",A1))+1,255),"") -> Input|Escalations | D2: Formula
A5: 4.1 | B5: Escalation setup
C7: Year
B8: First year of forecast regulatory control period | C8: ='Input|Setup'!E6 -> 2026-27
B9: Base year for inputs | C9: ='Input|Setup'!E7 -> 2024-25
B10: Base year for outputs | C10: ='Input|Setup'!E8 -> 2026-27
A13: 4.2 | B13: Inflation | D13: Current regulatory period | I13: Forecast regulatory period
D15: =IFERROR((LEFT(E15,4)-1&IF(MID(E15,5,1)="","","-"&TEXT(MOD(MID(E15,6,2)-1,100),"00"))),"") -> 2021-22 | E15: =IFERROR((LEFT(F15,4)-1&IF(MID(F15,5,1)="","","-"&TEXT(MOD(MID(F15,6,2)-1,100),"00"))),"") -> 2022-23 | F15: =IFERROR((LEFT(G15,4)-1&IF(MID(G15,5,1)="","","-"&TEXT(MOD(MID(G15,6,2)-1,100),"00"))),"") -> 2023-24 | G15: =IFERROR((LEFT(H15,4)-1&IF(MID(H15,5,1)="","","-"&TEXT(MOD(MID(H15,6,2)-1,100),"00"))),"") -> 2024-25 | H15: =IFERROR((LEFT(I15,4)-1&IF(MID(I15,5,1)="","","-"&TEXT(MOD(MID(I15,6,2)-1,100),"00"))),"") -> 2025-26 | I15: =$C$8 -> 2026-27 | J15: =IFERROR((LEFT(I15,4)+1&IF(MID(I15,5,1)="","","-"&TEXT(MOD(MID(I15,6,2)+1,100),"00"))),"") -> 2027-28 | K15: =IFERROR((LEFT(J15,4)+1&IF(MID(J15,5,1)="","","-"&TEXT(MOD(MID(J15,6,2)+1,100),"00"))),"") -> 2028-29 | L15: =IFERROR((LEFT(K15,4)+1&IF(MID(K15,5,1)="","","-"&TEXT(MOD(MID(K15,6,2)+1,100),"00"))),"") -> 2029-30 | M15: =IFERROR((LEFT(L15,4)+1&IF(MID(L15,5,1)="","","-"&TEXT(MOD(MID(L15,6,2)+1,100),"00"))),"") -> 2030-31
B16: CPI year on year change (%) - lagged one year (actual/estimate) | E16: =IFERROR(E20/D20-1,0) -> 0.03498293515 | F16: 0.07831821929 | G16: 0.04051987768 | H16: 0.0242468773 | I16: 0.033 | J16: 0.032 | K16: 0.026 | L16: 0.02525 | M16: 0.025
B17: Cumulative Inflation Index | D17: 1 | E17: =IFERROR(D17*(1+E16),"") -> 1.034982935 | F17: =E17*(1+F16) -> 1.116040956 | G17: 1.161262799 | H17: 1.189419795 | I17: 1.228670648 | J17: 1.267988109 | K17: 1.3009558 | L17: 1.333804934 | M17: 1.367150057
B18: =IFERROR("Real "&C9 &" "&LEFT(D9,9)&" to "& "Real "&C10 &" "&LEFT(D10,9),"") -> Real 2024-25 to Real 2026-27 | I18: =I$17/INDEX($D$15:$M$17,3, MATCH($C$9,$D$15:$M$15,0)) -> 1.058047024
B19: ABS index, all groups CPI inflation series A2325846C, weighted average for the eight capital cities | D19: ="Dec-" & RIGHT(D15,2)-2 -> Dec-20 | E19: Dec-21 | F19: Dec-22 | G19: Dec-23 | H19: Dec-24 | I19: Dec-25 | J19: Dec-26 | K19: Dec-27 | L19: Dec-28 | M19: Dec-29
D20: 117.2 | E20: 121.3 | F20: 130.8 | G20: 136.1 | H20: 139.4 | I20: =H20*(1+I21) -> 144.0002 | J20: =I20*(1+J21) -> 148.6082064 | K20: =J20*(1+K21) -> 152.4720198 | L20: =K20*(1+L21) -> 156.3219383 | M20: =L20*(1+M21) -> 160.2299867 | N20: =IF(COUNTA(D20:M20)=0,1,0) -> 0
B21: Source (where ABS index is not available. E.g. forecast CPI) | I21: 0.033 | J21: 0.032 | K21: 0.026 | L21: 0.02525 | M21: 0.025 | N21: =IF(COUNTA(G21:M21)=0,1,0) -> 0
A24: 4.3 | B24: Real price escalation | D24: Current regulatory period | I24: Forecast regulatory period
D26: =IFERROR((LEFT(E26,4)-1&IF(MID(E26,5,1)="","","-"&TEXT(MOD(MID(E26,6,2)-1,100),"00"))),"") -> 2021-22 | E26: =IFERROR((LEFT(F26,4)-1&IF(MID(F26,5,1)="","","-"&TEXT(MOD(MID(F26,6,2)-1,100),"00"))),"") -> 2022-23 | F26: =IFERROR((LEFT(G26,4)-1&IF(MID(G26,5,1)="","","-"&TEXT(MOD(MID(G26,6,2)-1,100),"00"))),"") -> 2023-24 | G26: =IFERROR((LEFT(H26,4)-1&IF(MID(H26,5,1)="","","-"&TEXT(MOD(MID(H26,6,2)-1,100),"00"))),"") -> 2024-25 | H26: =IFERROR((LEFT(I26,4)-1&IF(MID(I26,5,1)="","","-"&TEXT(MOD(MID(I26,6,2)-1,100),"00"))),"") -> 2025-26 | I26: =$C$8 -> 2026-27 | J26: =IFERROR((LEFT(I26,4)+1&IF(MID(I26,5,1)="","","-"&TEXT(MOD(MID(I26,6,2)+1,100),"00"))),"") -> 2027-28 | K26: =IFERROR((LEFT(J26,4)+1&IF(MID(J26,5,1)="","","-"&TEXT(MOD(MID(J26,6,2)+1,100),"00"))),"") -> 2028-29 | L26: =IFERROR((LEFT(K26,4)+1&IF(MID(K26,5,1)="","","-"&TEXT(MOD(MID(K26,6,2)+1,100),"00"))),"") -> 2029-30 | M26: =IFERROR((LEFT(L26,4)+1&IF(MID(L26,5,1)="","","-"&TEXT(MOD(MID(L26,6,2)+1,100),"00"))),"") -> 2030-31
B27: X-factor (real wage price escalation) | D27: =-D37 -> 0 | E27: 0 | F27: 0.008757524162 | G27: -0.01448038264 | H27: -0.01287329456 | I27: -0.008120818073 | J27: -0.009550582168 | K27: -0.0111993349 | L27: -0.01227436192 | M27: -0.01202541615
B28: Materials | D28: 0 | E28: 0 | F28: 0 | G28: 0 | H28: 0 | I28: 0 | J28: 0 | K28: 0 | L28: 0 | M28: 0
B29: Contracts | D29: 0 | E29: 0 | F29: 0 | G29: 0 | H29: 0 | I29: 0 | J29: 0 | K29: 0 | L29: 0 | M29: 0
B30: Vehicles | D30: 0 | E30: 0 | F30: 0 | G30: 0 | H30: 0 | I30: 0 | J30: 0 | K30: 0 | L30: 0 | M30: 0
B31: Other | D31: 0 | E31: 0 | F31: 0 | G31: 0 | H31: 0 | I31: 0 | J31: 0 | K31: 0 | L31: 0 | M31: 0
A34: 4.3.1 | B34: Real wage price escalation | D34: Current regulatory period | I34: Forecast regulatory period
D36: =IFERROR((LEFT(E36,4)-1&IF(MID(E36,5,1)="","","-"&TEXT(MOD(MID(E36,6,2)-1,100),"00"))),"") -> 2021-22 | E36: =IFERROR((LEFT(F36,4)-1&IF(MID(F36,5,1)="","","-"&TEXT(MOD(MID(F36,6,2)-1,100),"00"))),"") -> 2022-23 | F36: =IFERROR((LEFT(G36,4)-1&IF(MID(G36,5,1)="","","-"&TEXT(MOD(MID(G36,6,2)-1,100),"00"))),"") -> 2023-24 | G36: =IFERROR((LEFT(H36,4)-1&IF(MID(H36,5,1)="","","-"&TEXT(MOD(MID(H36,6,2)-1,100),"00"))),"") -> 2024-25 | H36: =IFERROR((LEFT(I36,4)-1&IF(MID(I36,5,1)="","","-"&TEXT(MOD(MID(I36,6,2)-1,100),"00"))),"") -> 2025-26 | I36: =$C$8 -> 2026-27 | J36: =IFERROR((LEFT(I36,4)+1&IF(MID(I36,5,1)="","","-"&TEXT(MOD(MID(I36,6,2)+1,100),"00"))),"") -> 2027-28 | K36: =IFERROR((LEFT(J36,4)+1&IF(MID(J36,5,1)="","","-"&TEXT(MOD(MID(J36,6,2)+1,100),"00"))),"") -> 2028-29 | L36: =IFERROR((LEFT(K36,4)+1&IF(MID(K36,5,1)="","","-"&TEXT(MOD(MID(K36,6,2)+1,100),"00"))),"") -> 2029-30 | M36: =IFERROR((LEFT(L36,4)+1&IF(MID(L36,5,1)="","","-"&TEXT(MOD(MID(L36,6,2)+1,100),"00"))),"") -> 2030-31
B37: Labour - Real wage price growth | D37: =SUM((D42*D48),(D43*D49),(D44*D50),(D45*D51)) -> 0 | E37: 0 | F37: =SUM((F42*F48),(F43*F49),F44) -> -0.008757524162 | G37: =SUM((G42*G48),(G43*G49),G44) -> 0.01448038264 | H37: =SUM((H42*H48),(H43*H49),H44) -> 0.01287329456 | I37: 0.008120818073 | J37: 0.009550582168 | K37: 0.0111993349 | L37: 0.01227436192 | M37: 0.01202541615
B38: Cumulative Labour - Wage price growth index | D38: =1+D37 -> 1 | E38: =IFERROR(D38*(1+E37),"") -> 1 | F38: 0.9912424758 | G38: 1.005596046 | H38: 1.01854138 | I38: 1.02681277 | J38: 1.036619429 | K38: 1.048228877 | L38: 1.061095218 | M38: 1.07385533
B39: ="Escalate from base year to " & C8 -> Escalate from base year to 2026-27 | I39: =I38/INDEX($D$36:$M$38,3,MATCH($C$9,$D$36:$M$36,0)) -> 1.021098654
B41: Forecast/Source | D41: =IFERROR((LEFT(E41,4)-1&IF(MID(E41,5,1)="","","-"&TEXT(MOD(MID(E41,6,2)-1,100),"00"))),"") -> 2021-22 | E41: =IFERROR((LEFT(F41,4)-1&IF(MID(F41,5,1)="","","-"&TEXT(MOD(MID(F41,6,2)-1,100),"00"))),"") -> 2022-23 | F41: =IFERROR((LEFT(G41,4)-1&IF(MID(G41,5,1)="","","-"&TEXT(MOD(MID(G41,6,2)-1,100),"00"))),"") -> 2023-24 | G41: =IFERROR((LEFT(H41,4)-1&IF(MID(H41,5,1)="","","-"&TEXT(MOD(MID(H41,6,2)-1,100),"00"))),"") -> 2024-25 | H41: =IFERROR((LEFT(I41,4)-1&IF(MID(I41,5,1)="","","-"&TEXT(MOD(MID(I41,6,2)-1,100),"00"))),"") -> 2025-26 | I41: =$C$8 -> 2026-27 | J41: =IFERROR((LEFT(I41,4)+1&IF(MID(I41,5,1)="","","-"&TEXT(MOD(MID(I41,6,2)+1,100),"00"))),"") -> 2027-28 | K41: =IFERROR((LEFT(J41,4)+1&IF(MID(J41,5,1)="","","-"&TEXT(MOD(MID(J41,6,2)+1,100),"00"))),"") -> 2028-29 | L41: =IFERROR((LEFT(K41,4)+1&IF(MID(K41,5,1)="","","-"&TEXT(MOD(MID(K41,6,2)+1,100),"00"))),"") -> 2029-30 | M41: =IFERROR((LEFT(L41,4)+1&IF(MID(L41,5,1)="","","-"&TEXT(MOD(MID(L41,6,2)+1,100),"00"))),"") -> 2030-31 | N41: =IF(COUNTA(B42:M45)=0,1,0) -> 0
B42: WPI - Oxford Economics forecast | F42: -0.015 | G42: 0.007 | H42: =[2]Sheet1!D2 -> 0.008746589122 | I42: =[2]Sheet1!E2 -> 0.009567382707 | J42: =[2]Sheet1!F2 -> 0.009911294966 | K42: =[2]Sheet1!G2 -> 0.01155443281 | L42: =[2]Sheet1!H2 -> 0.01387115665 | M42: =[2]Sheet1!I2 -> 0.01383049475
B43: WPI - Real labour price growth - Deloitte WPI | F43: -0.01251504832 | G43: 0.01196076527 | H43: =[2]Sheet1!D3 -> 0.007 | I43: =[2]Sheet1!E3 -> 0.006674253438 | J43: =[2]Sheet1!F3 -> 0.009189869369 | K43: =[2]Sheet1!G3 -> 0.010844237 | L43: =[2]Sheet1!H3 -> 0.01067756718 | M43: =[2]Sheet1!I3 -> 0.01022033755
B44: Real Labour Price Growth - Super Guarantee | F44: 0.005 | G44: 0.005 | H44: 0.005
B47: Weights (per cent) | D47: =IFERROR((LEFT(E47,4)-1&IF(MID(E47,5,1)="","","-"&TEXT(MOD(MID(E47,6,2)-1,100),"00"))),"") -> 2021-22 | E47: =IFERROR((LEFT(F47,4)-1&IF(MID(F47,5,1)="","","-"&TEXT(MOD(MID(F47,6,2)-1,100),"00"))),"") -> 2022-23 | F47: =IFERROR((LEFT(G47,4)-1&IF(MID(G47,5,1)="","","-"&TEXT(MOD(MID(G47,6,2)-1,100),"00"))),"") -> 2023-24 | G47: =IFERROR((LEFT(H47,4)-1&IF(MID(H47,5,1)="","","-"&TEXT(MOD(MID(H47,6,2)-1,100),"00"))),"") -> 2024-25 | H47: =IFERROR((LEFT(I47,4)-1&IF(MID(I47,5,1)="","","-"&TEXT(MOD(MID(I47,6,2)-1,100),"00"))),"") -> 2025-26 | I47: =$C$8 -> 2026-27 | J47: =IFERROR((LEFT(I47,4)+1&IF(MID(I47,5,1)="","","-"&TEXT(MOD(MID(I47,6,2)+1,100),"00"))),"") -> 2027-28 | K47: =IFERROR((LEFT(J47,4)+1&IF(MID(J47,5,1)="","","-"&TEXT(MOD(MID(J47,6,2)+1,100),"00"))),"") -> 2028-29 | L47: =IFERROR((LEFT(K47,4)+1&IF(MID(K47,5,1)="","","-"&TEXT(MOD(MID(K47,6,2)+1,100),"00"))),"") -> 2029-30 | M47: =IFERROR((LEFT(L47,4)+1&IF(MID(L47,5,1)="","","-"&TEXT(MOD(MID(L47,6,2)+1,100),"00"))),"") -> 2030-31 | N47: =IF(COUNTA(D48:M51)=0,1,0) -> 0
B48: =B42 -> WPI - Oxford Economics forecast | F48: 0.5 | G48: 0.5 | H48: 0.5 | I48: 0.5 | J48: 0.5 | K48: 0.5 | L48: 0.5 | M48: 0.5
B49: =B43 -> WPI - Real labour price growth - Deloitte WPI | F49: 0.5 | G49: 0.5 | H49: 0.5 | I49: 0.5 | J49: 0.5 | K49: 0.5 | L49: 0.5 | M49: 0.5
B50: =B44 -> Real Labour Price Growth - Super Guarantee
B51: =B45 -> 0
D52: =IF(OR(SUM(D48:D51)=0,SUM(D48:D51)=1),0,1) -> 0 | E52: 0 | F52: 0 | G52: 0 | H52: 0 | I52: 0 | J52: 0 | K52: 0 | L52: 0 | M52: 0 | N52: =IF(SUM(D52:M52)=0,0,1) -> 0
A54: 4.3.2 | B54: Real price escalation (non-wage) | D54: Current regulatory period | I54: Forecast regulatory period
D56: =IFERROR((LEFT(E56,4)-1&IF(MID(E56,5,1)="","","-"&TEXT(MOD(MID(E56,6,2)-1,100),"00"))),"") -> 2021-22 | E56: =IFERROR((LEFT(F56,4)-1&IF(MID(F56,5,1)="","","-"&TEXT(MOD(MID(F56,6,2)-1,100),"00"))),"") -> 2022-23 | F56: =IFERROR((LEFT(G56,4)-1&IF(MID(G56,5,1)="","","-"&TEXT(MOD(MID(G56,6,2)-1,100),"00"))),"") -> 2023-24 | G56: =IFERROR((LEFT(H56,4)-1&IF(MID(H56,5,1)="","","-"&TEXT(MOD(MID(H56,6,2)-1,100),"00"))),"") -> 2024-25 | H56: =IFERROR((LEFT(I56,4)-1&IF(MID(I56,5,1)="","","-"&TEXT(MOD(MID(I56,6,2)-1,100),"00"))),"") -> 2025-26 | I56: =$C$8 -> 2026-27 | J56: =IFERROR((LEFT(I56,4)+1&IF(MID(I56,5,1)="","","-"&TEXT(MOD(MID(I56,6,2)+1,100),"00"))),"") -> 2027-28 | K56: =IFERROR((LEFT(J56,4)+1&IF(MID(J56,5,1)="","","-"&TEXT(MOD(MID(J56,6,2)+1,100),"00"))),"") -> 2028-29 | L56: =IFERROR((LEFT(K56,4)+1&IF(MID(K56,5,1)="","","-"&TEXT(MOD(MID(K56,6,2)+1,100),"00"))),"") -> 2029-30 | M56: =IFERROR((LEFT(L56,4)+1&IF(MID(L56,5,1)="","","-"&TEXT(MOD(MID(L56,6,2)+1,100),"00"))),"") -> 2030-31
B57: Materials - Real price growth | D57: =-D$28 -> 0 | E57: 0 | F57: 0 | G57: 0 | H57: 0 | I57: 0 | J57: 0 | K57: 0 | L57: 0 | M57: 0
B58: Cumulative Labour - Wage price growth index | D58: =1+D57 -> 1 | E58: =IFERROR(D58*(1+E57),"") -> 1 | F58: 1 | G58: 1 | H58: 1 | I58: 1 | J58: 1 | K58: 1 | L58: 1 | M58: 1
B59: ="Escalate from base year to " & C28 -> Escalate from base year to | I59: =I58/INDEX($D$56:$M$58,3,MATCH($C$9,$D$56:$M$56,0)) -> 1
D61: =IFERROR((LEFT(E61,4)-1&IF(MID(E61,5,1)="","","-"&TEXT(MOD(MID(E61,6,2)-1,100),"00"))),"") -> 2021-22 | E61: =IFERROR((LEFT(F61,4)-1&IF(MID(F61,5,1)="","","-"&TEXT(MOD(MID(F61,6,2)-1,100),"00"))),"") -> 2022-23 | F61: =IFERROR((LEFT(G61,4)-1&IF(MID(G61,5,1)="","","-"&TEXT(MOD(MID(G61,6,2)-1,100),"00"))),"") -> 2023-24 | G61: =IFERROR((LEFT(H61,4)-1&IF(MID(H61,5,1)="","","-"&TEXT(MOD(MID(H61,6,2)-1,100),"00"))),"") -> 2024-25 | H61: =IFERROR((LEFT(I61,4)-1&IF(MID(I61,5,1)="","","-"&TEXT(MOD(MID(I61,6,2)-1,100),"00"))),"") -> 2025-26 | I61: =$C$8 -> 2026-27 | J61: =IFERROR((LEFT(I61,4)+1&IF(MID(I61,5,1)="","","-"&TEXT(MOD(MID(I61,6,2)+1,100),"00"))),"") -> 2027-28 | K61: =IFERROR((LEFT(J61,4)+1&IF(MID(J61,5,1)="","","-"&TEXT(MOD(MID(J61,6,2)+1,100),"00"))),"") -> 2028-29 | L61: =IFERROR((LEFT(K61,4)+1&IF(MID(K61,5,1)="","","-"&TEXT(MOD(MID(K61,6,2)+1,100),"00"))),"") -> 2029-30 | M61: =IFERROR((LEFT(L61,4)+1&IF(MID(L61,5,1)="","","-"&TEXT(MOD(MID(L61,6,2)+1,100),"00"))),"") -> 2030-31
B62: Contracts - Real price growth | D62: =-D$29 -> 0 | E62: 0 | F62: 0 | G62: 0 | H62: 0 | I62: 0 | J62: 0 | K62: 0 | L62: 0 | M62: 0
B63: Cumulative Labour - Wage price growth index | D63: =1+D62 -> 1 | E63: =IFERROR(D63*(1+E62),"") -> 1 | F63: 1 | G63: 1 | H63: 1 | I63: 1 | J63: 1 | K63: 1 | L63: 1 | M63: 1
B64: ="Escalate from base year to " & C33 -> Escalate from base year to | I64: =I63/INDEX($D$61:$M$63,3,MATCH($C$9,$D$61:$M$61,0)) -> 1
D66: =IFERROR((LEFT(E66,4)-1&IF(MID(E66,5,1)="","","-"&TEXT(MOD(MID(E66,6,2)-1,100),"00"))),"") -> 2021-22 | E66: =IFERROR((LEFT(F66,4)-1&IF(MID(F66,5,1)="","","-"&TEXT(MOD(MID(F66,6,2)-1,100),"00"))),"") -> 2022-23 | F66: =IFERROR((LEFT(G66,4)-1&IF(MID(G66,5,1)="","","-"&TEXT(MOD(MID(G66,6,2)-1,100),"00"))),"") -> 2023-24 | G66: =IFERROR((LEFT(H66,4)-1&IF(MID(H66,5,1)="","","-"&TEXT(MOD(MID(H66,6,2)-1,100),"00"))),"") -> 2024-25 | H66: =IFERROR((LEFT(I66,4)-1&IF(MID(I66,5,1)="","","-"&TEXT(MOD(MID(I66,6,2)-1,100),"00"))),"") -> 2025-26 | I66: =$C$8 -> 2026-27 | J66: =IFERROR((LEFT(I66,4)+1&IF(MID(I66,5,1)="","","-"&TEXT(MOD(MID(I66,6,2)+1,100),"00"))),"") -> 2027-28 | K66: =IFERROR((LEFT(J66,4)+1&IF(MID(J66,5,1)="","","-"&TEXT(MOD(MID(J66,6,2)+1,100),"00"))),"") -> 2028-29 | L66: =IFERROR((LEFT(K66,4)+1&IF(MID(K66,5,1)="","","-"&TEXT(MOD(MID(K66,6,2)+1,100),"00"))),"") -> 2029-30 | M66: =IFERROR((LEFT(L66,4)+1&IF(MID(L66,5,1)="","","-"&TEXT(MOD(MID(L66,6,2)+1,100),"00"))),"") -> 2030-31
B67: Vehicles - Real price growth | D67: =-D$30 -> 0 | E67: 0 | F67: 0 | G67: 0 | H67: 0 | I67: 0 | J67: 0 | K67: 0 | L67: 0 | M67: 0
B68: Cumulative Labour - Wage price growth index | D68: =1+D67 -> 1 | E68: =IFERROR(D68*(1+E67),"") -> 1 | F68: =IFERROR(E68*(1+F67),"") -> 1 | G68: 1 | H68: 1 | I68: 1 | J68: 1 | K68: 1 | L68: 1 | M68: 1
B69: ="Escalate from base year to " & C38 -> Escalate from base year to | I69: =I68/INDEX($D$66:$M$68,3,MATCH($C$9,$D$66:$M$66,0)) -> 1
D71: =IFERROR((LEFT(E71,4)-1&IF(MID(E71,5,1)="","","-"&TEXT(MOD(MID(E71,6,2)-1,100),"00"))),"") -> 2021-22 | E71: =IFERROR((LEFT(F71,4)-1&IF(MID(F71,5,1)="","","-"&TEXT(MOD(MID(F71,6,2)-1,100),"00"))),"") -> 2022-23 | F71: =IFERROR((LEFT(G71,4)-1&IF(MID(G71,5,1)="","","-"&TEXT(MOD(MID(G71,6,2)-1,100),"00"))),"") -> 2023-24 | G71: =IFERROR((LEFT(H71,4)-1&IF(MID(H71,5,1)="","","-"&TEXT(MOD(MID(H71,6,2)-1,100),"00"))),"") -> 2024-25 | H71: =IFERROR((LEFT(I71,4)-1&IF(MID(I71,5,1)="","","-"&TEXT(MOD(MID(I71,6,2)-1,100),"00"))),"") -> 2025-26 | I71: =$C$8 -> 2026-27 | J71: =IFERROR((LEFT(I71,4)+1&IF(MID(I71,5,1)="","","-"&TEXT(MOD(MID(I71,6,2)+1,100),"00"))),"") -> 2027-28 | K71: =IFERROR((LEFT(J71,4)+1&IF(MID(J71,5,1)="","","-"&TEXT(MOD(MID(J71,6,2)+1,100),"00"))),"") -> 2028-29 | L71: =IFERROR((LEFT(K71,4)+1&IF(MID(K71,5,1)="","","-"&TEXT(MOD(MID(K71,6,2)+1,100),"00"))),"") -> 2029-30 | M71: =IFERROR((LEFT(L71,4)+1&IF(MID(L71,5,1)="","","-"&TEXT(MOD(MID(L71,6,2)+1,100),"00"))),"") -> 2030-31
B72: Other - Real price growth | D72: =-D$31 -> 0 | E72: 0 | F72: 0 | G72: 0 | H72: 0 | I72: 0 | J72: 0 | K72: 0 | L72: 0 | M72: 0
B73: Cumulative Labour - Wage price growth index | D73: =1+D72 -> 1 | E73: =IFERROR(D73*(1+E72),"") -> 1 | F73: 1 | G73: 1 | H73: 1 | I73: 1 | J73: 1 | K73: 1 | L73: 1 | M73: 1
B74: ="Escalate from base year to " & C43 -> Escalate from base year to | I74: =I73/INDEX($D$71:$M$73,3,MATCH($C$9,$D$71:$M$71,0)) -> 1

Sheet Input|Indirect Cost Rates
B1: AER ANS Forecast Model | C1: Key: | D1: Input | F1: Sheet Validation | G1: NA
B2: Input|Indirect Cost Rates | D2: Formula
A5: 5.1 | B5: On costs
B7: On cost drivers | C7: Unit | D7: [label] | E7: [label] | F7: [label] | G7: [label] | H7: [label] | I7: [label] | J7: [label]
B8: Standard leave (annual leave, sick leave, public holidays) | C8: Per cent | D8: 0.1
B9: Superannuation | C9: Per cent | D9: 0.12
B10: Workers Compensation | C10: Per cent | D10: 0.0033
B11: Payroll tax | C11: Per cent | D11: 0.0685
B12: Annual leave loading | C12: Per cent
B13: Long Service leave allowance | C13: Per cent | D13: 0.025
B14: Non-chargeable time | C14: Per cent
B15: Other | C15: Per cent
B16: Allowances | C16: Per cent
C17: Per cent
C18: Per cent
B19: Compounded on cost factor | C19: Per cent | D19: 0.3537544959
A22: 5.2 | B22: Overhead
B24: Type of Overhead | C24: Unit | D24: Input
B25: Contractor management overhead | C25: Per cent | D25: 0.1
B26: Network overhead | C26: Per cent | D26: =1149379/(11807760+4500+674+38559) -> 0.09698178955 | E26: Updated from AusNet 2024-25 actual network OHs
B27: AusNet Corporate Overhead for ACS fee based services | C27: Per cent | D27: 0
C28: Per cent
C29: Per cent
A32: 5.3 | B32: Margins
C34: Unit | D34: Input
B35: Proposed marginal on providing ACS fee based services | C35: Per cent | D35: 0.06
C36: Per cent
C37: Per cent
C38: Per cent
A41: 5.4 | B41: Tax recovery rate
C43: Unit | D43: Input
B44: Tax on ACS applied margin | C44: Per cent | D44: ='Calc|Tax'!C24 -> 0.04586450543
C45: Per cent
C46: Per cent
C47: Per cent

Sheet Input|Fee Based Mapping
B1: =IFERROR(Index!B1,"") -> AER ANS Forecast Model | D1: Key: | E1: Input | G1: Sheet Validation | H1: ='Model Validation'!C15 -> 1
B2: =IFERROR(MID(CELL("filename",A1),FIND("]",CELL("filename",A1))+1,255),"") -> Input|Fee Based Mapping | E2: Formula
M3: For AER input
L4: =E11 -> 2021-22 | M4: =F11 -> 2022-23 | N4: =G11 -> 2023-24 | O4: =H11 -> 2024-25 | P4: =I11 -> 2025-26 | W4: =IFERROR('Input|Setup'!$E$6,"") -> 2026-27 | X4: =IFERROR((LEFT(W4,4)+1&IF(MID(W4,5,1)="","","-"&TEXT(MOD(MID(W4,6,2)+1,100),"00"))),"") -> 2027-28 | Y4: =IFERROR((LEFT(X4,4)+1&IF(MID(X4,5,1)="","","-"&TEXT(MOD(MID(X4,6,2)+1,100),"00"))),"") -> 2028-29 | Z4: =IFERROR((LEFT(Y4,4)+1&IF(MID(Y4,5,1)="","","-"&TEXT(MOD(MID(Y4,6,2)+1,100),"00"))),"") -> 2029-30 | AA4: =IFERROR((LEFT(Z4,4)+1&IF(MID(Z4,5,1)="","","-"&TEXT(MOD(MID(Z4,6,2)+1,100),"00"))),"") -> 2030-31
L5: CPI | M5: ='Input|Escalations'!E16 -> 0.03498293515 | N5: ='Input|Escalations'!F16 -> 0.07831821929 | O5: ='Input|Escalations'!G16 -> 0.04051987768 | P5: ='Input|Escalations'!H16 -> 0.0242468773 | W5: CPI | X5: ='Input|Escalations'!J16 -> 0.032 | Y5: ='Input|Escalations'!K16 -> 0.026 | Z5: ='Input|Escalations'!L16 -> 0.02525 | AA5: ='Input|Escalations'!M16 -> 0.025
L6: X factors | M6: ='[1]Labour Escalators'!M$12*-1 -> -0.006626862471 | N6: ='[1]Labour Escalators'!N$12*-1 -> -0.006091269693 | O6: ='[1]Labour Escalators'!O$12*-1 -> -0.007327727922 | P6: ='[1]Labour Escalators'!P$12*-1 -> -0.009509468237 | W6: X factors | X6: ='Input|Escalations'!J27 -> -0.009550582168 | Y6: ='Input|Escalations'!K27 -> -0.0111993349 | Z6: ='Input|Escalations'!L27 -> -0.01227436192 | AA6: ='Input|Escalations'!M27 -> -0.01202541615
B9: 8.1 Current regulatory period - Fee based services | D9: Mapping categories | E9: =IFERROR("Approved price, $ ($nominal)","") -> Approved price, $ ($nominal) | K9: AER final decision ($ nominal) | S9: 8.2 Forecast regulatory period - Fee based services | W9: =IFERROR("Price of service, $ ($,nominal)","") -> Price of service, $ ($,nominal)
L10: =IF(SUM(L12:L511)=0,0,1) -> 0 | M10: =IF(SUM(M12:M511)=0,0,1) -> 0 | N10: =IF(SUM(N12:N511)=0,0,1) -> 1 | O10: =IF(SUM(O12:O511)=0,0,1) -> 1 | P10: =IF(SUM(P12:P511)=0,0,1) -> 1
B11: Service code | C11: Fee based service | D11: Hours (List) | E11: ='Input|Setup'!B11 -> 2021-22 | F11: ='Input|Setup'!B12 -> 2022-23 | G11: ='Input|Setup'!B13 -> 2023-24 | H11: ='Input|Setup'!B14 -> 2024-25 | I11: ='Input|Setup'!B15 -> 2025-26 | K11: =E11 -> 2021-22 | L11: =E11 -> 2021-22 | M11: =F11 -> 2022-23 | N11: =G11 -> 2023-24 | O11: =H11 -> 2024-25 | P11: =I11 -> 2025-26 | T11: Fee based service | U11: ='Input|Setup'!$B$24 -> Hours | V11: ='Input|Setup'!E30 -> Service category | W11: ='Input|Setup'!E11 -> 2026-27 | X11: =LEFT(W11,4)+1&"-"&RIGHT(W11,2)+1 -> 2027-28 | Y11: =LEFT(X11,4)+1&"-"&RIGHT(X11,2)+1 -> 2028-29 | Z11: =LEFT(Y11,4)+1&"-"&RIGHT(Y11,2)+1 -> 2029-30 | AA11: =LEFT(Z11,4)+1&"-"&RIGHT(Z11,2)+1 -> 2030-31
A12: 1 | B12: 010107 or 010116 | C12: =T12 -> Single-phase overhead - business hours | D12: Business hours | E12: 498.35 | F12: 519.2 | G12: 563.27 | H12: 590.39 | I12: 610.46 | K12: 498.35 | L12: =IF(E12<=K12,0,1) -> 0 | M12: =IF(F12<=ROUND($K12*(1+M$5)*(1-M$6),2),0,1) -> 0 | N12: =IF(G12<=ROUND($K12*(1+M$5)*(1-M$6)*(1+N$5)*(1-N$6),2),0,1) -> 0 | O12: =IF(H12<=ROUND($K12*(1+M$5)*(1-M$6)*(1+N$5)*(1-N$6)*(1+O$5)*(1-O$6),2),0,1) -> 0 | P12: =IF(I12<=ROUND($K12*(1+M$5)*(1-M$6)*(1+N$5)*(1-N$6)*(1+O$5)*(1-O$6)*(1+P$5)*(1-P$6),2),0,1) -> 0 | R12: 1 | S12: ='Calc|Fee Based'!B10 -> 010107NH | T12: ='Calc|Fee Based'!C10 -> Single-phase overhead - business hours | U12: ='Calc|Fee Based'!D10 -> Business hours | V12: ='Calc|Fee Based'!F10 -> Connection service category - ACS fee based | W12: ='Calc|Fee Based'!H10 -> 832.5197056 | X12: =W12*(1+X$5)*(1-X$6) -> 867.3658176 | Y12: 899.8838111 | Z12: 933.9302757 | AA12: 968.7902053
A13: =IFERROR(A12+1,"") -> 2 | B13: 010109 or 010118 | C13: =T13 -> Single-phase underground - business hours | D13: Business hours | E13: 219.01 | F13: 228.17 | G13: 247.54 | H13: 259.46 | I13: 268.28 | K13: 219.01 | L13: =IF(E13<=K13,0,1) -> 0 | M13: =IF(F13<=ROUND($K13*(1+M$5)*(1-M$6),2),0,1) -> 0 | N13: =IF(G13<=ROUND($K13*(1+M$5)*(1-M$6)*(1+N$5)*(1-N$6),2),0,1) -> 0 | O13: =IF(H13<=ROUND($K13*(1+M$5)*(1-M$6)*(1+N$5)*(1-N$6)*(1+O$5)*(1-O$6),2),0,1) -> 0 | P13: =IF(I13<=ROUND($K13*(1+M$5)*(1-M$6)*(1+N$5)*(1-N$6)*(1+O$5)*(1-O$6)*(1+P$5)*(1-P$6),2),0,1) -> 0 | R13: =IFERROR(R12+1,"") -> 2 | S13: ='Calc|Fee Based'!B11 -> 010109NH | T13: ='Calc|Fee Based'!C11 -> Single-phase underground - business hours | U13: ='Calc|Fee Based'!D11 -> Business hours | V13: ='Calc|Fee Based'!F11 -> Connection service category - ACS fee based | W13: ='Calc|Fee Based'!H11 -> 425.4072253 | X13: =W13*(1+X$5)*(1-X$6) -> 443.2131556 | Y13: 459.8294462 | Z13: 477.2267666 | AA13: 495.0397575
A14: =IFERROR(A13+1,"") -> 3 | B14: 010127 or 010128 | C14: Single-phase underground with a directly connected meter on group metering panel - business hours | D14: Business hours | E14: 472.23 | F14: 491.99 | G14: 533.75 | H14: 559.45 | I14: 578.46 | K14: 472.23 | L14: 0 | M14: 0 | N14: 0 | O14: 0 | P14: 0 | R14: =IFERROR(R13+1,"") -> 3 | S14: ='Calc|Fee Based'!B12 -> 010127NH | T14: ='Calc|Fee Based'!C12 -> Single-phase underground with a directly connected meter on group metering panel - business hours | U14: ='Calc|Fee Based'!D12 -> Business hours | V14: ='Calc|Fee Based'!F12 -> Connection service category - ACS fee based | W14: ='Calc|Fee Based'!H12 -> 718.5636421 | X14: 748.6399862 | Y14: 776.7068868 | Z14: 806.0930401 | AA14: 836.1813104
A15: 4 | B15: 010111 or 010120 | C15: Multi-phase overhead with a directly connected meter - business hours | D15: Business hours | E15: 566.34 | F15: 590.04 | G15: 640.13 | H15: 670.95 | I15: 693.75 | K15: 566.34 | L15: 0 | M15: 0 | N15: =IF(G15<=ROUND($K15*(1+M$5)*(1-M$6)*(1+N$5)*(1-N$6),2),0,1) -> 1 | O15: 1 | P15: 1 | R15: =IFERROR(R14+1,"") -> 4 | S15: ='Calc|Fee Based'!B13 -> 010111NH | T15: ='Calc|Fee Based'!C13 -> Multi-phase overhead with a directly connected meter - business hours | U15: ='Calc|Fee Based'!D13 -> Business hours | V15: ='Calc|Fee Based'!F13 -> Connection service category - ACS fee based | W15: ='Calc|Fee Based'!H13 -> 896.1834938 | X15: 933.6943301 | Y15: 968.6990138 | Z15: 1005.349053 | AA15: 1042.874763
A16: 5 | B16: 010112 or 010121 | C16: Multi-phase overhead with a CT connected meter - business hours | D16: Business hours | E16: 1081.27 | F16: 1126.51 | G16: 1222.14 | H16: 1280.98 | I16: 1324.52 | K16: 1081.27 | L16: 0 | M16: 0 | N16: 0 | O16: 0 | P16: 1 | R16: 5 | S16: ='Calc|Fee Based'!B14 -> 010112NH | T16: ='Calc|Fee Based'!C14 -> Multi-phase overhead with a CT connected meter - business hours | U16: ='Calc|Fee Based'!D14 -> Business hours | V16: ='Calc|Fee Based'!F14 -> Connection service category - ACS fee based | W16: ='Calc|Fee Based'!H14 -> 1629.074536 | X16: 1697.261407 | Y16: 1760.892615 | Z16: 1827.514736 | AA16: 1895.728646
A17: 6 | B17: 010113 or 010122 | C17: Multi-phase underground with a directly connected meter - business hours | D17: Business hours | E17: 347.11 | F17: 361.63 | G17: 392.33 | H17: 411.22 | I17: 425.2 | K17: 347.11 | L17: 0 | M17: 0 | N17: 0 | O17: 0 | P17: 0 | R17: 6 | S17: ='Calc|Fee Based'!B15 -> 010113NH | T17: ='Calc|Fee Based'!C15 -> Multi-phase underground with a directly connected meter - business hours | U17: ='Calc|Fee Based'!D15 -> Business hours | V17: ='Calc|Fee Based'!F15 -> Connection service category - ACS fee based | W17: ='Calc|Fee Based'!H15 -> 642.7493074 | X17: 669.6523515 | Y17: 694.7579647 | Z17: 721.0436387 | AA17: 747.9573508
A18: 7 | B18: 010129 of 010130 | C18: Multi-phase underground with a directly connected meter on group metering panel - business hours | D18: Business hours | E18: 604.57 | F18: 629.87 | G18: 683.34 | H18: 716.24 | I18: 740.58 | K18: 604.57 | L18: 0 | M18: 0 | N18: 1 | O18: 1 | P18: 1 | R18: 7 | S18: ='Calc|Fee Based'!B16 -> 010129NH | T18: ='Calc|Fee Based'!C16 -> Multi-phase underground with a directly connected meter on group metering panel - business hours | U18: ='Calc|Fee Based'!D16 -> Business hours | V18: ='Calc|Fee Based'!F16 -> Connection service category - ACS fee based | W18: ='Calc|Fee Based'!H16 -> 935.9057242 | X18: 975.0791821 | Y18: 1011.635405 | Z18: 1049.909912 | AA18: 1089.098904
A19: 8 | B19: 010114 or 010123 | C19: Multi-phase underground with a CT connected meter - business hours | D19: Business hours | E19: 862.04 | F19: 898.11 | G19: 974.35 | H19: 1021.26 | I19: 1055.97 | K19: 862.04 | L19: 0 | M19: 0 | N19: 0 | O19: 0 | P19: 0 | R19: 8 | S19: ='Calc|Fee Based'!B17 -> 010114NH | T19: ='Calc|Fee Based'!C17 -> Multi-phase underground with a CT connected meter - business hours | U19: ='Calc|Fee Based'!D17 -> Business hours | V19: ='Calc|Fee Based'!F17 -> Connection service category - ACS fee based | W19: ='Calc|Fee Based'!H17 -> 1375.640349 | X19: 1433.219428 | Y19: 1486.951566 | Z19: 1543.209322 | AA19: 1600.811233
A20: 9 | B20: 010125 or 010126 | C20: 95mm2 overhead service from LVABC - business hours | D20: Business hours | E20: 852.49 | F20: 888.16 | G20: 963.55 | H20: 1009.94 | I20: 1044.26 | K20: 852.49 | L20: 0 | M20: 0 | N20: 0 | O20: 0 | P20: 0 | R20: 9 | S20: ='Calc|Fee Based'!B18 -> 010125NH | T20: ='Calc|Fee Based'!C18 -> 95mm2 overhead service from LVABC - business hours | U20: ='Calc|Fee Based'!D18 -> Business hours | V20: ='Calc|Fee Based'!F18 -> Connection service category - ACS fee based | W20: ='Calc|Fee Based'!H18 -> 927.4756425 | X20: 966.2962492 | Y20: 1002.523196 | Z20: 1040.452949 | AA20: 1079.288949
A21: 10 | B21: 010115 | C21: Establish temporary supply connection - business hours | D21: Business hours | E21: 494.11 | F21: 514.78 | G21: 558.48 | H21: 585.37 | I21: 605.26 | K21: 494.11 | L21: 0 | M21: 0 | N21: 0 | O21: 0 | P21: 0 | R21: 10 | S21: ='Calc|Fee Based'!B19 ->  | T21: ='Calc|Fee Based'!C19 -> Establish temporary supply connection - business hours | U21: ='Calc|Fee Based'!D19 -> Business hours | V21: ='Calc|Fee Based'!F19 -> Connection service category - ACS fee based | W21: ='Calc|Fee Based'!H19 -> 832.0068448 | X21: 866.8314903 | Y21: 899.3294516 | Z21: 933.3549425 | AA21: 968.1933972
A22: 11 | B22: 021000 | C22: Appointment - inspection of group or CT metering prior to connection - business hours | D22: Business hours | E22: 514.93 | F22: 536.48 | G22: 582.02 | H22: 610.04 | I22: 630.77 | K22: 514.93 | L22: 0 | M22: 0 | N22: 0 | O22: 0 | P22: 0 | R22: 11 | S22: ='Calc|Fee Based'!B20 ->  | T22: ='Calc|Fee Based'!C20 -> Appointment - inspection of group or CT metering prior to connection - business hours | U22: ='Calc|Fee Based'!D20 -> Business hours | V22: ='Calc|Fee Based'!F20 -> Connection service category - ACS fee based | W22: ='Calc|Fee Based'!H20 -> 732.891042 | X22: 763.5670767 | Y22: 792.1936016 | Z22: 822.1656837 | AA22: 852.8538824
A23: 12 | B23: 030000 | C23: Service truck - Disconnect/Reconnect at pole or pit - business hours | D23: Business hours | E23: 567.41 | F23: 591.15 | G23: 641.33 | H23: 672.21 | I23: 695.06 | K23: 567.41 | L23: 0 | M23: 0 | N23: 0 | O23: 0 | P23: 0 | R23: 12 | S23: ='Calc|Fee Based'!B21 -> 010115NH | T23: ='Calc|Fee Based'!C21 -> Service truck - Disconnect/Reconnect at pole or pit - business hours | U23: ='Calc|Fee Based'!D21 -> Business hours | V23: ='Calc|Fee Based'!F21 -> Connection service category - ACS fee based | W23: ='Calc|Fee Based'!H21 -> 735.2966957 | X23: 766.0734219 | Y23: 794.793911 | Z23: 824.8643739 | AA23: 855.6533041
A24: 13 | B24: 010107AH or 010116AH | C24: Single-phase overhead - after hours | D24: After hours | E24: 872.12 | F24: 908.61 | G24: 985.74 | H24: 1033.2 | I24: 1068.32 | K24: 872.12 | L24: 0 | M24: 0 | N24: 0 | O24: 0 | P24: 1 | R24: 13 | S24: ='Calc|Fee Based'!B22 -> 010107AH | T24: ='Calc|Fee Based'!C22 -> Single-phase overhead - after hours | U24: ='Calc|Fee Based'!D22 -> After hours | V24: ='Calc|Fee Based'!F22 -> Connection service category - ACS fee based | W24: ='Calc|Fee Based'!H22 -> 1456.011978 | X24: 1516.955108 | Y24: 1573.82654 | Z24: 1633.371149 | AA24: 1694.338445
A25: 14 | B25: 010109AH or 010118AH | C25: Single-phase underground - after hours | D25: After hours | E25: 383.27 | F25: 399.31 | G25: 433.21 | H25: 454.07 | I25: 469.5 | K25: 383.27 | L25: 0 | M25: 0 | N25: =IF(G25<=ROUND($K25*(1+M$5)*(1-M$6)*(1+N$5)*(1-N$6),2),0,1) -> 1 | O25: 1 | P25: 1 | R25: 14 | S25: ='Calc|Fee Based'!B23 -> 010109AH | T25: ='Calc|Fee Based'!C23 -> Single-phase underground - after hours | U25: ='Calc|Fee Based'!D23 -> After hours | V25: ='Calc|Fee Based'!F23 -> Connection service category - ACS fee based | W25: ='Calc|Fee Based'!H23 -> 744.4626443 | X25: 775.6230222 | Y25: 804.7015308 | Z25: 835.1468415 | AA25: 866.3195756
A26: 15 | B26: 010127AH or 010128AH | C26: Single-phase underground with a directly connected meter on group metering panel - after hours | D26: After hours | E26: 0 | F26: 0 | G26: 0 | H26: 0 | I26: 0 | K26: 0 | L26: 0 | M26: 0 | N26: 0 | O26: 0 | P26: 0 | R26: 15 | S26: ='Calc|Fee Based'!B24 -> 010127AH | T26: ='Calc|Fee Based'!C24 -> Single-phase underground with a directly connected meter on group metering panel - after hours | U26: ='Calc|Fee Based'!D24 -> After hours | V26: ='Calc|Fee Based'!F24 -> Connection service category - ACS fee based | W26: ='Calc|Fee Based'!H24 -> 1257.486374 | X26: 1310.119976 | Y26: 1359.237052 | Z26: 1410.66282 | AA26: 1463.317293
A27: 16 | B27: 010111AH or 010120AH | C27: Multi-phase overhead with a directly connected meter - after hours | D27: After hours | E27: 991.1 | F27: 1032.57 | G27: 1120.22 | H27: 1174.15 | I27: 1214.06 | K27: 991.1 | L27: 0 | M27: 0 | N27: 0 | O27: 0 | P27: 0 | R27: 16 | S27: ='Calc|Fee Based'!B25 -> 010111AH | T27: ='Calc|Fee Based'!C25 -> Multi-phase overhead with a directly connected meter - after hours | U27: ='Calc|Fee Based'!D25 -> After hours | V27: ='Calc|Fee Based'!F25 -> Connection service category - ACS fee based | W27: ='Calc|Fee Based'!H25 -> 1568.321114 | X27: 1633.965078 | Y27: 1695.223274 | Z27: 1759.360842 | AA27: 1825.030836
A28: 17 | B28: 010129AH or 010130AH | C28: Multi-phase underground with a directly connected meter on group metering panel - after hours | D28: After hours | E28: 0 | F28: 0 | G28: 0 | H28: 0 | I28: 0 | K28: 0 | L28: 0 | M28: 0 | N28: 0 | O28: 0 | P28: 0 | R28: 17 | S28: ='Calc|Fee Based'!B26 -> 010129AH | T28: ='Calc|Fee Based'!C26 -> Multi-phase underground with a directly connected meter on group metering panel - after hours | U28: ='Calc|Fee Based'!D26 -> After hours | V28: ='Calc|Fee Based'!F26 -> Connection service category - ACS fee based | W28: ='Calc|Fee Based'!H26 -> 2407.370612 | X28: 2508.133999 | Y28: 2602.165241 | Z28: 2700.616314 | AA28: 2801.419658
A29: 18 | B29: 010112AH or 010121AH | C29: Multi-phase overhead with a CT connected meter - after hours | D29: After hours | E29: 1822.22 | F29: 1898.46 | G29: 2059.61 | H29: 2158.77 | I29: 2232.14 | K29: 1822.22 | L29: 0 | M29: 0 | N29: 0 | O29: 0 | P29: 0 | R29: 18 | S29: ='Calc|Fee Based'!B27 -> 010112AH | T29: ='Calc|Fee Based'!C27 -> Multi-phase overhead with a CT connected meter - after hours | U29: ='Calc|Fee Based'!D27 -> After hours | V29: ='Calc|Fee Based'!F27 -> Connection service category - ACS fee based | W29: ='Calc|Fee Based'!H27 -> 2850.880438 | X29: 2970.207462 | Y29: 3081.562077 | Z29: 3198.150789 | AA29: 3317.52513
A30: 19 | B30: 010113AH or 010122AH | C30: Multi-phase underground with a directly connected meter - after hours | D30: After hours | E30: 1307.29 | F30: 1361.99 | G30: 1477.6 | H30: 1548.74 | I30: 1601.38 | K30: 1307.29 | L30: 0 | M30: 0 | N30: 0 | O30: 0 | P30: 0 | R30: 19 | S30: ='Calc|Fee Based'!B28 -> 010113AH | T30: ='Calc|Fee Based'!C28 -> Multi-phase underground with a directly connected meter - after hours | U30: ='Calc|Fee Based'!D28 -> After hours | V30: ='Calc|Fee Based'!F28 -> Connection service category - ACS fee based | W30: ='Calc|Fee Based'!H28 -> 1124.811288 | X30: 1171.891615 | Y30: 1215.826438 | Z30: 1261.826368 | AA30: 1308.925364
A31: 20 | B31: 010114AH or 010123AH | C31: Multi-phase underground with a CT connected meter - after hours | D31: After hours | E31: 1508.57 | F31: 1571.69 | G31: 1705.11 | H31: 1787.2 | I31: 1847.94 | K31: 1508.57 | L31: 0 | M31: 0 | N31: 0 | O31: 0 | P31: 0 | R31: 20 | S31: ='Calc|Fee Based'!B29 -> 010114AH | T31: ='Calc|Fee Based'!C29 -> Multi-phase underground with a CT connected meter - after hours | U31: ='Calc|Fee Based'!D29 -> After hours | V31: ='Calc|Fee Based'!F29 -> Connection service category - ACS fee based | W31: ='Calc|Fee Based'!H29 -> 2407.370612 | X31: 2508.133999 | Y31: 2602.165241 | Z31: 2700.616314 | AA31: 2801.419658
A32: 21 | B32: 010125AH or 010126AH | C32: 95mm2 overhead service from LVABC - after hours | D32: After hours | E32: 1491.86 | F32: 1554.28 | G32: 1686.22 | H32: 1767.4 | I32: 1827.47 | K32: 1491.86 | L32: 0 | M32: 0 | N32: 0 | O32: 0 | P32: 0 | R32: 21 | S32: ='Calc|Fee Based'!B30 -> 010125AH | T32: ='Calc|Fee Based'!C30 -> 95mm2 overhead service from LVABC - after hours | U32: ='Calc|Fee Based'!D30 -> After hours | V32: ='Calc|Fee Based'!F30 -> Connection service category - ACS fee based | W32: ='Calc|Fee Based'!H30 -> 1623.082374 | X32: =W32*(1+X$5)*(1-X$6) -> 1691.018436 | Y32: 1754.415593 | Z32: 1820.79266 | AA32: 1888.755661
A33: 22 | B33: 010115AH | C33: Establish temporary supply connection - after hours | D33: After hours | E33: 864.69 | F33: 900.87 | G33: 977.34 | H33: 1024.39 | I33: 1059.21 | K33: 864.69 | L33: 0 | M33: 0 | N33: 0 | O33: 0 | P33: 0 | R33: 22 | S33: ='Calc|Fee Based'!B31 ->  | T33: ='Calc|Fee Based'!C31 -> Establish temporary supply connection - after hours | U33: ='Calc|Fee Based'!D31 -> After hours | V33: ='Calc|Fee Based'!F31 -> Connection service category - ACS fee based | W33: ='Calc|Fee Based'!H31 -> 1456.011978 | X33: 1516.955108 | Y33: 1573.82654 | Z33: 1633.371149 | AA33: 1694.338445
A34: 23 | B34: 030000AH | C34: Service truck - Disconnect / Reconnect at pole or pit – After Hours | D34: After hours | E34: 0 | F34: 0 | G34: 0 | H34: 0 | I34: 0 | K34: 0 | L34: 0 | M34: 0 | N34: 0 | O34: 0 | P34: 0 | R34: 23 | S34: ='Calc|Fee Based'!B32 -> 010115AH | T34: ='Calc|Fee Based'!C32 -> Service truck - Disconnect / Reconnect at pole or pit – After Hours | U34: ='Calc|Fee Based'!D32 -> After hours | V34: ='Calc|Fee Based'!F32 -> Connection service category - ACS fee based | W34: ='Calc|Fee Based'!H32 -> 1286.769217 | X34: 1340.628488 | Y34: 1390.889344 | Z34: 1443.512654 | AA34: 1497.393282
A35: 24 | B35: 060100 | C35: Meter equipment test | D35: Business hours | E35: 311.67 | F35: 324.71 | G35: 352.27 | H35: 369.23 | I35: 381.78 | K35: 311.67 | L35: 0 | M35: 0 | N35: 0 | O35: 0 | P35: 0 | R35: 24 | S35: ='Calc|Fee Based'!B33 -> 060100 | T35: ='Calc|Fee Based'!C33 -> Meter equipment test | U35: ='Calc|Fee Based'!D33 -> Business hours | V35: ='Calc|Fee Based'!F33 -> Metering ancillary services - ACS fee based | W35: ='Calc|Fee Based'!H33 -> 423.3510571 | X35: 441.070924 | Y35: 457.6069012 | Z35: 474.9201332 | AA35: 492.6470266
A36: 25 | B36: 060100 | C36: Meter equipment test - Each additional meter at same site | D36: Business hours | E36: 71.86 | F36: 74.87 | G36: 81.23 | H36: 85.14 | I36: 88.03 | K36: 71.86 | L36: 0 | M36: 0 | N36: 1 | O36: 1 | P36: 0 | R36: 25 | S36: ='Calc|Fee Based'!B34 -> 060100 | T36: ='Calc|Fee Based'!C34 -> Meter equipment test - Each additional meter at same site | U36: ='Calc|Fee Based'!D34 -> Business hours | V36: ='Calc|Fee Based'!F34 -> Metering ancillary services - ACS fee based | W36: ='Calc|Fee Based'!H34 -> 97.62321639 | X36: 101.7093533 | Y36: 105.5224896 | Z36: 109.5148581 | AA36: 113.6026153
A37: 26 | C37: Meter equipment test - 3-phase meter | D37: Business hours | E37: =E35 -> 311.67 | F37: 324.71 | G37: 352.27 | H37: 369.23 | I37: 381.78 | K37: 311.67 | L37: 0 | M37: 0 | N37: 0 | O37: 0 | P37: 0 | R37: 26 | S37: ='Calc|Fee Based'!B35 ->  | T37: ='Calc|Fee Based'!C35 -> Meter equipment test - 3-phase meter | U37: ='Calc|Fee Based'!D35 -> Business hours | V37: ='Calc|Fee Based'!F35 -> Metering ancillary services - ACS fee based | W37: ='Calc|Fee Based'!H35 -> 423.3510571 | X37: 441.070924 | Y37: 457.6069012 | Z37: 474.9201332 | AA37: 492.6470266
A38: 27 | C38: =T38 -> Meter equipment test - Each additional 3-phase meter at same site | D38: Business hours | E38: 71.86 | F38: 74.87 | G38: 81.23 | H38: 85.14 | I38: 88.03 | K38: 71.86 | L38: 0 | M38: 0 | N38: 1 | O38: 1 | P38: 0 | R38: 27 | S38: ='Calc|Fee Based'!B36 ->  | T38: ='Calc|Fee Based'!C36 -> Meter equipment test - Each additional 3-phase meter at same site | U38: ='Calc|Fee Based'!D36 -> Business hours | V38: ='Calc|Fee Based'!F36 -> Metering ancillary services - ACS fee based | W38: ='Calc|Fee Based'!H36 -> 97.62321639 | X38: 101.7093533 | Y38: 105.5224896 | Z38: 109.5148581 | AA38: 113.6026153
A39: 28 | B39: 060400 | C39: =T39 -> Wasted Truck Visit – customer not ready for their requested works | D39: Business hours | E39: 211.04 | F39: 219.87 | G39: 238.53 | H39: 250.01 | I39: 258.51 | K39: 211.04 | L39: 0 | M39: 0 | N39: 0 | O39: 0 | P39: 0 | R39: 28 | S39: ='Calc|Fee Based'!B37 -> 030001NH | T39: ='Calc|Fee Based'!C37 -> Wasted Truck Visit – customer not ready for their requested works | U39: ='Calc|Fee Based'!D37 -> Business hours | V39: ='Calc|Fee Based'!F37 -> Network ancillary services - ACS fee based | W39: ='Calc|Fee Based'!H37 -> 398.6850111 | X39: 415.372451 | Y39: 430.9449791 | Z39: 447.2494763 | AA39: 463.9435333
A40: 29 | B40: 100101 | C40: Manual assessment of PV & small generator installation enquiry, 4.6kW to 15kW | D40: Business hours | E40: 325.79 | F40: 339.42 | G40: 368.23 | H40: 385.96 | I40: 399.08 | K40: 325.79 | L40: 0 | M40: 0 | N40: 0 | O40: 0 | P40: 0 | R40: 29 | S40: ='Calc|Fee Based'!B38 -> 100101NH | T40: ='Calc|Fee Based'!C38 -> Manual assessment of PV & small generator installation enquiry, 4.6kW to 15kW | U40: ='Calc|Fee Based'!D38 -> Business hours | V40: ='Calc|Fee Based'!F38 -> Network ancillary services - ACS fee based | W40: ='Calc|Fee Based'!H38 -> 442.5295405 | X40: 461.0521458 | Y40: 478.3372294 | Z40: 496.4347786 | AA40: 514.9647288
A41: 30 | B41: 100102 | C41: Manual assessment of PV & small generator installation enquiry, 15kW to 30kW | D41: Business hours | E41: 325.79 | F41: 339.42 | G41: 368.23 | H41: 385.96 | I41: 399.08 | K41: 325.79 | L41: 0 | M41: 0 | N41: 0 | O41: 0 | P41: 0 | R41: 30 | S41: ='Calc|Fee Based'!B39 -> 100102NH | T41: ='Calc|Fee Based'!C39 -> Manual assessment of PV & small generator installation enquiry, 15kW to 30kW | U41: ='Calc|Fee Based'!D39 -> Business hours | V41: ='Calc|Fee Based'!F39 -> Network ancillary services - ACS fee based | W41: ='Calc|Fee Based'!H39 -> 442.5295405 | X41: 461.0521458 | Y41: 478.3372294 | Z41: 496.4347786 | AA41: 514.9647288
A42: 31 | B42: 020900 | C42: Remote special meter read | D42: Business hours | E42: 0 | F42: 0 | G42: 0 | H42: 0 | I42: 0 | K42: 0 | L42: 0 | M42: 0 | N42: 0 | O42: 0 | P42: 0 | R42: 31 | S42: ='Calc|Fee Based'!B40 ->  | T42: ='Calc|Fee Based'!C40 -> Remote special meter read | U42: ='Calc|Fee Based'!D40 -> Business hours | V42: ='Calc|Fee Based'!F40 -> Metering ancillary services - ACS fee based | W42: ='Calc|Fee Based'!H40 -> 0 | X42: 0 | Y42: 0 | Z42: 0 | AA42: 0
A43: 32 | B43: 020710 | C43: Remote re-energisation | D43: Business hours | E43: 0 | F43: 0 | G43: 0 | H43: 0 | I43: 0 | K43: 0 | L43: 0 | M43: 0 | N43: 0 | O43: 0 | P43: 0 | R43: 32 | S43: ='Calc|Fee Based'!B41 ->  | T43: ='Calc|Fee Based'!C41 -> Remote re-energisation | U43: ='Calc|Fee Based'!D41 -> Business hours | V43: ='Calc|Fee Based'!F41 -> Metering ancillary services - ACS fee based | W43: ='Calc|Fee Based'!H41 -> 0 | X43: 0 | Y43: 0 | Z43: 0 | AA43: 0
A44: 33 | B44: 020720 | C44: Remote de-energisation | D44: Business hours | E44: 0 | F44: 0 | G44: 0 | H44: 0 | I44: 0 | K44: 0 | L44: 0 | M44: 0 | N44: 0 | O44: 0 | P44: 0 | R44: 33 | S44: ='Calc|Fee Based'!B42 ->  | T44: ='Calc|Fee Based'!C42 -> Remote de-energisation | U44: ='Calc|Fee Based'!D42 -> Business hours | V44: ='Calc|Fee Based'!F42 -> Metering ancillary services - ACS fee based | W44: ='Calc|Fee Based'!H42 -> 0 | X44: 0 | Y44: 0 | Z44: 0 | AA44: 0
A45: 34 | B45: 100104 | C45: Remote meter re-configuration | D45: Business hours | E45: 15.11 | F45: 15.74 | G45: 17.08 | H45: 17.9 | I45: 18.51 | K45: 15.11 | L45: 0 | M45: 0 | N45: 0 | O45: 0 | P45: 0 | R45: 34 | S45: ='Calc|Fee Based'!B43 ->  | T45: ='Calc|Fee Based'!C43 -> Remote meter re-configuration | U45: ='Calc|Fee Based'!D43 -> Business hours | V45: ='Calc|Fee Based'!F43 -> Metering ancillary services - ACS fee based | W45: ='Calc|Fee Based'!H43 -> 20.52896499 | X45: 21.38822947 | Y45: 22.19008526 | Z45: 23.02963137 | AA45: 23.88923658
A46: 35 | B46: 020600 | C46: Field officer visit - business hours | D46: Business hours | E46: 34.8 | F46: 36.26 | G46: 39.34 | H46: 41.23 | I46: 42.63 | K46: 34.8 | L46: 0 | M46: 0 | N46: 1 | O46: 0 | P46: 0 | R46: 35 | S46: ='Calc|Fee Based'!B44 ->  | T46: ='Calc|Fee Based'!C44 -> Field officer visit - business hours | U46: ='Calc|Fee Based'!D44 -> Business hours | V46: ='Calc|Fee Based'!F44 -> Metering ancillary services - ACS fee based | W46: ='Calc|Fee Based'!H44 -> 47.27438431 | X46: 49.25311043 | Y46: 51.09963503 | Z46: 53.03295342 | AA46: 55.01246418
A47: 36 | C47: Manual meter reading | D47: Business hours | E47: 34.8 | F47: 36.26 | G47: 39.34 | H47: 41.23 | I47: 42.63 | K47: 34.8 | L47: 0 | M47: 0 | N47: 1 | O47: 0 | P47: 0 | R47: 36 | S47: ='Calc|Fee Based'!B45 ->  | T47: ='Calc|Fee Based'!C45 -> Manual meter reading | U47: ='Calc|Fee Based'!D45 -> Business hours | V47: ='Calc|Fee Based'!F45 -> Metering ancillary services - ACS fee based | W47: ='Calc|Fee Based'!H45 -> 47.27438431 | X47: 49.25311043 | Y47: 51.09963503 | Z47: 53.03295342 | AA47: 55.01246418
A48: 37 | B48: 020800 | C48: Priority re-energisation | D48: Business hours | E48: 33.69 | F48: 35.1 | G48: 38.08 | H48: 39.91 | I48: 41.27 | K48: 33.69 | L48: 0 | M48: 0 | N48: 0 | O48: 0 | P48: 0 | R48: 37 | S48: ='Calc|Fee Based'!B46 ->  | T48: ='Calc|Fee Based'!C46 -> Priority re-energisation | U48: ='Calc|Fee Based'!D46 -> Business hours | V48: ='Calc|Fee Based'!F46 -> Metering ancillary services - ACS fee based | W48: ='Calc|Fee Based'!H46 -> 47.89752624 | X48: 49.90233472 | Y48: 51.77319907 | Z48: 53.73200128 | AA48: 55.73760473
A49: 38 | C49: Non-standard AMI data subscription (per month) | D49: Business hours | E49: 0.85 | F49: 0.89 | G49: 0.97 | H49: 1.02 | I49: 1.05 | K49: 0.85 | L49: 0 | M49: 0 | N49: 1 | O49: 1 | P49: 1 | R49: 38 | S49: ='Calc|Fee Based'!B47 ->  | T49: ='Calc|Fee Based'!C47 -> Non-standard AMI data subscription (per month) | U49: ='Calc|Fee Based'!D47 -> Business hours | V49: ='Calc|Fee Based'!F47 -> Connection service category - ACS fee based | W49: ='Calc|Fee Based'!H47 -> 0 | X49: 0 | Y49: 0 | Z49: 0 | AA49: 0
A50: 39 | C50: Type 7 metering services - Per NMI | D50: Business hours | E50: 30 | F50: 31.26 | G50: 33.91 | H50: 35.54 | I50: 36.75 | K50: 30 | L50: 0 | M50: 0 | N50: 0 | O50: 0 | P50: 0 | R50: 39 | S50: ='Calc|Fee Based'!B48 ->  | T50: ='Calc|Fee Based'!C48 -> Type 7 metering services - Per NMI | U50: ='Calc|Fee Based'!D48 -> Business hours | V50: ='Calc|Fee Based'!F48 -> Metering ancillary services - ACS fee based | W50: ='Calc|Fee Based'!H48 -> 40.7530287 | X50: 42.45879565 | Y50: 44.05059788 | Z50: 45.71722095 | AA50: 47.4236643
A51: 40 | C51: Type 7 metering services - Per light | D51: Business hours | E51: 1.76 | F51: 1.83 | G51: 1.99 | H51: 2.09 | I51: 2.16 | K51: 1.76 | L51: 0 | M51: 0 | N51: 0 | O51: 0 | P51: 0 | R51: 40 | S51: ='Calc|Fee Based'!B49 ->  | T51: ='Calc|Fee Based'!C49 -> Type 7 metering services - Per light | U51: ='Calc|Fee Based'!D49 -> Business hours | V51: ='Calc|Fee Based'!F49 -> Metering ancillary services - ACS fee based | W51: ='Calc|Fee Based'!H49 -> 2.398691616 | X51: 2.499091734 | Y51: 2.592783977 | Z51: 2.690880117 | AA51: 2.791320047
A52: 41 | B52: 020600AH | C52: Field officer visit - after hours | D52: Business hours | E52: 60.91 | F52: 63.46 | G52: 68.85 | H52: 72.16 | I52: 74.61 | K52: 60.91 | L52: 0 | M52: 0 | N52: 0 | O52: 0 | P52: 0 | R52: 41 | S52: ='Calc|Fee Based'!B50 ->  | T52: ='Calc|Fee Based'!C50 -> Field officer visit - after hours | U52: ='Calc|Fee Based'!D50 -> After hours | V52: ='Calc|Fee Based'!F50 -> Metering ancillary services - ACS fee based | W52: ='Calc|Fee Based'!H50 -> 82.74693332 | X52: =W52*(1+X$5)*(1-X$6) -> 86.21040558 | Y52: 89.44247831 | Z52: 92.82647093 | AA52: 96.29131657
A53: 42 | B53: ORM01 | C53: Security and watchmen lights | D53: Business hours | E53: 60.88 | F53: 63.43 | G53: 68.81 | H53: 72.12 | I53: 74.57 | K53: 60.88 | L53: 0 | M53: 0 | N53: 0 | O53: 0 | P53: 0 | R53: 42 | S53: ='Calc|Fee Based'!B51 ->  | T53: ='Calc|Fee Based'!C51 -> Security and watchmen lights | U53: ='Calc|Fee Based'!D51 -> After hours | V53: ='Calc|Fee Based'!F51 -> Security lighting services - ACS fee based | W53: ='Calc|Fee Based'!H51 -> 148.8661714 | X53: 155.0971438 | Y53: 160.911816 | Z53: 166.9998002 | AA53: 173.2332434
A54: 43 | C54: Type 9 metering services - Per light Per Year | D54: Business hours | E54: 0 | F54: 0 | G54: 0 | H54: 0 | I54: 0 | K54: 0 | L54: 0 | M54: 0 | N54: 0 | O54: 0 | P54: 0 | R54: 43 | S54: ='Calc|Fee Based'!B52 ->  | T54: ='Calc|Fee Based'!C52 -> Type 9 meter data services - Per light Per Year | U54: ='Calc|Fee Based'!D52 -> Business hours | V54: ='Calc|Fee Based'!F52 -> Metering ancillary services - ACS fee based | W54: ='Calc|Fee Based'!H52 -> 6.053434939 | X54: 6.306808728 | Y54: 6.543254251 | Z54: 6.790813627 | AA54: 7.044287887
A55: 44 | L55: 0 | M55: 0 | N55: 0 | O55: 0 | P55: 0 | R55: 44 | S55: ='Calc|Fee Based'!B53 ->  | T55: ='Calc|Fee Based'!C53 ->  | U55: ='Calc|Fee Based'!D53 ->  | V55: ='Calc|Fee Based'!F53 ->  | W55: ='Calc|Fee Based'!H53 -> 0 | X55: 0 | Y55: 0 | Z55: 0 | AA55: 0
A56: 45 | L56: 0 | M56: 0 | N56: 0 | O56: 0 | P56: 0 | R56: 45 | S56: ='Calc|Fee Based'!B54 ->  | T56: ='Calc|Fee Based'!C54 ->  | U56: ='Calc|Fee Based'!D54 ->  | V56: ='Calc|Fee Based'!F54 ->  | W56: ='Calc|Fee Based'!H54 -> 0 | X56: 0 | Y56: 0 | Z56: 0 | AA56: 0
A57: 46 | L57: 0 | M57: 0 | N57: 0 | O57: 0 | P57: 0 | R57: 46 | S57: ='Calc|Fee Based'!B55 ->  | T57: ='Calc|Fee Based'!C55 ->  | U57: ='Calc|Fee Based'!D55 ->  | V57: ='Calc|Fee Based'!F55 ->  | W57: ='Calc|Fee Based'!H55 -> 0 | X57: 0 | Y57: 0 | Z57: 0 | AA57: 0
A58: 47 | L58: 0 | M58: 0 | N58: 0 | O58: 0 | P58: 0 | R58: 47 | S58: ='Calc|Fee Based'!B56 ->  | T58: ='Calc|Fee Based'!C56 ->  | U58: ='Calc|Fee Based'!D56 ->  | V58: ='Calc|Fee Based'!F56 ->  | W58: ='Calc|Fee Based'!H56 -> 0 | X58: 0 | Y58: 0 | Z58: 0 | AA58: 0
A59: 48 | L59: 0 | M59: 0 | N59: 0 | O59: 0 | P59: 0 | R59: 48 | S59: ='Calc|Fee Based'!B57 ->  | T59: ='Calc|Fee Based'!C57 ->  | U59: ='Calc|Fee Based'!D57 ->  | V59: ='Calc|Fee Based'!F57 ->  | W59: ='Calc|Fee Based'!H57 -> 0 | X59: 0 | Y59: 0 | Z59: 0 | AA59: 0
A60: 49 | L60: 0 | M60: 0 | N60: 0 | O60: 0 | P60: 0 | R60: 49 | S60: ='Calc|Fee Based'!B58 ->  | T60: ='Calc|Fee Based'!C58 ->  | U60: ='Calc|Fee Based'!D58 ->  | V60: ='Calc|Fee Based'!F58 ->  | W60: ='Calc|Fee Based'!H58 -> 0 | X60: 0 | Y60: 0 | Z60: 0 | AA60: 0
A61: 50 | L61: 0 | M61: 0 | N61: 0 | O61: 0 | P61: 0 | R61: 50 | S61: ='Calc|Fee Based'!B59 ->  | T61: ='Calc|Fee Based'!C59 ->  | U61: ='Calc|Fee Based'!D59 ->  | V61: ='Calc|Fee Based'!F59 ->  | W61: ='Calc|Fee Based'!H59 -> 0 | X61: 0 | Y61: 0 | Z61: 0 | AA61: 0
A62: 51 | L62: 0 | M62: 0 | N62: 0 | O62: 0 | P62: 0 | R62: 51 | S62: ='Calc|Fee Based'!B60 ->  | T62: ='Calc|Fee Based'!C60 ->  | U62: ='Calc|Fee Based'!D60 ->  | V62: ='Calc|Fee Based'!F60 ->  | W62: ='Calc|Fee Based'!H60 -> 0 | X62: 0 | Y62: 0 | Z62: 0 | AA62: 0
A63: 52 | L63: 0 | M63: 0 | N63: 0 | O63: 0 | P63: 0 | R63: 52 | S63: ='Calc|Fee Based'!B61 ->  | T63: ='Calc|Fee Based'!C61 ->  | U63: ='Calc|Fee Based'!D61 ->  | V63: ='Calc|Fee Based'!F61 ->  | W63: ='Calc|Fee Based'!H61 -> 0 | X63: 0 | Y63: 0 | Z63: 0 | AA63: 0
A64: 53 | L64: 0 | M64: 0 | N64: 0 | O64: 0 | P64: 0 | R64: 53 | S64: ='Calc|Fee Based'!B62 ->  | T64: ='Calc|Fee Based'!C62 ->  | U64: ='Calc|Fee Based'!D62 ->  | V64: ='Calc|Fee Based'!F62 ->  | W64: ='Calc|Fee Based'!H62 -> 0 | X64: 0 | Y64: 0 | Z64: 0 | AA64: 0
A65: 54 | L65: 0 | M65: 0 | N65: 0 | O65: 0 | P65: 0 | R65: 54 | S65: ='Calc|Fee Based'!B63 ->  | T65: ='Calc|Fee Based'!C63 ->  | U65: ='Calc|Fee Based'!D63 ->  | V65: ='Calc|Fee Based'!F63 ->  | W65: ='Calc|Fee Based'!H63 -> 0 | X65: 0 | Y65: 0 | Z65: 0 | AA65: 0
A66: 55 | L66: 0 | M66: 0 | N66: 0 | O66: 0 | P66: 0 | R66: 55 | S66: ='Calc|Fee Based'!B64 ->  | T66: ='Calc|Fee Based'!C64 ->  | U66: ='Calc|Fee Based'!D64 ->  | V66: ='Calc|Fee Based'!F64 ->  | W66: ='Calc|Fee Based'!H64 -> 0 | X66: 0 | Y66: 0 | Z66: 0 | AA66: 0
A67: 56 | L67: 0 | M67: 0 | N67: 0 | O67: 0 | P67: 0 | R67: 56 | S67: ='Calc|Fee Based'!B65 ->  | T67: ='Calc|Fee Based'!C65 ->  | U67: ='Calc|Fee Based'!D65 ->  | V67: ='Calc|Fee Based'!F65 ->  | W67: ='Calc|Fee Based'!H65 -> 0 | X67: 0 | Y67: 0 | Z67: 0 | AA67: 0
A68: 57 | L68: 0 | M68: 0 | N68: 0 | O68: 0 | P68: 0 | R68: 57 | S68: ='Calc|Fee Based'!B66 ->  | T68: ='Calc|Fee Based'!C66 ->  | U68: ='Calc|Fee Based'!D66 ->  | V68: ='Calc|Fee Based'!F66 ->  | W68: ='Calc|Fee Based'!H66 -> 0 | X68: 0 | Y68: 0 | Z68: 0 | AA68: 0
A69: 58 | L69: 0 | M69: 0 | N69: 0 | O69: 0 | P69: 0 | R69: 58 | S69: ='Calc|Fee Based'!B67 ->  | T69: ='Calc|Fee Based'!C67 ->  | U69: ='Calc|Fee Based'!D67 ->  | V69: ='Calc|Fee Based'!F67 ->  | W69: ='Calc|Fee Based'!H67 -> 0 | X69: 0 | Y69: 0 | Z69: 0 | AA69: 0
A70: 59 | L70: 0 | M70: 0 | N70: 0 | O70: 0 | P70: 0 | R70: 59 | S70: ='Calc|Fee Based'!B68 ->  | T70: ='Calc|Fee Based'!C68 ->  | U70: ='Calc|Fee Based'!D68 ->  | V70: ='Calc|Fee Based'!F68 ->  | W70: ='Calc|Fee Based'!H68 -> 0 | X70: 0 | Y70: 0 | Z70: 0 | AA70: 0
A71: 60 | L71: 0 | M71: 0 | N71: 0 | O71: 0 | P71: 0 | R71: 60 | S71: ='Calc|Fee Based'!B69 ->  | T71: ='Calc|Fee Based'!C69 ->  | U71: ='Calc|Fee Based'!D69 ->  | V71: ='Calc|Fee Based'!F69 ->  | W71: ='Calc|Fee Based'!H69 -> 0 | X71: 0 | Y71: 0 | Z71: 0 | AA71: 0
A72: 61 | L72: 0 | M72: 0 | N72: 0 | O72: 0 | P72: 0 | R72: 61 | S72: ='Calc|Fee Based'!B70 ->  | T72: ='Calc|Fee Based'!C70 ->  | U72: ='Calc|Fee Based'!D70 ->  | V72: ='Calc|Fee Based'!F70 ->  | W72: ='Calc|Fee Based'!H70 -> 0 | X72: =W72*(1+X$5)*(1-X$6) -> 0 | Y72: 0 | Z72: 0 | AA72: 0
A73: 62 | L73: 0 | M73: 0 | N73: 0 | O73: 0 | P73: 0 | R73: 62 | S73: ='Calc|Fee Based'!B71 ->  | T73: ='Calc|Fee Based'!C71 ->  | U73: ='Calc|Fee Based'!D71 ->  | V73: ='Calc|Fee Based'!F71 ->  | W73: ='Calc|Fee Based'!H71 -> 0 | X73: 0 | Y73: 0 | Z73: 0 | AA73: 0
A74: 63 | L74: 0 | M74: 0 | N74: 0 | O74: 0 | P74: 0 | R74: 63 | S74: ='Calc|Fee Based'!B72 ->  | T74: ='Calc|Fee Based'!C72 ->  | U74: ='Calc|Fee Based'!D72 ->  | V74: ='Calc|Fee Based'!F72 ->  | W74: ='Calc|Fee Based'!H72 -> 0 | X74: 0 | Y74: 0 | Z74: 0 | AA74: 0
A75: 64 | L75: 0 | M75: 0 | N75: 0 | O75: 0 | P75: 0 | R75: 64 | S75: ='Calc|Fee Based'!B73 ->  | T75: ='Calc|Fee Based'!C73 ->  | U75: ='Calc|Fee Based'!D73 ->  | V75: ='Calc|Fee Based'!F73 ->  | W75: ='Calc|Fee Based'!H73 -> 0 | X75: 0 | Y75: 0 | Z75: 0 | AA75: 0
A76: 65 | L76: =IF(E76<=K76,0,1) -> 0 | M76: 0 | N76: 0 | O76: 0 | P76: 0 | R76: 65 | S76: ='Calc|Fee Based'!B74 ->  | T76: ='Calc|Fee Based'!C74 ->  | U76: ='Calc|Fee Based'!D74 ->  | V76: ='Calc|Fee Based'!F74 ->  | W76: ='Calc|Fee Based'!H74 -> 0 | X76: 0 | Y76: 0 | Z76: 0 | AA76: 0
A77: 66 | L77: 0 | M77: =IF(F77<=ROUND($K77*(1+M$5)*(1-M$6),2),0,1) -> 0 | N77: =IF(G77<=ROUND($K77*(1+M$5)*(1-M$6)*(1+N$5)*(1-N$6),2),0,1) -> 0 | O77: =IF(H77<=ROUND($K77*(1+M$5)*(1-M$6)*(1+N$5)*(1-N$6)*(1+O$5)*(1-O$6),2),0,1) -> 0 | P77: =IF(I77<=ROUND($K77*(1+M$5)*(1-M$6)*(1+N$5)*(1-N$6)*(1+O$5)*(1-O$6)*(1+P$5)*(1-P$6),2),0,1) -> 0 | R77: 66 | S77: ='Calc|Fee Based'!B75 ->  | T77: ='Calc|Fee Based'!C75 ->  | U77: ='Calc|Fee Based'!D75 ->  | V77: ='Calc|Fee Based'!F75 ->  | W77: ='Calc|Fee Based'!H75 -> 0 | X77: 0 | Y77: 0 | Z77: 0 | AA77: 0
A78: =IFERROR(A77+1,"") -> 67 | L78: 0 | M78: 0 | N78: 0 | O78: 0 | P78: 0 | R78: 67 | S78: ='Calc|Fee Based'!B76 ->  | T78: ='Calc|Fee Based'!C76 ->  | U78: ='Calc|Fee Based'!D76 ->  | V78: ='Calc|Fee Based'!F76 ->  | W78: ='Calc|Fee Based'!H76 -> 0 | X78: 0 | Y78: 0 | Z78: 0 | AA78: 0
A79: 68 | L79: 0 | M79: 0 | N79: 0 | O79: 0 | P79: 0 | R79: =IFERROR(R78+1,"") -> 68 | S79: ='Calc|Fee Based'!B77 ->  | T79: ='Calc|Fee Based'!C77 ->  | U79: ='Calc|Fee Based'!D77 ->  | V79: ='Calc|Fee Based'!F77 ->  | W79: ='Calc|Fee Based'!H77 -> 0 | X79: 0 | Y79: 0 | Z79: 0 | AA79: 0
A80: 69 | L80: 0 | M80: 0 | N80: 0 | O80: 0 | P80: 0 | R80: 69 | S80: ='Calc|Fee Based'!B78 ->  | T80: ='Calc|Fee Based'!C78 ->  | U80: ='Calc|Fee Based'!D78 ->  | V80: ='Calc|Fee Based'!F78 ->  | W80: ='Calc|Fee Based'!H78 -> 0 | X80: 0 | Y80: 0 | Z80: 0 | AA80: 0
A81: 70 | L81: 0 | M81: 0 | N81: 0 | O81: 0 | P81: 0 | R81: 70 | S81: ='Calc|Fee Based'!B79 ->  | T81: ='Calc|Fee Based'!C79 ->  | U81: ='Calc|Fee Based'!D79 ->  | V81: ='Calc|Fee Based'!F79 ->  | W81: ='Calc|Fee Based'!H79 -> 0 | X81: 0 | Y81: 0 | Z81: 0 | AA81: 0
A82: 71 | L82: 0 | M82: 0 | N82: 0 | O82: 0 | P82: 0 | R82: 71 | S82: ='Calc|Fee Based'!B80 ->  | T82: ='Calc|Fee Based'!C80 ->  | U82: ='Calc|Fee Based'!D80 ->  | V82: ='Calc|Fee Based'!F80 ->  | W82: ='Calc|Fee Based'!H80 -> 0 | X82: 0 | Y82: 0 | Z82: 0 | AA82: 0
A83: 72 | L83: 0 | M83: 0 | N83: 0 | O83: 0 | P83: 0 | R83: 72 | S83: ='Calc|Fee Based'!B81 ->  | T83: ='Calc|Fee Based'!C81 ->  | U83: ='Calc|Fee Based'!D81 ->  | V83: ='Calc|Fee Based'!F81 ->  | W83: ='Calc|Fee Based'!H81 -> 0 | X83: 0 | Y83: 0 | Z83: 0 | AA83: 0
A84: 73 | L84: 0 | M84: 0 | N84: 0 | O84: 0 | P84: 0 | R84: 73 | S84: ='Calc|Fee Based'!B82 ->  | T84: ='Calc|Fee Based'!C82 ->  | U84: ='Calc|Fee Based'!D82 ->  | V84: ='Calc|Fee Based'!F82 ->  | W84: ='Calc|Fee Based'!H82 -> 0 | X84: 0 | Y84: 0 | Z84: 0 | AA84: 0
A85: 74 | L85: 0 | M85: 0 | N85: 0 | O85: 0 | P85: 0 | R85: 74 | S85: ='Calc|Fee Based'!B83 ->  | T85: ='Calc|Fee Based'!C83 ->  | U85: ='Calc|Fee Based'!D83 ->  | V85: ='Calc|Fee Based'!F83 ->  | W85: ='Calc|Fee Based'!H83 -> 0 | X85: 0 | Y85: 0 | Z85: 0 | AA85: 0
A86: 75 | L86: 0 | M86: 0 | N86: 0 | O86: 0 | P86: 0 | R86: 75 | S86: ='Calc|Fee Based'!B84 ->  | T86: ='Calc|Fee Based'!C84 ->  | U86: ='Calc|Fee Based'!D84 ->  | V86: ='Calc|Fee Based'!F84 ->  | W86: ='Calc|Fee Based'!H84 -> 0 | X86: 0 | Y86: 0 | Z86: 0 | AA86: 0
A87: 76 | L87: 0 | M87: 0 | N87: 0 | O87: 0 | P87: 0 | R87: 76 | S87: ='Calc|Fee Based'!B85 ->  | T87: ='Calc|Fee Based'!C85 ->  | U87: ='Calc|Fee Based'!D85 ->  | V87: ='Calc|Fee Based'!F85 ->  | W87: ='Calc|Fee Based'!H85 -> 0 | X87: 0 | Y87: 0 | Z87: 0 | AA87: 0
A88: 77 | L88: 0 | M88: 0 | N88: 0 | O88: 0 | P88: 0 | R88: 77 | S88: ='Calc|Fee Based'!B86 ->  | T88: ='Calc|Fee Based'!C86 ->  | U88: ='Calc|Fee Based'!D86 ->  | V88: ='Calc|Fee Based'!F86 ->  | W88: ='Calc|Fee Based'!H86 -> 0 | X88: 0 | Y88: 0 | Z88: 0 | AA88: 0
A89: 78 | L89: 0 | M89: 0 | N89: 0 | O89: 0 | P89: 0 | R89: 78 | S89: ='Calc|Fee Based'!B87 ->  | T89: ='Calc|Fee Based'!C87 ->  | U89: ='Calc|Fee Based'!D87 ->  | V89: ='Calc|Fee Based'!F87 ->  | W89: ='Calc|Fee Based'!H87 -> 0 | X89: 0 | Y89: 0 | Z89: 0 | AA89: 0
A90: 79 | L90: 0 | M90: 0 | N90: 0 | O90: 0 | P90: 0 | R90: 79 | S90: ='Calc|Fee Based'!B88 ->  | T90: ='Calc|Fee Based'!C88 ->  | U90: ='Calc|Fee Based'!D88 ->  | V90: ='Calc|Fee Based'!F88 ->  | W90: ='Calc|Fee Based'!H88 -> 0 | X90: 0 | Y90: 0 | Z90: 0 | AA90: 0
A91: 80 | L91: 0 | M91: 0 | N91: 0 | O91: 0 | P91: 0 | R91: 80 | S91: ='Calc|Fee Based'!B89 ->  | T91: ='Calc|Fee Based'!C89 ->  | U91: ='Calc|Fee Based'!D89 ->  | V91: ='Calc|Fee Based'!F89 ->  | W91: ='Calc|Fee Based'!H89 -> 0 | X91: 0 | Y91: 0 | Z91: 0 | AA91: 0
A92: 81 | L92: 0 | M92: 0 | N92: 0 | O92: 0 | P92: 0 | R92: 81 | S92: ='Calc|Fee Based'!B90 ->  | T92: ='Calc|Fee Based'!C90 ->  | U92: ='Calc|Fee Based'!D90 ->  | V92: ='Calc|Fee Based'!F90 ->  | W92: ='Calc|Fee Based'!H90 -> 0 | X92: =W92*(1+X$5)*(1-X$6) -> 0 | Y92: 0 | Z92: 0 | AA92: 0
A93: 82 | L93: 0 | M93: 0 | N93: 0 | O93: 0 | P93: 0 | R93: 82 | S93: ='Calc|Fee Based'!B91 ->  | T93: ='Calc|Fee Based'!C91 ->  | U93: ='Calc|Fee Based'!D91 ->  | V93: ='Calc|Fee Based'!F91 ->  | W93: ='Calc|Fee Based'!H91 -> 0 | X93: 0 | Y93: 0 | Z93: 0 | AA93: 0
A94: 83 | L94: 0 | M94: 0 | N94: 0 | O94: 0 | P94: 0 | R94: 83 | S94: ='Calc|Fee Based'!B92 ->  | T94: ='Calc|Fee Based'!C92 ->  | U94: ='Calc|Fee Based'!D92 ->  | V94: ='Calc|Fee Based'!F92 ->  | W94: ='Calc|Fee Based'!H92 -> 0 | X94: 0 | Y94: 0 | Z94: 0 | AA94: 0
A95: 84 | L95: 0 | M95: 0 | N95: 0 | O95: 0 | P95: 0 | R95: 84 | S95: ='Calc|Fee Based'!B93 ->  | T95: ='Calc|Fee Based'!C93 ->  | U95: ='Calc|Fee Based'!D93 ->  | V95: ='Calc|Fee Based'!F93 ->  | W95: ='Calc|Fee Based'!H93 -> 0 | X95: 0 | Y95: 0 | Z95: 0 | AA95: 0
A96: 85 | L96: 0 | M96: 0 | N96: 0 | O96: 0 | P96: 0 | R96: 85 | S96: ='Calc|Fee Based'!B94 ->  | T96: ='Calc|Fee Based'!C94 ->  | U96: ='Calc|Fee Based'!D94 ->  | V96: ='Calc|Fee Based'!F94 ->  | W96: ='Calc|Fee Based'!H94 -> 0 | X96: 0 | Y96: 0 | Z96: 0 | AA96: 0
A97: 86 | L97: 0 | M97: 0 | N97: 0 | O97: 0 | P97: 0 | R97: 86 | S97: ='Calc|Fee Based'!B95 ->  | T97: ='Calc|Fee Based'!C95 ->  | U97: ='Calc|Fee Based'!D95 ->  | V97: ='Calc|Fee Based'!F95 ->  | W97: ='Calc|Fee Based'!H95 -> 0 | X97: 0 | Y97: 0 | Z97: 0 | AA97: 0
A98: 87 | L98: 0 | M98: 0 | N98: 0 | O98: 0 | P98: 0 | R98: 87 | S98: ='Calc|Fee Based'!B96 ->  | T98: ='Calc|Fee Based'!C96 ->  | U98: ='Calc|Fee Based'!D96 ->  | V98: ='Calc|Fee Based'!F96 ->  | W98: ='Calc|Fee Based'!H96 -> 0 | X98: 0 | Y98: 0 | Z98: 0 | AA98: 0
A99: 88 | L99: 0 | M99: 0 | N99: 0 | O99: 0 | P99: 0 | R99: 88 | S99: ='Calc|Fee Based'!B97 ->  | T99: ='Calc|Fee Based'!C97 ->  | U99: ='Calc|Fee Based'!D97 ->  | V99: ='Calc|Fee Based'!F97 ->  | W99: ='Calc|Fee Based'!H97 -> 0 | X99: 0 | Y99: 0 | Z99: 0 | AA99: 0
A100: 89 | L100: 0 | M100: 0 | N100: 0 | O100: 0 | P100: 0 | R100: 89 | S100: ='Calc|Fee Based'!B98 ->  | T100: ='Calc|Fee Based'!C98 ->  | U100: ='Calc|Fee Based'!D98 ->  | V100: ='Calc|Fee Based'!F98 ->  | W100: ='Calc|Fee Based'!H98 -> 0 | X100: 0 | Y100: 0 | Z100: 0 | AA100: 0
A101: 90 | L101: 0 | M101: 0 | N101: 0 | O101: 0 | P101: 0 | R101: 90 | S101: ='Calc|Fee Based'!B99 ->  | T101: ='Calc|Fee Based'!C99 ->  | U101: ='Calc|Fee Based'!D99 ->  | V101: ='Calc|Fee Based'!F99 ->  | W101: ='Calc|Fee Based'!H99 -> 0 | X101: 0 | Y101: 0 | Z101: 0 | AA101: 0
A102: 91 | L102: 0 | M102: 0 | N102: 0 | O102: 0 | P102: 0 | R102: 91 | S102: ='Calc|Fee Based'!B100 ->  | T102: ='Calc|Fee Based'!C100 ->  | U102: ='Calc|Fee Based'!D100 ->  | V102: ='Calc|Fee Based'!F100 ->  | W102: ='Calc|Fee Based'!H100 -> 0 | X102: 0 | Y102: 0 | Z102: 0 | AA102: 0
A103: 92 | L103: 0 | M103: 0 | N103: 0 | O103: 0 | P103: 0 | R103: 92 | S103: ='Calc|Fee Based'!B101 ->  | T103: ='Calc|Fee Based'!C101 ->  | U103: ='Calc|Fee Based'!D101 ->  | V103: ='Calc|Fee Based'!F101 ->  | W103: ='Calc|Fee Based'!H101 -> 0 | X103: 0 | Y103: 0 | Z103: 0 | AA103: 0
A104: 93 | L104: 0 | M104: 0 | N104: 0 | O104: 0 | P104: 0 | R104: 93 | S104: ='Calc|Fee Based'!B102 ->  | T104: ='Calc|Fee Based'!C102 ->  | U104: ='Calc|Fee Based'!D102 ->  | V104: ='Calc|Fee Based'!F102 ->  | W104: ='Calc|Fee Based'!H102 -> 0 | X104: 0 | Y104: 0 | Z104: 0 | AA104: 0
A105: 94 | L105: 0 | M105: 0 | N105: 0 | O105: 0 | P105: 0 | R105: 94 | S105: ='Calc|Fee Based'!B103 ->  | T105: ='Calc|Fee Based'!C103 ->  | U105: ='Calc|Fee Based'!D103 ->  | V105: ='Calc|Fee Based'!F103 ->  | W105: ='Calc|Fee Based'!H103 -> 0 | X105: 0 | Y105: 0 | Z105: 0 | AA105: 0
A106: 95 | L106: 0 | M106: 0 | N106: 0 | O106: 0 | P106: 0 | R106: 95 | S106: ='Calc|Fee Based'!B104 ->  | T106: ='Calc|Fee Based'!C104 ->  | U106: ='Calc|Fee Based'!D104 ->  | V106: ='Calc|Fee Based'!F104 ->  | W106: ='Calc|Fee Based'!H104 -> 0 | X106: 0 | Y106: 0 | Z106: 0 | AA106: 0
A107: 96 | L107: 0 | M107: 0 | N107: 0 | O107: 0 | P107: 0 | R107: 96 | S107: ='Calc|Fee Based'!B105 ->  | T107: ='Calc|Fee Based'!C105 ->  | U107: ='Calc|Fee Based'!D105 ->  | V107: ='Calc|Fee Based'!F105 ->  | W107: ='Calc|Fee Based'!H105 -> 0 | X107: 0 | Y107: 0 | Z107: 0 | AA107: 0
A108: 97 | L108: 0 | M108: 0 | N108: 0 | O108: 0 | P108: 0 | R108: 97 | S108: ='Calc|Fee Based'!B106 ->  | T108: ='Calc|Fee Based'!C106 ->  | U108: ='Calc|Fee Based'!D106 ->  | V108: ='Calc|Fee Based'!F106 ->  | W108: ='Calc|Fee Based'!H106 -> 0 | X108: 0 | Y108: 0 | Z108: 0 | AA108: 0
A109: 98 | L109: 0 | M109: 0 | N109: 0 | O109: 0 | P109: 0 | R109: 98 | S109: ='Calc|Fee Based'!B107 ->  | T109: ='Calc|Fee Based'!C107 ->  | U109: ='Calc|Fee Based'!D107 ->  | V109: ='Calc|Fee Based'!F107 ->  | W109: ='Calc|Fee Based'!H107 -> 0 | X109: 0 | Y109: 0 | Z109: 0 | AA109: 0
A110: 99 | L110: 0 | M110: 0 | N110: 0 | O110: 0 | P110: 0 | R110: 99 | S110: ='Calc|Fee Based'!B108 ->  | T110: ='Calc|Fee Based'!C108 ->  | U110: ='Calc|Fee Based'!D108 ->  | V110: ='Calc|Fee Based'!F108 ->  | W110: ='Calc|Fee Based'!H108 -> 0 | X110: 0 | Y110: 0 | Z110: 0 | AA110: 0
A111: 100 | L111: 0 | M111: 0 | N111: 0 | O111: 0 | P111: 0 | R111: 100 | S111: ='Calc|Fee Based'!B109 ->  | T111: ='Calc|Fee Based'!C109 ->  | U111: ='Calc|Fee Based'!D109 ->  | V111: ='Calc|Fee Based'!F109 ->  | W111: ='Calc|Fee Based'!H109 -> 0 | X111: 0 | Y111: 0 | Z111: 0 | AA111: 0
A112: 101 | L112: 0 | M112: 0 | N112: 0 | O112: 0 | P112: 0 | R112: 101 | S112: ='Calc|Fee Based'!B110 ->  | T112: ='Calc|Fee Based'!C110 ->  | U112: ='Calc|Fee Based'!D110 ->  | V112: ='Calc|Fee Based'!F110 ->  | W112: ='Calc|Fee Based'!H110 -> 0 | X112: 0 | Y112: 0 | Z112: 0 | AA112: 0
A113: 102 | L113: 0 | M113: 0 | N113: 0 | O113: 0 | P113: 0 | R113: 102 | S113: ='Calc|Fee Based'!B111 ->  | T113: ='Calc|Fee Based'!C111 ->  | U113: ='Calc|Fee Based'!D111 ->  | V113: ='Calc|Fee Based'!F111 ->  | W113: ='Calc|Fee Based'!H111 -> 0 | X113: =W113*(1+X$5)*(1-X$6) -> 0 | Y113: 0 | Z113: 0 | AA113: 0
A114: 103 | L114: 0 | M114: 0 | N114: 0 | O114: 0 | P114: 0 | R114: 103 | S114: ='Calc|Fee Based'!B112 ->  | T114: ='Calc|Fee Based'!C112 ->  | U114: ='Calc|Fee Based'!D112 ->  | V114: ='Calc|Fee Based'!F112 ->  | W114: ='Calc|Fee Based'!H112 -> 0 | X114: 0 | Y114: 0 | Z114: 0 | AA114: 0
A115: 104 | L115: 0 | M115: 0 | N115: 0 | O115: 0 | P115: 0 | R115: 104 | S115: ='Calc|Fee Based'!B113 ->  | T115: ='Calc|Fee Based'!C113 ->  | U115: ='Calc|Fee Based'!D113 ->  | V115: ='Calc|Fee Based'!F113 ->  | W115: ='Calc|Fee Based'!H113 -> 0 | X115: 0 | Y115: 0 | Z115: 0 | AA115: 0
A116: 105 | L116: 0 | M116: 0 | N116: 0 | O116: 0 | P116: 0 | R116: 105 | S116: ='Calc|Fee Based'!B114 ->  | T116: ='Calc|Fee Based'!C114 ->  | U116: ='Calc|Fee Based'!D114 ->  | V116: ='Calc|Fee Based'!F114 ->  | W116: ='Calc|Fee Based'!H114 -> 0 | X116: 0 | Y116: 0 | Z116: 0 | AA116: 0
A117: 106 | L117: 0 | M117: 0 | N117: 0 | O117: 0 | P117: 0 | R117: 106 | S117: ='Calc|Fee Based'!B115 ->  | T117: ='Calc|Fee Based'!C115 ->  | U117: ='Calc|Fee Based'!D115 ->  | V117: ='Calc|Fee Based'!F115 ->  | W117: ='Calc|Fee Based'!H115 -> 0 | X117: 0 | Y117: 0 | Z117: 0 | AA117: 0
A118: 107 | L118: 0 | M118: 0 | N118: 0 | O118: 0 | P118: 0 | R118: 107 | S118: ='Calc|Fee Based'!B116 ->  | T118: ='Calc|Fee Based'!C116 ->  | U118: ='Calc|Fee Based'!D116 ->  | V118: ='Calc|Fee Based'!F116 ->  | W118: ='Calc|Fee Based'!H116 -> 0 | X118: 0 | Y118: 0 | Z118: 0 | AA118: 0
A119: 108 | L119: 0 | M119: 0 | N119: 0 | O119: 0 | P119: 0 | R119: 108 | S119: ='Calc|Fee Based'!B117 ->  | T119: ='Calc|Fee Based'!C117 ->  | U119: ='Calc|Fee Based'!D117 ->  | V119: ='Calc|Fee Based'!F117 ->  | W119: ='Calc|Fee Based'!H117 -> 0 | X119: 0 | Y119: 0 | Z119: 0 | AA119: 0
A120: 109 | L120: 0 | M120: 0 | N120: 0 | O120: 0 | P120: 0 | R120: 109 | S120: ='Calc|Fee Based'!B118 ->  | T120: ='Calc|Fee Based'!C118 ->  | U120: ='Calc|Fee Based'!D118 ->  | V120: ='Calc|Fee Based'!F118 ->  | W120: ='Calc|Fee Based'!H118 -> 0 | X120: 0 | Y120: 0 | Z120: 0 | AA120: 0
A121: 110 | L121: 0 | M121: 0 | N121: 0 | O121: 0 | P121: 0 | R121: 110 | S121: ='Calc|Fee Based'!B119 ->  | T121: ='Calc|Fee Based'!C119 ->  | U121: ='Calc|Fee Based'!D119 ->  | V121: ='Calc|Fee Based'!F119 ->  | W121: ='Calc|Fee Based'!H119 -> 0 | X121: 0 | Y121: 0 | Z121: 0 | AA121: 0
A122: 111 | L122: 0 | M122: 0 | N122: 0 | O122: 0 | P122: 0 | R122: 111 | S122: ='Calc|Fee Based'!B120 ->  | T122: ='Calc|Fee Based'!C120 ->  | U122: ='Calc|Fee Based'!D120 ->  | V122: ='Calc|Fee Based'!F120 ->  | W122: ='Calc|Fee Based'!H120 -> 0 | X122: 0 | Y122: 0 | Z122: 0 | AA122: 0
A123: 112 | L123: 0 | M123: 0 | N123: 0 | O123: 0 | P123: 0 | R123: 112 | S123: ='Calc|Fee Based'!B121 ->  | T123: ='Calc|Fee Based'!C121 ->  | U123: ='Calc|Fee Based'!D121 ->  | V123: ='Calc|Fee Based'!F121 ->  | W123: ='Calc|Fee Based'!H121 -> 0 | X123: 0 | Y123: 0 | Z123: 0 | AA123: 0
A124: 113 | L124: 0 | M124: 0 | N124: 0 | O124: 0 | P124: 0 | R124: 113 | S124: ='Calc|Fee Based'!B122 ->  | T124: ='Calc|Fee Based'!C122 ->  | U124: ='Calc|Fee Based'!D122 ->  | V124: ='Calc|Fee Based'!F122 ->  | W124: ='Calc|Fee Based'!H122 -> 0 | X124: 0 | Y124: 0 | Z124: 0 | AA124: 0
A125: 114 | L125: 0 | M125: 0 | N125: 0 | O125: 0 | P125: 0 | R125: 114 | S125: ='Calc|Fee Based'!B123 ->  | T125: ='Calc|Fee Based'!C123 ->  | U125: ='Calc|Fee Based'!D123 ->  | V125: ='Calc|Fee Based'!F123 ->  | W125: ='Calc|Fee Based'!H123 -> 0 | X125: 0 | Y125: 0 | Z125: 0 | AA125: 0
A126: 115 | L126: 0 | M126: 0 | N126: 0 | O126: 0 | P126: 0 | R126: 115 | S126: ='Calc|Fee Based'!B124 ->  | T126: ='Calc|Fee Based'!C124 ->  | U126: ='Calc|Fee Based'!D124 ->  | V126: ='Calc|Fee Based'!F124 ->  | W126: ='Calc|Fee Based'!H124 -> 0 | X126: 0 | Y126: 0 | Z126: 0 | AA126: 0
A127: 116 | L127: 0 | M127: 0 | N127: 0 | O127: 0 | P127: 0 | R127: 116 | S127: ='Calc|Fee Based'!B125 ->  | T127: ='Calc|Fee Based'!C125 ->  | U127: ='Calc|Fee Based'!D125 ->  | V127: ='Calc|Fee Based'!F125 ->  | W127: ='Calc|Fee Based'!H125 -> 0 | X127: 0 | Y127: 0 | Z127: 0 | AA127: 0
A128: 117 | L128: 0 | M128: 0 | N128: 0 | O128: 0 | P128: 0 | R128: 117 | S128: ='Calc|Fee Based'!B126 ->  | T128: ='Calc|Fee Based'!C126 ->  | U128: ='Calc|Fee Based'!D126 ->  | V128: ='Calc|Fee Based'!F126 ->  | W128: ='Calc|Fee Based'!H126 -> 0 | X128: 0 | Y128: 0 | Z128: 0 | AA128: 0
A129: 118 | L129: 0 | M129: 0 | N129: 0 | O129: 0 | P129: 0 | R129: 118 | S129: ='Calc|Fee Based'!B127 ->  | T129: ='Calc|Fee Based'!C127 ->  | U129: ='Calc|Fee Based'!D127 ->  | V129: ='Calc|Fee Based'!F127 ->  | W129: ='Calc|Fee Based'!H127 -> 0 | X129: 0 | Y129: 0 | Z129: 0 | AA129: 0
A130: 119 | L130: 0 | M130: 0 | N130: 0 | O130: 0 | P130: 0 | R130: 119 | S130: ='Calc|Fee Based'!B128 ->  | T130: ='Calc|Fee Based'!C128 ->  | U130: ='Calc|Fee Based'!D128 ->  | V130: ='Calc|Fee Based'!F128 ->  | W130: ='Calc|Fee Based'!H128 -> 0 | X130: 0 | Y130: 0 | Z130: 0 | AA130: 0
A131: 120 | L131: 0 | M131: 0 | N131: 0 | O131: 0 | P131: 0 | R131: 120 | S131: ='Calc|Fee Based'!B129 ->  | T131: ='Calc|Fee Based'!C129 ->  | U131: ='Calc|Fee Based'!D129 ->  | V131: ='Calc|Fee Based'!F129 ->  | W131: ='Calc|Fee Based'!H129 -> 0 | X131: 0 | Y131: 0 | Z131: 0 | AA131: 0
A132: 121 | L132: 0 | M132: 0 | N132: 0 | O132: 0 | P132: 0 | R132: 121 | S132: ='Calc|Fee Based'!B130 ->  | T132: ='Calc|Fee Based'!C130 ->  | U132: ='Calc|Fee Based'!D130 ->  | V132: ='Calc|Fee Based'!F130 ->  | W132: ='Calc|Fee Based'!H130 -> 0 | X132: 0 | Y132: 0 | Z132: 0 | AA132: 0
A133: 122 | L133: 0 | M133: 0 | N133: 0 | O133: 0 | P133: 0 | R133: 122 | S133: ='Calc|Fee Based'!B131 ->  | T133: ='Calc|Fee Based'!C131 ->  | U133: ='Calc|Fee Based'!D131 ->  | V133: ='Calc|Fee Based'!F131 ->  | W133: ='Calc|Fee Based'!H131 -> 0 | X133: 0 | Y133: 0 | Z133: 0 | AA133: 0
A134: 123 | L134: 0 | M134: 0 | N134: 0 | O134: 0 | P134: 0 | R134: 123 | S134: ='Calc|Fee Based'!B132 ->  | T134: ='Calc|Fee Based'!C132 ->  | U134: ='Calc|Fee Based'!D132 ->  | V134: ='Calc|Fee Based'!F132 ->  | W134: ='Calc|Fee Based'!H132 -> 0 | X134: 0 | Y134: 0 | Z134: 0 | AA134: 0
A135: 124 | L135: 0 | M135: 0 | N135: 0 | O135: 0 | P135: 0 | R135: 124 | S135: ='Calc|Fee Based'!B133 ->  | T135: ='Calc|Fee Based'!C133 ->  | U135: ='Calc|Fee Based'!D133 ->  | V135: ='Calc|Fee Based'!F133 ->  | W135: ='Calc|Fee Based'!H133 -> 0 | X135: 0 | Y135: 0 | Z135: 0 | AA135: 0
A136: 125 | L136: 0 | M136: 0 | N136: 0 | O136: 0 | P136: 0 | R136: 125 | S136: ='Calc|Fee Based'!B134 ->  | T136: ='Calc|Fee Based'!C134 ->  | U136: ='Calc|Fee Based'!D134 ->  | V136: ='Calc|Fee Based'!F134 ->  | W136: ='Calc|Fee Based'!H134 -> 0 | X136: 0 | Y136: 0 | Z136: 0 | AA136: 0
A137: 126 | L137: 0 | M137: 0 | N137: 0 | O137: 0 | P137: 0 | R137: 126 | S137: ='Calc|Fee Based'!B135 ->  | T137: ='Calc|Fee Based'!C135 ->  | U137: ='Calc|Fee Based'!D135 ->  | V137: ='Calc|Fee Based'!F135 ->  | W137: ='Calc|Fee Based'!H135 -> 0 | X137: 0 | Y137: 0 | Z137: 0 | AA137: 0
A138: 127 | L138: 0 | M138: 0 | N138: 0 | O138: 0 | P138: 0 | R138: 127 | S138: ='Calc|Fee Based'!B136 ->  | T138: ='Calc|Fee Based'!C136 ->  | U138: ='Calc|Fee Based'!D136 ->  | V138: ='Calc|Fee Based'!F136 ->  | W138: ='Calc|Fee Based'!H136 -> 0 | X138: 0 | Y138: 0 | Z138: 0 | AA138: 0
A139: 128 | L139: 0 | M139: 0 | N139: 0 | O139: 0 | P139: 0 | R139: 128 | S139: ='Calc|Fee Based'!B137 ->  | T139: ='Calc|Fee Based'!C137 ->  | U139: ='Calc|Fee Based'!D137 ->  | V139: ='Calc|Fee Based'!F137 ->  | W139: ='Calc|Fee Based'!H137 -> 0 | X139: 0 | Y139: 0 | Z139: 0 | AA139: 0
A140: 129 | L140: =IF(E140<=K140,0,1) -> 0 | M140: 0 | N140: 0 | O140: 0 | P140: 0 | R140: 129 | S140: ='Calc|Fee Based'!B138 ->  | T140: ='Calc|Fee Based'!C138 ->  | U140: ='Calc|Fee Based'!D138 ->  | V140: ='Calc|Fee Based'!F138 ->  | W140: ='Calc|Fee Based'!H138 -> 0 | X140: 0 | Y140: 0 | Z140: 0 | AA140: 0
A141: 130 | L141: 0 | M141: =IF(F141<=ROUND($K141*(1+M$5)*(1-M$6),2),0,1) -> 0 | N141: =IF(G141<=ROUND($K141*(1+M$5)*(1-M$6)*(1+N$5)*(1-N$6),2),0,1) -> 0 | O141: =IF(H141<=ROUND($K141*(1+M$5)*(1-M$6)*(1+N$5)*(1-N$6)*(1+O$5)*(1-O$6),2),0,1) -> 0 | P141: =IF(I141<=ROUND($K141*(1+M$5)*(1-M$6)*(1+N$5)*(1-N$6)*(1+O$5)*(1-O$6)*(1+P$5)*(1-P$6),2),0,1) -> 0 | R141: 130 | S141: ='Calc|Fee Based'!B139 ->  | T141: ='Calc|Fee Based'!C139 ->  | U141: ='Calc|Fee Based'!D139 ->  | V141: ='Calc|Fee Based'!F139 ->  | W141: ='Calc|Fee Based'!H139 -> 0 | X141: 0 | Y141: 0 | Z141: 0 | AA141: 0
A142: 131 | L142: 0 | M142: 0 | N142: 0 | O142: 0 | P142: 0 | R142: 131 | S142: ='Calc|Fee Based'!B140 ->  | T142: ='Calc|Fee Based'!C140 ->  | U142: ='Calc|Fee Based'!D140 ->  | V142: ='Calc|Fee Based'!F140 ->  | W142: ='Calc|Fee Based'!H140 -> 0 | X142: 0 | Y142: 0 | Z142: 0 | AA142: 0
A143: 132 | L143: 0 | M143: 0 | N143: 0 | O143: 0 | P143: 0 | R143: 132 | S143: ='Calc|Fee Based'!B141 ->  | T143: ='Calc|Fee Based'!C141 ->  | U143: ='Calc|Fee Based'!D141 ->  | V143: ='Calc|Fee Based'!F141 ->  | W143: ='Calc|Fee Based'!H141 -> 0 | X143: 0 | Y143: 0 | Z143: 0 | AA143: 0
A144: 133 | L144: 0 | M144: 0 | N144: 0 | O144: 0 | P144: 0 | R144: 133 | S144: ='Calc|Fee Based'!B142 ->  | T144: ='Calc|Fee Based'!C142 ->  | U144: ='Calc|Fee Based'!D142 ->  | V144: ='Calc|Fee Based'!F142 ->  | W144: ='Calc|Fee Based'!H142 -> 0 | X144: 0 | Y144: 0 | Z144: 0 | AA144: 0
A145: 134 | L145: 0 | M145: 0 | N145: 0 | O145: 0 | P145: 0 | R145: 134 | S145: ='Calc|Fee Based'!B143 ->  | T145: ='Calc|Fee Based'!C143 ->  | U145: ='Calc|Fee Based'!D143 ->  | V145: ='Calc|Fee Based'!F143 ->  | W145: ='Calc|Fee Based'!H143 -> 0 | X145: 0 | Y145: 0 | Z145: 0 | AA145: 0
A146: 135 | L146: 0 | M146: 0 | N146: 0 | O146: 0 | P146: 0 | R146: 135 | S146: ='Calc|Fee Based'!B144 ->  | T146: ='Calc|Fee Based'!C144 ->  | U146: ='Calc|Fee Based'!D144 ->  | V146: ='Calc|Fee Based'!F144 ->  | W146: ='Calc|Fee Based'!H144 -> 0 | X146: 0 | Y146: 0 | Z146: 0 | AA146: 0
A147: 136 | L147: 0 | M147: 0 | N147: 0 | O147: 0 | P147: 0 | R147: 136 | S147: ='Calc|Fee Based'!B145 ->  | T147: ='Calc|Fee Based'!C145 ->  | U147: ='Calc|Fee Based'!D145 ->  | V147: ='Calc|Fee Based'!F145 ->  | W147: ='Calc|Fee Based'!H145 -> 0 | X147: 0 | Y147: 0 | Z147: 0 | AA147: 0
A148: 137 | L148: 0 | M148: 0 | N148: 0 | O148: 0 | P148: 0 | R148: 137 | S148: ='Calc|Fee Based'!B146 ->  | T148: ='Calc|Fee Based'!C146 ->  | U148: ='Calc|Fee Based'!D146 ->  | V148: ='Calc|Fee Based'!F146 ->  | W148: ='Calc|Fee Based'!H146 -> 0 | X148: 0 | Y148: 0 | Z148: 0 | AA148: 0
A149: 138 | L149: 0 | M149: 0 | N149: 0 | O149: 0 | P149: 0 | R149: 138 | S149: ='Calc|Fee Based'!B147 ->  | T149: ='Calc|Fee Based'!C147 ->  | U149: ='Calc|Fee Based'!D147 ->  | V149: ='Calc|Fee Based'!F147 ->  | W149: ='Calc|Fee Based'!H147 -> 0 | X149: 0 | Y149: 0 | Z149: 0 | AA149: 0
A150: 139 | L150: 0 | M150: 0 | N150: 0 | O150: 0 | P150: 0 | R150: 139 | S150: ='Calc|Fee Based'!B148 ->  | T150: ='Calc|Fee Based'!C148 ->  | U150: ='Calc|Fee Based'!D148 ->  | V150: ='Calc|Fee Based'!F148 ->  | W150: ='Calc|Fee Based'!H148 -> 0 | X150: 0 | Y150: 0 | Z150: 0 | AA150: 0
A151: 140 | L151: 0 | M151: 0 | N151: 0 | O151: 0 | P151: 0 | R151: 140 | S151: ='Calc|Fee Based'!B149 ->  | T151: ='Calc|Fee Based'!C149 ->  | U151: ='Calc|Fee Based'!D149 ->  | V151: ='Calc|Fee Based'!F149 ->  | W151: ='Calc|Fee Based'!H149 -> 0 | X151: 0 | Y151: 0 | Z151: 0 | AA151: 0
A152: 141 | L152: 0 | M152: 0 | N152: 0 | O152: 0 | P152: 0 | R152: 141 | S152: ='Calc|Fee Based'!B150 ->  | T152: ='Calc|Fee Based'!C150 ->  | U152: ='Calc|Fee Based'!D150 ->  | V152: ='Calc|Fee Based'!F150 ->  | W152: ='Calc|Fee Based'!H150 -> 0 | X152: 0 | Y152: 0 | Z152: 0 | AA152: 0
A153: 142 | L153: 0 | M153: 0 | N153: 0 | O153: 0 | P153: 0 | R153: 142 | S153: ='Calc|Fee Based'!B151 ->  | T153: ='Calc|Fee Based'!C151 ->  | U153: ='Calc|Fee Based'!D151 ->  | V153: ='Calc|Fee Based'!F151 ->  | W153: ='Calc|Fee Based'!H151 -> 0 | X153: 0 | Y153: 0 | Z153: 0 | AA153: 0
A154: 143 | L154: 0 | M154: 0 | N154: 0 | O154: 0 | P154: 0 | R154: 143 | S154: ='Calc|Fee Based'!B152 ->  | T154: ='Calc|Fee Based'!C152 ->  | U154: ='Calc|Fee Based'!D152 ->  | V154: ='Calc|Fee Based'!F152 ->  | W154: ='Calc|Fee Based'!H152 -> 0 | X154: 0 | Y154: 0 | Z154: 0 | AA154: 0
A155: 144 | L155: 0 | M155: 0 | N155: 0 | O155: 0 | P155: 0 | R155: 144 | S155: ='Calc|Fee Based'!B153 ->  | T155: ='Calc|Fee Based'!C153 ->  | U155: ='Calc|Fee Based'!D153 ->  | V155: ='Calc|Fee Based'!F153 ->  | W155: ='Calc|Fee Based'!H153 -> 0 | X155: 0 | Y155: 0 | Z155: 0 | AA155: 0
A156: 145 | L156: 0 | M156: 0 | N156: 0 | O156: 0 | P156: 0 | R156: 145 | S156: ='Calc|Fee Based'!B154 ->  | T156: ='Calc|Fee Based'!C154 ->  | U156: ='Calc|Fee Based'!D154 ->  | V156: ='Calc|Fee Based'!F154 ->  | W156: ='Calc|Fee Based'!H154 -> 0 | X156: 0 | Y156: 0 | Z156: 0 | AA156: 0
A157: 146 | L157: 0 | M157: 0 | N157: 0 | O157: 0 | P157: 0 | R157: 146 | S157: ='Calc|Fee Based'!B155 ->  | T157: ='Calc|Fee Based'!C155 ->  | U157: ='Calc|Fee Based'!D155 ->  | V157: ='Calc|Fee Based'!F155 ->  | W157: ='Calc|Fee Based'!H155 -> 0 | X157: 0 | Y157: 0 | Z157: 0 | AA157: 0
A158: 147 | L158: 0 | M158: 0 | N158: 0 | O158: 0 | P158: 0 | R158: 147 | S158: ='Calc|Fee Based'!B156 ->  | T158: ='Calc|Fee Based'!C156 ->  | U158: ='Calc|Fee Based'!D156 ->  | V158: ='Calc|Fee Based'!F156 ->  | W158: ='Calc|Fee Based'!H156 -> 0 | X158: 0 | Y158: 0 | Z158: 0 | AA158: 0
A159: 148 | L159: 0 | M159: 0 | N159: 0 | O159: 0 | P159: 0 | R159: 148 | S159: ='Calc|Fee Based'!B157 ->  | T159: ='Calc|Fee Based'!C157 ->  | U159: ='Calc|Fee Based'!D157 ->  | V159: ='Calc|Fee Based'!F157 ->  | W159: ='Calc|Fee Based'!H157 -> 0 | X159: 0 | Y159: 0 | Z159: 0 | AA159: 0
A160: 149 | L160: 0 | M160: 0 | N160: 0 | O160: 0 | P160: 0 | R160: 149 | S160: ='Calc|Fee Based'!B158 ->  | T160: ='Calc|Fee Based'!C158 ->  | U160: ='Calc|Fee Based'!D158 ->  | V160: ='Calc|Fee Based'!F158 ->  | W160: ='Calc|Fee Based'!H158 -> 0 | X160: 0 | Y160: 0 | Z160: 0 | AA160: 0
A161: 150 | L161: 0 | M161: 0 | N161: 0 | O161: 0 | P161: 0 | R161: 150 | S161: ='Calc|Fee Based'!B159 ->  | T161: ='Calc|Fee Based'!C159 ->  | U161: ='Calc|Fee Based'!D159 ->  | V161: ='Calc|Fee Based'!F159 ->  | W161: ='Calc|Fee Based'!H159 -> 0 | X161: 0 | Y161: 0 | Z161: 0 | AA161: 0
A162: 151 | L162: 0 | M162: 0 | N162: 0 | O162: 0 | P162: 0 | R162: 151 | S162: ='Calc|Fee Based'!B160 ->  | T162: ='Calc|Fee Based'!C160 ->  | U162: ='Calc|Fee Based'!D160 ->  | V162: ='Calc|Fee Based'!F160 ->  | W162: ='Calc|Fee Based'!H160 -> 0 | X162: 0 | Y162: 0 | Z162: 0 | AA162: 0
A163: 152 | L163: 0 | M163: 0 | N163: 0 | O163: 0 | P163: 0 | R163: 152 | S163: ='Calc|Fee Based'!B161 ->  | T163: ='Calc|Fee Based'!C161 ->  | U163: ='Calc|Fee Based'!D161 ->  | V163: ='Calc|Fee Based'!F161 ->  | W163: ='Calc|Fee Based'!H161 -> 0 | X163: 0 | Y163: 0 | Z163: 0 | AA163: 0
A164: 153 | L164: 0 | M164: 0 | N164: 0 | O164: 0 | P164: 0 | R164: 153 | S164: ='Calc|Fee Based'!B162 ->  | T164: ='Calc|Fee Based'!C162 ->  | U164: ='Calc|Fee Based'!D162 ->  | V164: ='Calc|Fee Based'!F162 ->  | W164: ='Calc|Fee Based'!H162 -> 0 | X164: 0 | Y164: 0 | Z164: 0 | AA164: 0
A165: 154 | L165: 0 | M165: 0 | N165: 0 | O165: 0 | P165: 0 | R165: 154 | S165: ='Calc|Fee Based'!B163 ->  | T165: ='Calc|Fee Based'!C163 ->  | U165: ='Calc|Fee Based'!D163 ->  | V165: ='Calc|Fee Based'!F163 ->  | W165: ='Calc|Fee Based'!H163 -> 0 | X165: 0 | Y165: 0 | Z165: 0 | AA165: 0
A166: 155 | L166: 0 | M166: 0 | N166: 0 | O166: 0 | P166: 0 | R166: 155 | S166: ='Calc|Fee Based'!B164 ->  | T166: ='Calc|Fee Based'!C164 ->  | U166: ='Calc|Fee Based'!D164 ->  | V166: ='Calc|Fee Based'!F164 ->  | W166: ='Calc|Fee Based'!H164 -> 0 | X166: 0 | Y166: 0 | Z166: 0 | AA166: 0
A167: 156 | L167: 0 | M167: 0 | N167: 0 | O167: 0 | P167: 0 | R167: 156 | S167: ='Calc|Fee Based'!B165 ->  | T167: ='Calc|Fee Based'!C165 ->  | U167: ='Calc|Fee Based'!D165 ->  | V167: ='Calc|Fee Based'!F165 ->  | W167: ='Calc|Fee Based'!H165 -> 0 | X167: 0 | Y167: 0 | Z167: 0 | AA167: 0
A168: 157 | L168: 0 | M168: 0 | N168: 0 | O168: 0 | P168: 0 | R168: 157 | S168: ='Calc|Fee Based'!B166 ->  | T168: ='Calc|Fee Based'!C166 ->  | U168: ='Calc|Fee Based'!D166 ->  | V168: ='Calc|Fee Based'!F166 ->  | W168: ='Calc|Fee Based'!H166 -> 0 | X168: 0 | Y168: 0 | Z168: 0 | AA168: 0
A169: 158 | L169: 0 | M169: 0 | N169: 0 | O169: 0 | P169: 0 | R169: 158 | S169: ='Calc|Fee Based'!B167 ->  | T169: ='Calc|Fee Based'!C167 ->  | U169: ='Calc|Fee Based'!D167 ->  | V169: ='Calc|Fee Based'!F167 ->  | W169: ='Calc|Fee Based'!H167 -> 0 | X169: 0 | Y169: 0 | Z169: 0 | AA169: 0
A170: 159 | L170: 0 | M170: 0 | N170: 0 | O170: 0 | P170: 0 | R170: 159 | S170: ='Calc|Fee Based'!B168 ->  | T170: ='Calc|Fee Based'!C168 ->  | U170: ='Calc|Fee Based'!D168 ->  | V170: ='Calc|Fee Based'!F168 ->  | W170: ='Calc|Fee Based'!H168 -> 0 | X170: 0 | Y170: 0 | Z170: 0 | AA170: 0
A171: 160 | L171: 0 | M171: 0 | N171: 0 | O171: 0 | P171: 0 | R171: 160 | S171: ='Calc|Fee Based'!B169 ->  | T171: ='Calc|Fee Based'!C169 ->  | U171: ='Calc|Fee Based'!D169 ->  | V171: ='Calc|Fee Based'!F169 ->  | W171: ='Calc|Fee Based'!H169 -> 0 | X171: 0 | Y171: 0 | Z171: 0 | AA171: 0
A172: 161 | L172: 0 | M172: 0 | N172: 0 | O172: 0 | P172: 0 | R172: 161 | S172: ='Calc|Fee Based'!B170 ->  | T172: ='Calc|Fee Based'!C170 ->  | U172: ='Calc|Fee Based'!D170 ->  | V172: ='Calc|Fee Based'!F170 ->  | W172: ='Calc|Fee Based'!H170 -> 0 | X172: 0 | Y172: 0 | Z172: 0 | AA172: 0
A173: 162 | L173: 0 | M173: 0 | N173: 0 | O173: 0 | P173: 0 | R173: 162 | S173: ='Calc|Fee Based'!B171 ->  | T173: ='Calc|Fee Based'!C171 ->  | U173: ='Calc|Fee Based'!D171 ->  | V173: ='Calc|Fee Based'!F171 ->  | W173: ='Calc|Fee Based'!H171 -> 0 | X173: 0 | Y173: 0 | Z173: 0 | AA173: 0
A174: 163 | L174: 0 | M174: 0 | N174: 0 | O174: 0 | P174: 0 | R174: 163 | S174: ='Calc|Fee Based'!B172 ->  | T174: ='Calc|Fee Based'!C172 ->  | U174: ='Calc|Fee Based'!D172 ->  | V174: ='Calc|Fee Based'!F172 ->  | W174: ='Calc|Fee Based'!H172 -> 0 | X174: 0 | Y174: 0 | Z174: 0 | AA174: 0
A175: 164 | L175: 0 | M175: 0 | N175: 0 | O175: 0 | P175: 0 | R175: 164 | S175: ='Calc|Fee Based'!B173 ->  | T175: ='Calc|Fee Based'!C173 ->  | U175: ='Calc|Fee Based'!D173 ->  | V175: ='Calc|Fee Based'!F173 ->  | W175: ='Calc|Fee Based'!H173 -> 0 | X175: 0 | Y175: 0 | Z175: 0 | AA175: 0
A176: 165 | L176: 0 | M176: 0 | N176: 0 | O176: 0 | P176: 0 | R176: 165 | S176: ='Calc|Fee Based'!B174 ->  | T176: ='Calc|Fee Based'!C174 ->  | U176: ='Calc|Fee Based'!D174 ->  | V176: ='Calc|Fee Based'!F174 ->  | W176: ='Calc|Fee Based'!H174 -> 0 | X176: 0 | Y176: 0 | Z176: 0 | AA176: =Z176*(1+AA$5)*(1-AA$6) -> 0
A177: 166 | L177: 0 | M177: 0 | N177: 0 | O177: 0 | P177: 0 | R177: 166 | S177: ='Calc|Fee Based'!B175 ->  | T177: ='Calc|Fee Based'!C175 ->  | U177: ='Calc|Fee Based'!D175 ->  | V177: ='Calc|Fee Based'!F175 ->  | W177: ='Calc|Fee Based'!H175 -> 0 | X177: =W177*(1+X$5)*(1-X$6) -> 0 | Y177: 0 | Z177: 0 | AA177: 0
A178: 167 | L178: 0 | M178: 0 | N178: 0 | O178: 0 | P178: 0 | R178: 167 | S178: ='Calc|Fee Based'!B176 ->  | T178: ='Calc|Fee Based'!C176 ->  | U178: ='Calc|Fee Based'!D176 ->  | V178: ='Calc|Fee Based'!F176 ->  | W178: ='Calc|Fee Based'!H176 -> 0 | X178: 0 | Y178: 0 | Z178: 0 | AA178: 0
A179: 168 | L179: 0 | M179: 0 | N179: 0 | O179: 0 | P179: 0 | R179: 168 | S179: ='Calc|Fee Based'!B177 ->  | T179: ='Calc|Fee Based'!C177 ->  | U179: ='Calc|Fee Based'!D177 ->  | V179: ='Calc|Fee Based'!F177 ->  | W179: ='Calc|Fee Based'!H177 -> 0 | X179: 0 | Y179: 0 | Z179: 0 | AA179: 0
A180: 169 | L180: 0 | M180: 0 | N180: 0 | O180: 0 | P180: 0 | R180: 169 | S180: ='Calc|Fee Based'!B178 ->  | T180: ='Calc|Fee Based'!C178 ->  | U180: ='Calc|Fee Based'!D178 ->  | V180: ='Calc|Fee Based'!F178 ->  | W180: ='Calc|Fee Based'!H178 -> 0 | X180: 0 | Y180: 0 | Z180: 0 | AA180: 0
A181: 170 | L181: 0 | M181: 0 | N181: 0 | O181: 0 | P181: 0 | R181: 170 | S181: ='Calc|Fee Based'!B179 ->  | T181: ='Calc|Fee Based'!C179 ->  | U181: ='Calc|Fee Based'!D179 ->  | V181: ='Calc|Fee Based'!F179 ->  | W181: ='Calc|Fee Based'!H179 -> 0 | X181: 0 | Y181: 0 | Z181: 0 | AA181: 0
A182: 171 | L182: 0 | M182: 0 | N182: 0 | O182: 0 | P182: 0 | R182: 171 | S182: ='Calc|Fee Based'!B180 ->  | T182: ='Calc|Fee Based'!C180 ->  | U182: ='Calc|Fee Based'!D180 ->  | V182: ='Calc|Fee Based'!F180 ->  | W182: ='Calc|Fee Based'!H180 -> 0 | X182: 0 | Y182: 0 | Z182: 0 | AA182: 0
A183: 172 | L183: 0 | M183: 0 | N183: 0 | O183: 0 | P183: 0 | R183: 172 | S183: ='Calc|Fee Based'!B181 ->  | T183: ='Calc|Fee Based'!C181 ->  | U183: ='Calc|Fee Based'!D181 ->  | V183: ='Calc|Fee Based'!F181 ->  | W183: ='Calc|Fee Based'!H181 -> 0 | X183: 0 | Y183: 0 | Z183: 0 | AA183: 0
A184: 173 | L184: 0 | M184: 0 | N184: 0 | O184: 0 | P184: 0 | R184: 173 | S184: ='Calc|Fee Based'!B182 ->  | T184: ='Calc|Fee Based'!C182 ->  | U184: ='Calc|Fee Based'!D182 ->  | V184: ='Calc|Fee Based'!F182 ->  | W184: ='Calc|Fee Based'!H182 -> 0 | X184: 0 | Y184: 0 | Z184: 0 | AA184: 0
A185: 174 | L185: 0 | M185: 0 | N185: 0 | O185: 0 | P185: 0 | R185: 174 | S185: ='Calc|Fee Based'!B183 ->  | T185: ='Calc|Fee Based'!C183 ->  | U185: ='Calc|Fee Based'!D183 ->  | V185: ='Calc|Fee Based'!F183 ->  | W185: ='Calc|Fee Based'!H183 -> 0 | X185: 0 | Y185: 0 | Z185: 0 | AA185: 0
A186: 175 | L186: 0 | M186: 0 | N186: 0 | O186: 0 | P186: 0 | R186: 175 | S186: ='Calc|Fee Based'!B184 ->  | T186: ='Calc|Fee Based'!C184 ->  | U186: ='Calc|Fee Based'!D184 ->  | V186: ='Calc|Fee Based'!F184 ->  | W186: ='Calc|Fee Based'!H184 -> 0 | X186: 0 | Y186: 0 | Z186: 0 | AA186: 0
A187: 176 | L187: 0 | M187: 0 | N187: 0 | O187: 0 | P187: 0 | R187: 176 | S187: ='Calc|Fee Based'!B185 ->  | T187: ='Calc|Fee Based'!C185 ->  | U187: ='Calc|Fee Based'!D185 ->  | V187: ='Calc|Fee Based'!F185 ->  | W187: ='Calc|Fee Based'!H185 -> 0 | X187: 0 | Y187: 0 | Z187: 0 | AA187: 0
A188: 177 | L188: 0 | M188: 0 | N188: 0 | O188: 0 | P188: 0 | R188: 177 | S188: ='Calc|Fee Based'!B186 ->  | T188: ='Calc|Fee Based'!C186 ->  | U188: ='Calc|Fee Based'!D186 ->  | V188: ='Calc|Fee Based'!F186 ->  | W188: ='Calc|Fee Based'!H186 -> 0 | X188: 0 | Y188: 0 | Z188: 0 | AA188: 0
A189: 178 | L189: 0 | M189: 0 | N189: 0 | O189: 0 | P189: 0 | R189: 178 | S189: ='Calc|Fee Based'!B187 ->  | T189: ='Calc|Fee Based'!C187 ->  | U189: ='Calc|Fee Based'!D187 ->  | V189: ='Calc|Fee Based'!F187 ->  | W189: ='Calc|Fee Based'!H187 -> 0 | X189: 0 | Y189: 0 | Z189: 0 | AA189: 0
A190: 179 | L190: 0 | M190: 0 | N190: 0 | O190: 0 | P190: 0 | R190: 179 | S190: ='Calc|Fee Based'!B188 ->  | T190: ='Calc|Fee Based'!C188 ->  | U190: ='Calc|Fee Based'!D188 ->  | V190: ='Calc|Fee Based'!F188 ->  | W190: ='Calc|Fee Based'!H188 -> 0 | X190: 0 | Y190: 0 | Z190: 0 | AA190: 0
A191: 180 | L191: 0 | M191: 0 | N191: 0 | O191: 0 | P191: 0 | R191: 180 | S191: ='Calc|Fee Based'!B189 ->  | T191: ='Calc|Fee Based'!C189 ->  | U191: ='Calc|Fee Based'!D189 ->  | V191: ='Calc|Fee Based'!F189 ->  | W191: ='Calc|Fee Based'!H189 -> 0 | X191: 0 | Y191: 0 | Z191: 0 | AA191: 0
A192: 181 | L192: 0 | M192: 0 | N192: 0 | O192: 0 | P192: 0 | R192: 181 | S192: ='Calc|Fee Based'!B190 ->  | T192: ='Calc|Fee Based'!C190 ->  | U192: ='Calc|Fee Based'!D190 ->  | V192: ='Calc|Fee Based'!F190 ->  | W192: ='Calc|Fee Based'!H190 -> 0 | X192: 0 | Y192: 0 | Z192: 0 | AA192: 0
A193: 182 | L193: 0 | M193: 0 | N193: 0 | O193: 0 | P193: 0 | R193: 182 | S193: ='Calc|Fee Based'!B191 ->  | T193: ='Calc|Fee Based'!C191 ->  | U193: ='Calc|Fee Based'!D191 ->  | V193: ='Calc|Fee Based'!F191 ->  | W193: ='Calc|Fee Based'!H191 -> 0 | X193: 0 | Y193: 0 | Z193: 0 | AA193: 0
A194: 183 | L194: 0 | M194: 0 | N194: 0 | O194: 0 | P194: 0 | R194: 183 | S194: ='Calc|Fee Based'!B192 ->  | T194: ='Calc|Fee Based'!C192 ->  | U194: ='Calc|Fee Based'!D192 ->  | V194: ='Calc|Fee Based'!F192 ->  | W194: ='Calc|Fee Based'!H192 -> 0 | X194: 0 | Y194: 0 | Z194: 0 | AA194: 0
A195: 184 | L195: 0 | M195: 0 | N195: 0 | O195: 0 | P195: 0 | R195: 184 | S195: ='Calc|Fee Based'!B193 ->  | T195: ='Calc|Fee Based'!C193 ->  | U195: ='Calc|Fee Based'!D193 ->  | V195: ='Calc|Fee Based'!F193 ->  | W195: ='Calc|Fee Based'!H193 -> 0 | X195: 0 | Y195: 0 | Z195: 0 | AA195: 0
A196: 185 | L196: 0 | M196: 0 | N196: 0 | O196: 0 | P196: 0 | R196: 185 | S196: ='Calc|Fee Based'!B194 ->  | T196: ='Calc|Fee Based'!C194 ->  | U196: ='Calc|Fee Based'!D194 ->  | V196: ='Calc|Fee Based'!F194 ->  | W196: ='Calc|Fee Based'!H194 -> 0 | X196: 0 | Y196: 0 | Z196: 0 | AA196: 0
A197: 186 | L197: 0 | M197: 0 | N197: 0 | O197: 0 | P197: 0 | R197: 186 | S197: ='Calc|Fee Based'!B195 ->  | T197: ='Calc|Fee Based'!C195 ->  | U197: ='Calc|Fee Based'!D195 ->  | V197: ='Calc|Fee Based'!F195 ->  | W197: ='Calc|Fee Based'!H195 -> 0 | X197: 0 | Y197: 0 | Z197: 0 | AA197: 0
A198: 187 | L198: 0 | M198: 0 | N198: 0 | O198: 0 | P198: 0 | R198: 187 | S198: ='Calc|Fee Based'!B196 ->  | T198: ='Calc|Fee Based'!C196 ->  | U198: ='Calc|Fee Based'!D196 ->  | V198: ='Calc|Fee Based'!F196 ->  | W198: ='Calc|Fee Based'!H196 -> 0 | X198: 0 | Y198: 0 | Z198: 0 | AA198: 0
A199: 188 | L199: 0 | M199: 0 | N199: 0 | O199: 0 | P199: 0 | R199: 188 | S199: ='Calc|Fee Based'!B197 ->  | T199: ='Calc|Fee Based'!C197 ->  | U199: ='Calc|Fee Based'!D197 ->  | V199: ='Calc|Fee Based'!F197 ->  | W199: ='Calc|Fee Based'!H197 -> 0 | X199: 0 | Y199: 0 | Z199: 0 | AA199: 0
A200: 189 | L200: 0 | M200: 0 | N200: 0 | O200: 0 | P200: 0 | R200: 189 | S200: ='Calc|Fee Based'!B198 ->  | T200: ='Calc|Fee Based'!C198 ->  | U200: ='Calc|Fee Based'!D198 ->  | V200: ='Calc|Fee Based'!F198 ->  | W200: ='Calc|Fee Based'!H198 -> 0 | X200: 0 | Y200: 0 | Z200: 0 | AA200: 0
A201: 190 | L201: 0 | M201: 0 | N201: 0 | O201: 0 | P201: 0 | R201: 190 | S201: ='Calc|Fee Based'!B199 ->  | T201: ='Calc|Fee Based'!C199 ->  | U201: ='Calc|Fee Based'!D199 ->  | V201: ='Calc|Fee Based'!F199 ->  | W201: ='Calc|Fee Based'!H199 -> 0 | X201: 0 | Y201: 0 | Z201: 0 | AA201: 0
A202: 191 | L202: 0 | M202: 0 | N202: 0 | O202: 0 | P202: 0 | R202: 191 | S202: ='Calc|Fee Based'!B200 ->  | T202: ='Calc|Fee Based'!C200 ->  | U202: ='Calc|Fee Based'!D200 ->  | V202: ='Calc|Fee Based'!F200 ->  | W202: ='Calc|Fee Based'!H200 -> 0 | X202: 0 | Y202: 0 | Z202: 0 | AA202: 0
... 309 more rows

Sheet Input|Labour Rates
B1: =IFERROR(Index!B1,"") -> AER ANS Forecast Model | D1: Key: | E1: Input | G1: Sheet Validation | H1: ='Model Validation'!C13 -> 0
B2: =IFERROR(MID(CELL("filename",A1),FIND("]",CELL("filename",A1))+1,255),"") -> Input|Labour Rates | E2: Formula
B7: 6.1 Labour rates | E7: =IFERROR("Inputs, $'s ($"&Input_base_year&")","") ->  | K7: 6.2 Notes and sources for "Other costs"
B9: ='Input|Setup'!$B$30 & " (List)" -> Labour type (List) | C9: ='Input|Setup'!$B$24& " (List)" -> Hours (List) | D9: ='Input|Setup'!$B$18 & " (List)" -> Used for quoted service? (List) | E9: ="Base labour rate ($" & 'Input|Setup'!$E$7 & ")" -> Base labour rate ($2024-25) | F9: ='Input|Indirect Cost Rates'!B5 & " (%)" -> On costs (%) | G9: ='Input|Indirect Cost Rates'!B22 & " (%)" -> Overhead (%) | H9: ="Vehicle ($" & 'Input|Setup'!$E$7 & ")" -> Vehicle ($2024-25) | I9: ="Other costs ($" & 'Input|Setup'!$E$7 & ")" -> Other costs ($2024-25)
A10: 1 | B10: Construction Overhead Install | C10: Business hours | D10: Yes | E10: =143.6/(1+F10)/(1+G10) -> 96.69746966 | F10: ='Input|Indirect Cost Rates'!$D$19 -> 0.3537544959 | G10: =('Input|Indirect Cost Rates'!D26+1)-1 -> 0.09698178955 | J10: =IF(AND(ISTEXT(B10),OR(ISBLANK(C10),ISBLANK(D10),COUNTA(E10:I10)=0)),1,0) -> 0 | L10: =IF(AND(ISNUMBER(I10),ISBLANK(K10)),1,0) -> 0
A11: =A10+1 -> 2 | B11: Construction Underground Install | C11: Business hours | D11: Yes | E11: =140.25/(1+F11)/(1+G11) -> 94.44164429 | F11: ='Input|Indirect Cost Rates'!$D$19 -> 0.3537544959 | G11: =$G$10 -> 0.09698178955 | J11: 0 | L11: 0
A12: 3 | B12: Construction Substation Install | C12: Business hours | D12: Yes | E12: =140.25/(1+F12)/(1+G12) -> 94.44164429 | F12: ='Input|Indirect Cost Rates'!$D$19 -> 0.3537544959 | G12: 0.09698178955 | J12: 0 | L12: 0
A13: 4 | B13: Electrical Tester Including Vehicle & Equipment | C13: Business hours | D13: Yes | E13: =(206.79-0.9827*(H13+I13))/((1+F13)*(1+G13)) -> 100.9937147 | F13: ='Input|Indirect Cost Rates'!$D$19 -> 0.3537544959 | G13: 0.09698178955 | H13: 43.79 | I13: =57.81-43.79 -> 14.02 | J13: 0 | K13: Equipment costs for electrical tester | L13: =IF(AND(ISNUMBER(I13),ISBLANK(K13)),1,0) -> 0
A14: 5 | B14: Planner Including Vehicle | C14: Business hours | D14: Yes | E14: =(192.77-0.9827*H14)/(1+F14)/(1+G14) -> 100.8303889 | F14: ='Input|Indirect Cost Rates'!$D$19 -> 0.3537544959 | G14: 0.09698178955 | H14: 43.79 | J14: 0 | L14: 0
A15: 6 | B15: Supervisor Including Vehicle | C15: Business hours | D15: Yes | E15: =(192.77-0.9827*H15)/(1+F15)/(1+G15) -> 100.8303889 | F15: ='Input|Indirect Cost Rates'!$D$19 -> 0.3537544959 | G15: 0.09698178955 | H15: 43.79 | J15: 0 | L15: 0
A16: 7 | B16: Administrative Officer | C16: Business hours | D16: Yes | E16: =(88.18/(1+F16)/(1+G16))*0.9306 -> 55.2578283 | F16: ='Input|Indirect Cost Rates'!$D$19 -> 0.3537544959 | G16: 0.09698178955 | J16: 0 | L16: 0
A17: 8 | B17: Design | C17: Business hours | D17: Yes | E17: 118.0392139 | F17: ='Input|Indirect Cost Rates'!$D$19 -> 0.3537544959 | G17: 0.09698178955 | J17: 0 | L17: 0
A18: 9 | B18: Drafting | C18: Business hours | D18: Yes | E18: 90.70781805 | F18: ='Input|Indirect Cost Rates'!$D$19 -> 0.3537544959 | G18: 0.09698178955 | J18: 0 | L18: 0
A19: 10 | B19: Survey | C19: Business hours | D19: Yes | E19: 106.8441709 | F19: ='Input|Indirect Cost Rates'!$D$19 -> 0.3537544959 | G19: 0.09698178955 | J19: 0 | L19: 0
A20: 11 | B20: Tech Officer | C20: Business hours | D20: Yes | E20: 106.8441709 | F20: ='Input|Indirect Cost Rates'!$D$19 -> 0.3537544959 | G20: 0.09698178955 | J20: 0 | L20: 0
A21: 12 | B21: Line Inspector | C21: Business hours | D21: Yes | E21: 102.9857896 | F21: ='Input|Indirect Cost Rates'!$D$19 -> 0.3537544959 | G21: 0.09698178955 | J21: 0 | L21: 0
A22: 13 | B22: Contract Supervision | C22: Business hours | D22: Yes | E22: 106.8441709 | F22: ='Input|Indirect Cost Rates'!$D$19 -> 0.3537544959 | G22: 0.09698178955 | J22: 0 | L22: 0
A23: 14 | B23: Protection Engineer | C23: Business hours | D23: Yes | E23: 118.0392139 | F23: ='Input|Indirect Cost Rates'!$D$19 -> 0.3537544959 | G23: 0.09698178955 | J23: 0 | L23: 0
A24: 15 | B24: Maintenance Planner Including Vehicle | C24: Business hours | D24: Yes | E24: 106.8441709 | F24: ='Input|Indirect Cost Rates'!$D$19 -> 0.3537544959 | G24: 0.09698178955 | H24: 43.79 | J24: 0 | L24: 0
A25: 16 | B25: Senior Engineer | C25: Business hours | D25: Yes | E25: 170.148876 | F25: ='Input|Indirect Cost Rates'!$D$19 -> 0.3537544959 | G25: 0.09698178955 | J25: 0 | L25: 0
A26: 17 | B26: Construction Overhead Install | C26: After hours | D26: Yes | E26: =E10*1.75 -> 169.2205719 | F26: ='Input|Indirect Cost Rates'!$D$19 -> 0.3537544959 | G26: 0.09698178955 | J26: 0 | L26: 0
A27: 18 | B27: Construction Underground Install | C27: After hours | D27: Yes | E27: =E11*1.75 -> 165.2728775 | F27: ='Input|Indirect Cost Rates'!$D$19 -> 0.3537544959 | G27: 0.09698178955 | J27: 0 | L27: 0
A28: 19 | B28: Construction Substation Install | C28: After hours | D28: Yes | E28: =E12*1.75 -> 165.2728775 | F28: ='Input|Indirect Cost Rates'!$D$19 -> 0.3537544959 | G28: 0.09698178955 | J28: 0 | L28: 0
A29: 20 | B29: Electrical Tester Including Vehicle & Equipment | C29: After hours | D29: Yes | E29: =E13*1.75 -> 176.7390007 | F29: ='Input|Indirect Cost Rates'!$D$19 -> 0.3537544959 | G29: 0.09698178955 | J29: 0 | L29: 0
A30: 21 | B30: Administrative Officer | C30: After hours | D30: Yes | E30: =E16*1.75 -> 96.70119952 | F30: ='Input|Indirect Cost Rates'!$D$19 -> 0.3537544959 | G30: 0.09698178955 | J30: 0 | L30: 0
A31: 22 | B31: Design | C31: After hours | D31: Yes | E31: =E17*1.75 -> 206.5686243 | F31: ='Input|Indirect Cost Rates'!$D$19 -> 0.3537544959 | G31: 0.09698178955 | J31: 0 | L31: 0
A32: 23 | B32: Drafting | C32: After hours | D32: Yes | E32: =E18*1.75 -> 158.7386816 | F32: ='Input|Indirect Cost Rates'!$D$19 -> 0.3537544959 | G32: 0.09698178955 | J32: 0 | L32: 0
A33: 24 | B33: Survey | C33: After hours | D33: Yes | E33: =E19*1.75 -> 186.977299 | F33: ='Input|Indirect Cost Rates'!$D$19 -> 0.3537544959 | G33: 0.09698178955 | J33: 0 | L33: 0
A34: 25 | B34: Tech Officer | C34: After hours | D34: Yes | E34: =E20*1.75 -> 186.977299 | F34: ='Input|Indirect Cost Rates'!$D$19 -> 0.3537544959 | G34: 0.09698178955 | J34: 0 | L34: 0
A35: 26 | B35: Line Inspector | C35: After hours | D35: Yes | E35: =E21*1.75 -> 180.2251319 | F35: ='Input|Indirect Cost Rates'!$D$19 -> 0.3537544959 | G35: 0.09698178955 | J35: 0 | L35: 0
A36: 27 | B36: Contract Supervision | C36: After hours | D36: Yes | E36: 186.977299 | F36: ='Input|Indirect Cost Rates'!$D$19 -> 0.3537544959 | G36: 0.09698178955 | J36: 0 | L36: 0
A37: 28 | B37: Protection Engineer | C37: After hours | D37: Yes | E37: 206.5686243 | F37: ='Input|Indirect Cost Rates'!$D$19 -> 0.3537544959 | G37: 0.09698178955 | J37: 0 | L37: 0
A38: 29 | B38: Maintenance Planner Including Vehicle | C38: After hours | D38: Yes | E38: 186.977299 | F38: ='Input|Indirect Cost Rates'!$D$19 -> 0.3537544959 | G38: 0.09698178955 | H38: =H22 -> 0 | J38: 0 | L38: 0
A39: 30 | B39: Senior Engineer | C39: After hours | D39: Yes | E39: 297.7605329 | F39: ='Input|Indirect Cost Rates'!$D$19 -> 0.3537544959 | G39: 0.09698178955 | J39: 0 | L39: 0
A40: 31
A41: 32
B42: =IFERROR("6.3 List of quoted services for "&'Input|Setup'!$E$11&" to "&'Input|Setup'!$E$15&" regulatory period","") -> 6.3 List of quoted services for 2026-27 to 2030-31 regulatory period
A44: 1 | B44: Access permits, oversight and facilitation
A45: =IFERROR(A44+1,"") -> 2 | B45: Notices of arrangement and completion notices
A46: =IFERROR(A45+1,"") -> 3 | B46: Network related property services
A47: 4 | B47: Network safety services
A48: 5 | B48: Customer requested network outage or rescheduling of a planned interruption
A49: 6 | B49: Fault response (not DNSP fault)
A50: 7 | B50: Inspection and auditing services
A51: 8 | B51: Provision of non-basic electricity network data
A52: 9 | B52: Third party funded network alterations or other improvements
A53: 10 | B53: Community network upgrades
A54: 11 | B54: Planned supply interruption – retailer requested
A55: 12 | B55: Embedded networks
A56: 13 | B56: Basic connection services
A57: 14 | B57: Enhanced connection services
A58: 15 | B58: Connection application and management services
A59: 16 | B59: Public lighting
A60: 17
A61: 18 | B61: ='Input|Setup'!E48 -> 0
A62: 19
A63: 20
A64: 21
A65: 22
A66: 23
A67: 24
A68: 25
A69: 26
A70: 27
A71: 28
A72: 29
A73: 30
A74: 31
A75: 32
A76: 33
A77: 34
A78: 35
A79: 36
A80: 37
A81: 38
A82: 39
A83: 40
A84: 41
A85: 42
A86: 43
A87: 44
A88: 45
A89: 46
A90: 47
A91: 48
A92: 49
A93: 50
A94: 51
A95: 52
A96: 53
A97: 54
A98: 55
A99: 56
A100: 57
A101: 58
A102: 59
A103: 60
A104: 61
A105: 62
A106: 63
A107: 64
A108: 65
A109: 66
A110: 67
A111: 68
A112: 69
A113: 70
A114: 71
A115: 72
A116: 73
A117: 74
A118: 75
A119: 76
A120: 77
A121: 78
A122: 79
A123: 80
A124: 81
A125: 82
A126: 83
A127: 84
A128: 85
A129: 86
A130: 87
A131: 88
A132: 89
A133: 90
A134: 91
A135: 92
A136: 93
A137: 94
A138: 95
A139: 96
A140: 97
A141: 98
A142: 99
A143: 100
A144: 101
A145: 102
A146: 103
A147: 104
A148: 105
A149: 106
A150: 107
A151: 108
A152: 109
A153: 110
A154: 111
A155: 112
A156: 113
A157: 114
A158: 115
A159: 116
A160: 117
A161: 118
A162: 119
A163: 120
A164: 121
A165: 122
A166: 123
A167: 124
A168: 125
A169: 126
A170: 127
A171: 128
A172: 129
A173: 130
A174: 131
A175: 132
A176: 133
A177: 134
A178: 135
A179: 136
A180: 137
A181: 138
A182: 139
A183: 140
A184: 141
A185: 142
A186: 143
A187: 144
A188: 145
A189: 146
A190: 147
A191: 148
A192: 149
A193: 150
A194: 151
A195: 152
A196: 153
A197: 154
A198: 155
A199: 156
A200: 157
A201: 158
A202: 159
A203: 160
A204: 161
A205: 162
A206: 163
... 87 more rows

Sheet Input|Fee Based
B1: AER ANS Forecast Model | D1: Key: | E1: Input | I1: Sheet Validation | J1: 0
B2: Input|Fee Based | E2: Formula
B6: 7.1 Fee based services | F6: Mapping categories | I6: 7.2 Service cost build up - DIRECT COSTS, $'s ($2024-25) | AV6: 7.3 Service cost build - INDIRECT COSTS (per cent) | BD6: 7.4 Notes and sources for "Other costs"
I8: 7.2.1 Non-field based labour | U8: 0 | V8: 7.2.2 Field based labour | AP8: 0 | AQ8: 7.2.3 Direct non-labour | AV8: Indirect Costs
B9: Service code | C9: Service | D9: Hours (List) | E9: Service category (List) | F9: Groups of ACS fee based services (List) | G9: Not used (List) | I9: Labour category 1 (List) | J9: Hours (List) | K9: FTE | L9: Time on task (Minutes) | M9: Labour category 2 (List) | N9: Hours (List) | O9: FTE | P9: Time on task (Minutes) | Q9: Labour category 3 (List) | R9: Hours (List) | S9: FTE | T9: Time on task (Minutes) | V9: Labour category 1 (List) | W9: Hours (List) | X9: FTE | Y9: Travel time (Minutes) | Z9: Time on task (Minutes) | AA9: Labour category 2 (List) | AB9: Hours (List) | AC9: FTE | AD9: Travel time (Minutes) | AE9: Time on task (Minutes) | AF9: Labour category 3 (List) | AG9: Hours (List) | AH9: FTE | AI9: Travel time (Minutes) | AJ9: Time on task (Minutes) | AK9: Labour category 4 (List) | AL9: Hours (List) | AM9: FTE | AN9: Travel time (Minutes) | AO9: Time on task (Minutes) | AQ9: Materials ($2024-25) | AR9: Contracts ($2024-25) | AS9: Vehicles ($2024-25) | AT9: Other ($2024-25) | AV9: Network Overhead (%) | AW9: Corporate Overhead (%) | AX9: Margin (%) | AY9: Tax recovery (%) | BD9: Notes and sources for "Other costs"
A10: 1 | C10: Single-phase overhead - business hours | D10: Business hours | E10: Basic connection services | F10: Connection service category - ACS fee based | H10: 0 | U10: 0 | AP10: 0 | AV10: ='Input|Indirect Cost Rates'!$D$26 -> 0.09698178955 | AW10: 0 | AX10: ='Input|Indirect Cost Rates'!$D$35 -> 0.06 | AY10: ='Input|Indirect Cost Rates'!$D$44 -> 0.04586450543 | AZ10: 0 | BA10: 0 | BB10: 0 | BC10: 0 | BD10: Other direct non-labour costs consist of service provider charges - a 10% management overhead fee | BE10: 0
A11: 2 | C11: Single-phase underground - business hours | D11: Business hours | E11: Basic connection services | F11: Connection service category - ACS fee based | H11: 0 | U11: 0 | AP11: 0 | AV11: ='Input|Indirect Cost Rates'!$D$26 -> 0.09698178955 | AW11: 0 | AX11: ='Input|Indirect Cost Rates'!$D$35 -> 0.06 | AY11: ='Input|Indirect Cost Rates'!$D$44 -> 0.04586450543 | AZ11: 0 | BA11: 0 | BB11: 0 | BC11: 0 | BD11: Other direct non-labour costs consist of service provider charges - a 10% management overhead fee | BE11: 0
A12: 3 | C12: Single-phase underground with a directly connected meter on group metering panel - business hours | D12: Business hours | E12: Basic connection services | F12: Connection service category - ACS fee based | H12: 0 | U12: 0 | AP12: 0 | AV12: ='Input|Indirect Cost Rates'!$D$26 -> 0.09698178955 | AW12: 0 | AX12: ='Input|Indirect Cost Rates'!$D$35 -> 0.06 | AY12: ='Input|Indirect Cost Rates'!$D$44 -> 0.04586450543 | AZ12: 0 | BA12: 0 | BB12: 0 | BC12: 0 | BD12: Other direct non-labour costs consist of service provider charges - a 10% management overhead fee | BE12: 0
A13: 4 | C13: Multi-phase overhead with a directly connected meter - business hours | D13: Business hours | E13: Basic connection services | F13: Connection service category - ACS fee based | H13: 0 | U13: 0 | AP13: 0 | AV13: ='Input|Indirect Cost Rates'!$D$26 -> 0.09698178955 | AW13: 0 | AX13: ='Input|Indirect Cost Rates'!$D$35 -> 0.06 | AY13: ='Input|Indirect Cost Rates'!$D$44 -> 0.04586450543 | AZ13: 0 | BA13: 0 | BB13: 0 | BC13: 0 | BD13: Other direct non-labour costs consist of service provider charges - a 10% management overhead fee | BE13: 0
A14: 5 | C14: Multi-phase overhead with a CT connected meter - business hours | D14: Business hours | E14: Basic connection services | F14: Connection service category - ACS fee based | H14: 0 | U14: 0 | AP14: 0 | AV14: ='Input|Indirect Cost Rates'!$D$26 -> 0.09698178955 | AW14: 0 | AX14: ='Input|Indirect Cost Rates'!$D$35 -> 0.06 | AY14: ='Input|Indirect Cost Rates'!$D$44 -> 0.04586450543 | AZ14: 0 | BA14: 0 | BB14: 0 | BC14: 0 | BD14: Other direct non-labour costs consist of service provider charges - a 10% management overhead fee | BE14: 0
A15: 6 | C15: Multi-phase underground with a directly connected meter - business hours | D15: Business hours | E15: Basic connection services | F15: Connection service category - ACS fee based | H15: 0 | U15: 0 | AP15: 0 | AV15: ='Input|Indirect Cost Rates'!$D$26 -> 0.09698178955 | AW15: 0 | AX15: ='Input|Indirect Cost Rates'!$D$35 -> 0.06 | AY15: ='Input|Indirect Cost Rates'!$D$44 -> 0.04586450543 | AZ15: 0 | BA15: 0 | BB15: 0 | BC15: 0 | BD15: Other direct non-labour costs consist of service provider charges - a 10% management overhead fee | BE15: 0
A16: 7 | C16: Multi-phase underground with a directly connected meter on group metering panel - business hours | D16: Business hours | E16: Basic connection services | F16: Connection service category - ACS fee based | H16: 0 | U16: 0 | AP16: 0 | AV16: ='Input|Indirect Cost Rates'!$D$26 -> 0.09698178955 | AW16: 0 | AX16: ='Input|Indirect Cost Rates'!$D$35 -> 0.06 | AY16: ='Input|Indirect Cost Rates'!$D$44 -> 0.04586450543 | AZ16: 0 | BA16: 0 | BB16: 0 | BC16: 0 | BD16: Other direct non-labour costs consist of service provider charges - a 10% management overhead fee | BE16: 0
A17: 8 | C17: Multi-phase underground with a CT connected meter - business hours | D17: Business hours | E17: Basic connection services | F17: Connection service category - ACS fee based | H17: 0 | U17: 0 | AP17: 0 | AV17: ='Input|Indirect Cost Rates'!$D$26 -> 0.09698178955 | AW17: 0 | AX17: ='Input|Indirect Cost Rates'!$D$35 -> 0.06 | AY17: ='Input|Indirect Cost Rates'!$D$44 -> 0.04586450543 | AZ17: 0 | BA17: 0 | BB17: 0 | BC17: 0 | BD17: Other direct non-labour costs consist of service provider charges - a 10% management overhead fee | BE17: 0
A18: 9 | C18: 95mm2 overhead service from LVABC - business hours | D18: Business hours | E18: Basic connection services | F18: Connection service category - ACS fee based | H18: 0 | U18: 0 | AP18: 0 | AV18: ='Input|Indirect Cost Rates'!$D$26 -> 0.09698178955 | AW18: 0 | AX18: ='Input|Indirect Cost Rates'!$D$35 -> 0.06 | AY18: ='Input|Indirect Cost Rates'!$D$44 -> 0.04586450543 | AZ18: 0 | BA18: 0 | BB18: 0 | BC18: 0 | BD18: Other direct non-labour costs consist of service provider charges - a 10% management overhead fee | BE18: 0
A19: 10 | C19: Establish temporary supply connection - business hours | D19: Business hours | E19: Connection management services | F19: Connection service category - ACS fee based | H19: 0 | U19: 0 | AP19: 0 | AV19: ='Input|Indirect Cost Rates'!$D$26 -> 0.09698178955 | AW19: 0 | AX19: ='Input|Indirect Cost Rates'!$D$35 -> 0.06 | AY19: ='Input|Indirect Cost Rates'!$D$44 -> 0.04586450543 | AZ19: 0 | BA19: 0 | BB19: 0 | BC19: 0 | BD19: Other direct non-labour costs consist of service provider charges - a 10% management overhead fee | BE19: 0
A20: 11 | C20: Appointment - inspection of group or CT metering prior to connection - business hours | D20: Business hours | E20: Connection management services | F20: Connection service category - ACS fee based | H20: 0 | U20: 0 | AP20: 0 | AV20: ='Input|Indirect Cost Rates'!$D$26 -> 0.09698178955 | AW20: 0 | AX20: ='Input|Indirect Cost Rates'!$D$35 -> 0.06 | AY20: ='Input|Indirect Cost Rates'!$D$44 -> 0.04586450543 | AZ20: 0 | BA20: 0 | BB20: 0 | BC20: 0 | BD20: Other direct non-labour costs consist of service provider charges - a 10% management overhead fee | BE20: 0
A21: 12 | C21: Service truck - Disconnect/Reconnect at pole or pit - business hours | D21: Business hours | E21: Connection management services | F21: Connection service category - ACS fee based | H21: 0 | U21: 0 | AP21: 0 | AV21: ='Input|Indirect Cost Rates'!$D$26 -> 0.09698178955 | AW21: 0 | AX21: ='Input|Indirect Cost Rates'!$D$35 -> 0.06 | AY21: ='Input|Indirect Cost Rates'!$D$44 -> 0.04586450543 | AZ21: 0 | BA21: 0 | BB21: 0 | BC21: 0 | BD21: Other direct non-labour costs consist of service provider charges - a 10% management overhead fee | BE21: 0
A22: 13 | C22: Single-phase overhead - after hours | D22: After hours | E22: Basic connection services | F22: Connection service category - ACS fee based | H22: 0 | U22: 0 | AP22: 0 | AV22: ='Input|Indirect Cost Rates'!$D$26 -> 0.09698178955 | AW22: 0 | AX22: ='Input|Indirect Cost Rates'!$D$35 -> 0.06 | AY22: ='Input|Indirect Cost Rates'!$D$44 -> 0.04586450543 | AZ22: 0 | BA22: 0 | BB22: 0 | BC22: 0 | BD22: Other direct non-labour costs consist of service provider charges - a 10% management overhead fee | BE22: 0
A23: 14 | C23: Single-phase underground - after hours | D23: After hours | E23: Basic connection services | F23: Connection service category - ACS fee based | H23: 0 | U23: 0 | AP23: 0 | AV23: ='Input|Indirect Cost Rates'!$D$26 -> 0.09698178955 | AW23: 0 | AX23: ='Input|Indirect Cost Rates'!$D$35 -> 0.06 | AY23: ='Input|Indirect Cost Rates'!$D$44 -> 0.04586450543 | AZ23: 0 | BA23: 0 | BB23: 0 | BC23: 0 | BD23: Other direct non-labour costs consist of service provider charges - a 10% management overhead fee | BE23: 0
A24: 15 | C24: Single-phase underground with a directly connected meter on group metering panel - after hours | D24: After hours | E24: Basic connection services | F24: Connection service category - ACS fee based | H24: 0 | U24: 0 | AP24: 0 | AV24: ='Input|Indirect Cost Rates'!$D$26 -> 0.09698178955 | AW24: 0 | AX24: ='Input|Indirect Cost Rates'!$D$35 -> 0.06 | AY24: ='Input|Indirect Cost Rates'!$D$44 -> 0.04586450543 | AZ24: 0 | BA24: 0 | BB24: 0 | BC24: 0 | BD24: Other direct non-labour costs consist of service provider charges - a 10% management overhead fee | BE24: 0
A25: 16 | C25: Multi-phase overhead with a directly connected meter - after hours | D25: After hours | E25: Basic connection services | F25: Connection service category - ACS fee based | H25: 0 | U25: 0 | AP25: 0 | AV25: ='Input|Indirect Cost Rates'!$D$26 -> 0.09698178955 | AW25: 0 | AX25: ='Input|Indirect Cost Rates'!$D$35 -> 0.06 | AY25: ='Input|Indirect Cost Rates'!$D$44 -> 0.04586450543 | AZ25: 0 | BA25: 0 | BB25: 0 | BC25: 0 | BD25: Other direct non-labour costs consist of service provider charges - a 10% management overhead fee | BE25: 0
A26: 17 | C26: Multi-phase underground with a directly connected meter on group metering panel - after hours | D26: After hours | E26: Basic connection services | F26: Connection service category - ACS fee based | H26: 0 | U26: 0 | AP26: 0 | AV26: ='Input|Indirect Cost Rates'!$D$26 -> 0.09698178955 | AW26: 0 | AX26: ='Input|Indirect Cost Rates'!$D$35 -> 0.06 | AY26: ='Input|Indirect Cost Rates'!$D$44 -> 0.04586450543 | AZ26: 0 | BA26: 0 | BB26: 0 | BC26: 0 | BD26: Other direct non-labour costs consist of service provider charges - a 10% management overhead fee | BE26: 0
A27: 18 | C27: Multi-phase overhead with a CT connected meter - after hours | D27: After hours | E27: Basic connection services | F27: Connection service category - ACS fee based | H27: 0 | U27: 0 | AP27: 0 | AV27: ='Input|Indirect Cost Rates'!$D$26 -> 0.09698178955 | AW27: 0 | AX27: ='Input|Indirect Cost Rates'!$D$35 -> 0.06 | AY27: ='Input|Indirect Cost Rates'!$D$44 -> 0.04586450543 | AZ27: 0 | BA27: 0 | BB27: 0 | BC27: 0 | BD27: Other direct non-labour costs consist of service provider charges - a 10% management overhead fee | BE27: 0
A28: 19 | C28: Multi-phase underground with a directly connected meter - after hours | D28: After hours | E28: Basic connection services | F28: Connection service category - ACS fee based | H28: 0 | U28: 0 | AC28: 0 | AP28: 0 | AV28: ='Input|Indirect Cost Rates'!$D$26 -> 0.09698178955 | AW28: 0 | AX28: ='Input|Indirect Cost Rates'!$D$35 -> 0.06 | AY28: ='Input|Indirect Cost Rates'!$D$44 -> 0.04586450543 | AZ28: 0 | BA28: 0 | BB28: 0 | BC28: 0 | BD28: Other direct non-labour costs consist of service provider charges - a 10% management overhead fee | BE28: 0
A29: 20 | C29: Multi-phase underground with a CT connected meter - after hours | D29: After hours | E29: Basic connection services | F29: Connection service category - ACS fee based | H29: 0 | U29: 0 | AP29: 0 | AV29: ='Input|Indirect Cost Rates'!$D$26 -> 0.09698178955 | AW29: 0 | AX29: ='Input|Indirect Cost Rates'!$D$35 -> 0.06 | AY29: ='Input|Indirect Cost Rates'!$D$44 -> 0.04586450543 | AZ29: 0 | BA29: 0 | BB29: 0 | BC29: 0 | BD29: Other direct non-labour costs consist of service provider charges - a 10% management overhead fee | BE29: 0
A30: 21 | C30: 95mm2 overhead service from LVABC - after hours | D30: After hours | E30: Basic connection services | F30: Connection service category - ACS fee based | H30: 0 | U30: 0 | AP30: 0 | AV30: ='Input|Indirect Cost Rates'!$D$26 -> 0.09698178955 | AW30: 0 | AX30: ='Input|Indirect Cost Rates'!$D$35 -> 0.06 | AY30: ='Input|Indirect Cost Rates'!$D$44 -> 0.04586450543 | AZ30: 0 | BA30: 0 | BB30: 0 | BC30: 0 | BD30: Other direct non-labour costs consist of service provider charges - a 10% management overhead fee | BE30: 0
A31: 22 | C31: Establish temporary supply connection - after hours | D31: After hours | E31: Connection management services | F31: Connection service category - ACS fee based | H31: 0 | U31: 0 | AP31: 0 | AV31: ='Input|Indirect Cost Rates'!$D$26 -> 0.09698178955 | AW31: 0 | AX31: ='Input|Indirect Cost Rates'!$D$35 -> 0.06 | AY31: ='Input|Indirect Cost Rates'!$D$44 -> 0.04586450543 | AZ31: 0 | BA31: 0 | BB31: 0 | BC31: 0 | BD31: Other direct non-labour costs consist of service provider charges - a 10% management overhead fee | BE31: 0
A32: 23 | C32: Service truck - Disconnect / Reconnect at pole or pit – After Hours | D32: After hours | E32: Connection management services | F32: Connection service category - ACS fee based | H32: 0 | U32: 0 | AP32: 0 | AV32: ='Input|Indirect Cost Rates'!$D$26 -> 0.09698178955 | AW32: 0 | AX32: ='Input|Indirect Cost Rates'!$D$35 -> 0.06 | AY32: ='Input|Indirect Cost Rates'!$D$44 -> 0.04586450543 | AZ32: 0 | BA32: 0 | BB32: 0 | BC32: 0 | BD32: Other direct non-labour costs consist of service provider charges - a 10% management overhead fee | BE32: 0
A33: 24 | C33: Meter equipment test | D33: Business hours | E33: Ancillary metering services Type 5 to 7 (including smart meter) where the distributor DNSP remains responsible | F33: Metering ancillary services - ACS fee based | H33: 0 | I33: Administrative Officer | J33: Business hours | K33: 1 | L33: 15 | U33: 0 | V33: Tech Officer | W33: Business hours | X33: 1 | Y33: 60 | Z33: 73.185 | AP33: 0 | AV33: ='Input|Indirect Cost Rates'!$D$26 -> 0.09698178955 | AW33: 0 | AX33: ='Input|Indirect Cost Rates'!$D$35 -> 0.06 | AY33: 0 | AZ33: 0 | BA33: 0 | BB33: 0 | BC33: 0 | BE33: 0
A34: 25 | C34: Meter equipment test - Each additional meter at same site | D34: Business hours | E34: Ancillary metering services Type 5 to 7 (including smart meter) where the distributor DNSP remains responsible | F34: Metering ancillary services - ACS fee based | H34: 0 | I34: Administrative Officer | J34: Business hours | K34: 1 | L34: 15 | U34: 0 | V34: Tech Officer | W34: Business hours | X34: 1 | Y34: 0 | Z34: 24.355 | AP34: 0 | AV34: ='Input|Indirect Cost Rates'!$D$26 -> 0.09698178955 | AW34: 0 | AX34: ='Input|Indirect Cost Rates'!$D$35 -> 0.06 | AY34: 0 | AZ34: 0 | BA34: 0 | BB34: 0 | BC34: 0 | BE34: 0
A35: 26 | C35: Meter equipment test | D35: Business hours | E35: Ancillary metering services Type 5 to 7 (including smart meter) where the distributor DNSP remains responsible | F35: Metering ancillary services - ACS fee based | H35: 0 | U35: 0 | AP35: 0 | AV35: ='Input|Indirect Cost Rates'!$D$26 -> 0.09698178955 | AW35: 0 | AX35: ='Input|Indirect Cost Rates'!$D$35 -> 0.06 | AY35: 0 | AZ35: 0 | BA35: 0 | BB35: 0 | BC35: 0 | BE35: 0
A36: 27 | C36: Meter equipment test - Each additional meter at same site | D36: Business hours | E36: Ancillary metering services Type 5 to 7 (including smart meter) where the distributor DNSP remains responsible | F36: Metering ancillary services - ACS fee based | H36: 0 | U36: 0 | AP36: 0 | AV36: ='Input|Indirect Cost Rates'!$D$26 -> 0.09698178955 | AW36: 0 | AX36: ='Input|Indirect Cost Rates'!$D$35 -> 0.06 | AY36: 0 | AZ36: 0 | BA36: 0 | BB36: 0 | BC36: 0 | BE36: 0
A37: 28 | C37: Wasted Truck Visit – customer not ready for their requested works | D37: Business hours | E37: Connection management services | F37: Network ancillary services - ACS fee based | H37: 0 | U37: 0 | AP37: 0 | AV37: ='Input|Indirect Cost Rates'!$D$26 -> 0.09698178955 | AW37: 0 | AX37: ='Input|Indirect Cost Rates'!$D$35 -> 0.06 | AY37: 0 | AZ37: 0 | BA37: 0 | BB37: 0 | BC37: 0 | BE37: 0
A38: 29 | C38: Manual assessment of PV & small generator installation enquiry, 4.6kW to 15kW | D38: Business hours | E38: Connection management services | F38: Network ancillary services - ACS fee based | H38: 0 | I38: Tech Officer | J38: Business hours | K38: 1 | L38: 147.855 | U38: 0 | AP38: 0 | AV38: ='Input|Indirect Cost Rates'!$D$26 -> 0.09698178955 | AW38: 0 | AX38: ='Input|Indirect Cost Rates'!$D$35 -> 0.06 | AY38: 0 | AZ38: 0 | BA38: 0 | BB38: 0 | BC38: 0 | BE38: 0
A39: 30 | C39: Manual assessment of PV & small generator installation enquiry, 15kW to 30kW | D39: Business hours | E39: Connection management services | F39: Network ancillary services - ACS fee based | H39: 0 | I39: Tech Officer | J39: Business hours | K39: 1 | L39: 147.855 | U39: 0 | AP39: 0 | AV39: ='Input|Indirect Cost Rates'!$D$26 -> 0.09698178955 | AW39: 0 | AX39: ='Input|Indirect Cost Rates'!$D$35 -> 0.06 | AY39: 0 | AZ39: 0 | BA39: 0 | BB39: 0 | BC39: 0 | BE39: 0
A40: 31 | C40: Remote special meter read | D40: Business hours | E40: Ancillary metering services Type 5 to 7 (including smart meter) where the distributor DNSP remains responsible | F40: Metering ancillary services - ACS fee based | H40: 0 | U40: 0 | AP40: 0 | AV40: ='Input|Indirect Cost Rates'!$D$26 -> 0.09698178955 | AW40: 0 | AX40: ='Input|Indirect Cost Rates'!$D$35 -> 0.06 | AY40: 0 | AZ40: 0 | BA40: 0 | BB40: 0 | BC40: 0 | BE40: 0
A41: 32 | C41: Remote re-energisation | D41: Business hours | E41: Ancillary metering services Type 5 to 7 (including smart meter) where the distributor DNSP remains responsible | F41: Metering ancillary services - ACS fee based | H41: 0 | U41: 0 | AP41: 0 | AV41: ='Input|Indirect Cost Rates'!$D$26 -> 0.09698178955 | AW41: 0 | AX41: ='Input|Indirect Cost Rates'!$D$35 -> 0.06 | AY41: 0 | AZ41: 0 | BA41: 0 | BB41: 0 | BC41: 0 | BE41: 0
A42: 33 | C42: Remote de-energisation | D42: Business hours | E42: Ancillary metering services Type 5 to 7 (including smart meter) where the distributor DNSP remains responsible | F42: Metering ancillary services - ACS fee based | H42: 0 | U42: 0 | AP42: 0 | AV42: ='Input|Indirect Cost Rates'!$D$26 -> 0.09698178955 | AW42: 0 | AX42: ='Input|Indirect Cost Rates'!$D$35 -> 0.06 | AY42: 0 | AZ42: 0 | BA42: 0 | BB42: 0 | BC42: 0 | BE42: 0
A43: 34 | C43: Remote meter re-configuration | D43: Business hours | E43: Ancillary metering services Type 5 to 7 (including smart meter) where the distributor DNSP remains responsible | F43: Metering ancillary services - ACS fee based | H43: 0 | I43: Tech Officer | J43: Business hours | K43: 1 | L43: 6.859 | U43: 0 | AP43: 0 | AV43: ='Input|Indirect Cost Rates'!$D$26 -> 0.09698178955 | AW43: 0 | AX43: ='Input|Indirect Cost Rates'!$D$35 -> 0.06 | AY43: 0 | AZ43: 0 | BA43: 0 | BB43: 0 | BC43: 0 | BE43: 0
A44: 35 | C44: Field officer visit - business hours | D44: Business hours | E44: Ancillary metering services Type 5 to 7 (including smart meter) where the distributor DNSP remains responsible | F44: Metering ancillary services - ACS fee based | H44: 0 | U44: 0 | V44: Tech Officer | W44: Business hours | X44: 1 | Y44: 13.295 | Z44: 2.5 | AP44: 0 | AV44: ='Input|Indirect Cost Rates'!$D$26 -> 0.09698178955 | AW44: 0 | AX44: ='Input|Indirect Cost Rates'!$D$35 -> 0.06 | AY44: 0 | AZ44: 0 | BA44: 0 | BB44: 0 | BC44: 0 | BE44: 0
A45: 36 | C45: Manual meter reading | D45: Business hours | E45: Ancillary metering services Type 5 to 7 (including smart meter) where the distributor DNSP remains responsible | F45: Metering ancillary services - ACS fee based | H45: 0 | U45: 0 | V45: Tech Officer | W45: Business hours | X45: 1 | Y45: 13.295 | Z45: 2.5 | AP45: 0 | AV45: ='Input|Indirect Cost Rates'!$D$26 -> 0.09698178955 | AW45: 0 | AX45: ='Input|Indirect Cost Rates'!$D$35 -> 0.06 | AY45: 0 | AZ45: 0 | BA45: 0 | BB45: 0 | BC45: 0 | BE45: 0
A46: 37 | C46: Priority re-energisation | D46: Business hours | E46: Ancillary metering services Type 5 to 7 (including smart meter) where the distributor DNSP remains responsible | F46: Metering ancillary services - ACS fee based | H46: 0 | U46: 0 | V46: Tech Officer | W46: Business hours | X46: 1 | Y46: 13.295 | Z46: 2.7082 | AP46: 0 | AV46: ='Input|Indirect Cost Rates'!$D$26 -> 0.09698178955 | AW46: 0 | AX46: ='Input|Indirect Cost Rates'!$D$35 -> 0.06 | AY46: 0 | AZ46: 0 | BA46: 0 | BB46: 0 | BC46: 0 | BE46: 0
